Workbook

Sheet Deckblatt
A2: Sommer-Cup 2019
A4: Witten-Herbede, Abt.1&2 - 02.05.-29.08.2019 - Welcome-Cup
A6: Ergebnisliste - Deckblatt
A8: Turnierleitung: | B8: Melanie Wickel-Paffrath, MGC Heven, Lizenznr. 11618
B9: und Peter Tabor, MGC "AS" Witten, Lizenznr. 8564
A10: Platzturnierleiter: | B10: Uwe Kersch
A11: Ausrichter: | B11: Marita Keuth/Uwe Kersch (Pächter)
B12: in Kooperation mit MGC "AS" Witten und MGC Heven
A13: Schiedsgericht: | B13: wechselnd, jeweils durch Aushang bekanntgegeben
D14: Auch sowas kann man beim
D15: Sommer-Cup in Herbede
D16: sehen:
D17: Am drittletzten Spieltag
D18: (17.8.19) konnten die Teil-
D19: nehmer einen schönen
D20: Regenbogen bewundern;
D21: der Regen sorgte also nicht
D22: nur für nasse Bahnen und
D23: Spielabbruch in Runde 2,
D24: sondern auch für schöne
D25: Bilder. Dafür verzichten wir
D26: hier auf die Siegerfotos.
A28: Besondere Vorkommnisse:
A30: Am 2.5. und am 4.7. konnte witterungsbedingt nicht gespielt werden.
A31: Am 15.8. musste in der Runde auf Beton witterungsbedingt abgebrochen werden.
A33: Anmerkungen des Turnierleiters:
A35: Je Spieltag wurden weitere Sachpreise unter den Teilnehmern ausgelost,
A36: eine Liste der Preise findet sich ebenfalls in dieser Ergebnisliste.
A38: Wir danken allen Teilnehmern und freuen uns auf ein Wiedersehen!
A40: Für die Richtigkeit:
A41: Peter Tabor
A42: MGC "AS" Witten

Sheet Gesamtstand
B1: Sommer-Cup 2019 im Freizeittreff Herbede - Gesamtstand
A2: Pl. | B2: Spieler | C2: Verein | D2: Passnr. | E2: Kat. | F2: 2019-05-02 | G2: =F2+7 -> 2019-05-09 | H2: =G2+7 -> 2019-05-16 | I2: =H2+7 -> 2019-05-23 | J2: =I2+6 -> 2019-05-29 | K2: =J2+8 -> 2019-06-06 | L2: =K2+7 -> 2019-06-13 | M2: =L2+6 -> 2019-06-19 | N2: =M2+8 -> 2019-06-27 | O2: 2019-07-04 | P2: 2019-07-11 | Q2: 2019-07-18 | R2: 2019-07-25 | S2: 2019-08-01 | T2: 2019-08-08 | U2: 2019-08-15 | V2: 2019-08-22 | W2: 2019-08-29 | X2: Pkt. ges. | Y2: Starts | Z2: Startgeld
A3: 1 | B3: Buchholz, Ansgar | C3: =VLOOKUP($B3,Teilnehmer!$A$3:$E$126,2,FALSE) -> ASW | D3: =VLOOKUP($B3,Teilnehmer!$A$3:$E$126,3,FALSE) -> 31513 | E3: =VLOOKUP($B3,Teilnehmer!$A$3:$E$126,4,FALSE) -> SM1 | F3: =SUMIF(Einzelwertung1!$A$3:$A$55,$B3,Einzelwertung1!$J$3:$J$55)+0.017 -> 0.017 | G3: =SUMIF(Einzelwertung2!$A$3:$A$55,$B3,Einzelwertung2!$J$3:$J$55)+0.016 -> 0.016 | H3: =SUMIF(Einzelwertung3!$A$3:$A$55,$B3,Einzelwertung3!$J$3:$J$55)+0.015 -> 0.015 | I3: =SUMIF(Einzelwertung4!$A$3:$A$55,$B3,Einzelwertung4!$J$3:$J$55)+0.014 -> 0.014 | J3: =SUMIF(Einzelwertung5!$A$3:$A$55,$B3,Einzelwertung5!$J$3:$J$55)+0.013 -> 0.013 | K3: =SUMIF(Einzelwertung6!$A$3:$A$55,$B3,Einzelwertung6!$J$3:$J$55)+0.012 -> 25.012 | L3: =SUMIF(Einzelwertung7!$A$3:$A$55,$B3,Einzelwertung7!$J$3:$J$55)+0.011 -> 18.011 | M3: =SUMIF(Einzelwertung8!$A$3:$A$55,$B3,Einzelwertung8!$J$3:$J$55)+0.01 -> 25.01 | N3: =SUMIF(Einzelwertung9!$A$3:$A$55,$B3,Einzelwertung9!$J$3:$J$55)+0.009 -> 21.009 | O3: =SUMIF(Einzelwertung10!$A$3:$A$55,$B3,Einzelwertung10!$J$3:$J$55)+0.008 -> 0.008 | P3: =SUMIF(Einzelwertung11!$A$3:$A$55,$B3,Einzelwertung11!$J$3:$J$55)+0.007 -> 25.007 | Q3: =SUMIF(Einzelwertung12!$A$3:$A$55,$B3,Einzelwertung12!$J$3:$J$55)+0.006 -> 25.006 | R3: =SUMIF(Einzelwertung13!$A$3:$A$55,$B3,Einzelwertung13!$J$3:$J$55)+0.005 -> 15.005 | S3: =SUMIF(Einzelwertung14!$A$3:$A$55,$B3,Einzelwertung14!$J$3:$J$55)+0.004 -> 0.004 | T3: =SUMIF(Einzelwertung15!$A$3:$A$67,$B3,Einzelwertung15!$J$3:$J$67)+0.003 -> 25.003 | U3: =SUMIF(Einzelwertung16!$A$3:$A$55,$B3,Einzelwertung16!$J$3:$J$55)+0.002 -> 25.002 | V3: =SUMIF(Einzelwertung17!$A$3:$A$55,$B3,Einzelwertung17!$J$3:$J$55)+0.001 -> 10.001 | W3: =SUMIF(Einzelwertung18!$A$3:$A$55,$B3,Einzelwertung18!$J$3:$J$55)+0 -> 25 | X3: =INT(IF(COUNTIF(F3:W3,CONCATENATE(">",1/10))<=Hilfe!$A$1,SUM(F3:W3),SUMIF(F3:W3,CONCATENATE(">=",LARGE(F3:W3,Hilfe!$A$1)),F3:W3))) -> 229 | Y3: =COUNTIF(E3:W3,">1") -> 11 | Z3: =IF(ISERROR(SEARCH(CONCATENATE(" ",E3," ")," JM JW SCHM SCHW ")),3,1.5)*Y3 -> 33
A4: 2 | B4: Urban, Volker | C4: =VLOOKUP($B4,Teilnehmer!$A$3:$E$126,2,FALSE) -> ASW | D4: =VLOOKUP($B4,Teilnehmer!$A$3:$E$126,3,FALSE) -> 35604 | E4: =VLOOKUP($B4,Teilnehmer!$A$3:$E$126,4,FALSE) -> SM1 | F4: =SUMIF(Einzelwertung1!$A$3:$A$55,$B4,Einzelwertung1!$J$3:$J$55)+0.017 -> 0.017 | G4: =SUMIF(Einzelwertung2!$A$3:$A$55,$B4,Einzelwertung2!$J$3:$J$55)+0.016 -> 25.016 | H4: =SUMIF(Einzelwertung3!$A$3:$A$55,$B4,Einzelwertung3!$J$3:$J$55)+0.015 -> 18.015 | I4: =SUMIF(Einzelwertung4!$A$3:$A$55,$B4,Einzelwertung4!$J$3:$J$55)+0.014 -> 15.014 | J4: =SUMIF(Einzelwertung5!$A$3:$A$55,$B4,Einzelwertung5!$J$3:$J$55)+0.013 -> 10.013 | K4: =SUMIF(Einzelwertung6!$A$3:$A$55,$B4,Einzelwertung6!$J$3:$J$55)+0.012 -> 15.012 | L4: =SUMIF(Einzelwertung7!$A$3:$A$55,$B4,Einzelwertung7!$J$3:$J$55)+0.011 -> 15.011 | M4: =SUMIF(Einzelwertung8!$A$3:$A$55,$B4,Einzelwertung8!$J$3:$J$55)+0.01 -> 15.01 | N4: =SUMIF(Einzelwertung9!$A$3:$A$55,$B4,Einzelwertung9!$J$3:$J$55)+0.009 -> 15.009 | O4: =SUMIF(Einzelwertung10!$A$3:$A$55,$B4,Einzelwertung10!$J$3:$J$55)+0.008 -> 0.008 | P4: =SUMIF(Einzelwertung11!$A$3:$A$55,$B4,Einzelwertung11!$J$3:$J$55)+0.007 -> 21.007 | Q4: =SUMIF(Einzelwertung12!$A$3:$A$55,$B4,Einzelwertung12!$J$3:$J$55)+0.006 -> 18.006 | R4: =SUMIF(Einzelwertung13!$A$3:$A$55,$B4,Einzelwertung13!$J$3:$J$55)+0.005 -> 25.005 | S4: =SUMIF(Einzelwertung14!$A$3:$A$55,$B4,Einzelwertung14!$J$3:$J$55)+0.004 -> 0.004 | T4: =SUMIF(Einzelwertung15!$A$3:$A$67,$B4,Einzelwertung15!$J$3:$J$67)+0.003 -> 5.003 | U4: =SUMIF(Einzelwertung16!$A$3:$A$55,$B4,Einzelwertung16!$J$3:$J$55)+0.002 -> 18.002 | V4: =SUMIF(Einzelwertung17!$A$3:$A$55,$B4,Einzelwertung17!$J$3:$J$55)+0.001 -> 15.001 | W4: =SUMIF(Einzelwertung18!$A$3:$A$55,$B4,Einzelwertung18!$J$3:$J$55)+0 -> 15 | X4: =INT(IF(COUNTIF(F4:W4,CONCATENATE(">",1/10))<=Hilfe!$A$1,SUM(F4:W4),SUMIF(F4:W4,CONCATENATE(">=",LARGE(F4:W4,Hilfe!$A$1)),F4:W4))) -> 185 | Y4: 15 | Z4: 45
A5: 3 | B5: Greiffendorf, Hellmut | C5: =VLOOKUP($B5,Teilnehmer!$A$3:$E$126,2,FALSE) -> ASW | D5: =VLOOKUP($B5,Teilnehmer!$A$3:$E$126,3,FALSE) -> 3800 | E5: =VLOOKUP($B5,Teilnehmer!$A$3:$E$126,4,FALSE) -> SM2 | F5: =SUMIF(Einzelwertung1!$A$3:$A$55,$B5,Einzelwertung1!$J$3:$J$55)+0.017 -> 0.017 | G5: =SUMIF(Einzelwertung2!$A$3:$A$55,$B5,Einzelwertung2!$J$3:$J$55)+0.016 -> 0.016 | H5: =SUMIF(Einzelwertung3!$A$3:$A$55,$B5,Einzelwertung3!$J$3:$J$55)+0.015 -> 0.015 | I5: =SUMIF(Einzelwertung4!$A$3:$A$55,$B5,Einzelwertung4!$J$3:$J$55)+0.014 -> 25.014 | J5: =SUMIF(Einzelwertung5!$A$3:$A$55,$B5,Einzelwertung5!$J$3:$J$55)+0.013 -> 25.013 | K5: =SUMIF(Einzelwertung6!$A$3:$A$55,$B5,Einzelwertung6!$J$3:$J$55)+0.012 -> 10.012 | L5: =SUMIF(Einzelwertung7!$A$3:$A$55,$B5,Einzelwertung7!$J$3:$J$55)+0.011 -> 21.011 | M5: =SUMIF(Einzelwertung8!$A$3:$A$55,$B5,Einzelwertung8!$J$3:$J$55)+0.01 -> 0.01 | N5: =SUMIF(Einzelwertung9!$A$3:$A$55,$B5,Einzelwertung9!$J$3:$J$55)+0.009 -> 0.009 | O5: =SUMIF(Einzelwertung10!$A$3:$A$55,$B5,Einzelwertung10!$J$3:$J$55)+0.008 -> 0.008 | P5: =SUMIF(Einzelwertung11!$A$3:$A$55,$B5,Einzelwertung11!$J$3:$J$55)+0.007 -> 10.007 | Q5: =SUMIF(Einzelwertung12!$A$3:$A$55,$B5,Einzelwertung12!$J$3:$J$55)+0.006 -> 25.006 | R5: =SUMIF(Einzelwertung13!$A$3:$A$55,$B5,Einzelwertung13!$J$3:$J$55)+0.005 -> 21.005 | S5: =SUMIF(Einzelwertung14!$A$3:$A$55,$B5,Einzelwertung14!$J$3:$J$55)+0.004 -> 15.004 | T5: =SUMIF(Einzelwertung15!$A$3:$A$67,$B5,Einzelwertung15!$J$3:$J$67)+0.003 -> 15.003 | U5: =SUMIF(Einzelwertung16!$A$3:$A$55,$B5,Einzelwertung16!$J$3:$J$55)+0.002 -> 10.002 | V5: =SUMIF(Einzelwertung17!$A$3:$A$55,$B5,Einzelwertung17!$J$3:$J$55)+0.001 -> 5.001 | W5: =SUMIF(Einzelwertung18!$A$3:$A$55,$B5,Einzelwertung18!$J$3:$J$55)+0 -> 15 | X5: =INT(IF(COUNTIF(F5:W5,CONCATENATE(">",1/10))<=Hilfe!$A$1,SUM(F5:W5),SUMIF(F5:W5,CONCATENATE(">=",LARGE(F5:W5,Hilfe!$A$1)),F5:W5))) -> 182 | Y5: 12 | Z5: 36
A6: 4 n.St. | B6: Mühling, Dirk | C6: =VLOOKUP($B6,Teilnehmer!$A$3:$E$126,2,FALSE) -> HEV | D6: =VLOOKUP($B6,Teilnehmer!$A$3:$E$126,3,FALSE) -> 49369 | E6: =VLOOKUP($B6,Teilnehmer!$A$3:$E$126,4,FALSE) -> SM1 | F6: =SUMIF(Einzelwertung1!$A$3:$A$55,$B6,Einzelwertung1!$J$3:$J$55)+0.017 -> 0.017 | G6: =SUMIF(Einzelwertung2!$A$3:$A$55,$B6,Einzelwertung2!$J$3:$J$55)+0.016 -> 18.016 | H6: =SUMIF(Einzelwertung3!$A$3:$A$55,$B6,Einzelwertung3!$J$3:$J$55)+0.015 -> 15.015 | I6: =SUMIF(Einzelwertung4!$A$3:$A$55,$B6,Einzelwertung4!$J$3:$J$55)+0.014 -> 25.014 | J6: =SUMIF(Einzelwertung5!$A$3:$A$55,$B6,Einzelwertung5!$J$3:$J$55)+0.013 -> 0.013 | K6: =SUMIF(Einzelwertung6!$A$3:$A$55,$B6,Einzelwertung6!$J$3:$J$55)+0.012 -> 10.012 | L6: =SUMIF(Einzelwertung7!$A$3:$A$55,$B6,Einzelwertung7!$J$3:$J$55)+0.011 -> 21.011 | M6: =SUMIF(Einzelwertung8!$A$3:$A$55,$B6,Einzelwertung8!$J$3:$J$55)+0.01 -> 15.01 | N6: =SUMIF(Einzelwertung9!$A$3:$A$55,$B6,Einzelwertung9!$J$3:$J$55)+0.009 -> 15.009 | O6: =SUMIF(Einzelwertung10!$A$3:$A$55,$B6,Einzelwertung10!$J$3:$J$55)+0.008 -> 0.008 | P6: =SUMIF(Einzelwertung11!$A$3:$A$55,$B6,Einzelwertung11!$J$3:$J$55)+0.007 -> 15.007 | Q6: =SUMIF(Einzelwertung12!$A$3:$A$55,$B6,Einzelwertung12!$J$3:$J$55)+0.006 -> 10.006 | R6: =SUMIF(Einzelwertung13!$A$3:$A$55,$B6,Einzelwertung13!$J$3:$J$55)+0.005 -> 21.005 | S6: =SUMIF(Einzelwertung14!$A$3:$A$55,$B6,Einzelwertung14!$J$3:$J$55)+0.004 -> 15.004 | T6: =SUMIF(Einzelwertung15!$A$3:$A$67,$B6,Einzelwertung15!$J$3:$J$67)+0.003 -> 15.003 | U6: =SUMIF(Einzelwertung16!$A$3:$A$55,$B6,Einzelwertung16!$J$3:$J$55)+0.002 -> 10.002 | V6: =SUMIF(Einzelwertung17!$A$3:$A$55,$B6,Einzelwertung17!$J$3:$J$55)+0.001 -> 0.001 | W6: =SUMIF(Einzelwertung18!$A$3:$A$55,$B6,Einzelwertung18!$J$3:$J$55)+0 -> 18 | X6: =INT(IF(COUNTIF(F6:W6,CONCATENATE(">",1/10))<=Hilfe!$A$1,SUM(F6:W6),SUMIF(F6:W6,CONCATENATE(">=",LARGE(F6:W6,Hilfe!$A$1)),F6:W6))) -> 178 | Y6: 14 | Z6: 42
A7: 5 n.St. | B7: Tabor, Peter | C7: =VLOOKUP($B7,Teilnehmer!$A$3:$E$126,2,FALSE) -> ASW | D7: =VLOOKUP($B7,Teilnehmer!$A$3:$E$126,3,FALSE) -> 65804 | E7: =VLOOKUP($B7,Teilnehmer!$A$3:$E$126,4,FALSE) -> SM2 | F7: =SUMIF(Einzelwertung1!$A$3:$A$55,$B7,Einzelwertung1!$J$3:$J$55)+0.017 -> 0.017 | G7: =SUMIF(Einzelwertung2!$A$3:$A$55,$B7,Einzelwertung2!$J$3:$J$55)+0.016 -> 18.016 | H7: =SUMIF(Einzelwertung3!$A$3:$A$55,$B7,Einzelwertung3!$J$3:$J$55)+0.015 -> 10.015 | I7: =SUMIF(Einzelwertung4!$A$3:$A$55,$B7,Einzelwertung4!$J$3:$J$55)+0.014 -> 0.014 | J7: =SUMIF(Einzelwertung5!$A$3:$A$55,$B7,Einzelwertung5!$J$3:$J$55)+0.013 -> 15.013 | K7: =SUMIF(Einzelwertung6!$A$3:$A$55,$B7,Einzelwertung6!$J$3:$J$55)+0.012 -> 25.012 | L7: =SUMIF(Einzelwertung7!$A$3:$A$55,$B7,Einzelwertung7!$J$3:$J$55)+0.011 -> 25.011 | M7: =SUMIF(Einzelwertung8!$A$3:$A$55,$B7,Einzelwertung8!$J$3:$J$55)+0.01 -> 10.01 | N7: =SUMIF(Einzelwertung9!$A$3:$A$55,$B7,Einzelwertung9!$J$3:$J$55)+0.009 -> 21.009 | O7: =SUMIF(Einzelwertung10!$A$3:$A$55,$B7,Einzelwertung10!$J$3:$J$55)+0.008 -> 0.008 | P7: =SUMIF(Einzelwertung11!$A$3:$A$55,$B7,Einzelwertung11!$J$3:$J$55)+0.007 -> 10.007 | Q7: =SUMIF(Einzelwertung12!$A$3:$A$55,$B7,Einzelwertung12!$J$3:$J$55)+0.006 -> 5.006 | R7: =SUMIF(Einzelwertung13!$A$3:$A$55,$B7,Einzelwertung13!$J$3:$J$55)+0.005 -> 21.005 | S7: =SUMIF(Einzelwertung14!$A$3:$A$55,$B7,Einzelwertung14!$J$3:$J$55)+0.004 -> 3.004 | T7: =SUMIF(Einzelwertung15!$A$3:$A$67,$B7,Einzelwertung15!$J$3:$J$67)+0.003 -> 5.003 | U7: =SUMIF(Einzelwertung16!$A$3:$A$55,$B7,Einzelwertung16!$J$3:$J$55)+0.002 -> 18.002 | V7: =SUMIF(Einzelwertung17!$A$3:$A$55,$B7,Einzelwertung17!$J$3:$J$55)+0.001 -> 15.001 | W7: =SUMIF(Einzelwertung18!$A$3:$A$55,$B7,Einzelwertung18!$J$3:$J$55)+0 -> 10 | X7: =INT(IF(COUNTIF(F7:W7,CONCATENATE(">",1/10))<=Hilfe!$A$1,SUM(F7:W7),SUMIF(F7:W7,CONCATENATE(">=",LARGE(F7:W7,Hilfe!$A$1)),F7:W7))) -> 178 | Y7: 15 | Z7: 45
A8: 6 | B8: Puschner, Michael | C8: =VLOOKUP($B8,Teilnehmer!$A$3:$E$126,2,FALSE) -> Hobby | D8: =VLOOKUP($B8,Teilnehmer!$A$3:$E$126,3,FALSE) -> Hobby11 | E8: =VLOOKUP($B8,Teilnehmer!$A$3:$E$126,4,FALSE) -> SM2 | F8: =SUMIF(Einzelwertung1!$A$3:$A$55,$B8,Einzelwertung1!$J$3:$J$55)+0.017 -> 0.017 | G8: =SUMIF(Einzelwertung2!$A$3:$A$55,$B8,Einzelwertung2!$J$3:$J$55)+0.016 -> 25.016 | H8: =SUMIF(Einzelwertung3!$A$3:$A$55,$B8,Einzelwertung3!$J$3:$J$55)+0.015 -> 5.015 | I8: =SUMIF(Einzelwertung4!$A$3:$A$55,$B8,Einzelwertung4!$J$3:$J$55)+0.014 -> 15.014 | J8: =SUMIF(Einzelwertung5!$A$3:$A$55,$B8,Einzelwertung5!$J$3:$J$55)+0.013 -> 15.013 | K8: =SUMIF(Einzelwertung6!$A$3:$A$55,$B8,Einzelwertung6!$J$3:$J$55)+0.012 -> 10.012 | L8: =SUMIF(Einzelwertung7!$A$3:$A$55,$B8,Einzelwertung7!$J$3:$J$55)+0.011 -> 15.011 | M8: =SUMIF(Einzelwertung8!$A$3:$A$55,$B8,Einzelwertung8!$J$3:$J$55)+0.01 -> 21.01 | N8: =SUMIF(Einzelwertung9!$A$3:$A$55,$B8,Einzelwertung9!$J$3:$J$55)+0.009 -> 5.009 | O8: =SUMIF(Einzelwertung10!$A$3:$A$55,$B8,Einzelwertung10!$J$3:$J$55)+0.008 -> 0.008 | P8: =SUMIF(Einzelwertung11!$A$3:$A$55,$B8,Einzelwertung11!$J$3:$J$55)+0.007 -> 18.007 | Q8: =SUMIF(Einzelwertung12!$A$3:$A$55,$B8,Einzelwertung12!$J$3:$J$55)+0.006 -> 15.006 | R8: =SUMIF(Einzelwertung13!$A$3:$A$55,$B8,Einzelwertung13!$J$3:$J$55)+0.005 -> 10.005 | S8: =SUMIF(Einzelwertung14!$A$3:$A$55,$B8,Einzelwertung14!$J$3:$J$55)+0.004 -> 5.004 | T8: =SUMIF(Einzelwertung15!$A$3:$A$67,$B8,Einzelwertung15!$J$3:$J$67)+0.003 -> 0.003 | U8: =SUMIF(Einzelwertung16!$A$3:$A$55,$B8,Einzelwertung16!$J$3:$J$55)+0.002 -> 0.002 | V8: =SUMIF(Einzelwertung17!$A$3:$A$55,$B8,Einzelwertung17!$J$3:$J$55)+0.001 -> 21.001 | W8: =SUMIF(Einzelwertung18!$A$3:$A$55,$B8,Einzelwertung18!$J$3:$J$55)+0 -> 18 | X8: =INT(IF(COUNTIF(F8:W8,CONCATENATE(">",1/10))<=Hilfe!$A$1,SUM(F8:W8),SUMIF(F8:W8,CONCATENATE(">=",LARGE(F8:W8,Hilfe!$A$1)),F8:W8))) -> 173 | Y8: 14 | Z8: 42
A9: 7 | B9: Lenk, Rolf | C9: =VLOOKUP($B9,Teilnehmer!$A$3:$E$126,2,FALSE) -> ASW | D9: =VLOOKUP($B9,Teilnehmer!$A$3:$E$126,3,FALSE) -> 61716 | E9: =VLOOKUP($B9,Teilnehmer!$A$3:$E$126,4,FALSE) -> SM2 | F9: =SUMIF(Einzelwertung1!$A$3:$A$55,$B9,Einzelwertung1!$J$3:$J$55)+0.017 -> 0.017 | G9: =SUMIF(Einzelwertung2!$A$3:$A$55,$B9,Einzelwertung2!$J$3:$J$55)+0.016 -> 15.016 | H9: =SUMIF(Einzelwertung3!$A$3:$A$55,$B9,Einzelwertung3!$J$3:$J$55)+0.015 -> 25.015 | I9: =SUMIF(Einzelwertung4!$A$3:$A$55,$B9,Einzelwertung4!$J$3:$J$55)+0.014 -> 15.014 | J9: =SUMIF(Einzelwertung5!$A$3:$A$55,$B9,Einzelwertung5!$J$3:$J$55)+0.013 -> 10.013 | K9: =SUMIF(Einzelwertung6!$A$3:$A$55,$B9,Einzelwertung6!$J$3:$J$55)+0.012 -> 15.012 | L9: =SUMIF(Einzelwertung7!$A$3:$A$55,$B9,Einzelwertung7!$J$3:$J$55)+0.011 -> 5.011 | M9: =SUMIF(Einzelwertung8!$A$3:$A$55,$B9,Einzelwertung8!$J$3:$J$55)+0.01 -> 21.01 | N9: =SUMIF(Einzelwertung9!$A$3:$A$55,$B9,Einzelwertung9!$J$3:$J$55)+0.009 -> 10.009 | O9: =SUMIF(Einzelwertung10!$A$3:$A$55,$B9,Einzelwertung10!$J$3:$J$55)+0.008 -> 0.008 | P9: =SUMIF(Einzelwertung11!$A$3:$A$55,$B9,Einzelwertung11!$J$3:$J$55)+0.007 -> 5.007 | Q9: =SUMIF(Einzelwertung12!$A$3:$A$55,$B9,Einzelwertung12!$J$3:$J$55)+0.006 -> 5.006 | R9: =SUMIF(Einzelwertung13!$A$3:$A$55,$B9,Einzelwertung13!$J$3:$J$55)+0.005 -> 18.005 | S9: =SUMIF(Einzelwertung14!$A$3:$A$55,$B9,Einzelwertung14!$J$3:$J$55)+0.004 -> 18.004 | T9: =SUMIF(Einzelwertung15!$A$3:$A$67,$B9,Einzelwertung15!$J$3:$J$67)+0.003 -> 15.003 | U9: =SUMIF(Einzelwertung16!$A$3:$A$55,$B9,Einzelwertung16!$J$3:$J$55)+0.002 -> 10.002 | V9: =SUMIF(Einzelwertung17!$A$3:$A$55,$B9,Einzelwertung17!$J$3:$J$55)+0.001 -> 15.001 | W9: =SUMIF(Einzelwertung18!$A$3:$A$55,$B9,Einzelwertung18!$J$3:$J$55)+0 -> 15 | X9: =INT(IF(COUNTIF(F9:W9,CONCATENATE(">",1/10))<=Hilfe!$A$1,SUM(F9:W9),SUMIF(F9:W9,CONCATENATE(">=",LARGE(F9:W9,Hilfe!$A$1)),F9:W9))) -> 172 | Y9: 16 | Z9: 48
A10: 8 | B10: Lieber, Nicole | C10: =VLOOKUP($B10,Teilnehmer!$A$3:$E$126,2,FALSE) -> Hobby | D10: =VLOOKUP($B10,Teilnehmer!$A$3:$E$126,3,FALSE) -> Hobby7 | E10: =VLOOKUP($B10,Teilnehmer!$A$3:$E$126,4,FALSE) -> D | F10: =SUMIF(Einzelwertung1!$A$3:$A$55,$B10,Einzelwertung1!$J$3:$J$55)+0.017 -> 0.017 | G10: =SUMIF(Einzelwertung2!$A$3:$A$55,$B10,Einzelwertung2!$J$3:$J$55)+0.016 -> 0.016 | H10: =SUMIF(Einzelwertung3!$A$3:$A$55,$B10,Einzelwertung3!$J$3:$J$55)+0.015 -> 0.015 | I10: =SUMIF(Einzelwertung4!$A$3:$A$55,$B10,Einzelwertung4!$J$3:$J$55)+0.014 -> 0.014 | J10: =SUMIF(Einzelwertung5!$A$3:$A$55,$B10,Einzelwertung5!$J$3:$J$55)+0.013 -> 15.013 | K10: =SUMIF(Einzelwertung6!$A$3:$A$55,$B10,Einzelwertung6!$J$3:$J$55)+0.012 -> 15.012 | L10: =SUMIF(Einzelwertung7!$A$3:$A$55,$B10,Einzelwertung7!$J$3:$J$55)+0.011 -> 10.011 | M10: =SUMIF(Einzelwertung8!$A$3:$A$55,$B10,Einzelwertung8!$J$3:$J$55)+0.01 -> 10.01 | N10: =SUMIF(Einzelwertung9!$A$3:$A$55,$B10,Einzelwertung9!$J$3:$J$55)+0.009 -> 18.009 | O10: =SUMIF(Einzelwertung10!$A$3:$A$55,$B10,Einzelwertung10!$J$3:$J$55)+0.008 -> 0.008 | P10: =SUMIF(Einzelwertung11!$A$3:$A$55,$B10,Einzelwertung11!$J$3:$J$55)+0.007 -> 15.007 | Q10: =SUMIF(Einzelwertung12!$A$3:$A$55,$B10,Einzelwertung12!$J$3:$J$55)+0.006 -> 10.006 | R10: =SUMIF(Einzelwertung13!$A$3:$A$55,$B10,Einzelwertung13!$J$3:$J$55)+0.005 -> 10.005 | S10: =SUMIF(Einzelwertung14!$A$3:$A$55,$B10,Einzelwertung14!$J$3:$J$55)+0.004 -> 25.004 | T10: =SUMIF(Einzelwertung15!$A$3:$A$67,$B10,Einzelwertung15!$J$3:$J$67)+0.003 -> 21.003 | U10: =SUMIF(Einzelwertung16!$A$3:$A$55,$B10,Einzelwertung16!$J$3:$J$55)+0.002 -> 5.002 | V10: =SUMIF(Einzelwertung17!$A$3:$A$55,$B10,Einzelwertung17!$J$3:$J$55)+0.001 -> 25.001 | W10: =SUMIF(Einzelwertung18!$A$3:$A$55,$B10,Einzelwertung18!$J$3:$J$55)+0 -> 15 | X10: =INT(IF(COUNTIF(F10:W10,CONCATENATE(">",1/10))<=Hilfe!$A$1,SUM(F10:W10),SUMIF(F10:W10,CONCATENATE(">=",LARGE(F10:W10,Hilfe!$A$1)),F10:W10))) -> 169 | Y10: 13 | Z10: 39
A11: 9 | B11: Börgmann, Ulrich | C11: =VLOOKUP($B11,Teilnehmer!$A$3:$E$126,2,FALSE) -> Hobby | D11: =VLOOKUP($B11,Teilnehmer!$A$3:$E$126,3,FALSE) -> Hobby15 | E11: =VLOOKUP($B11,Teilnehmer!$A$3:$E$126,4,FALSE) -> SM1 | F11: =SUMIF(Einzelwertung1!$A$3:$A$55,$B11,Einzelwertung1!$J$3:$J$55)+0.017 -> 0.017 | G11: =SUMIF(Einzelwertung2!$A$3:$A$55,$B11,Einzelwertung2!$J$3:$J$55)+0.016 -> 18.016 | H11: =SUMIF(Einzelwertung3!$A$3:$A$55,$B11,Einzelwertung3!$J$3:$J$55)+0.015 -> 5.015 | I11: =SUMIF(Einzelwertung4!$A$3:$A$55,$B11,Einzelwertung4!$J$3:$J$55)+0.014 -> 5.014 | J11: =SUMIF(Einzelwertung5!$A$3:$A$55,$B11,Einzelwertung5!$J$3:$J$55)+0.013 -> 10.013 | K11: =SUMIF(Einzelwertung6!$A$3:$A$55,$B11,Einzelwertung6!$J$3:$J$55)+0.012 -> 15.012 | L11: =SUMIF(Einzelwertung7!$A$3:$A$55,$B11,Einzelwertung7!$J$3:$J$55)+0.011 -> 15.011 | M11: =SUMIF(Einzelwertung8!$A$3:$A$55,$B11,Einzelwertung8!$J$3:$J$55)+0.01 -> 15.01 | N11: =SUMIF(Einzelwertung9!$A$3:$A$55,$B11,Einzelwertung9!$J$3:$J$55)+0.009 -> 10.009 | O11: =SUMIF(Einzelwertung10!$A$3:$A$55,$B11,Einzelwertung10!$J$3:$J$55)+0.008 -> 0.008 | P11: =SUMIF(Einzelwertung11!$A$3:$A$55,$B11,Einzelwertung11!$J$3:$J$55)+0.007 -> 15.007 | Q11: =SUMIF(Einzelwertung12!$A$3:$A$55,$B11,Einzelwertung12!$J$3:$J$55)+0.006 -> 10.006 | R11: =SUMIF(Einzelwertung13!$A$3:$A$55,$B11,Einzelwertung13!$J$3:$J$55)+0.005 -> 10.005 | S11: =SUMIF(Einzelwertung14!$A$3:$A$55,$B11,Einzelwertung14!$J$3:$J$55)+0.004 -> 15.004 | T11: =SUMIF(Einzelwertung15!$A$3:$A$67,$B11,Einzelwertung15!$J$3:$J$67)+0.003 -> 5.003 | U11: =SUMIF(Einzelwertung16!$A$3:$A$55,$B11,Einzelwertung16!$J$3:$J$55)+0.002 -> 10.002 | V11: =SUMIF(Einzelwertung17!$A$3:$A$55,$B11,Einzelwertung17!$J$3:$J$55)+0.001 -> 15.001 | W11: =SUMIF(Einzelwertung18!$A$3:$A$55,$B11,Einzelwertung18!$J$3:$J$55)+0 -> 5 | X11: =INT(IF(COUNTIF(F11:W11,CONCATENATE(">",1/10))<=Hilfe!$A$1,SUM(F11:W11),SUMIF(F11:W11,CONCATENATE(">=",LARGE(F11:W11,Hilfe!$A$1)),F11:W11))) -> 138 | Y11: 16 | Z11: 48
A12: 10 | B12: Schmidtbauer, Günter | C12: =VLOOKUP($B12,Teilnehmer!$A$3:$E$126,2,FALSE) -> Hobby | D12: =VLOOKUP($B12,Teilnehmer!$A$3:$E$126,3,FALSE) -> Hobby4 | E12: =VLOOKUP($B12,Teilnehmer!$A$3:$E$126,4,FALSE) -> SM2 | F12: =SUMIF(Einzelwertung1!$A$3:$A$55,$B12,Einzelwertung1!$J$3:$J$55)+0.017 -> 0.017 | G12: =SUMIF(Einzelwertung2!$A$3:$A$55,$B12,Einzelwertung2!$J$3:$J$55)+0.016 -> 0.016 | H12: =SUMIF(Einzelwertung3!$A$3:$A$55,$B12,Einzelwertung3!$J$3:$J$55)+0.015 -> 25.015 | I12: =SUMIF(Einzelwertung4!$A$3:$A$55,$B12,Einzelwertung4!$J$3:$J$55)+0.014 -> 10.014 | J12: =SUMIF(Einzelwertung5!$A$3:$A$55,$B12,Einzelwertung5!$J$3:$J$55)+0.013 -> 3.013 | K12: =SUMIF(Einzelwertung6!$A$3:$A$55,$B12,Einzelwertung6!$J$3:$J$55)+0.012 -> 10.012 | L12: =SUMIF(Einzelwertung7!$A$3:$A$55,$B12,Einzelwertung7!$J$3:$J$55)+0.011 -> 10.011 | M12: =SUMIF(Einzelwertung8!$A$3:$A$55,$B12,Einzelwertung8!$J$3:$J$55)+0.01 -> 10.01 | N12: =SUMIF(Einzelwertung9!$A$3:$A$55,$B12,Einzelwertung9!$J$3:$J$55)+0.009 -> 5.009 | O12: =SUMIF(Einzelwertung10!$A$3:$A$55,$B12,Einzelwertung10!$J$3:$J$55)+0.008 -> 0.008 | P12: =SUMIF(Einzelwertung11!$A$3:$A$55,$B12,Einzelwertung11!$J$3:$J$55)+0.007 -> 25.007 | Q12: =SUMIF(Einzelwertung12!$A$3:$A$55,$B12,Einzelwertung12!$J$3:$J$55)+0.006 -> 10.006 | R12: =SUMIF(Einzelwertung13!$A$3:$A$55,$B12,Einzelwertung13!$J$3:$J$55)+0.005 -> 0.005 | S12: =SUMIF(Einzelwertung14!$A$3:$A$55,$B12,Einzelwertung14!$J$3:$J$55)+0.004 -> 5.004 | T12: =SUMIF(Einzelwertung15!$A$3:$A$67,$B12,Einzelwertung15!$J$3:$J$67)+0.003 -> 5.003 | U12: =SUMIF(Einzelwertung16!$A$3:$A$55,$B12,Einzelwertung16!$J$3:$J$55)+0.002 -> 5.002 | V12: =SUMIF(Einzelwertung17!$A$3:$A$55,$B12,Einzelwertung17!$J$3:$J$55)+0.001 -> 21.001 | W12: =SUMIF(Einzelwertung18!$A$3:$A$55,$B12,Einzelwertung18!$J$3:$J$55)+0 -> 0 | X12: =INT(IF(COUNTIF(F12:W12,CONCATENATE(">",1/10))<=Hilfe!$A$1,SUM(F12:W12),SUMIF(F12:W12,CONCATENATE(">=",LARGE(F12:W12,Hilfe!$A$1)),F12:W12))) -> 131 | Y12: 13 | Z12: 39
A13: 11 | B13: Kortmann, Sabine | C13: =VLOOKUP($B13,Teilnehmer!$A$3:$E$126,2,FALSE) -> Hobby | D13: =VLOOKUP($B13,Teilnehmer!$A$3:$E$126,3,FALSE) -> Hobby31 | E13: =VLOOKUP($B13,Teilnehmer!$A$3:$E$126,4,FALSE) -> SW1 | F13: =SUMIF(Einzelwertung1!$A$3:$A$55,$B13,Einzelwertung1!$J$3:$J$55)+0.017 -> 0.017 | G13: =SUMIF(Einzelwertung2!$A$3:$A$55,$B13,Einzelwertung2!$J$3:$J$55)+0.016 -> 15.016 | H13: =SUMIF(Einzelwertung3!$A$3:$A$55,$B13,Einzelwertung3!$J$3:$J$55)+0.015 -> 15.015 | I13: =SUMIF(Einzelwertung4!$A$3:$A$55,$B13,Einzelwertung4!$J$3:$J$55)+0.014 -> 18.014 | J13: =SUMIF(Einzelwertung5!$A$3:$A$55,$B13,Einzelwertung5!$J$3:$J$55)+0.013 -> 10.013 | K13: =SUMIF(Einzelwertung6!$A$3:$A$55,$B13,Einzelwertung6!$J$3:$J$55)+0.012 -> 0.012 | L13: =SUMIF(Einzelwertung7!$A$3:$A$55,$B13,Einzelwertung7!$J$3:$J$55)+0.011 -> 0.011 | M13: =SUMIF(Einzelwertung8!$A$3:$A$55,$B13,Einzelwertung8!$J$3:$J$55)+0.01 -> 0.01 | N13: =SUMIF(Einzelwertung9!$A$3:$A$55,$B13,Einzelwertung9!$J$3:$J$55)+0.009 -> 15.009 | O13: =SUMIF(Einzelwertung10!$A$3:$A$55,$B13,Einzelwertung10!$J$3:$J$55)+0.008 -> 0.008 | P13: =SUMIF(Einzelwertung11!$A$3:$A$55,$B13,Einzelwertung11!$J$3:$J$55)+0.007 -> 5.007 | Q13: =SUMIF(Einzelwertung12!$A$3:$A$55,$B13,Einzelwertung12!$J$3:$J$55)+0.006 -> 10.006 | R13: =SUMIF(Einzelwertung13!$A$3:$A$55,$B13,Einzelwertung13!$J$3:$J$55)+0.005 -> 5.005 | S13: =SUMIF(Einzelwertung14!$A$3:$A$55,$B13,Einzelwertung14!$J$3:$J$55)+0.004 -> 5.004 | T13: =SUMIF(Einzelwertung15!$A$3:$A$67,$B13,Einzelwertung15!$J$3:$J$67)+0.003 -> 5.003 | U13: =SUMIF(Einzelwertung16!$A$3:$A$55,$B13,Einzelwertung16!$J$3:$J$55)+0.002 -> 5.002 | V13: =SUMIF(Einzelwertung17!$A$3:$A$55,$B13,Einzelwertung17!$J$3:$J$55)+0.001 -> 15.001 | W13: =SUMIF(Einzelwertung18!$A$3:$A$55,$B13,Einzelwertung18!$J$3:$J$55)+0 -> 15 | X13: =INT(IF(COUNTIF(F13:W13,CONCATENATE(">",1/10))<=Hilfe!$A$1,SUM(F13:W13),SUMIF(F13:W13,CONCATENATE(">=",LARGE(F13:W13,Hilfe!$A$1)),F13:W13))) -> 123 | Y13: 13 | Z13: 39
A14: 12 | B14: Kortmann, Uwe | C14: =VLOOKUP($B14,Teilnehmer!$A$3:$E$126,2,FALSE) -> Hobby | D14: =VLOOKUP($B14,Teilnehmer!$A$3:$E$126,3,FALSE) -> Hobby32 | E14: =VLOOKUP($B14,Teilnehmer!$A$3:$E$126,4,FALSE) -> SM1 | F14: =SUMIF(Einzelwertung1!$A$3:$A$55,$B14,Einzelwertung1!$J$3:$J$55)+0.017 -> 0.017 | G14: =SUMIF(Einzelwertung2!$A$3:$A$55,$B14,Einzelwertung2!$J$3:$J$55)+0.016 -> 15.016 | H14: =SUMIF(Einzelwertung3!$A$3:$A$55,$B14,Einzelwertung3!$J$3:$J$55)+0.015 -> 10.015 | I14: =SUMIF(Einzelwertung4!$A$3:$A$55,$B14,Einzelwertung4!$J$3:$J$55)+0.014 -> 5.014 | J14: =SUMIF(Einzelwertung5!$A$3:$A$55,$B14,Einzelwertung5!$J$3:$J$55)+0.013 -> 10.013 | K14: =SUMIF(Einzelwertung6!$A$3:$A$55,$B14,Einzelwertung6!$J$3:$J$55)+0.012 -> 0.012 | L14: =SUMIF(Einzelwertung7!$A$3:$A$55,$B14,Einzelwertung7!$J$3:$J$55)+0.011 -> 0.011 | M14: =SUMIF(Einzelwertung8!$A$3:$A$55,$B14,Einzelwertung8!$J$3:$J$55)+0.01 -> 0.01 | N14: =SUMIF(Einzelwertung9!$A$3:$A$55,$B14,Einzelwertung9!$J$3:$J$55)+0.009 -> 10.009 | O14: =SUMIF(Einzelwertung10!$A$3:$A$55,$B14,Einzelwertung10!$J$3:$J$55)+0.008 -> 0.008 | P14: =SUMIF(Einzelwertung11!$A$3:$A$55,$B14,Einzelwertung11!$J$3:$J$55)+0.007 -> 15.007 | Q14: =SUMIF(Einzelwertung12!$A$3:$A$55,$B14,Einzelwertung12!$J$3:$J$55)+0.006 -> 15.006 | R14: =SUMIF(Einzelwertung13!$A$3:$A$55,$B14,Einzelwertung13!$J$3:$J$55)+0.005 -> 15.005 | S14: =SUMIF(Einzelwertung14!$A$3:$A$55,$B14,Einzelwertung14!$J$3:$J$55)+0.004 -> 10.004 | T14: =SUMIF(Einzelwertung15!$A$3:$A$67,$B14,Einzelwertung15!$J$3:$J$67)+0.003 -> 15.003 | U14: =SUMIF(Einzelwertung16!$A$3:$A$55,$B14,Einzelwertung16!$J$3:$J$55)+0.002 -> 3.002 | V14: =SUMIF(Einzelwertung17!$A$3:$A$55,$B14,Einzelwertung17!$J$3:$J$55)+0.001 -> 5.001 | W14: =SUMIF(Einzelwertung18!$A$3:$A$55,$B14,Einzelwertung18!$J$3:$J$55)+0 -> 5 | X14: =INT(IF(COUNTIF(F14:W14,CONCATENATE(">",1/10))<=Hilfe!$A$1,SUM(F14:W14),SUMIF(F14:W14,CONCATENATE(">=",LARGE(F14:W14,Hilfe!$A$1)),F14:W14))) -> 120 | Y14: 13 | Z14: 39
A15: 13 | B15: Urban, Dominic | C15: =VLOOKUP($B15,Teilnehmer!$A$3:$E$126,2,FALSE) -> ASW | D15: =VLOOKUP($B15,Teilnehmer!$A$3:$E$126,3,FALSE) -> 66186 | E15: =VLOOKUP($B15,Teilnehmer!$A$3:$E$126,4,FALSE) -> JM | F15: =SUMIF(Einzelwertung1!$A$3:$A$55,$B15,Einzelwertung1!$J$3:$J$55)+0.017 -> 0.017 | G15: =SUMIF(Einzelwertung2!$A$3:$A$55,$B15,Einzelwertung2!$J$3:$J$55)+0.016 -> 10.016 | H15: =SUMIF(Einzelwertung3!$A$3:$A$55,$B15,Einzelwertung3!$J$3:$J$55)+0.015 -> 0.015 | I15: =SUMIF(Einzelwertung4!$A$3:$A$55,$B15,Einzelwertung4!$J$3:$J$55)+0.014 -> 25.014 | J15: =SUMIF(Einzelwertung5!$A$3:$A$55,$B15,Einzelwertung5!$J$3:$J$55)+0.013 -> 15.013 | K15: =SUMIF(Einzelwertung6!$A$3:$A$55,$B15,Einzelwertung6!$J$3:$J$55)+0.012 -> 15.012 | L15: =SUMIF(Einzelwertung7!$A$3:$A$55,$B15,Einzelwertung7!$J$3:$J$55)+0.011 -> 5.011 | M15: =SUMIF(Einzelwertung8!$A$3:$A$55,$B15,Einzelwertung8!$J$3:$J$55)+0.01 -> 0.01 | N15: =SUMIF(Einzelwertung9!$A$3:$A$55,$B15,Einzelwertung9!$J$3:$J$55)+0.009 -> 5.009 | O15: =SUMIF(Einzelwertung10!$A$3:$A$55,$B15,Einzelwertung10!$J$3:$J$55)+0.008 -> 0.008 | P15: =SUMIF(Einzelwertung11!$A$3:$A$55,$B15,Einzelwertung11!$J$3:$J$55)+0.007 -> 10.007 | Q15: =SUMIF(Einzelwertung12!$A$3:$A$55,$B15,Einzelwertung12!$J$3:$J$55)+0.006 -> 0.006 | R15: =SUMIF(Einzelwertung13!$A$3:$A$55,$B15,Einzelwertung13!$J$3:$J$55)+0.005 -> 10.005 | S15: =SUMIF(Einzelwertung14!$A$3:$A$55,$B15,Einzelwertung14!$J$3:$J$55)+0.004 -> 0.004 | T15: =SUMIF(Einzelwertung15!$A$3:$A$67,$B15,Einzelwertung15!$J$3:$J$67)+0.003 -> 3.003 | U15: =SUMIF(Einzelwertung16!$A$3:$A$55,$B15,Einzelwertung16!$J$3:$J$55)+0.002 -> 3.002 | V15: =SUMIF(Einzelwertung17!$A$3:$A$55,$B15,Einzelwertung17!$J$3:$J$55)+0.001 -> 10.001 | W15: =SUMIF(Einzelwertung18!$A$3:$A$55,$B15,Einzelwertung18!$J$3:$J$55)+0 -> 10 | X15: =INT(IF(COUNTIF(F15:W15,CONCATENATE(">",1/10))<=Hilfe!$A$1,SUM(F15:W15),SUMIF(F15:W15,CONCATENATE(">=",LARGE(F15:W15,Hilfe!$A$1)),F15:W15))) -> 115 | Y15: 12 | Z15: 18
A16: 14 | B16: Kunz, Martin | C16: =VLOOKUP($B16,Teilnehmer!$A$3:$E$126,2,FALSE) -> Hobby | D16: =VLOOKUP($B16,Teilnehmer!$A$3:$E$126,3,FALSE) -> Hobby40 | E16: =VLOOKUP($B16,Teilnehmer!$A$3:$E$126,4,FALSE) -> SM1 | F16: =SUMIF(Einzelwertung1!$A$3:$A$55,$B16,Einzelwertung1!$J$3:$J$55)+0.017 -> 0.017 | G16: =SUMIF(Einzelwertung2!$A$3:$A$55,$B16,Einzelwertung2!$J$3:$J$55)+0.016 -> 0.016 | H16: =SUMIF(Einzelwertung3!$A$3:$A$55,$B16,Einzelwertung3!$J$3:$J$55)+0.015 -> 18.015 | I16: =SUMIF(Einzelwertung4!$A$3:$A$55,$B16,Einzelwertung4!$J$3:$J$55)+0.014 -> 10.014 | J16: =SUMIF(Einzelwertung5!$A$3:$A$55,$B16,Einzelwertung5!$J$3:$J$55)+0.013 -> 25.013 | K16: =SUMIF(Einzelwertung6!$A$3:$A$55,$B16,Einzelwertung6!$J$3:$J$55)+0.012 -> 0.012 | L16: =SUMIF(Einzelwertung7!$A$3:$A$55,$B16,Einzelwertung7!$J$3:$J$55)+0.011 -> 0.011 | M16: =SUMIF(Einzelwertung8!$A$3:$A$55,$B16,Einzelwertung8!$J$3:$J$55)+0.01 -> 10.01 | N16: =SUMIF(Einzelwertung9!$A$3:$A$55,$B16,Einzelwertung9!$J$3:$J$55)+0.009 -> 0.009 | O16: =SUMIF(Einzelwertung10!$A$3:$A$55,$B16,Einzelwertung10!$J$3:$J$55)+0.008 -> 0.008 | P16: =SUMIF(Einzelwertung11!$A$3:$A$55,$B16,Einzelwertung11!$J$3:$J$55)+0.007 -> 10.007 | Q16: =SUMIF(Einzelwertung12!$A$3:$A$55,$B16,Einzelwertung12!$J$3:$J$55)+0.006 -> 0.006 | R16: =SUMIF(Einzelwertung13!$A$3:$A$55,$B16,Einzelwertung13!$J$3:$J$55)+0.005 -> 0.005 | S16: =SUMIF(Einzelwertung14!$A$3:$A$55,$B16,Einzelwertung14!$J$3:$J$55)+0.004 -> 15.004 | T16: =SUMIF(Einzelwertung15!$A$3:$A$67,$B16,Einzelwertung15!$J$3:$J$67)+0.003 -> 0.003 | U16: =SUMIF(Einzelwertung16!$A$3:$A$55,$B16,Einzelwertung16!$J$3:$J$55)+0.002 -> 5.002 | V16: =SUMIF(Einzelwertung17!$A$3:$A$55,$B16,Einzelwertung17!$J$3:$J$55)+0.001 -> 10.001 | W16: =SUMIF(Einzelwertung18!$A$3:$A$55,$B16,Einzelwertung18!$J$3:$J$55)+0 -> 10 | X16: =INT(IF(COUNTIF(F16:W16,CONCATENATE(">",1/10))<=Hilfe!$A$1,SUM(F16:W16),SUMIF(F16:W16,CONCATENATE(">=",LARGE(F16:W16,Hilfe!$A$1)),F16:W16))) -> 113 | Y16: 9 | Z16: 27
A17: 15 | B17: Urban, Angela | C17: =VLOOKUP($B17,Teilnehmer!$A$3:$E$126,2,FALSE) -> ASW | D17: =VLOOKUP($B17,Teilnehmer!$A$3:$E$126,3,FALSE) -> 35605 | E17: =VLOOKUP($B17,Teilnehmer!$A$3:$E$126,4,FALSE) -> SW1 | F17: =SUMIF(Einzelwertung1!$A$3:$A$55,$B17,Einzelwertung1!$J$3:$J$55)+0.017 -> 0.017 | G17: =SUMIF(Einzelwertung2!$A$3:$A$55,$B17,Einzelwertung2!$J$3:$J$55)+0.016 -> 0.016 | H17: =SUMIF(Einzelwertung3!$A$3:$A$55,$B17,Einzelwertung3!$J$3:$J$55)+0.015 -> 18.015 | I17: =SUMIF(Einzelwertung4!$A$3:$A$55,$B17,Einzelwertung4!$J$3:$J$55)+0.014 -> 0.014 | J17: =SUMIF(Einzelwertung5!$A$3:$A$55,$B17,Einzelwertung5!$J$3:$J$55)+0.013 -> 10.013 | K17: =SUMIF(Einzelwertung6!$A$3:$A$55,$B17,Einzelwertung6!$J$3:$J$55)+0.012 -> 0.012 | L17: =SUMIF(Einzelwertung7!$A$3:$A$55,$B17,Einzelwertung7!$J$3:$J$55)+0.011 -> 10.011 | M17: =SUMIF(Einzelwertung8!$A$3:$A$55,$B17,Einzelwertung8!$J$3:$J$55)+0.01 -> 0.01 | N17: =SUMIF(Einzelwertung9!$A$3:$A$55,$B17,Einzelwertung9!$J$3:$J$55)+0.009 -> 10.009 | O17: =SUMIF(Einzelwertung10!$A$3:$A$55,$B17,Einzelwertung10!$J$3:$J$55)+0.008 -> 0.008 | P17: =SUMIF(Einzelwertung11!$A$3:$A$55,$B17,Einzelwertung11!$J$3:$J$55)+0.007 -> 15.007 | Q17: =SUMIF(Einzelwertung12!$A$3:$A$55,$B17,Einzelwertung12!$J$3:$J$55)+0.006 -> 5.006 | R17: =SUMIF(Einzelwertung13!$A$3:$A$55,$B17,Einzelwertung13!$J$3:$J$55)+0.005 -> 10.005 | S17: =SUMIF(Einzelwertung14!$A$3:$A$55,$B17,Einzelwertung14!$J$3:$J$55)+0.004 -> 0.004 | T17: =SUMIF(Einzelwertung15!$A$3:$A$67,$B17,Einzelwertung15!$J$3:$J$67)+0.003 -> 3.003 | U17: =SUMIF(Einzelwertung16!$A$3:$A$55,$B17,Einzelwertung16!$J$3:$J$55)+0.002 -> 5.002 | V17: =SUMIF(Einzelwertung17!$A$3:$A$55,$B17,Einzelwertung17!$J$3:$J$55)+0.001 -> 15.001 | W17: =SUMIF(Einzelwertung18!$A$3:$A$55,$B17,Einzelwertung18!$J$3:$J$55)+0 -> 0 | X17: =INT(IF(COUNTIF(F17:W17,CONCATENATE(">",1/10))<=Hilfe!$A$1,SUM(F17:W17),SUMIF(F17:W17,CONCATENATE(">=",LARGE(F17:W17,Hilfe!$A$1)),F17:W17))) -> 101 | Y17: 10 | Z17: 30
A18: 16 | B18: Jezierski, Marie-Luise | C18: =VLOOKUP($B18,Teilnehmer!$A$3:$E$126,2,FALSE) -> ASW | D18: =VLOOKUP($B18,Teilnehmer!$A$3:$E$126,3,FALSE) -> 61958 | E18: =VLOOKUP($B18,Teilnehmer!$A$3:$E$126,4,FALSE) -> SW2 | F18: =SUMIF(Einzelwertung1!$A$3:$A$55,$B18,Einzelwertung1!$J$3:$J$55)+0.017 -> 0.017 | G18: =SUMIF(Einzelwertung2!$A$3:$A$55,$B18,Einzelwertung2!$J$3:$J$55)+0.016 -> 5.016 | H18: =SUMIF(Einzelwertung3!$A$3:$A$55,$B18,Einzelwertung3!$J$3:$J$55)+0.015 -> 10.015 | I18: =SUMIF(Einzelwertung4!$A$3:$A$55,$B18,Einzelwertung4!$J$3:$J$55)+0.014 -> 5.014 | J18: =SUMIF(Einzelwertung5!$A$3:$A$55,$B18,Einzelwertung5!$J$3:$J$55)+0.013 -> 18.013 | K18: =SUMIF(Einzelwertung6!$A$3:$A$55,$B18,Einzelwertung6!$J$3:$J$55)+0.012 -> 15.012 | L18: =SUMIF(Einzelwertung7!$A$3:$A$55,$B18,Einzelwertung7!$J$3:$J$55)+0.011 -> 10.011 | M18: =SUMIF(Einzelwertung8!$A$3:$A$55,$B18,Einzelwertung8!$J$3:$J$55)+0.01 -> 5.01 | N18: =SUMIF(Einzelwertung9!$A$3:$A$55,$B18,Einzelwertung9!$J$3:$J$55)+0.009 -> 10.009 | O18: =SUMIF(Einzelwertung10!$A$3:$A$55,$B18,Einzelwertung10!$J$3:$J$55)+0.008 -> 0.008 | P18: =SUMIF(Einzelwertung11!$A$3:$A$55,$B18,Einzelwertung11!$J$3:$J$55)+0.007 -> 5.007 | Q18: =SUMIF(Einzelwertung12!$A$3:$A$55,$B18,Einzelwertung12!$J$3:$J$55)+0.006 -> 3.006 | R18: =SUMIF(Einzelwertung13!$A$3:$A$55,$B18,Einzelwertung13!$J$3:$J$55)+0.005 -> 10.005 | S18: =SUMIF(Einzelwertung14!$A$3:$A$55,$B18,Einzelwertung14!$J$3:$J$55)+0.004 -> 5.004 | T18: =SUMIF(Einzelwertung15!$A$3:$A$67,$B18,Einzelwertung15!$J$3:$J$67)+0.003 -> 10.003 | U18: =SUMIF(Einzelwertung16!$A$3:$A$55,$B18,Einzelwertung16!$J$3:$J$55)+0.002 -> 3.002 | V18: =SUMIF(Einzelwertung17!$A$3:$A$55,$B18,Einzelwertung17!$J$3:$J$55)+0.001 -> 5.001 | W18: =SUMIF(Einzelwertung18!$A$3:$A$55,$B18,Einzelwertung18!$J$3:$J$55)+0 -> 5 | X18: =INT(IF(COUNTIF(F18:W18,CONCATENATE(">",1/10))<=Hilfe!$A$1,SUM(F18:W18),SUMIF(F18:W18,CONCATENATE(">=",LARGE(F18:W18,Hilfe!$A$1)),F18:W18))) -> 98 | Y18: 16 | Z18: 48
A19: 17 | B19: Börgmann, Brigitte | C19: =VLOOKUP($B19,Teilnehmer!$A$3:$E$126,2,FALSE) -> Hobby | D19: =VLOOKUP($B19,Teilnehmer!$A$3:$E$126,3,FALSE) -> Hobby6 | E19: =VLOOKUP($B19,Teilnehmer!$A$3:$E$126,4,FALSE) -> SW1 | F19: =SUMIF(Einzelwertung1!$A$3:$A$55,$B19,Einzelwertung1!$J$3:$J$55)+0.017 -> 0.017 | G19: =SUMIF(Einzelwertung2!$A$3:$A$55,$B19,Einzelwertung2!$J$3:$J$55)+0.016 -> 0.016 | H19: =SUMIF(Einzelwertung3!$A$3:$A$55,$B19,Einzelwertung3!$J$3:$J$55)+0.015 -> 5.015 | I19: =SUMIF(Einzelwertung4!$A$3:$A$55,$B19,Einzelwertung4!$J$3:$J$55)+0.014 -> 10.014 | J19: =SUMIF(Einzelwertung5!$A$3:$A$55,$B19,Einzelwertung5!$J$3:$J$55)+0.013 -> 5.013 | K19: =SUMIF(Einzelwertung6!$A$3:$A$55,$B19,Einzelwertung6!$J$3:$J$55)+0.012 -> 15.012 | L19: =SUMIF(Einzelwertung7!$A$3:$A$55,$B19,Einzelwertung7!$J$3:$J$55)+0.011 -> 5.011 | M19: =SUMIF(Einzelwertung8!$A$3:$A$55,$B19,Einzelwertung8!$J$3:$J$55)+0.01 -> 15.01 | N19: =SUMIF(Einzelwertung9!$A$3:$A$55,$B19,Einzelwertung9!$J$3:$J$55)+0.009 -> 3.009 | O19: =SUMIF(Einzelwertung10!$A$3:$A$55,$B19,Einzelwertung10!$J$3:$J$55)+0.008 -> 0.008 | P19: =SUMIF(Einzelwertung11!$A$3:$A$55,$B19,Einzelwertung11!$J$3:$J$55)+0.007 -> 5.007 | Q19: =SUMIF(Einzelwertung12!$A$3:$A$55,$B19,Einzelwertung12!$J$3:$J$55)+0.006 -> 5.006 | R19: =SUMIF(Einzelwertung13!$A$3:$A$55,$B19,Einzelwertung13!$J$3:$J$55)+0.005 -> 10.005 | S19: =SUMIF(Einzelwertung14!$A$3:$A$55,$B19,Einzelwertung14!$J$3:$J$55)+0.004 -> 10.004 | T19: =SUMIF(Einzelwertung15!$A$3:$A$67,$B19,Einzelwertung15!$J$3:$J$67)+0.003 -> 5.003 | U19: =SUMIF(Einzelwertung16!$A$3:$A$55,$B19,Einzelwertung16!$J$3:$J$55)+0.002 -> 1.002 | V19: =SUMIF(Einzelwertung17!$A$3:$A$55,$B19,Einzelwertung17!$J$3:$J$55)+0.001 -> 10.001 | W19: =SUMIF(Einzelwertung18!$A$3:$A$55,$B19,Einzelwertung18!$J$3:$J$55)+0 -> 10 | X19: =INT(IF(COUNTIF(F19:W19,CONCATENATE(">",1/10))<=Hilfe!$A$1,SUM(F19:W19),SUMIF(F19:W19,CONCATENATE(">=",LARGE(F19:W19,Hilfe!$A$1)),F19:W19))) -> 95 | Y19: 15 | Z19: 45
A20: 18 | B20: Kersch, Uwe | C20: =VLOOKUP($B20,Teilnehmer!$A$3:$E$126,2,FALSE) -> HEV | D20: =VLOOKUP($B20,Teilnehmer!$A$3:$E$126,3,FALSE) -> 67352 | E20: =VLOOKUP($B20,Teilnehmer!$A$3:$E$126,4,FALSE) -> SM2 | F20: =SUMIF(Einzelwertung1!$A$3:$A$55,$B20,Einzelwertung1!$J$3:$J$55)+0.017 -> 0.017 | G20: =SUMIF(Einzelwertung2!$A$3:$A$55,$B20,Einzelwertung2!$J$3:$J$55)+0.016 -> 15.016 | H20: =SUMIF(Einzelwertung3!$A$3:$A$55,$B20,Einzelwertung3!$J$3:$J$55)+0.015 -> 3.015 | I20: =SUMIF(Einzelwertung4!$A$3:$A$55,$B20,Einzelwertung4!$J$3:$J$55)+0.014 -> 0.014 | J20: =SUMIF(Einzelwertung5!$A$3:$A$55,$B20,Einzelwertung5!$J$3:$J$55)+0.013 -> 5.013 | K20: =SUMIF(Einzelwertung6!$A$3:$A$55,$B20,Einzelwertung6!$J$3:$J$55)+0.012 -> 0.012 | L20: =SUMIF(Einzelwertung7!$A$3:$A$55,$B20,Einzelwertung7!$J$3:$J$55)+0.011 -> 15.011 | M20: =SUMIF(Einzelwertung8!$A$3:$A$55,$B20,Einzelwertung8!$J$3:$J$55)+0.01 -> 0.01 | N20: =SUMIF(Einzelwertung9!$A$3:$A$55,$B20,Einzelwertung9!$J$3:$J$55)+0.009 -> 10.009 | O20: =SUMIF(Einzelwertung10!$A$3:$A$55,$B20,Einzelwertung10!$J$3:$J$55)+0.008 -> 0.008 | P20: =SUMIF(Einzelwertung11!$A$3:$A$55,$B20,Einzelwertung11!$J$3:$J$55)+0.007 -> 5.007 | Q20: =SUMIF(Einzelwertung12!$A$3:$A$55,$B20,Einzelwertung12!$J$3:$J$55)+0.006 -> 3.006 | R20: =SUMIF(Einzelwertung13!$A$3:$A$55,$B20,Einzelwertung13!$J$3:$J$55)+0.005 -> 10.005 | S20: =SUMIF(Einzelwertung14!$A$3:$A$55,$B20,Einzelwertung14!$J$3:$J$55)+0.004 -> 5.004 | T20: =SUMIF(Einzelwertung15!$A$3:$A$67,$B20,Einzelwertung15!$J$3:$J$67)+0.003 -> 3.003 | U20: =SUMIF(Einzelwertung16!$A$3:$A$55,$B20,Einzelwertung16!$J$3:$J$55)+0.002 -> 3.002 | V20: =SUMIF(Einzelwertung17!$A$3:$A$55,$B20,Einzelwertung17!$J$3:$J$55)+0.001 -> 10.001 | W20: =SUMIF(Einzelwertung18!$A$3:$A$55,$B20,Einzelwertung18!$J$3:$J$55)+0 -> 15 | X20: =INT(IF(COUNTIF(F20:W20,CONCATENATE(">",1/10))<=Hilfe!$A$1,SUM(F20:W20),SUMIF(F20:W20,CONCATENATE(">=",LARGE(F20:W20,Hilfe!$A$1)),F20:W20))) -> 93 | Y20: 13 | Z20: 39
A21: 19 | B21: Schmidt, Barbara | C21: =VLOOKUP($B21,Teilnehmer!$A$3:$E$126,2,FALSE) -> Hobby | D21: =VLOOKUP($B21,Teilnehmer!$A$3:$E$126,3,FALSE) -> 3202768 | E21: =VLOOKUP($B21,Teilnehmer!$A$3:$E$126,4,FALSE) -> SW2 | F21: =SUMIF(Einzelwertung1!$A$3:$A$55,$B21,Einzelwertung1!$J$3:$J$55)+0.017 -> 0.017 | G21: =SUMIF(Einzelwertung2!$A$3:$A$55,$B21,Einzelwertung2!$J$3:$J$55)+0.016 -> 15.016 | H21: =SUMIF(Einzelwertung3!$A$3:$A$55,$B21,Einzelwertung3!$J$3:$J$55)+0.015 -> 10.015 | I21: =SUMIF(Einzelwertung4!$A$3:$A$55,$B21,Einzelwertung4!$J$3:$J$55)+0.014 -> 10.014 | J21: =SUMIF(Einzelwertung5!$A$3:$A$55,$B21,Einzelwertung5!$J$3:$J$55)+0.013 -> 3.013 | K21: =SUMIF(Einzelwertung6!$A$3:$A$55,$B21,Einzelwertung6!$J$3:$J$55)+0.012 -> 5.012 | L21: =SUMIF(Einzelwertung7!$A$3:$A$55,$B21,Einzelwertung7!$J$3:$J$55)+0.011 -> 3.011 | M21: =SUMIF(Einzelwertung8!$A$3:$A$55,$B21,Einzelwertung8!$J$3:$J$55)+0.01 -> 5.01 | N21: =SUMIF(Einzelwertung9!$A$3:$A$55,$B21,Einzelwertung9!$J$3:$J$55)+0.009 -> 3.009 | O21: =SUMIF(Einzelwertung10!$A$3:$A$55,$B21,Einzelwertung10!$J$3:$J$55)+0.008 -> 0.008 | P21: =SUMIF(Einzelwertung11!$A$3:$A$55,$B21,Einzelwertung11!$J$3:$J$55)+0.007 -> 3.007 | Q21: =SUMIF(Einzelwertung12!$A$3:$A$55,$B21,Einzelwertung12!$J$3:$J$55)+0.006 -> 10.006 | R21: =SUMIF(Einzelwertung13!$A$3:$A$55,$B21,Einzelwertung13!$J$3:$J$55)+0.005 -> 5.005 | S21: =SUMIF(Einzelwertung14!$A$3:$A$55,$B21,Einzelwertung14!$J$3:$J$55)+0.004 -> 0.004 | T21: =SUMIF(Einzelwertung15!$A$3:$A$67,$B21,Einzelwertung15!$J$3:$J$67)+0.003 -> 0.003 | U21: =SUMIF(Einzelwertung16!$A$3:$A$55,$B21,Einzelwertung16!$J$3:$J$55)+0.002 -> 5.002 | V21: =SUMIF(Einzelwertung17!$A$3:$A$55,$B21,Einzelwertung17!$J$3:$J$55)+0.001 -> 3.001 | W21: =SUMIF(Einzelwertung18!$A$3:$A$55,$B21,Einzelwertung18!$J$3:$J$55)+0 -> 3 | X21: =INT(IF(COUNTIF(F21:W21,CONCATENATE(">",1/10))<=Hilfe!$A$1,SUM(F21:W21),SUMIF(F21:W21,CONCATENATE(">=",LARGE(F21:W21,Hilfe!$A$1)),F21:W21))) -> 71 | Y21: 14 | Z21: 42
A22: 20 | B22: Battig, Wolfgang | C22: =VLOOKUP($B22,Teilnehmer!$A$3:$E$126,2,FALSE) -> Lüd. | D22: =VLOOKUP($B22,Teilnehmer!$A$3:$E$126,3,FALSE) -> 23741 | E22: =VLOOKUP($B22,Teilnehmer!$A$3:$E$126,4,FALSE) -> SM1 | F22: =SUMIF(Einzelwertung1!$A$3:$A$55,$B22,Einzelwertung1!$J$3:$J$55)+0.017 -> 0.017 | G22: =SUMIF(Einzelwertung2!$A$3:$A$55,$B22,Einzelwertung2!$J$3:$J$55)+0.016 -> 0.016 | H22: =SUMIF(Einzelwertung3!$A$3:$A$55,$B22,Einzelwertung3!$J$3:$J$55)+0.015 -> 0.015 | I22: =SUMIF(Einzelwertung4!$A$3:$A$55,$B22,Einzelwertung4!$J$3:$J$55)+0.014 -> 0.014 | J22: =SUMIF(Einzelwertung5!$A$3:$A$55,$B22,Einzelwertung5!$J$3:$J$55)+0.013 -> 0.013 | K22: =SUMIF(Einzelwertung6!$A$3:$A$55,$B22,Einzelwertung6!$J$3:$J$55)+0.012 -> 0.012 | L22: =SUMIF(Einzelwertung7!$A$3:$A$55,$B22,Einzelwertung7!$J$3:$J$55)+0.011 -> 0.011 | M22: =SUMIF(Einzelwertung8!$A$3:$A$55,$B22,Einzelwertung8!$J$3:$J$55)+0.01 -> 0.01 | N22: =SUMIF(Einzelwertung9!$A$3:$A$55,$B22,Einzelwertung9!$J$3:$J$55)+0.009 -> 0.009 | O22: =SUMIF(Einzelwertung10!$A$3:$A$55,$B22,Einzelwertung10!$J$3:$J$55)+0.008 -> 0.008 | P22: =SUMIF(Einzelwertung11!$A$3:$A$55,$B22,Einzelwertung11!$J$3:$J$55)+0.007 -> 0.007 | Q22: =SUMIF(Einzelwertung12!$A$3:$A$55,$B22,Einzelwertung12!$J$3:$J$55)+0.006 -> 18.006 | R22: =SUMIF(Einzelwertung13!$A$3:$A$55,$B22,Einzelwertung13!$J$3:$J$55)+0.005 -> 0.005 | S22: =SUMIF(Einzelwertung14!$A$3:$A$55,$B22,Einzelwertung14!$J$3:$J$55)+0.004 -> 25.004 | T22: =SUMIF(Einzelwertung15!$A$3:$A$67,$B22,Einzelwertung15!$J$3:$J$67)+0.003 -> 25.003 | U22: =SUMIF(Einzelwertung16!$A$3:$A$55,$B22,Einzelwertung16!$J$3:$J$55)+0.002 -> 0.002 | V22: =SUMIF(Einzelwertung17!$A$3:$A$55,$B22,Einzelwertung17!$J$3:$J$55)+0.001 -> 0.001 | W22: =SUMIF(Einzelwertung18!$A$3:$A$55,$B22,Einzelwertung18!$J$3:$J$55)+0 -> 0 | X22: =INT(IF(COUNTIF(F22:W22,CONCATENATE(">",1/10))<=Hilfe!$A$1,SUM(F22:W22),SUMIF(F22:W22,CONCATENATE(">=",LARGE(F22:W22,Hilfe!$A$1)),F22:W22))) -> 68 | Y22: 3 | Z22: 9
A23: 21 | B23: Ginschel, Rudolf | C23: =VLOOKUP($B23,Teilnehmer!$A$3:$E$126,2,FALSE) -> BMC | D23: =VLOOKUP($B23,Teilnehmer!$A$3:$E$126,3,FALSE) -> 66864 | E23: =VLOOKUP($B23,Teilnehmer!$A$3:$E$126,4,FALSE) -> SM2 | F23: =SUMIF(Einzelwertung1!$A$3:$A$55,$B23,Einzelwertung1!$J$3:$J$55)+0.017 -> 0.017 | G23: =SUMIF(Einzelwertung2!$A$3:$A$55,$B23,Einzelwertung2!$J$3:$J$55)+0.016 -> 25.016 | H23: =SUMIF(Einzelwertung3!$A$3:$A$55,$B23,Einzelwertung3!$J$3:$J$55)+0.015 -> 10.015 | I23: =SUMIF(Einzelwertung4!$A$3:$A$55,$B23,Einzelwertung4!$J$3:$J$55)+0.014 -> 5.014 | J23: =SUMIF(Einzelwertung5!$A$3:$A$55,$B23,Einzelwertung5!$J$3:$J$55)+0.013 -> 0.013 | K23: =SUMIF(Einzelwertung6!$A$3:$A$55,$B23,Einzelwertung6!$J$3:$J$55)+0.012 -> 0.012 | L23: =SUMIF(Einzelwertung7!$A$3:$A$55,$B23,Einzelwertung7!$J$3:$J$55)+0.011 -> 0.011 | M23: =SUMIF(Einzelwertung8!$A$3:$A$55,$B23,Einzelwertung8!$J$3:$J$55)+0.01 -> 18.01 | N23: =SUMIF(Einzelwertung9!$A$3:$A$55,$B23,Einzelwertung9!$J$3:$J$55)+0.009 -> 0.009 | O23: =SUMIF(Einzelwertung10!$A$3:$A$55,$B23,Einzelwertung10!$J$3:$J$55)+0.008 -> 0.008 | P23: =SUMIF(Einzelwertung11!$A$3:$A$55,$B23,Einzelwertung11!$J$3:$J$55)+0.007 -> 0.007 | Q23: =SUMIF(Einzelwertung12!$A$3:$A$55,$B23,Einzelwertung12!$J$3:$J$55)+0.006 -> 0.006 | R23: =SUMIF(Einzelwertung13!$A$3:$A$55,$B23,Einzelwertung13!$J$3:$J$55)+0.005 -> 0.005 | S23: =SUMIF(Einzelwertung14!$A$3:$A$55,$B23,Einzelwertung14!$J$3:$J$55)+0.004 -> 0.004 | T23: =SUMIF(Einzelwertung15!$A$3:$A$67,$B23,Einzelwertung15!$J$3:$J$67)+0.003 -> 0.003 | U23: =SUMIF(Einzelwertung16!$A$3:$A$55,$B23,Einzelwertung16!$J$3:$J$55)+0.002 -> 0.002 | V23: =SUMIF(Einzelwertung17!$A$3:$A$55,$B23,Einzelwertung17!$J$3:$J$55)+0.001 -> 0.001 | W23: =SUMIF(Einzelwertung18!$A$3:$A$55,$B23,Einzelwertung18!$J$3:$J$55)+0 -> 0 | X23: =INT(IF(COUNTIF(F23:W23,CONCATENATE(">",1/10))<=Hilfe!$A$1,SUM(F23:W23),SUMIF(F23:W23,CONCATENATE(">=",LARGE(F23:W23,Hilfe!$A$1)),F23:W23))) -> 58 | Y23: 4 | Z23: 12
A24: 22 | B24: Dreischer, Burkhard | C24: =VLOOKUP($B24,Teilnehmer!$A$3:$E$126,2,FALSE) -> Oly | D24: =VLOOKUP($B24,Teilnehmer!$A$3:$E$126,3,FALSE) -> 23778 | E24: =VLOOKUP($B24,Teilnehmer!$A$3:$E$126,4,FALSE) -> SM2 | F24: =SUMIF(Einzelwertung1!$A$3:$A$55,$B24,Einzelwertung1!$J$3:$J$55)+0.017 -> 0.017 | G24: =SUMIF(Einzelwertung2!$A$3:$A$55,$B24,Einzelwertung2!$J$3:$J$55)+0.016 -> 0.016 | H24: =SUMIF(Einzelwertung3!$A$3:$A$55,$B24,Einzelwertung3!$J$3:$J$55)+0.015 -> 0.015 | I24: =SUMIF(Einzelwertung4!$A$3:$A$55,$B24,Einzelwertung4!$J$3:$J$55)+0.014 -> 0.014 | J24: =SUMIF(Einzelwertung5!$A$3:$A$55,$B24,Einzelwertung5!$J$3:$J$55)+0.013 -> 0.013 | K24: =SUMIF(Einzelwertung6!$A$3:$A$55,$B24,Einzelwertung6!$J$3:$J$55)+0.012 -> 0.012 | L24: =SUMIF(Einzelwertung7!$A$3:$A$55,$B24,Einzelwertung7!$J$3:$J$55)+0.011 -> 0.011 | M24: =SUMIF(Einzelwertung8!$A$3:$A$55,$B24,Einzelwertung8!$J$3:$J$55)+0.01 -> 0.01 | N24: =SUMIF(Einzelwertung9!$A$3:$A$55,$B24,Einzelwertung9!$J$3:$J$55)+0.009 -> 0.009 | O24: =SUMIF(Einzelwertung10!$A$3:$A$55,$B24,Einzelwertung10!$J$3:$J$55)+0.008 -> 0.008 | P24: =SUMIF(Einzelwertung11!$A$3:$A$55,$B24,Einzelwertung11!$J$3:$J$55)+0.007 -> 0.007 | Q24: =SUMIF(Einzelwertung12!$A$3:$A$55,$B24,Einzelwertung12!$J$3:$J$55)+0.006 -> 10.006 | R24: =SUMIF(Einzelwertung13!$A$3:$A$55,$B24,Einzelwertung13!$J$3:$J$55)+0.005 -> 0.005 | S24: =SUMIF(Einzelwertung14!$A$3:$A$55,$B24,Einzelwertung14!$J$3:$J$55)+0.004 -> 0.004 | T24: =SUMIF(Einzelwertung15!$A$3:$A$67,$B24,Einzelwertung15!$J$3:$J$67)+0.003 -> 10.003 | U24: =SUMIF(Einzelwertung16!$A$3:$A$55,$B24,Einzelwertung16!$J$3:$J$55)+0.002 -> 15.002 | V24: =SUMIF(Einzelwertung17!$A$3:$A$55,$B24,Einzelwertung17!$J$3:$J$55)+0.001 -> 15.001 | W24: =SUMIF(Einzelwertung18!$A$3:$A$55,$B24,Einzelwertung18!$J$3:$J$55)+0 -> 3 | X24: =INT(IF(COUNTIF(F24:W24,CONCATENATE(">",1/10))<=Hilfe!$A$1,SUM(F24:W24),SUMIF(F24:W24,CONCATENATE(">=",LARGE(F24:W24,Hilfe!$A$1)),F24:W24))) -> 53 | Y24: 5 | Z24: 15
A25: 23 | B25: Schmitt, Jürgen | C25: =VLOOKUP($B25,Teilnehmer!$A$3:$E$126,2,FALSE) -> ASW | D25: =VLOOKUP($B25,Teilnehmer!$A$3:$E$126,3,FALSE) -> 44955 | E25: =VLOOKUP($B25,Teilnehmer!$A$3:$E$126,4,FALSE) -> SM1 | F25: =SUMIF(Einzelwertung1!$A$3:$A$55,$B25,Einzelwertung1!$J$3:$J$55)+0.017 -> 0.017 | G25: =SUMIF(Einzelwertung2!$A$3:$A$55,$B25,Einzelwertung2!$J$3:$J$55)+0.016 -> 0.016 | H25: =SUMIF(Einzelwertung3!$A$3:$A$55,$B25,Einzelwertung3!$J$3:$J$55)+0.015 -> 0.015 | I25: =SUMIF(Einzelwertung4!$A$3:$A$55,$B25,Einzelwertung4!$J$3:$J$55)+0.014 -> 0.014 | J25: =SUMIF(Einzelwertung5!$A$3:$A$55,$B25,Einzelwertung5!$J$3:$J$55)+0.013 -> 0.013 | K25: =SUMIF(Einzelwertung6!$A$3:$A$55,$B25,Einzelwertung6!$J$3:$J$55)+0.012 -> 0.012 | L25: =SUMIF(Einzelwertung7!$A$3:$A$55,$B25,Einzelwertung7!$J$3:$J$55)+0.011 -> 0.011 | M25: =SUMIF(Einzelwertung8!$A$3:$A$55,$B25,Einzelwertung8!$J$3:$J$55)+0.01 -> 0.01 | N25: =SUMIF(Einzelwertung9!$A$3:$A$55,$B25,Einzelwertung9!$J$3:$J$55)+0.009 -> 0.009 | O25: =SUMIF(Einzelwertung10!$A$3:$A$55,$B25,Einzelwertung10!$J$3:$J$55)+0.008 -> 0.008 | P25: =SUMIF(Einzelwertung11!$A$3:$A$55,$B25,Einzelwertung11!$J$3:$J$55)+0.007 -> 0.007 | Q25: =SUMIF(Einzelwertung12!$A$3:$A$55,$B25,Einzelwertung12!$J$3:$J$55)+0.006 -> 0.006 | R25: =SUMIF(Einzelwertung13!$A$3:$A$55,$B25,Einzelwertung13!$J$3:$J$55)+0.005 -> 0.005 | S25: =SUMIF(Einzelwertung14!$A$3:$A$55,$B25,Einzelwertung14!$J$3:$J$55)+0.004 -> 0.004 | T25: =SUMIF(Einzelwertung15!$A$3:$A$67,$B25,Einzelwertung15!$J$3:$J$67)+0.003 -> 10.003 | U25: =SUMIF(Einzelwertung16!$A$3:$A$55,$B25,Einzelwertung16!$J$3:$J$55)+0.002 -> 21.002 | V25: =SUMIF(Einzelwertung17!$A$3:$A$55,$B25,Einzelwertung17!$J$3:$J$55)+0.001 -> 0.001 | W25: =SUMIF(Einzelwertung18!$A$3:$A$55,$B25,Einzelwertung18!$J$3:$J$55)+0 -> 21 | X25: =INT(IF(COUNTIF(F25:W25,CONCATENATE(">",1/10))<=Hilfe!$A$1,SUM(F25:W25),SUMIF(F25:W25,CONCATENATE(">=",LARGE(F25:W25,Hilfe!$A$1)),F25:W25))) -> 52 | Y25: 3 | Z25: 9
A26: 24 | B26: Scharpe, Sabine | C26: =VLOOKUP($B26,Teilnehmer!$A$3:$E$126,2,FALSE) -> BMC | D26: =VLOOKUP($B26,Teilnehmer!$A$3:$E$126,3,FALSE) -> 67147 | E26: =VLOOKUP($B26,Teilnehmer!$A$3:$E$126,4,FALSE) -> SW1 | F26: =SUMIF(Einzelwertung1!$A$3:$A$55,$B26,Einzelwertung1!$J$3:$J$55)+0.017 -> 0.017 | G26: =SUMIF(Einzelwertung2!$A$3:$A$55,$B26,Einzelwertung2!$J$3:$J$55)+0.016 -> 10.016 | H26: =SUMIF(Einzelwertung3!$A$3:$A$55,$B26,Einzelwertung3!$J$3:$J$55)+0.015 -> 15.015 | I26: =SUMIF(Einzelwertung4!$A$3:$A$55,$B26,Einzelwertung4!$J$3:$J$55)+0.014 -> 15.014 | J26: =SUMIF(Einzelwertung5!$A$3:$A$55,$B26,Einzelwertung5!$J$3:$J$55)+0.013 -> 5.013 | K26: =SUMIF(Einzelwertung6!$A$3:$A$55,$B26,Einzelwertung6!$J$3:$J$55)+0.012 -> 0.012 | L26: =SUMIF(Einzelwertung7!$A$3:$A$55,$B26,Einzelwertung7!$J$3:$J$55)+0.011 -> 0.011 | M26: =SUMIF(Einzelwertung8!$A$3:$A$55,$B26,Einzelwertung8!$J$3:$J$55)+0.01 -> 5.01 | N26: =SUMIF(Einzelwertung9!$A$3:$A$55,$B26,Einzelwertung9!$J$3:$J$55)+0.009 -> 0.009 | O26: =SUMIF(Einzelwertung10!$A$3:$A$55,$B26,Einzelwertung10!$J$3:$J$55)+0.008 -> 0.008 | P26: =SUMIF(Einzelwertung11!$A$3:$A$55,$B26,Einzelwertung11!$J$3:$J$55)+0.007 -> 0.007 | Q26: =SUMIF(Einzelwertung12!$A$3:$A$55,$B26,Einzelwertung12!$J$3:$J$55)+0.006 -> 0.006 | R26: =SUMIF(Einzelwertung13!$A$3:$A$55,$B26,Einzelwertung13!$J$3:$J$55)+0.005 -> 0.005 | S26: =SUMIF(Einzelwertung14!$A$3:$A$55,$B26,Einzelwertung14!$J$3:$J$55)+0.004 -> 0.004 | T26: =SUMIF(Einzelwertung15!$A$3:$A$67,$B26,Einzelwertung15!$J$3:$J$67)+0.003 -> 0.003 | U26: =SUMIF(Einzelwertung16!$A$3:$A$55,$B26,Einzelwertung16!$J$3:$J$55)+0.002 -> 0.002 | V26: =SUMIF(Einzelwertung17!$A$3:$A$55,$B26,Einzelwertung17!$J$3:$J$55)+0.001 -> 0.001 | W26: =SUMIF(Einzelwertung18!$A$3:$A$55,$B26,Einzelwertung18!$J$3:$J$55)+0 -> 0 | X26: =INT(IF(COUNTIF(F26:W26,CONCATENATE(">",1/10))<=Hilfe!$A$1,SUM(F26:W26),SUMIF(F26:W26,CONCATENATE(">=",LARGE(F26:W26,Hilfe!$A$1)),F26:W26))) -> 50 | Y26: 5 | Z26: 15
A27: 25 | B27: Dammann, Reinhold | C27: =VLOOKUP($B27,Teilnehmer!$A$3:$E$126,2,FALSE) -> ASW | D27: =VLOOKUP($B27,Teilnehmer!$A$3:$E$126,3,FALSE) -> 25732 | E27: =VLOOKUP($B27,Teilnehmer!$A$3:$E$126,4,FALSE) -> SM2 | F27: =SUMIF(Einzelwertung1!$A$3:$A$55,$B27,Einzelwertung1!$J$3:$J$55)+0.017 -> 0.017 | G27: =SUMIF(Einzelwertung2!$A$3:$A$55,$B27,Einzelwertung2!$J$3:$J$55)+0.016 -> 0.016 | H27: =SUMIF(Einzelwertung3!$A$3:$A$55,$B27,Einzelwertung3!$J$3:$J$55)+0.015 -> 0.015 | I27: =SUMIF(Einzelwertung4!$A$3:$A$55,$B27,Einzelwertung4!$J$3:$J$55)+0.014 -> 0.014 | J27: =SUMIF(Einzelwertung5!$A$3:$A$55,$B27,Einzelwertung5!$J$3:$J$55)+0.013 -> 10.013 | K27: =SUMIF(Einzelwertung6!$A$3:$A$55,$B27,Einzelwertung6!$J$3:$J$55)+0.012 -> 0.012 | L27: =SUMIF(Einzelwertung7!$A$3:$A$55,$B27,Einzelwertung7!$J$3:$J$55)+0.011 -> 15.011 | M27: =SUMIF(Einzelwertung8!$A$3:$A$55,$B27,Einzelwertung8!$J$3:$J$55)+0.01 -> 0.01 | N27: =SUMIF(Einzelwertung9!$A$3:$A$55,$B27,Einzelwertung9!$J$3:$J$55)+0.009 -> 3.009 | O27: =SUMIF(Einzelwertung10!$A$3:$A$55,$B27,Einzelwertung10!$J$3:$J$55)+0.008 -> 0.008 | P27: =SUMIF(Einzelwertung11!$A$3:$A$55,$B27,Einzelwertung11!$J$3:$J$55)+0.007 -> 0.007 | Q27: =SUMIF(Einzelwertung12!$A$3:$A$55,$B27,Einzelwertung12!$J$3:$J$55)+0.006 -> 3.006 | R27: =SUMIF(Einzelwertung13!$A$3:$A$55,$B27,Einzelwertung13!$J$3:$J$55)+0.005 -> 0.005 | S27: =SUMIF(Einzelwertung14!$A$3:$A$55,$B27,Einzelwertung14!$J$3:$J$55)+0.004 -> 5.004 | T27: =SUMIF(Einzelwertung15!$A$3:$A$67,$B27,Einzelwertung15!$J$3:$J$67)+0.003 -> 0.003 | U27: =SUMIF(Einzelwertung16!$A$3:$A$55,$B27,Einzelwertung16!$J$3:$J$55)+0.002 -> 0.002 | V27: =SUMIF(Einzelwertung17!$A$3:$A$55,$B27,Einzelwertung17!$J$3:$J$55)+0.001 -> 0.001 | W27: =SUMIF(Einzelwertung18!$A$3:$A$55,$B27,Einzelwertung18!$J$3:$J$55)+0 -> 0 | X27: =INT(IF(COUNTIF(F27:W27,CONCATENATE(">",1/10))<=Hilfe!$A$1,SUM(F27:W27),SUMIF(F27:W27,CONCATENATE(">=",LARGE(F27:W27,Hilfe!$A$1)),F27:W27))) -> 36 | Y27: 5 | Z27: 15
A28: 26 | B28: Hein, Hans-Jörg | C28: =VLOOKUP($B28,Teilnehmer!$A$3:$E$126,2,FALSE) -> ASW | D28: =VLOOKUP($B28,Teilnehmer!$A$3:$E$126,3,FALSE) -> 27863 | E28: =VLOOKUP($B28,Teilnehmer!$A$3:$E$126,4,FALSE) -> SM1 | F28: =SUMIF(Einzelwertung1!$A$3:$A$55,$B28,Einzelwertung1!$J$3:$J$55)+0.017 -> 0.017 | G28: =SUMIF(Einzelwertung2!$A$3:$A$55,$B28,Einzelwertung2!$J$3:$J$55)+0.016 -> 0.016 | H28: =SUMIF(Einzelwertung3!$A$3:$A$55,$B28,Einzelwertung3!$J$3:$J$55)+0.015 -> 0.015 | I28: =SUMIF(Einzelwertung4!$A$3:$A$55,$B28,Einzelwertung4!$J$3:$J$55)+0.014 -> 0.014 | J28: =SUMIF(Einzelwertung5!$A$3:$A$55,$B28,Einzelwertung5!$J$3:$J$55)+0.013 -> 0.013 | K28: =SUMIF(Einzelwertung6!$A$3:$A$55,$B28,Einzelwertung6!$J$3:$J$55)+0.012 -> 0.012 | L28: =SUMIF(Einzelwertung7!$A$3:$A$55,$B28,Einzelwertung7!$J$3:$J$55)+0.011 -> 0.011 | M28: =SUMIF(Einzelwertung8!$A$3:$A$55,$B28,Einzelwertung8!$J$3:$J$55)+0.01 -> 0.01 | N28: =SUMIF(Einzelwertung9!$A$3:$A$55,$B28,Einzelwertung9!$J$3:$J$55)+0.009 -> 0.009 | O28: =SUMIF(Einzelwertung10!$A$3:$A$55,$B28,Einzelwertung10!$J$3:$J$55)+0.008 -> 0.008 | P28: =SUMIF(Einzelwertung11!$A$3:$A$55,$B28,Einzelwertung11!$J$3:$J$55)+0.007 -> 0.007 | Q28: =SUMIF(Einzelwertung12!$A$3:$A$55,$B28,Einzelwertung12!$J$3:$J$55)+0.006 -> 0.006 | R28: =SUMIF(Einzelwertung13!$A$3:$A$55,$B28,Einzelwertung13!$J$3:$J$55)+0.005 -> 0.005 | S28: =SUMIF(Einzelwertung14!$A$3:$A$55,$B28,Einzelwertung14!$J$3:$J$55)+0.004 -> 0.004 | T28: =SUMIF(Einzelwertung15!$A$3:$A$67,$B28,Einzelwertung15!$J$3:$J$67)+0.003 -> 0.003 | U28: =SUMIF(Einzelwertung16!$A$3:$A$55,$B28,Einzelwertung16!$J$3:$J$55)+0.002 -> 15.002 | V28: =SUMIF(Einzelwertung17!$A$3:$A$55,$B28,Einzelwertung17!$J$3:$J$55)+0.001 -> 18.001 | W28: =SUMIF(Einzelwertung18!$A$3:$A$55,$B28,Einzelwertung18!$J$3:$J$55)+0 -> 0 | X28: =INT(IF(COUNTIF(F28:W28,CONCATENATE(">",1/10))<=Hilfe!$A$1,SUM(F28:W28),SUMIF(F28:W28,CONCATENATE(">=",LARGE(F28:W28,Hilfe!$A$1)),F28:W28))) -> 33 | Y28: 2 | Z28: 6
B29: Lehmann, Niclas | C29: =VLOOKUP($B29,Teilnehmer!$A$3:$E$126,2,FALSE) -> Oly | D29: =VLOOKUP($B29,Teilnehmer!$A$3:$E$126,3,FALSE) -> 67372 | E29: =VLOOKUP($B29,Teilnehmer!$A$3:$E$126,4,FALSE) -> H | F29: =SUMIF(Einzelwertung1!$A$3:$A$55,$B29,Einzelwertung1!$J$3:$J$55)+0.017 -> 0.017 | G29: =SUMIF(Einzelwertung2!$A$3:$A$55,$B29,Einzelwertung2!$J$3:$J$55)+0.016 -> 0.016 | H29: =SUMIF(Einzelwertung3!$A$3:$A$55,$B29,Einzelwertung3!$J$3:$J$55)+0.015 -> 0.015 | I29: =SUMIF(Einzelwertung4!$A$3:$A$55,$B29,Einzelwertung4!$J$3:$J$55)+0.014 -> 0.014 | J29: =SUMIF(Einzelwertung5!$A$3:$A$55,$B29,Einzelwertung5!$J$3:$J$55)+0.013 -> 0.013 | K29: =SUMIF(Einzelwertung6!$A$3:$A$55,$B29,Einzelwertung6!$J$3:$J$55)+0.012 -> 0.012 | L29: =SUMIF(Einzelwertung7!$A$3:$A$55,$B29,Einzelwertung7!$J$3:$J$55)+0.011 -> 0.011 | M29: =SUMIF(Einzelwertung8!$A$3:$A$55,$B29,Einzelwertung8!$J$3:$J$55)+0.01 -> 0.01 | N29: =SUMIF(Einzelwertung9!$A$3:$A$55,$B29,Einzelwertung9!$J$3:$J$55)+0.009 -> 0.009 | O29: =SUMIF(Einzelwertung10!$A$3:$A$55,$B29,Einzelwertung10!$J$3:$J$55)+0.008 -> 0.008 | P29: =SUMIF(Einzelwertung11!$A$3:$A$55,$B29,Einzelwertung11!$J$3:$J$55)+0.007 -> 0.007 | Q29: =SUMIF(Einzelwertung12!$A$3:$A$55,$B29,Einzelwertung12!$J$3:$J$55)+0.006 -> 18.006 | R29: =SUMIF(Einzelwertung13!$A$3:$A$55,$B29,Einzelwertung13!$J$3:$J$55)+0.005 -> 0.005 | S29: =SUMIF(Einzelwertung14!$A$3:$A$55,$B29,Einzelwertung14!$J$3:$J$55)+0.004 -> 15.004 | T29: =SUMIF(Einzelwertung15!$A$3:$A$67,$B29,Einzelwertung15!$J$3:$J$67)+0.003 -> 0.003 | U29: =SUMIF(Einzelwertung16!$A$3:$A$55,$B29,Einzelwertung16!$J$3:$J$55)+0.002 -> 0.002 | V29: =SUMIF(Einzelwertung17!$A$3:$A$55,$B29,Einzelwertung17!$J$3:$J$55)+0.001 -> 0.001 | W29: =SUMIF(Einzelwertung18!$A$3:$A$55,$B29,Einzelwertung18!$J$3:$J$55)+0 -> 0 | X29: =INT(IF(COUNTIF(F29:W29,CONCATENATE(">",1/10))<=Hilfe!$A$1,SUM(F29:W29),SUMIF(F29:W29,CONCATENATE(">=",LARGE(F29:W29,Hilfe!$A$1)),F29:W29))) -> 33 | Y29: 2 | Z29: 6
A30: 28 | B30: Wilhelms, Ralf | C30: =VLOOKUP($B30,Teilnehmer!$A$3:$E$126,2,FALSE) -> Ennep. | D30: =VLOOKUP($B30,Teilnehmer!$A$3:$E$126,3,FALSE) -> 44805 | E30: =VLOOKUP($B30,Teilnehmer!$A$3:$E$126,4,FALSE) -> SM1 | F30: =SUMIF(Einzelwertung1!$A$3:$A$55,$B30,Einzelwertung1!$J$3:$J$55)+0.017 -> 0.017 | G30: =SUMIF(Einzelwertung2!$A$3:$A$55,$B30,Einzelwertung2!$J$3:$J$55)+0.016 -> 0.016 | H30: =SUMIF(Einzelwertung3!$A$3:$A$55,$B30,Einzelwertung3!$J$3:$J$55)+0.015 -> 0.015 | I30: =SUMIF(Einzelwertung4!$A$3:$A$55,$B30,Einzelwertung4!$J$3:$J$55)+0.014 -> 0.014 | J30: =SUMIF(Einzelwertung5!$A$3:$A$55,$B30,Einzelwertung5!$J$3:$J$55)+0.013 -> 0.013 | K30: =SUMIF(Einzelwertung6!$A$3:$A$55,$B30,Einzelwertung6!$J$3:$J$55)+0.012 -> 0.012 | L30: =SUMIF(Einzelwertung7!$A$3:$A$55,$B30,Einzelwertung7!$J$3:$J$55)+0.011 -> 0.011 | M30: =SUMIF(Einzelwertung8!$A$3:$A$55,$B30,Einzelwertung8!$J$3:$J$55)+0.01 -> 0.01 | N30: =SUMIF(Einzelwertung9!$A$3:$A$55,$B30,Einzelwertung9!$J$3:$J$55)+0.009 -> 25.009 | O30: =SUMIF(Einzelwertung10!$A$3:$A$55,$B30,Einzelwertung10!$J$3:$J$55)+0.008 -> 0.008 | P30: =SUMIF(Einzelwertung11!$A$3:$A$55,$B30,Einzelwertung11!$J$3:$J$55)+0.007 -> 0.007 | Q30: =SUMIF(Einzelwertung12!$A$3:$A$55,$B30,Einzelwertung12!$J$3:$J$55)+0.006 -> 0.006 | R30: =SUMIF(Einzelwertung13!$A$3:$A$55,$B30,Einzelwertung13!$J$3:$J$55)+0.005 -> 0.005 | S30: =SUMIF(Einzelwertung14!$A$3:$A$55,$B30,Einzelwertung14!$J$3:$J$55)+0.004 -> 0.004 | T30: =SUMIF(Einzelwertung15!$A$3:$A$67,$B30,Einzelwertung15!$J$3:$J$67)+0.003 -> 0.003 | U30: =SUMIF(Einzelwertung16!$A$3:$A$55,$B30,Einzelwertung16!$J$3:$J$55)+0.002 -> 0.002 | V30: =SUMIF(Einzelwertung17!$A$3:$A$55,$B30,Einzelwertung17!$J$3:$J$55)+0.001 -> 0.001 | W30: =SUMIF(Einzelwertung18!$A$3:$A$55,$B30,Einzelwertung18!$J$3:$J$55)+0 -> 0 | X30: =INT(IF(COUNTIF(F30:W30,CONCATENATE(">",1/10))<=Hilfe!$A$1,SUM(F30:W30),SUMIF(F30:W30,CONCATENATE(">=",LARGE(F30:W30,Hilfe!$A$1)),F30:W30))) -> 25 | Y30: 1 | Z30: 3
A31: 29 | B31: Rade, Marcus | C31: =VLOOKUP($B31,Teilnehmer!$A$3:$E$126,2,FALSE) -> ASW | D31: =VLOOKUP($B31,Teilnehmer!$A$3:$E$126,3,FALSE) -> 38625 | E31: =VLOOKUP($B31,Teilnehmer!$A$3:$E$126,4,FALSE) -> H | F31: =SUMIF(Einzelwertung1!$A$3:$A$55,$B31,Einzelwertung1!$J$3:$J$55)+0.017 -> 0.017 | G31: =SUMIF(Einzelwertung2!$A$3:$A$55,$B31,Einzelwertung2!$J$3:$J$55)+0.016 -> 0.016 | H31: =SUMIF(Einzelwertung3!$A$3:$A$55,$B31,Einzelwertung3!$J$3:$J$55)+0.015 -> 0.015 | I31: =SUMIF(Einzelwertung4!$A$3:$A$55,$B31,Einzelwertung4!$J$3:$J$55)+0.014 -> 0.014 | J31: =SUMIF(Einzelwertung5!$A$3:$A$55,$B31,Einzelwertung5!$J$3:$J$55)+0.013 -> 0.013 | K31: =SUMIF(Einzelwertung6!$A$3:$A$55,$B31,Einzelwertung6!$J$3:$J$55)+0.012 -> 0.012 | L31: =SUMIF(Einzelwertung7!$A$3:$A$55,$B31,Einzelwertung7!$J$3:$J$55)+0.011 -> 0.011 | M31: =SUMIF(Einzelwertung8!$A$3:$A$55,$B31,Einzelwertung8!$J$3:$J$55)+0.01 -> 0.01 | N31: =SUMIF(Einzelwertung9!$A$3:$A$55,$B31,Einzelwertung9!$J$3:$J$55)+0.009 -> 0.009 | O31: =SUMIF(Einzelwertung10!$A$3:$A$55,$B31,Einzelwertung10!$J$3:$J$55)+0.008 -> 0.008 | P31: =SUMIF(Einzelwertung11!$A$3:$A$55,$B31,Einzelwertung11!$J$3:$J$55)+0.007 -> 0.007 | Q31: =SUMIF(Einzelwertung12!$A$3:$A$55,$B31,Einzelwertung12!$J$3:$J$55)+0.006 -> 0.006 | R31: =SUMIF(Einzelwertung13!$A$3:$A$55,$B31,Einzelwertung13!$J$3:$J$55)+0.005 -> 0.005 | S31: =SUMIF(Einzelwertung14!$A$3:$A$55,$B31,Einzelwertung14!$J$3:$J$55)+0.004 -> 0.004 | T31: =SUMIF(Einzelwertung15!$A$3:$A$67,$B31,Einzelwertung15!$J$3:$J$67)+0.003 -> 18.003 | U31: =SUMIF(Einzelwertung16!$A$3:$A$55,$B31,Einzelwertung16!$J$3:$J$55)+0.002 -> 0.002 | V31: =SUMIF(Einzelwertung17!$A$3:$A$55,$B31,Einzelwertung17!$J$3:$J$55)+0.001 -> 0.001 | W31: =SUMIF(Einzelwertung18!$A$3:$A$55,$B31,Einzelwertung18!$J$3:$J$55)+0 -> 0 | X31: =INT(IF(COUNTIF(F31:W31,CONCATENATE(">",1/10))<=Hilfe!$A$1,SUM(F31:W31),SUMIF(F31:W31,CONCATENATE(">=",LARGE(F31:W31,Hilfe!$A$1)),F31:W31))) -> 18 | Y31: 1 | Z31: 3
A32: 30 | B32: Brunnenkant, Frank | C32: =VLOOKUP($B32,Teilnehmer!$A$3:$E$126,2,FALSE) -> Hobby | D32: =VLOOKUP($B32,Teilnehmer!$A$3:$E$126,3,FALSE) -> Hobby38 | E32: =VLOOKUP($B32,Teilnehmer!$A$3:$E$126,4,FALSE) -> SM1 | F32: =SUMIF(Einzelwertung1!$A$3:$A$55,$B32,Einzelwertung1!$J$3:$J$55)+0.017 -> 0.017 | G32: =SUMIF(Einzelwertung2!$A$3:$A$55,$B32,Einzelwertung2!$J$3:$J$55)+0.016 -> 0.016 | H32: =SUMIF(Einzelwertung3!$A$3:$A$55,$B32,Einzelwertung3!$J$3:$J$55)+0.015 -> 0.015 | I32: =SUMIF(Einzelwertung4!$A$3:$A$55,$B32,Einzelwertung4!$J$3:$J$55)+0.014 -> 0.014 | J32: =SUMIF(Einzelwertung5!$A$3:$A$55,$B32,Einzelwertung5!$J$3:$J$55)+0.013 -> 15.013 | K32: =SUMIF(Einzelwertung6!$A$3:$A$55,$B32,Einzelwertung6!$J$3:$J$55)+0.012 -> 0.012 | L32: =SUMIF(Einzelwertung7!$A$3:$A$55,$B32,Einzelwertung7!$J$3:$J$55)+0.011 -> 0.011 | M32: =SUMIF(Einzelwertung8!$A$3:$A$55,$B32,Einzelwertung8!$J$3:$J$55)+0.01 -> 0.01 | N32: =SUMIF(Einzelwertung9!$A$3:$A$55,$B32,Einzelwertung9!$J$3:$J$55)+0.009 -> 0.009 | O32: =SUMIF(Einzelwertung10!$A$3:$A$55,$B32,Einzelwertung10!$J$3:$J$55)+0.008 -> 0.008 | P32: =SUMIF(Einzelwertung11!$A$3:$A$55,$B32,Einzelwertung11!$J$3:$J$55)+0.007 -> 0.007 | Q32: =SUMIF(Einzelwertung12!$A$3:$A$55,$B32,Einzelwertung12!$J$3:$J$55)+0.006 -> 0.006 | R32: =SUMIF(Einzelwertung13!$A$3:$A$55,$B32,Einzelwertung13!$J$3:$J$55)+0.005 -> 0.005 | S32: =SUMIF(Einzelwertung14!$A$3:$A$55,$B32,Einzelwertung14!$J$3:$J$55)+0.004 -> 0.004 | T32: =SUMIF(Einzelwertung15!$A$3:$A$67,$B32,Einzelwertung15!$J$3:$J$67)+0.003 -> 0.003 | U32: =SUMIF(Einzelwertung16!$A$3:$A$55,$B32,Einzelwertung16!$J$3:$J$55)+0.002 -> 0.002 | V32: =SUMIF(Einzelwertung17!$A$3:$A$55,$B32,Einzelwertung17!$J$3:$J$55)+0.001 -> 0.001 | W32: =SUMIF(Einzelwertung18!$A$3:$A$55,$B32,Einzelwertung18!$J$3:$J$55)+0 -> 0 | X32: =INT(IF(COUNTIF(F32:W32,CONCATENATE(">",1/10))<=Hilfe!$A$1,SUM(F32:W32),SUMIF(F32:W32,CONCATENATE(">=",LARGE(F32:W32,Hilfe!$A$1)),F32:W32))) -> 15 | Y32: 1 | Z32: 3
B33: Petersen, Robin | C33: =VLOOKUP($B33,Teilnehmer!$A$3:$E$126,2,FALSE) -> Oly | D33: =VLOOKUP($B33,Teilnehmer!$A$3:$E$126,3,FALSE) -> 67371 | E33: =VLOOKUP($B33,Teilnehmer!$A$3:$E$126,4,FALSE) -> H | F33: =SUMIF(Einzelwertung1!$A$3:$A$55,$B33,Einzelwertung1!$J$3:$J$55)+0.017 -> 0.017 | G33: =SUMIF(Einzelwertung2!$A$3:$A$55,$B33,Einzelwertung2!$J$3:$J$55)+0.016 -> 0.016 | H33: =SUMIF(Einzelwertung3!$A$3:$A$55,$B33,Einzelwertung3!$J$3:$J$55)+0.015 -> 0.015 | I33: =SUMIF(Einzelwertung4!$A$3:$A$55,$B33,Einzelwertung4!$J$3:$J$55)+0.014 -> 0.014 | J33: =SUMIF(Einzelwertung5!$A$3:$A$55,$B33,Einzelwertung5!$J$3:$J$55)+0.013 -> 0.013 | K33: =SUMIF(Einzelwertung6!$A$3:$A$55,$B33,Einzelwertung6!$J$3:$J$55)+0.012 -> 0.012 | L33: =SUMIF(Einzelwertung7!$A$3:$A$55,$B33,Einzelwertung7!$J$3:$J$55)+0.011 -> 0.011 | M33: =SUMIF(Einzelwertung8!$A$3:$A$55,$B33,Einzelwertung8!$J$3:$J$55)+0.01 -> 0.01 | N33: =SUMIF(Einzelwertung9!$A$3:$A$55,$B33,Einzelwertung9!$J$3:$J$55)+0.009 -> 0.009 | O33: =SUMIF(Einzelwertung10!$A$3:$A$55,$B33,Einzelwertung10!$J$3:$J$55)+0.008 -> 0.008 | P33: =SUMIF(Einzelwertung11!$A$3:$A$55,$B33,Einzelwertung11!$J$3:$J$55)+0.007 -> 0.007 | Q33: =SUMIF(Einzelwertung12!$A$3:$A$55,$B33,Einzelwertung12!$J$3:$J$55)+0.006 -> 0.006 | R33: =SUMIF(Einzelwertung13!$A$3:$A$55,$B33,Einzelwertung13!$J$3:$J$55)+0.005 -> 0.005 | S33: =SUMIF(Einzelwertung14!$A$3:$A$55,$B33,Einzelwertung14!$J$3:$J$55)+0.004 -> 15.004 | T33: =SUMIF(Einzelwertung15!$A$3:$A$67,$B33,Einzelwertung15!$J$3:$J$67)+0.003 -> 0.003 | U33: =SUMIF(Einzelwertung16!$A$3:$A$55,$B33,Einzelwertung16!$J$3:$J$55)+0.002 -> 0.002 | V33: =SUMIF(Einzelwertung17!$A$3:$A$55,$B33,Einzelwertung17!$J$3:$J$55)+0.001 -> 0.001 | W33: =SUMIF(Einzelwertung18!$A$3:$A$55,$B33,Einzelwertung18!$J$3:$J$55)+0 -> 0 | X33: =INT(IF(COUNTIF(F33:W33,CONCATENATE(">",1/10))<=Hilfe!$A$1,SUM(F33:W33),SUMIF(F33:W33,CONCATENATE(">=",LARGE(F33:W33,Hilfe!$A$1)),F33:W33))) -> 15 | Y33: 1 | Z33: 3
B34: Wickel-Paffrath, Melanie | C34: =VLOOKUP($B34,Teilnehmer!$A$3:$E$126,2,FALSE) -> HEV | D34: =VLOOKUP($B34,Teilnehmer!$A$3:$E$126,3,FALSE) -> 33510 | E34: =VLOOKUP($B34,Teilnehmer!$A$3:$E$126,4,FALSE) -> D | F34: =SUMIF(Einzelwertung1!$A$3:$A$55,$B34,Einzelwertung1!$J$3:$J$55)+0.017 -> 0.017 | G34: =SUMIF(Einzelwertung2!$A$3:$A$55,$B34,Einzelwertung2!$J$3:$J$55)+0.016 -> 0.016 | H34: =SUMIF(Einzelwertung3!$A$3:$A$55,$B34,Einzelwertung3!$J$3:$J$55)+0.015 -> 0.015 | I34: =SUMIF(Einzelwertung4!$A$3:$A$55,$B34,Einzelwertung4!$J$3:$J$55)+0.014 -> 0.014 | J34: =SUMIF(Einzelwertung5!$A$3:$A$55,$B34,Einzelwertung5!$J$3:$J$55)+0.013 -> 0.013 | K34: =SUMIF(Einzelwertung6!$A$3:$A$55,$B34,Einzelwertung6!$J$3:$J$55)+0.012 -> 0.012 | L34: =SUMIF(Einzelwertung7!$A$3:$A$55,$B34,Einzelwertung7!$J$3:$J$55)+0.011 -> 0.011 | M34: =SUMIF(Einzelwertung8!$A$3:$A$55,$B34,Einzelwertung8!$J$3:$J$55)+0.01 -> 0.01 | N34: =SUMIF(Einzelwertung9!$A$3:$A$55,$B34,Einzelwertung9!$J$3:$J$55)+0.009 -> 15.009 | O34: =SUMIF(Einzelwertung10!$A$3:$A$55,$B34,Einzelwertung10!$J$3:$J$55)+0.008 -> 0.008 | P34: =SUMIF(Einzelwertung11!$A$3:$A$55,$B34,Einzelwertung11!$J$3:$J$55)+0.007 -> 0.007 | Q34: =SUMIF(Einzelwertung12!$A$3:$A$55,$B34,Einzelwertung12!$J$3:$J$55)+0.006 -> 0.006 | R34: =SUMIF(Einzelwertung13!$A$3:$A$55,$B34,Einzelwertung13!$J$3:$J$55)+0.005 -> 0.005 | S34: =SUMIF(Einzelwertung14!$A$3:$A$55,$B34,Einzelwertung14!$J$3:$J$55)+0.004 -> 0.004 | T34: =SUMIF(Einzelwertung15!$A$3:$A$67,$B34,Einzelwertung15!$J$3:$J$67)+0.003 -> 0.003 | U34: =SUMIF(Einzelwertung16!$A$3:$A$55,$B34,Einzelwertung16!$J$3:$J$55)+0.002 -> 0.002 | V34: =SUMIF(Einzelwertung17!$A$3:$A$55,$B34,Einzelwertung17!$J$3:$J$55)+0.001 -> 0.001 | W34: =SUMIF(Einzelwertung18!$A$3:$A$55,$B34,Einzelwertung18!$J$3:$J$55)+0 -> 0 | X34: =INT(IF(COUNTIF(F34:W34,CONCATENATE(">",1/10))<=Hilfe!$A$1,SUM(F34:W34),SUMIF(F34:W34,CONCATENATE(">=",LARGE(F34:W34,Hilfe!$A$1)),F34:W34))) -> 15 | Y34: 1 | Z34: 3
B35: Presser, Wolfgang | C35: =VLOOKUP($B35,Teilnehmer!$A$3:$E$126,2,FALSE) -> HEV | D35: =VLOOKUP($B35,Teilnehmer!$A$3:$E$126,3,FALSE) -> 67151 | E35: =VLOOKUP($B35,Teilnehmer!$A$3:$E$126,4,FALSE) -> SM1 | F35: =SUMIF(Einzelwertung1!$A$3:$A$55,$B35,Einzelwertung1!$J$3:$J$55)+0.017 -> 0.017 | G35: =SUMIF(Einzelwertung2!$A$3:$A$55,$B35,Einzelwertung2!$J$3:$J$55)+0.016 -> 0.016 | H35: =SUMIF(Einzelwertung3!$A$3:$A$55,$B35,Einzelwertung3!$J$3:$J$55)+0.015 -> 5.015 | I35: =SUMIF(Einzelwertung4!$A$3:$A$55,$B35,Einzelwertung4!$J$3:$J$55)+0.014 -> 0.014 | J35: =SUMIF(Einzelwertung5!$A$3:$A$55,$B35,Einzelwertung5!$J$3:$J$55)+0.013 -> 0.013 | K35: =SUMIF(Einzelwertung6!$A$3:$A$55,$B35,Einzelwertung6!$J$3:$J$55)+0.012 -> 10.012 | L35: =SUMIF(Einzelwertung7!$A$3:$A$55,$B35,Einzelwertung7!$J$3:$J$55)+0.011 -> 0.011 | M35: =SUMIF(Einzelwertung8!$A$3:$A$55,$B35,Einzelwertung8!$J$3:$J$55)+0.01 -> 0.01 | N35: =SUMIF(Einzelwertung9!$A$3:$A$55,$B35,Einzelwertung9!$J$3:$J$55)+0.009 -> 0.009 | O35: =SUMIF(Einzelwertung10!$A$3:$A$55,$B35,Einzelwertung10!$J$3:$J$55)+0.008 -> 0.008 | P35: =SUMIF(Einzelwertung11!$A$3:$A$55,$B35,Einzelwertung11!$J$3:$J$55)+0.007 -> 0.007 | Q35: =SUMIF(Einzelwertung12!$A$3:$A$55,$B35,Einzelwertung12!$J$3:$J$55)+0.006 -> 0.006 | R35: =SUMIF(Einzelwertung13!$A$3:$A$55,$B35,Einzelwertung13!$J$3:$J$55)+0.005 -> 0.005 | S35: =SUMIF(Einzelwertung14!$A$3:$A$55,$B35,Einzelwertung14!$J$3:$J$55)+0.004 -> 0.004 | T35: =SUMIF(Einzelwertung15!$A$3:$A$67,$B35,Einzelwertung15!$J$3:$J$67)+0.003 -> 0.003 | U35: =SUMIF(Einzelwertung16!$A$3:$A$55,$B35,Einzelwertung16!$J$3:$J$55)+0.002 -> 0.002 | V35: =SUMIF(Einzelwertung17!$A$3:$A$55,$B35,Einzelwertung17!$J$3:$J$55)+0.001 -> 0.001 | W35: =SUMIF(Einzelwertung18!$A$3:$A$55,$B35,Einzelwertung18!$J$3:$J$55)+0 -> 0 | X35: =INT(IF(COUNTIF(F35:W35,CONCATENATE(">",1/10))<=Hilfe!$A$1,SUM(F35:W35),SUMIF(F35:W35,CONCATENATE(">=",LARGE(F35:W35,Hilfe!$A$1)),F35:W35))) -> 15 | Y35: 2 | Z35: 6
A36: 34 | B36: Wilke, Andreas | C36: =VLOOKUP($B36,Teilnehmer!$A$3:$E$126,2,FALSE) -> Hobby | D36: =VLOOKUP($B36,Teilnehmer!$A$3:$E$126,3,FALSE) -> Hobby39 | E36: =VLOOKUP($B36,Teilnehmer!$A$3:$E$126,4,FALSE) -> SM1 | F36: =SUMIF(Einzelwertung1!$A$3:$A$55,$B36,Einzelwertung1!$J$3:$J$55)+0.017 -> 0.017 | G36: =SUMIF(Einzelwertung2!$A$3:$A$55,$B36,Einzelwertung2!$J$3:$J$55)+0.016 -> 0.016 | H36: =SUMIF(Einzelwertung3!$A$3:$A$55,$B36,Einzelwertung3!$J$3:$J$55)+0.015 -> 0.015 | I36: =SUMIF(Einzelwertung4!$A$3:$A$55,$B36,Einzelwertung4!$J$3:$J$55)+0.014 -> 0.014 | J36: =SUMIF(Einzelwertung5!$A$3:$A$55,$B36,Einzelwertung5!$J$3:$J$55)+0.013 -> 0.013 | K36: =SUMIF(Einzelwertung6!$A$3:$A$55,$B36,Einzelwertung6!$J$3:$J$55)+0.012 -> 0.012 | L36: =SUMIF(Einzelwertung7!$A$3:$A$55,$B36,Einzelwertung7!$J$3:$J$55)+0.011 -> 0.011 | M36: =SUMIF(Einzelwertung8!$A$3:$A$55,$B36,Einzelwertung8!$J$3:$J$55)+0.01 -> 0.01 | N36: =SUMIF(Einzelwertung9!$A$3:$A$55,$B36,Einzelwertung9!$J$3:$J$55)+0.009 -> 0.009 | O36: =SUMIF(Einzelwertung10!$A$3:$A$55,$B36,Einzelwertung10!$J$3:$J$55)+0.008 -> 0.008 | P36: =SUMIF(Einzelwertung11!$A$3:$A$55,$B36,Einzelwertung11!$J$3:$J$55)+0.007 -> 0.007 | Q36: =SUMIF(Einzelwertung12!$A$3:$A$55,$B36,Einzelwertung12!$J$3:$J$55)+0.006 -> 0.006 | R36: =SUMIF(Einzelwertung13!$A$3:$A$55,$B36,Einzelwertung13!$J$3:$J$55)+0.005 -> 0.005 | S36: =SUMIF(Einzelwertung14!$A$3:$A$55,$B36,Einzelwertung14!$J$3:$J$55)+0.004 -> 10.004 | T36: =SUMIF(Einzelwertung15!$A$3:$A$67,$B36,Einzelwertung15!$J$3:$J$67)+0.003 -> 0.003 | U36: =SUMIF(Einzelwertung16!$A$3:$A$55,$B36,Einzelwertung16!$J$3:$J$55)+0.002 -> 0.002 | V36: =SUMIF(Einzelwertung17!$A$3:$A$55,$B36,Einzelwertung17!$J$3:$J$55)+0.001 -> 0.001 | W36: =SUMIF(Einzelwertung18!$A$3:$A$55,$B36,Einzelwertung18!$J$3:$J$55)+0 -> 0 | X36: =INT(IF(COUNTIF(F36:W36,CONCATENATE(">",1/10))<=Hilfe!$A$1,SUM(F36:W36),SUMIF(F36:W36,CONCATENATE(">=",LARGE(F36:W36,Hilfe!$A$1)),F36:W36))) -> 10 | Y36: 1 | Z36: 3
A37: 35 | B37: Petersmann, Chris | C37: =VLOOKUP($B37,Teilnehmer!$A$3:$E$126,2,FALSE) -> 0 | D37: =VLOOKUP($B37,Teilnehmer!$A$3:$E$126,3,FALSE) -> Hobby41 | E37: =VLOOKUP($B37,Teilnehmer!$A$3:$E$126,4,FALSE) -> H | F37: =SUMIF(Einzelwertung1!$A$3:$A$55,$B37,Einzelwertung1!$J$3:$J$55)+0.017 -> 0.017 | G37: =SUMIF(Einzelwertung2!$A$3:$A$55,$B37,Einzelwertung2!$J$3:$J$55)+0.016 -> 0.016 | H37: =SUMIF(Einzelwertung3!$A$3:$A$55,$B37,Einzelwertung3!$J$3:$J$55)+0.015 -> 0.015 | I37: =SUMIF(Einzelwertung4!$A$3:$A$55,$B37,Einzelwertung4!$J$3:$J$55)+0.014 -> 0.014 | J37: =SUMIF(Einzelwertung5!$A$3:$A$55,$B37,Einzelwertung5!$J$3:$J$55)+0.013 -> 0.013 | K37: =SUMIF(Einzelwertung6!$A$3:$A$55,$B37,Einzelwertung6!$J$3:$J$55)+0.012 -> 0.012 | L37: =SUMIF(Einzelwertung7!$A$3:$A$55,$B37,Einzelwertung7!$J$3:$J$55)+0.011 -> 0.011 | M37: =SUMIF(Einzelwertung8!$A$3:$A$55,$B37,Einzelwertung8!$J$3:$J$55)+0.01 -> 0.01 | N37: =SUMIF(Einzelwertung9!$A$3:$A$55,$B37,Einzelwertung9!$J$3:$J$55)+0.009 -> 0.009 | O37: =SUMIF(Einzelwertung10!$A$3:$A$55,$B37,Einzelwertung10!$J$3:$J$55)+0.008 -> 0.008 | P37: =SUMIF(Einzelwertung11!$A$3:$A$55,$B37,Einzelwertung11!$J$3:$J$55)+0.007 -> 0.007 | Q37: =SUMIF(Einzelwertung12!$A$3:$A$55,$B37,Einzelwertung12!$J$3:$J$55)+0.006 -> 0.006 | R37: =SUMIF(Einzelwertung13!$A$3:$A$55,$B37,Einzelwertung13!$J$3:$J$55)+0.005 -> 0.005 | S37: =SUMIF(Einzelwertung14!$A$3:$A$55,$B37,Einzelwertung14!$J$3:$J$55)+0.004 -> 5.004 | T37: =SUMIF(Einzelwertung15!$A$3:$A$67,$B37,Einzelwertung15!$J$3:$J$67)+0.003 -> 0.003 | U37: =SUMIF(Einzelwertung16!$A$3:$A$55,$B37,Einzelwertung16!$J$3:$J$55)+0.002 -> 0.002 | V37: =SUMIF(Einzelwertung17!$A$3:$A$55,$B37,Einzelwertung17!$J$3:$J$55)+0.001 -> 0.001 | W37: =SUMIF(Einzelwertung18!$A$3:$A$55,$B37,Einzelwertung18!$J$3:$J$55)+0 -> 0 | X37: =INT(IF(COUNTIF(F37:W37,CONCATENATE(">",1/10))<=Hilfe!$A$1,SUM(F37:W37),SUMIF(F37:W37,CONCATENATE(">=",LARGE(F37:W37,Hilfe!$A$1)),F37:W37))) -> 5 | Y37: 1 | Z37: 3
B38: Schmitz, Ingeborg | C38: =VLOOKUP($B38,Teilnehmer!$A$3:$E$126,2,FALSE) -> ASS | D38: =VLOOKUP($B38,Teilnehmer!$A$3:$E$126,3,FALSE) -> 37171 | E38: =VLOOKUP($B38,Teilnehmer!$A$3:$E$126,4,FALSE) -> SW2 | F38: =SUMIF(Einzelwertung1!$A$3:$A$55,$B38,Einzelwertung1!$J$3:$J$55)+0.017 -> 0.017 | G38: =SUMIF(Einzelwertung2!$A$3:$A$55,$B38,Einzelwertung2!$J$3:$J$55)+0.016 -> 5.016 | H38: =SUMIF(Einzelwertung3!$A$3:$A$55,$B38,Einzelwertung3!$J$3:$J$55)+0.015 -> 0.015 | I38: =SUMIF(Einzelwertung4!$A$3:$A$55,$B38,Einzelwertung4!$J$3:$J$55)+0.014 -> 0.014 | J38: =SUMIF(Einzelwertung5!$A$3:$A$55,$B38,Einzelwertung5!$J$3:$J$55)+0.013 -> 0.013 | K38: =SUMIF(Einzelwertung6!$A$3:$A$55,$B38,Einzelwertung6!$J$3:$J$55)+0.012 -> 0.012 | L38: =SUMIF(Einzelwertung7!$A$3:$A$55,$B38,Einzelwertung7!$J$3:$J$55)+0.011 -> 0.011 | M38: =SUMIF(Einzelwertung8!$A$3:$A$55,$B38,Einzelwertung8!$J$3:$J$55)+0.01 -> 0.01 | N38: =SUMIF(Einzelwertung9!$A$3:$A$55,$B38,Einzelwertung9!$J$3:$J$55)+0.009 -> 0.009 | O38: =SUMIF(Einzelwertung10!$A$3:$A$55,$B38,Einzelwertung10!$J$3:$J$55)+0.008 -> 0.008 | P38: =SUMIF(Einzelwertung11!$A$3:$A$55,$B38,Einzelwertung11!$J$3:$J$55)+0.007 -> 0.007 | Q38: =SUMIF(Einzelwertung12!$A$3:$A$55,$B38,Einzelwertung12!$J$3:$J$55)+0.006 -> 0.006 | R38: =SUMIF(Einzelwertung13!$A$3:$A$55,$B38,Einzelwertung13!$J$3:$J$55)+0.005 -> 0.005 | S38: =SUMIF(Einzelwertung14!$A$3:$A$55,$B38,Einzelwertung14!$J$3:$J$55)+0.004 -> 0.004 | T38: =SUMIF(Einzelwertung15!$A$3:$A$67,$B38,Einzelwertung15!$J$3:$J$67)+0.003 -> 0.003 | U38: =SUMIF(Einzelwertung16!$A$3:$A$55,$B38,Einzelwertung16!$J$3:$J$55)+0.002 -> 0.002 | V38: =SUMIF(Einzelwertung17!$A$3:$A$55,$B38,Einzelwertung17!$J$3:$J$55)+0.001 -> 0.001 | W38: =SUMIF(Einzelwertung18!$A$3:$A$55,$B38,Einzelwertung18!$J$3:$J$55)+0 -> 0 | X38: =INT(IF(COUNTIF(F38:W38,CONCATENATE(">",1/10))<=Hilfe!$A$1,SUM(F38:W38),SUMIF(F38:W38,CONCATENATE(">=",LARGE(F38:W38,Hilfe!$A$1)),F38:W38))) -> 5 | Y38: 1 | Z38: 3
A39: 37 | B39: Wortmann, Torben | C39: =VLOOKUP($B39,Teilnehmer!$A$3:$E$126,2,FALSE) -> Hobby | D39: =VLOOKUP($B39,Teilnehmer!$A$3:$E$126,3,FALSE) -> Hobby42 | E39: =VLOOKUP($B39,Teilnehmer!$A$3:$E$126,4,FALSE) -> H | F39: =SUMIF(Einzelwertung1!$A$3:$A$55,$B39,Einzelwertung1!$J$3:$J$55)+0.017 -> 0.017 | G39: =SUMIF(Einzelwertung2!$A$3:$A$55,$B39,Einzelwertung2!$J$3:$J$55)+0.016 -> 0.016 | H39: =SUMIF(Einzelwertung3!$A$3:$A$55,$B39,Einzelwertung3!$J$3:$J$55)+0.015 -> 0.015 | I39: =SUMIF(Einzelwertung4!$A$3:$A$55,$B39,Einzelwertung4!$J$3:$J$55)+0.014 -> 0.014 | J39: =SUMIF(Einzelwertung5!$A$3:$A$55,$B39,Einzelwertung5!$J$3:$J$55)+0.013 -> 0.013 | K39: =SUMIF(Einzelwertung6!$A$3:$A$55,$B39,Einzelwertung6!$J$3:$J$55)+0.012 -> 0.012 | L39: =SUMIF(Einzelwertung7!$A$3:$A$55,$B39,Einzelwertung7!$J$3:$J$55)+0.011 -> 0.011 | M39: =SUMIF(Einzelwertung8!$A$3:$A$55,$B39,Einzelwertung8!$J$3:$J$55)+0.01 -> 0.01 | N39: =SUMIF(Einzelwertung9!$A$3:$A$55,$B39,Einzelwertung9!$J$3:$J$55)+0.009 -> 0.009 | O39: =SUMIF(Einzelwertung10!$A$3:$A$55,$B39,Einzelwertung10!$J$3:$J$55)+0.008 -> 0.008 | P39: =SUMIF(Einzelwertung11!$A$3:$A$55,$B39,Einzelwertung11!$J$3:$J$55)+0.007 -> 0.007 | Q39: =SUMIF(Einzelwertung12!$A$3:$A$55,$B39,Einzelwertung12!$J$3:$J$55)+0.006 -> 0.006 | R39: =SUMIF(Einzelwertung13!$A$3:$A$55,$B39,Einzelwertung13!$J$3:$J$55)+0.005 -> 0.005 | S39: =SUMIF(Einzelwertung14!$A$3:$A$55,$B39,Einzelwertung14!$J$3:$J$55)+0.004 -> 0.004 | T39: =SUMIF(Einzelwertung15!$A$3:$A$67,$B39,Einzelwertung15!$J$3:$J$67)+0.003 -> 0.003 | U39: =SUMIF(Einzelwertung16!$A$3:$A$55,$B39,Einzelwertung16!$J$3:$J$55)+0.002 -> 0.002 | V39: =SUMIF(Einzelwertung17!$A$3:$A$55,$B39,Einzelwertung17!$J$3:$J$55)+0.001 -> 0.001 | W39: =SUMIF(Einzelwertung18!$A$3:$A$55,$B39,Einzelwertung18!$J$3:$J$55)+0 -> 3 | X39: =INT(IF(COUNTIF(F39:W39,CONCATENATE(">",1/10))<=Hilfe!$A$1,SUM(F39:W39),SUMIF(F39:W39,CONCATENATE(">=",LARGE(F39:W39,Hilfe!$A$1)),F39:W39))) -> 3 | Y39: 1 | Z39: 3
A40: 38 | B40: Hoffmann, Thomas | C40: =VLOOKUP($B40,Teilnehmer!$A$3:$E$126,2,FALSE) -> Hobby | D40: =VLOOKUP($B40,Teilnehmer!$A$3:$E$126,3,FALSE) -> Hobby29 | E40: =VLOOKUP($B40,Teilnehmer!$A$3:$E$126,4,FALSE) -> SM2 | F40: =SUMIF(Einzelwertung1!$A$3:$A$55,$B40,Einzelwertung1!$J$3:$J$55)+0.017 -> 0.017 | G40: =SUMIF(Einzelwertung2!$A$3:$A$55,$B40,Einzelwertung2!$J$3:$J$55)+0.016 -> 0.016 | H40: =SUMIF(Einzelwertung3!$A$3:$A$55,$B40,Einzelwertung3!$J$3:$J$55)+0.015 -> 0.015 | I40: =SUMIF(Einzelwertung4!$A$3:$A$55,$B40,Einzelwertung4!$J$3:$J$55)+0.014 -> 0.014 | J40: =SUMIF(Einzelwertung5!$A$3:$A$55,$B40,Einzelwertung5!$J$3:$J$55)+0.013 -> 0.013 | K40: =SUMIF(Einzelwertung6!$A$3:$A$55,$B40,Einzelwertung6!$J$3:$J$55)+0.012 -> 0.012 | L40: =SUMIF(Einzelwertung7!$A$3:$A$55,$B40,Einzelwertung7!$J$3:$J$55)+0.011 -> 0.011 | M40: =SUMIF(Einzelwertung8!$A$3:$A$55,$B40,Einzelwertung8!$J$3:$J$55)+0.01 -> 0.01 | N40: =SUMIF(Einzelwertung9!$A$3:$A$55,$B40,Einzelwertung9!$J$3:$J$55)+0.009 -> 0.009 | O40: =SUMIF(Einzelwertung10!$A$3:$A$55,$B40,Einzelwertung10!$J$3:$J$55)+0.008 -> 0.008 | P40: =SUMIF(Einzelwertung11!$A$3:$A$55,$B40,Einzelwertung11!$J$3:$J$55)+0.007 -> 0.007 | Q40: =SUMIF(Einzelwertung12!$A$3:$A$55,$B40,Einzelwertung12!$J$3:$J$55)+0.006 -> 0.006 | R40: =SUMIF(Einzelwertung13!$A$3:$A$55,$B40,Einzelwertung13!$J$3:$J$55)+0.005 -> 0.005 | S40: =SUMIF(Einzelwertung14!$A$3:$A$55,$B40,Einzelwertung14!$J$3:$J$55)+0.004 -> 0.004 | T40: =SUMIF(Einzelwertung15!$A$3:$A$67,$B40,Einzelwertung15!$J$3:$J$67)+0.003 -> 0.003 | U40: =SUMIF(Einzelwertung16!$A$3:$A$55,$B40,Einzelwertung16!$J$3:$J$55)+0.002 -> 0.002 | V40: =SUMIF(Einzelwertung17!$A$3:$A$55,$B40,Einzelwertung17!$J$3:$J$55)+0.001 -> 1.001 | W40: =SUMIF(Einzelwertung18!$A$3:$A$55,$B40,Einzelwertung18!$J$3:$J$55)+0 -> 0 | X40: =INT(IF(COUNTIF(F40:W40,CONCATENATE(">",1/10))<=Hilfe!$A$1,SUM(F40:W40),SUMIF(F40:W40,CONCATENATE(">=",LARGE(F40:W40,Hilfe!$A$1)),F40:W40))) -> 1 | Y40: 1 | Z40: 3
B42: Teilnehmer pro Spieltag und im Mittel | F42: =COUNTIF(F3:F40,">0.1") -> 0 | G42: 15 | H42: 18 | I42: 16 | J42: 20 | K42: 15 | L42: 17 | M42: 15 | N42: 20 | O42: 0 | P42: 19 | Q42: 21 | R42: 17 | S42: 20 | T42: 20 | U42: 21 | V42: 21 | W42: 20 | X42: =IF(SUM(F42:W42)>0,SUM(F42:W42)/COUNTIF(F42:W42,">0"),0) -> 18.4375 | Y42: =SUM(Y3:Y40) -> 295 | Z42: =SUM(Z3:Z40) -> 867

Sheet Verlosungen
A1: Sommer-Cup 2019 im Freizeittreff Herbede - verloste Preise
A3: Teilnehmer | B3: Gewinn | C3: Spieltag
A4: Dominic Urban | B4: 1 Winzervesper | C4: 2
A5: Barbara Schmidt | B5: 1 Kühltasche | C5: 2
A6: Michael Puschner | B6: Verzehrgutschein 10 Euro | C6: 3
A7: Günter Schmidtbauer | B7: Trinkflaschenset | C7: 3
A8: Sabine Scharpe | B8: 1 Mini-Kühltasche | C8: 3
A9: Günter Schmidtbauer | B9: 1 Flasche Amaretto | C9: 4
A10: Ulrich Börgmann | B10: 1 Großpackung Color-Rado | C10: 4
A11: Brigitte Börgmann | B11: 1 Set Biergläser | C11: 4
A12: Ulrich Börgmann | B12: 1 Messer-Set | C12: 5
A13: Sabine Kortmann | B13: 1 Kühltasche | C13: 5
A14: Marie-Luise Jezierski | B14: 1 Windlicht | C14: 5
A15: Ansgar Buchholz | B15: 1 Großpackung Color-Rado | C15: 6
A16: Barbara Schmidt | B16: Windlicht mit Kakteen | C16: 6
A17: Barbara Schmidt | B17: 1 LED-Windlicht | C17: 7
A18: Hellmut Greiffendorf | B18: 1 Thermosbecher | C18: 7
A19: Peter Tabor | B19: 1 Flasche Sekt | C19: 7
A20: Nicole Lieber | B20: 1 Solarlampe | C20: 8
A21: Michael Puschner | B21: 1 Pflanzgefäß aus Glas | C21: 8
A22: Günter Schmidtbauer | B22: 1 Trinkglas mit Deckel | C22: 8
A23: Volker Urban | B23: 1 Flasche Wein mit Glas | C23: 9
A24: Ansgar Buchholz | B24: 1 Verzehrgutschein | C24: 9
A25: Ulrich Börgmann | B25: 1 Kühltasche | C25: 9
A26: Angela Urban | B26: 1 Flasche Grappa | C26: 11
A27: Michael Puschner | B27: 1 Verzehrgutschein | C27: 11
A28: Volker Urban | B28: 1 Glaskrug mit Zapfhahn | C28: 11
A29: Ansgar Buchholz | B29: 1 Trinkflasche | C29: 12
A30: Michael Puschner | B30: 1 Flasche Kräuterlikör | C30: 12
A31: Brigitte Börgmann | B31: 1 Solarlaterne | C31: 12
A32: Dominic Urban | B32: 1 Winzervesper | C32: 13
A33: Peter Tabor | B33: 1 Flasche Holunderwein | C33: 13
A34: Dirk Mühling | B34: 1 Gasfeuerzeugset | C34: 13
A35: Ulrich Börgmann | B35: 1 Flasche Erdbeerlikör | C35: 14
A36: Peter Tabor | B36: 1 grosse Dose Haribo | C36: 14
A37: Brigitte Börgmann | B37: 1 Wanduhr | C37: 14
A38: Volker Urban | B38: 1 Flasche Wein + 1 Glas | C38: 15
A39: Ulrich Börgmann | B39: 1 Verzehrgutschein | C39: 15
A40: Nicole Lieber | B40: 1 Bonbonglas mit Süßigkeiten | C40: 15
A41: Günter Schmidtbauer | B41: Rucksack | C41: 16
A42: Brigitte Börgmann | B42: 1 Flasche Martini | C42: 16
A43: Nicole Lieber | B43: 1 Deko-Glas | C43: 16
A44: Volker Urban | B44: 1 Flasche Erdbeerlikör | C44: 17
A45: Peter Tabor | B45: 1 Bonbonglas mit Inhalt | C45: 17
A46: Sabine Kortmann | B46: 1 Pflanzglas mit Inhalt | C46: 17
A47: Martin Kunz | B47: 1 Pflanzkorb, bepflanzt | C47: 18
A48: Brigitte Börgmann | B48: 1 Flasche Sekt | C48: 18
A49: Jürgen Schmitt | B49: 1 Schachtel Pralinen | C49: 18

Sheet Einzelwertung1
A1: =CONCATENATE("5. Sommer-Cup - Freizeittreff Herbede - ",TEXT(Gesamtstand!$F$2,"TT.MM.JJ")) -> 5. Sommer-Cup - Freizeittreff Herbede - 02.05.19
A2: Spieler | B2: Runde 1 | C2: Runde 2 | D2: Gesamt | E2: bessere? | F2: Pl. R1 | G2: Pl. R2 | H2: Pl. Ges. | I2: gewertet | J2: Punkte
A3: Urban, Volker | D3: =IF(B3>0,C3+B3,"") ->  | E3: TRUE | F3: =IF(B3>0,COUNTIF(B$3:B$55,"<"&B3)+1,"") ->  | G3: =IF(C3>0,COUNTIF(C$3:C$55,"<"&C3)+1,"") ->  | H3: =IF(AND(B3>0,C3>0),COUNTIF(D$3:D$55,"<"&D3)+1,"") ->  | I3: =IF(B3>0,IF(E3,MIN(F3:H3),MAX(F3:H3)),"") ->  | J3: =IF(B3>0,VLOOKUP(I3,Punkteschema!$A$2:$B$101,2,FALSE),"") -> 
A4: Schmitt, Jürgen | E4: TRUE | J4: =IF(B4>0,VLOOKUP(I4,Punkteschema!$A$2:$B$101,2,FALSE),"") -> 
A5: Puschner, Michael | E5: TRUE | J5: =IF(B5>0,VLOOKUP(I5,Punkteschema!$A$2:$B$101,2,FALSE),"") -> 
A6: Scharpe, Sabine | E6: TRUE | J6: =IF(B6>0,VLOOKUP(I6,Punkteschema!$A$2:$B$101,2,FALSE),"") -> 
A7: Urban, Angela | E7: TRUE | J7: =IF(B7>0,VLOOKUP(I7,Punkteschema!$A$2:$B$101,2,FALSE),"") -> 
A8: Kottek, Sabine | E8: TRUE | J8: =IF(B8>0,VLOOKUP(I8,Punkteschema!$A$2:$B$101,2,FALSE),"") -> 
A9: Kortmann, Sabine | E9: TRUE | J9: =IF(B9>0,VLOOKUP(I9,Punkteschema!$A$2:$B$101,2,FALSE),"") -> 
A10: Greiffendorf, Hellmut | E10: TRUE | J10: =IF(B10>0,VLOOKUP(I10,Punkteschema!$A$2:$B$101,2,FALSE),"") -> 
A11: Kortmann, Uwe | E11: TRUE | J11: =IF(B11>0,VLOOKUP(I11,Punkteschema!$A$2:$B$101,2,FALSE),"") -> 
A12: Schmidtbauer, Günter | E12: TRUE | J12: =IF(B12>0,VLOOKUP(I12,Punkteschema!$A$2:$B$101,2,FALSE),"") -> 
A13: Schmidt, Barbara | E13: TRUE | J13: =IF(B13>0,VLOOKUP(I13,Punkteschema!$A$2:$B$101,2,FALSE),"") -> 
A14: Presser, Wolfgang | E14: TRUE | J14: =IF(B14>0,VLOOKUP(I14,Punkteschema!$A$2:$B$101,2,FALSE),"") -> 
A15: Urban, Dominic | E15: TRUE | J15: =IF(B15>0,VLOOKUP(I15,Punkteschema!$A$2:$B$101,2,FALSE),"") -> 
A16: Ginschel, Rudolf | E16: TRUE | J16: =IF(B16>0,VLOOKUP(I16,Punkteschema!$A$2:$B$101,2,FALSE),"") -> 
A17: Lenk, Rolf | E17: TRUE | J17: =IF(B17>0,VLOOKUP(I17,Punkteschema!$A$2:$B$101,2,FALSE),"") -> 
E18: TRUE | J18: =IF(B18>0,VLOOKUP(I18,Punkteschema!$A$2:$B$101,2,FALSE),"") -> 
D19: =IF(B19>0,C19+B19,"") ->  | E19: TRUE | F19: =IF(B19>0,COUNTIF(B$3:B$55,"<"&B19)+1,"") ->  | H19: =IF(AND(B19>0,C19>0),COUNTIF(D$3:D$55,"<"&D19)+1,"") ->  | I19: =IF(B19>0,IF(E19,MIN(F19:H19),MAX(F19:H19)),"") ->  | J19: =IF(B19>0,VLOOKUP(I19,Punkteschema!$A$2:$B$101,2,FALSE),"") -> 
E20: TRUE | J20: =IF(B20>0,VLOOKUP(I20,Punkteschema!$A$2:$B$101,2,FALSE),"") -> 
E21: TRUE | J21: =IF(B21>0,VLOOKUP(I21,Punkteschema!$A$2:$B$101,2,FALSE),"") -> 
E22: TRUE | J22: =IF(B22>0,VLOOKUP(I22,Punkteschema!$A$2:$B$101,2,FALSE),"") -> 
E23: TRUE | J23: =IF(B23>0,VLOOKUP(I23,Punkteschema!$A$2:$B$101,2,FALSE),"") -> 
E24: TRUE | J24: =IF(B24>0,VLOOKUP(I24,Punkteschema!$A$2:$B$101,2,FALSE),"") -> 
E25: TRUE | J25: =IF(B25>0,VLOOKUP(I25,Punkteschema!$A$2:$B$101,2,FALSE),"") -> 
E26: TRUE | J26: =IF(B26>0,VLOOKUP(I26,Punkteschema!$A$2:$B$101,2,FALSE),"") -> 
E27: TRUE | J27: =IF(B27>0,VLOOKUP(I27,Punkteschema!$A$2:$B$101,2,FALSE),"") -> 
E28: TRUE | J28: =IF(B28>0,VLOOKUP(I28,Punkteschema!$A$2:$B$101,2,FALSE),"") -> 
E29: TRUE | J29: =IF(B29>0,VLOOKUP(I29,Punkteschema!$A$2:$B$101,2,FALSE),"") -> 
E30: TRUE | J30: =IF(B30>0,VLOOKUP(I30,Punkteschema!$A$2:$B$101,2,FALSE),"") -> 
E31: TRUE | J31: =IF(B31>0,VLOOKUP(I31,Punkteschema!$A$2:$B$101,2,FALSE),"") -> 
E32: TRUE | J32: =IF(B32>0,VLOOKUP(I32,Punkteschema!$A$2:$B$101,2,FALSE),"") -> 
E33: TRUE | J33: =IF(B33>0,VLOOKUP(I33,Punkteschema!$A$2:$B$101,2,FALSE),"") -> 
E34: TRUE | J34: =IF(B34>0,VLOOKUP(I34,Punkteschema!$A$2:$B$101,2,FALSE),"") -> 
E35: TRUE | J35: =IF(B35>0,VLOOKUP(I35,Punkteschema!$A$2:$B$101,2,FALSE),"") -> 
E36: TRUE | J36: =IF(B36>0,VLOOKUP(I36,Punkteschema!$A$2:$B$101,2,FALSE),"") -> 
E37: TRUE | J37: =IF(B37>0,VLOOKUP(I37,Punkteschema!$A$2:$B$101,2,FALSE),"") -> 
E38: TRUE | J38: =IF(B38>0,VLOOKUP(I38,Punkteschema!$A$2:$B$101,2,FALSE),"") -> 
E39: TRUE | J39: =IF(B39>0,VLOOKUP(I39,Punkteschema!$A$2:$B$101,2,FALSE),"") -> 
E40: TRUE | J40: =IF(B40>0,VLOOKUP(I40,Punkteschema!$A$2:$B$101,2,FALSE),"") -> 
E41: TRUE | J41: =IF(B41>0,VLOOKUP(I41,Punkteschema!$A$2:$B$101,2,FALSE),"") -> 
E42: TRUE | J42: =IF(B42>0,VLOOKUP(I42,Punkteschema!$A$2:$B$101,2,FALSE),"") -> 
E43: TRUE | J43: =IF(B43>0,VLOOKUP(I43,Punkteschema!$A$2:$B$101,2,FALSE),"") -> 
E44: TRUE | J44: =IF(B44>0,VLOOKUP(I44,Punkteschema!$A$2:$B$101,2,FALSE),"") -> 
E45: TRUE | J45: =IF(B45>0,VLOOKUP(I45,Punkteschema!$A$2:$B$101,2,FALSE),"") -> 
E46: TRUE | J46: =IF(B46>0,VLOOKUP(I46,Punkteschema!$A$2:$B$101,2,FALSE),"") -> 
E47: TRUE | J47: =IF(B47>0,VLOOKUP(I47,Punkteschema!$A$2:$B$101,2,FALSE),"") -> 
E48: TRUE | J48: =IF(B48>0,VLOOKUP(I48,Punkteschema!$A$2:$B$101,2,FALSE),"") -> 
E49: TRUE | J49: =IF(B49>0,VLOOKUP(I49,Punkteschema!$A$2:$B$101,2,FALSE),"") -> 
E50: TRUE | J50: =IF(B50>0,VLOOKUP(I50,Punkteschema!$A$2:$B$101,2,FALSE),"") -> 
E51: TRUE | J51: =IF(B51>0,VLOOKUP(I51,Punkteschema!$A$2:$B$101,2,FALSE),"") -> 
E52: TRUE | J52: =IF(B52>0,VLOOKUP(I52,Punkteschema!$A$2:$B$101,2,FALSE),"") -> 
E53: TRUE | F53: =IF(B53>0,COUNTIF(B$3:B$55,"<"&B53)+1,"") ->  | H53: =IF(AND(B53>0,C53>0),COUNTIF(D$3:D$55,"<"&D53)+1,"") ->  | I53: =IF(B53>0,IF(E53,MIN(F53:H53),MAX(F53:H53)),"") ->  | J53: =IF(B53>0,VLOOKUP(I53,Punkteschema!$A$2:$B$101,2,FALSE),"") -> 
E54: TRUE | H54: =IF(AND(B54>0,C54>0),COUNTIF(D$3:D$55,"<"&D54)+1,"") ->  | I54: =IF(B54>0,IF(E54,MIN(F54:H54),MAX(F54:H54)),"") ->  | J54: =IF(B54>0,VLOOKUP(I54,Punkteschema!$A$2:$B$101,2,FALSE),"") -> 
E55: TRUE | H55: =IF(AND(B55>0,C55>0),COUNTIF(D$3:D$55,"<"&D55)+1,"") ->  | I55: =IF(B55>0,IF(E55,MIN(F55:H55),MAX(F55:H55)),"") ->  | J55: =IF(B55>0,VLOOKUP(I55,Punkteschema!$A$2:$B$101,2,FALSE),"") -> 
A57: OS: Greiffendorf, Hellmut | E57: Runde 1: | F57: B | G57: <- E/B
A58: S: Puschner, Michael | E58: Runde 2: | F58: E | G58: <- E/B
A59: S: Urban, Volker
A61: Verloste Preise:

Sheet Einzelwertung2
A1: =CONCATENATE("5. Sommer-Cup - Freizeittreff Herbede - ",TEXT(Gesamtstand!$G$2,"TT.MM.JJ")) -> 5. Sommer-Cup - Freizeittreff Herbede - 09.05.19
A2: Spieler | B2: Runde 1 | C2: Runde 2 | D2: Gesamt | E2: bessere? | F2: Pl. R1 | G2: Pl. R2 | H2: Pl. Ges. | I2: gewertet | J2: Punkte
A3: Ginschel, Rudolf | B3: 30 | C3: 30 | D3: =IF(B3>0,C3+B3,"") -> 60 | E3: TRUE | F3: =IF(B3>0,COUNTIF(B$3:B$55,"<"&B3)+1,"") -> 2 | G3: =IF(C3>0,COUNTIF(C$3:C$55,"<"&C3)+1,"") -> 2 | H3: =IF(AND(B3>0,C3>0),COUNTIF(D$3:D$55,"<"&D3)+1,"") -> 1 | I3: =IF(B3>0,IF(E3,MIN(F3:H3),MAX(F3:H3)),"") -> 1 | J3: =IF(B3>0,VLOOKUP(I3,Punkteschema!$A$2:$B$101,2,FALSE),"") -> 25
A4: Urban, Volker | B4: 28 | C4: 33 | D4: 61 | E4: TRUE | F4: 1 | G4: 3 | H4: 2 | I4: 1 | J4: =IF(B4>0,VLOOKUP(I4,Punkteschema!$A$2:$B$101,2,FALSE),"") -> 25
A5: Puschner, Michael | B5: 38 | C5: 29 | D5: 67 | E5: TRUE | F5: 10 | G5: 1 | H5: 4 | I5: 1 | J5: =IF(B5>0,VLOOKUP(I5,Punkteschema!$A$2:$B$101,2,FALSE),"") -> 25
A6: Mühling, Dirk | B6: 31 | C6: 34 | D6: 65 | E6: TRUE | F6: 3 | G6: 6 | H6: 3 | I6: 3 | J6: =IF(B6>0,VLOOKUP(I6,Punkteschema!$A$2:$B$101,2,FALSE),"") -> 18
A7: Tabor, Peter | B7: 35 | C7: 33 | D7: 68 | E7: TRUE | F7: 4 | G7: 3 | H7: 5 | I7: 3 | J7: =IF(B7>0,VLOOKUP(I7,Punkteschema!$A$2:$B$101,2,FALSE),"") -> 18
A8: Börgmann, Ulrich | B8: 39 | C8: 33 | D8: 72 | E8: TRUE | F8: 12 | G8: 3 | H8: 6 | I8: 3 | J8: =IF(B8>0,VLOOKUP(I8,Punkteschema!$A$2:$B$101,2,FALSE),"") -> 18
A9: Lenk, Rolf | B9: 36 | C9: 38 | D9: 74 | E9: TRUE | F9: 5 | G9: 11 | H9: 7 | I9: 5 | J9: =IF(B9>0,VLOOKUP(I9,Punkteschema!$A$2:$B$101,2,FALSE),"") -> 15
A10: Schmidt, Barbara | B10: 37 | C10: 37 | D10: 74 | E10: TRUE | F10: 6 | G10: 10 | H10: 7 | I10: 6 | J10: =IF(B10>0,VLOOKUP(I10,Punkteschema!$A$2:$B$101,2,FALSE),"") -> 15
A11: Kortmann, Sabine | B11: 40 | C11: 34 | D11: 74 | E11: TRUE | F11: 14 | G11: 6 | H11: 7 | I11: 6 | J11: =IF(B11>0,VLOOKUP(I11,Punkteschema!$A$2:$B$101,2,FALSE),"") -> 15
A12: Kortmann, Uwe | B12: 37 | C12: 44 | D12: 81 | E12: TRUE | F12: 6 | G12: 13 | H12: 13 | I12: 6 | J12: =IF(B12>0,VLOOKUP(I12,Punkteschema!$A$2:$B$101,2,FALSE),"") -> 15
A13: Hünnebeck, Petra | B13: 37 | C13: 44 | D13: 81 | E13: TRUE | F13: 6 | G13: 13 | H13: 13 | I13: 6 | J13: =IF(B13>0,VLOOKUP(I13,Punkteschema!$A$2:$B$101,2,FALSE),"") -> 15
A14: Kersch, Uwe | B14: 37 | C14: 126 | D14: 163 | E14: TRUE | F14: 6 | G14: 16 | H14: 16 | I14: 6 | J14: =IF(B14>0,VLOOKUP(I14,Punkteschema!$A$2:$B$101,2,FALSE),"") -> 15
A15: Urban, Dominic | B15: 38 | C15: 36 | D15: 74 | E15: TRUE | F15: 10 | G15: 8 | H15: 7 | I15: 7 | J15: =IF(B15>0,VLOOKUP(I15,Punkteschema!$A$2:$B$101,2,FALSE),"") -> 10
A16: Scharpe, Sabine | B16: 40 | C16: 36 | D16: 76 | E16: TRUE | F16: 14 | G16: 8 | H16: 11 | I16: 8 | J16: =IF(B16>0,VLOOKUP(I16,Punkteschema!$A$2:$B$101,2,FALSE),"") -> 10
A17: Jezierski, Marie-Luise | B17: 39 | C17: 39 | D17: 78 | E17: TRUE | F17: 12 | G17: 12 | H17: 12 | I17: 12 | J17: =IF(B17>0,VLOOKUP(I17,Punkteschema!$A$2:$B$101,2,FALSE),"") -> 5
A18: Schmitz, Ingeborg | B18: 48 | C18: 53 | D18: 101 | E18: TRUE | F18: 16 | G18: 15 | H18: 15 | I18: 15 | J18: =IF(B18>0,VLOOKUP(I18,Punkteschema!$A$2:$B$101,2,FALSE),"") -> 5
D19: =IF(B19>0,C19+B19,"") ->  | E19: TRUE | F19: =IF(B19>0,COUNTIF(B$3:B$55,"<"&B19)+1,"") ->  | G19: =IF(C19>0,COUNTIF(C$3:C$55,"<"&C19)+1,"") ->  | H19: =IF(AND(B19>0,C19>0),COUNTIF(D$3:D$55,"<"&D19)+1,"") ->  | I19: =IF(B19>0,IF(E19,MIN(F19:H19),MAX(F19:H19)),"") ->  | J19: =IF(B19>0,VLOOKUP(I19,Punkteschema!$A$2:$B$101,2,FALSE),"") -> 
E20: TRUE | J20: =IF(B20>0,VLOOKUP(I20,Punkteschema!$A$2:$B$101,2,FALSE),"") -> 
E21: TRUE | J21: =IF(B21>0,VLOOKUP(I21,Punkteschema!$A$2:$B$101,2,FALSE),"") -> 
E22: TRUE | J22: =IF(B22>0,VLOOKUP(I22,Punkteschema!$A$2:$B$101,2,FALSE),"") -> 
E23: TRUE | J23: =IF(B23>0,VLOOKUP(I23,Punkteschema!$A$2:$B$101,2,FALSE),"") -> 
D24: =IF(B24>0,C24+B24,"") ->  | E24: TRUE | F24: =IF(B24>0,COUNTIF(B$3:B$55,"<"&B24)+1,"") ->  | H24: =IF(AND(B24>0,C24>0),COUNTIF(D$3:D$55,"<"&D24)+1,"") ->  | I24: =IF(B24>0,IF(E24,MIN(F24:H24),MAX(F24:H24)),"") ->  | J24: =IF(B24>0,VLOOKUP(I24,Punkteschema!$A$2:$B$101,2,FALSE),"") -> 
E25: TRUE | J25: =IF(B25>0,VLOOKUP(I25,Punkteschema!$A$2:$B$101,2,FALSE),"") -> 
E26: TRUE | J26: =IF(B26>0,VLOOKUP(I26,Punkteschema!$A$2:$B$101,2,FALSE),"") -> 
E27: TRUE | J27: =IF(B27>0,VLOOKUP(I27,Punkteschema!$A$2:$B$101,2,FALSE),"") -> 
E28: TRUE | J28: =IF(B28>0,VLOOKUP(I28,Punkteschema!$A$2:$B$101,2,FALSE),"") -> 
E29: TRUE | J29: =IF(B29>0,VLOOKUP(I29,Punkteschema!$A$2:$B$101,2,FALSE),"") -> 
E30: TRUE | J30: =IF(B30>0,VLOOKUP(I30,Punkteschema!$A$2:$B$101,2,FALSE),"") -> 
E31: TRUE | J31: =IF(B31>0,VLOOKUP(I31,Punkteschema!$A$2:$B$101,2,FALSE),"") -> 
E32: TRUE | J32: =IF(B32>0,VLOOKUP(I32,Punkteschema!$A$2:$B$101,2,FALSE),"") -> 
E33: TRUE | J33: =IF(B33>0,VLOOKUP(I33,Punkteschema!$A$2:$B$101,2,FALSE),"") -> 
E34: TRUE | J34: =IF(B34>0,VLOOKUP(I34,Punkteschema!$A$2:$B$101,2,FALSE),"") -> 
E35: TRUE | J35: =IF(B35>0,VLOOKUP(I35,Punkteschema!$A$2:$B$101,2,FALSE),"") -> 
E36: TRUE | J36: =IF(B36>0,VLOOKUP(I36,Punkteschema!$A$2:$B$101,2,FALSE),"") -> 
E37: TRUE | J37: =IF(B37>0,VLOOKUP(I37,Punkteschema!$A$2:$B$101,2,FALSE),"") -> 
E38: TRUE | J38: =IF(B38>0,VLOOKUP(I38,Punkteschema!$A$2:$B$101,2,FALSE),"") -> 
E39: TRUE | J39: =IF(B39>0,VLOOKUP(I39,Punkteschema!$A$2:$B$101,2,FALSE),"") -> 
E40: TRUE | J40: =IF(B40>0,VLOOKUP(I40,Punkteschema!$A$2:$B$101,2,FALSE),"") -> 
E41: TRUE | J41: =IF(B41>0,VLOOKUP(I41,Punkteschema!$A$2:$B$101,2,FALSE),"") -> 
E42: TRUE | J42: =IF(B42>0,VLOOKUP(I42,Punkteschema!$A$2:$B$101,2,FALSE),"") -> 
E43: TRUE | J43: =IF(B43>0,VLOOKUP(I43,Punkteschema!$A$2:$B$101,2,FALSE),"") -> 
E44: TRUE | J44: =IF(B44>0,VLOOKUP(I44,Punkteschema!$A$2:$B$101,2,FALSE),"") -> 
E45: TRUE | J45: =IF(B45>0,VLOOKUP(I45,Punkteschema!$A$2:$B$101,2,FALSE),"") -> 
E46: TRUE | J46: =IF(B46>0,VLOOKUP(I46,Punkteschema!$A$2:$B$101,2,FALSE),"") -> 
E47: TRUE | J47: =IF(B47>0,VLOOKUP(I47,Punkteschema!$A$2:$B$101,2,FALSE),"") -> 
E48: TRUE | J48: =IF(B48>0,VLOOKUP(I48,Punkteschema!$A$2:$B$101,2,FALSE),"") -> 
E49: TRUE | J49: =IF(B49>0,VLOOKUP(I49,Punkteschema!$A$2:$B$101,2,FALSE),"") -> 
E50: TRUE | J50: =IF(B50>0,VLOOKUP(I50,Punkteschema!$A$2:$B$101,2,FALSE),"") -> 
E51: TRUE | J51: =IF(B51>0,VLOOKUP(I51,Punkteschema!$A$2:$B$101,2,FALSE),"") -> 
E52: TRUE | J52: =IF(B52>0,VLOOKUP(I52,Punkteschema!$A$2:$B$101,2,FALSE),"") -> 
E53: TRUE | F53: =IF(B53>0,COUNTIF(B$3:B$55,"<"&B53)+1,"") ->  | H53: =IF(AND(B53>0,C53>0),COUNTIF(D$3:D$55,"<"&D53)+1,"") ->  | I53: =IF(B53>0,IF(E53,MIN(F53:H53),MAX(F53:H53)),"") ->  | J53: =IF(B53>0,VLOOKUP(I53,Punkteschema!$A$2:$B$101,2,FALSE),"") -> 
E54: TRUE | H54: =IF(AND(B54>0,C54>0),COUNTIF(D$3:D$55,"<"&D54)+1,"") ->  | I54: =IF(B54>0,IF(E54,MIN(F54:H54),MAX(F54:H54)),"") ->  | J54: =IF(B54>0,VLOOKUP(I54,Punkteschema!$A$2:$B$101,2,FALSE),"") -> 
E55: TRUE | H55: =IF(AND(B55>0,C55>0),COUNTIF(D$3:D$55,"<"&D55)+1,"") ->  | I55: =IF(B55>0,IF(E55,MIN(F55:H55),MAX(F55:H55)),"") ->  | J55: =IF(B55>0,VLOOKUP(I55,Punkteschema!$A$2:$B$101,2,FALSE),"") -> 
A57: OS: Mühling, Dirk (HEV) | E57: Runde 1: | F57: B | G57: <- E/B
A58: S: Urban, Volker (ASW) | E58: Runde 2: | F58: B | G58: <- E/B
A59: S: Ginschel, Rudolf (BMC)
A61: Verloste Preise: | B61: Dominic Urban (1 Winzervesper)
B62: Barbara Schmidt (1 Kühltasche)

Sheet Einzelwertung3
A1: =CONCATENATE("5. Sommer-Cup - Freizeittreff Herbede - ",TEXT(Gesamtstand!$H$2,"TT.MM.JJ")) -> 5. Sommer-Cup - Freizeittreff Herbede - 16.05.19
A2: Spieler | B2: Runde 1 | C2: Runde 2 | D2: Gesamt | E2: bessere? | F2: Pl. R1 | G2: Pl. R2 | H2: Pl. Ges. | I2: gewertet | J2: Punkte
A3: Lenk, Rolf | B3: 25 | C3: 39 | D3: =IF(B3>0,C3+B3,"") -> 64 | E3: TRUE | F3: =IF(B3>0,COUNTIF(B$3:B$55,"<"&B3)+1,"") -> 1 | G3: =IF(C3>0,COUNTIF(C$3:C$55,"<"&C3)+1,"") -> 14 | H3: =IF(AND(B3>0,C3>0),COUNTIF(D$3:D$55,"<"&D3)+1,"") -> 4 | I3: =IF(B3>0,IF(E3,MIN(F3:H3),MAX(F3:H3)),"") -> 1 | J3: =IF(B3>0,VLOOKUP(I3,Punkteschema!$A$2:$B$101,2,FALSE),"") -> 25
A4: Schmidtbauer, Günter | B4: 35 | C4: 31 | D4: 66 | E4: TRUE | F4: 12 | G4: 1 | H4: 6 | I4: 1 | J4: =IF(B4>0,VLOOKUP(I4,Punkteschema!$A$2:$B$101,2,FALSE),"") -> 25
A5: Urban, Volker | B5: 25 | C5: 32 | D5: 57 | E5: FALSE | F5: 1 | G5: 3 | H5: 1 | I5: 3 | J5: =IF(B5>0,VLOOKUP(I5,Punkteschema!$A$2:$B$101,2,FALSE),"") -> 18
A6: Urban, Angela | B6: 28 | C6: 35 | D6: 63 | E6: TRUE | F6: 3 | G6: 7 | H6: 3 | I6: 3 | J6: =IF(B6>0,VLOOKUP(I6,Punkteschema!$A$2:$B$101,2,FALSE),"") -> 18
A7: Kunz, Martin | B7: 28 | C7: 42 | D7: 70 | E7: TRUE | F7: 3 | G7: 18 | H7: 10 | I7: 3 | J7: =IF(B7>0,VLOOKUP(I7,Punkteschema!$A$2:$B$101,2,FALSE),"") -> 18
A8: Kortmann, Sabine | B8: 30 | C8: 34 | D8: 64 | E8: TRUE | F8: 5 | G8: 6 | H8: 4 | I8: 4 | J8: =IF(B8>0,VLOOKUP(I8,Punkteschema!$A$2:$B$101,2,FALSE),"") -> 15
A9: Scharpe, Sabine | B9: 33 | C9: 33 | D9: 66 | E9: TRUE | F9: 9 | G9: 4 | H9: 6 | I9: 4 | J9: =IF(B9>0,VLOOKUP(I9,Punkteschema!$A$2:$B$101,2,FALSE),"") -> 15
A10: Mühling, Dirk | B10: 30 | C10: 36 | D10: 66 | E10: TRUE | F10: 5 | G10: 9 | H10: 6 | I10: 5 | J10: =IF(B10>0,VLOOKUP(I10,Punkteschema!$A$2:$B$101,2,FALSE),"") -> 15
A11: Ginschel, Rudolf | B11: 31 | C11: 31 | D11: 62 | E11: FALSE | F11: 7 | G11: 1 | H11: 2 | I11: 7 | J11: =IF(B11>0,VLOOKUP(I11,Punkteschema!$A$2:$B$101,2,FALSE),"") -> 10
A12: Jezierski, Marie-Luise | B12: 31 | C12: 37 | D12: 68 | E12: TRUE | F12: 7 | G12: 11 | H12: 9 | I12: 7 | J12: =IF(B12>0,VLOOKUP(I12,Punkteschema!$A$2:$B$101,2,FALSE),"") -> 10
A13: Schmidt, Barbara | B13: 40 | C13: 35 | D13: 75 | E13: TRUE | F13: 15 | G13: 7 | H13: 14 | I13: 7 | J13: =IF(B13>0,VLOOKUP(I13,Punkteschema!$A$2:$B$101,2,FALSE),"") -> 10
A14: Kortmann, Uwe | B14: 34 | C14: 36 | D14: 70 | E14: TRUE | F14: 10 | G14: 9 | H14: 10 | I14: 9 | J14: =IF(B14>0,VLOOKUP(I14,Punkteschema!$A$2:$B$101,2,FALSE),"") -> 10
A15: Tabor, Peter | B15: 34 | C15: 38 | D15: 72 | E15: TRUE | F15: 10 | G15: 13 | H15: 13 | I15: 10 | J15: =IF(B15>0,VLOOKUP(I15,Punkteschema!$A$2:$B$101,2,FALSE),"") -> 10
A16: Börgmann, Brigitte | B16: 41 | C16: 37 | D16: 78 | E16: TRUE | F16: 16 | G16: 11 | H16: 16 | I16: 11 | J16: =IF(B16>0,VLOOKUP(I16,Punkteschema!$A$2:$B$101,2,FALSE),"") -> 5
A17: Presser, Wolfgang | B17: 36 | C17: 39 | D17: 75 | E17: TRUE | F17: 13 | G17: 14 | H17: 14 | I17: 13 | J17: =IF(B17>0,VLOOKUP(I17,Punkteschema!$A$2:$B$101,2,FALSE),"") -> 5
A18: Puschner, Michael | B18: 37 | C18: 33 | D18: 70 | E18: FALSE | F18: 14 | G18: 4 | H18: 10 | I18: 14 | J18: =IF(B18>0,VLOOKUP(I18,Punkteschema!$A$2:$B$101,2,FALSE),"") -> 5
A19: Börgmann, Ulrich | B19: 55 | C19: 39 | D19: 94 | E19: TRUE | F19: 18 | G19: 14 | H19: 18 | I19: 14 | J19: =IF(B19>0,VLOOKUP(I19,Punkteschema!$A$2:$B$101,2,FALSE),"") -> 5
A20: Kersch, Uwe | B20: 43 | C20: 41 | D20: 84 | E20: TRUE | F20: 17 | G20: 17 | H20: 17 | I20: 17 | J20: =IF(B20>0,VLOOKUP(I20,Punkteschema!$A$2:$B$101,2,FALSE),"") -> 3
D21: =IF(B21>0,C21+B21,"") ->  | E21: TRUE | F21: =IF(B21>0,COUNTIF(B$3:B$55,"<"&B21)+1,"") ->  | G21: =IF(C21>0,COUNTIF(C$3:C$55,"<"&C21)+1,"") ->  | H21: =IF(AND(B21>0,C21>0),COUNTIF(D$3:D$55,"<"&D21)+1,"") ->  | I21: =IF(B21>0,IF(E21,MIN(F21:H21),MAX(F21:H21)),"") ->  | J21: =IF(B21>0,VLOOKUP(I21,Punkteschema!$A$2:$B$101,2,FALSE),"") -> 
E22: TRUE | J22: =IF(B22>0,VLOOKUP(I22,Punkteschema!$A$2:$B$101,2,FALSE),"") -> 
E23: FALSE | J23: =IF(B23>0,VLOOKUP(I23,Punkteschema!$A$2:$B$101,2,FALSE),"") -> 
D24: =IF(B24>0,C24+B24,"") ->  | E24: TRUE | F24: =IF(B24>0,COUNTIF(B$3:B$55,"<"&B24)+1,"") ->  | H24: =IF(AND(B24>0,C24>0),COUNTIF(D$3:D$55,"<"&D24)+1,"") ->  | I24: =IF(B24>0,IF(E24,MIN(F24:H24),MAX(F24:H24)),"") ->  | J24: =IF(B24>0,VLOOKUP(I24,Punkteschema!$A$2:$B$101,2,FALSE),"") -> 
E25: TRUE | J25: =IF(B25>0,VLOOKUP(I25,Punkteschema!$A$2:$B$101,2,FALSE),"") -> 
E26: TRUE | J26: =IF(B26>0,VLOOKUP(I26,Punkteschema!$A$2:$B$101,2,FALSE),"") -> 
E27: TRUE | J27: =IF(B27>0,VLOOKUP(I27,Punkteschema!$A$2:$B$101,2,FALSE),"") -> 
E28: TRUE | J28: =IF(B28>0,VLOOKUP(I28,Punkteschema!$A$2:$B$101,2,FALSE),"") -> 
E29: TRUE | J29: =IF(B29>0,VLOOKUP(I29,Punkteschema!$A$2:$B$101,2,FALSE),"") -> 
E30: TRUE | J30: =IF(B30>0,VLOOKUP(I30,Punkteschema!$A$2:$B$101,2,FALSE),"") -> 
E31: TRUE | J31: =IF(B31>0,VLOOKUP(I31,Punkteschema!$A$2:$B$101,2,FALSE),"") -> 
E32: TRUE | J32: =IF(B32>0,VLOOKUP(I32,Punkteschema!$A$2:$B$101,2,FALSE),"") -> 
E33: TRUE | J33: =IF(B33>0,VLOOKUP(I33,Punkteschema!$A$2:$B$101,2,FALSE),"") -> 
E34: TRUE | J34: =IF(B34>0,VLOOKUP(I34,Punkteschema!$A$2:$B$101,2,FALSE),"") -> 
E35: TRUE | J35: =IF(B35>0,VLOOKUP(I35,Punkteschema!$A$2:$B$101,2,FALSE),"") -> 
E36: TRUE | J36: =IF(B36>0,VLOOKUP(I36,Punkteschema!$A$2:$B$101,2,FALSE),"") -> 
E37: TRUE | J37: =IF(B37>0,VLOOKUP(I37,Punkteschema!$A$2:$B$101,2,FALSE),"") -> 
E38: TRUE | J38: =IF(B38>0,VLOOKUP(I38,Punkteschema!$A$2:$B$101,2,FALSE),"") -> 
E39: TRUE | J39: =IF(B39>0,VLOOKUP(I39,Punkteschema!$A$2:$B$101,2,FALSE),"") -> 
E40: TRUE | J40: =IF(B40>0,VLOOKUP(I40,Punkteschema!$A$2:$B$101,2,FALSE),"") -> 
E41: TRUE | J41: =IF(B41>0,VLOOKUP(I41,Punkteschema!$A$2:$B$101,2,FALSE),"") -> 
E42: TRUE | J42: =IF(B42>0,VLOOKUP(I42,Punkteschema!$A$2:$B$101,2,FALSE),"") -> 
E43: TRUE | J43: =IF(B43>0,VLOOKUP(I43,Punkteschema!$A$2:$B$101,2,FALSE),"") -> 
E44: TRUE | J44: =IF(B44>0,VLOOKUP(I44,Punkteschema!$A$2:$B$101,2,FALSE),"") -> 
E45: TRUE | J45: =IF(B45>0,VLOOKUP(I45,Punkteschema!$A$2:$B$101,2,FALSE),"") -> 
E46: TRUE | J46: =IF(B46>0,VLOOKUP(I46,Punkteschema!$A$2:$B$101,2,FALSE),"") -> 
E47: TRUE | J47: =IF(B47>0,VLOOKUP(I47,Punkteschema!$A$2:$B$101,2,FALSE),"") -> 
E48: TRUE | J48: =IF(B48>0,VLOOKUP(I48,Punkteschema!$A$2:$B$101,2,FALSE),"") -> 
E49: TRUE | J49: =IF(B49>0,VLOOKUP(I49,Punkteschema!$A$2:$B$101,2,FALSE),"") -> 
E50: TRUE | J50: =IF(B50>0,VLOOKUP(I50,Punkteschema!$A$2:$B$101,2,FALSE),"") -> 
E51: TRUE | J51: =IF(B51>0,VLOOKUP(I51,Punkteschema!$A$2:$B$101,2,FALSE),"") -> 
E52: TRUE | J52: =IF(B52>0,VLOOKUP(I52,Punkteschema!$A$2:$B$101,2,FALSE),"") -> 
E53: TRUE | F53: =IF(B53>0,COUNTIF(B$3:B$55,"<"&B53)+1,"") ->  | H53: =IF(AND(B53>0,C53>0),COUNTIF(D$3:D$55,"<"&D53)+1,"") ->  | I53: =IF(B53>0,IF(E53,MIN(F53:H53),MAX(F53:H53)),"") ->  | J53: =IF(B53>0,VLOOKUP(I53,Punkteschema!$A$2:$B$101,2,FALSE),"") -> 
E54: TRUE | H54: =IF(AND(B54>0,C54>0),COUNTIF(D$3:D$55,"<"&D54)+1,"") ->  | I54: =IF(B54>0,IF(E54,MIN(F54:H54),MAX(F54:H54)),"") ->  | J54: =IF(B54>0,VLOOKUP(I54,Punkteschema!$A$2:$B$101,2,FALSE),"") -> 
E55: TRUE | H55: =IF(AND(B55>0,C55>0),COUNTIF(D$3:D$55,"<"&D55)+1,"") ->  | I55: =IF(B55>0,IF(E55,MIN(F55:H55),MAX(F55:H55)),"") ->  | J55: =IF(B55>0,VLOOKUP(I55,Punkteschema!$A$2:$B$101,2,FALSE),"") -> 
A57: OS: Mühling, Dirk (HEV) | E57: Runde 1: | F57: E | G57: <- E/B
A58: S: Urban, Volker (ASW) | E58: Runde 2: | F58: B | G58: <- E/B
A59: S: Ginschel, Rudolf (BMC)
A61: Verloste Preise: | B61: Michael Puschner (Verzehrgutschein 10 Euro)
B62: Günter Schmidtbauer (Trinkflaschenset)
B63: Sabine Scharpe (1 Mini-Kühltasche)

Sheet Einzelwertung4
A1: =CONCATENATE("5. Sommer-Cup - Freizeittreff Herbede - ",TEXT(Gesamtstand!$I$2,"TT.MM.JJ")) -> 5. Sommer-Cup - Freizeittreff Herbede - 23.05.19
A2: Spieler | B2: Runde 1 | C2: Runde 2 | D2: Gesamt | E2: bessere? | F2: Pl. R1 | G2: Pl. R2 | H2: Pl. Ges. | I2: gewertet | J2: Punkte
A3: Urban, Dominic | B3: 27 | C3: 30 | D3: =IF(B3>0,C3+B3,"") -> 57 | E3: TRUE | F3: =IF(B3>0,COUNTIF(B$3:B$55,"<"&B3)+1,"") -> 2 | G3: =IF(C3>0,COUNTIF(C$3:C$55,"<"&C3)+1,"") -> 1 | H3: =IF(AND(B3>0,C3>0),COUNTIF(D$3:D$55,"<"&D3)+1,"") -> 1 | I3: =IF(B3>0,IF(E3,MIN(F3:H3),MAX(F3:H3)),"") -> 1 | J3: =IF(B3>0,VLOOKUP(I3,Punkteschema!$A$2:$B$101,2,FALSE),"") -> 25
A4: Mühling, Dirk | B4: 35 | C4: 30 | D4: =IF(B4>0,C4+B4,"") -> 65 | E4: TRUE | F4: 9 | G4: 1 | H4: 6 | I4: 1 | J4: =IF(B4>0,VLOOKUP(I4,Punkteschema!$A$2:$B$101,2,FALSE),"") -> 25
A5: Greiffendorf, Hellmut | B5: 37 | C5: 30 | D5: < | E5: TRUE | F5: 13 | G5: 1 | H5: 38 | I5: 1 | J5: =IF(B5>0,VLOOKUP(I5,Punkteschema!$A$2:$B$101,2,FALSE),"") -> 25
A6: Kortmann, Sabine | B6: 28 | C6: 34 | D6: =IF(B6>0,C6+B6,"") -> 62 | E6: TRUE | F6: 3 | G6: 6 | H6: 4 | I6: 3 | J6: =IF(B6>0,VLOOKUP(I6,Punkteschema!$A$2:$B$101,2,FALSE),"") -> 18
A7: Urban, Volker | B7: 26 | C7: 32 | D7: 58 | E7: FALSE | F7: 1 | G7: 4 | H7: 2 | I7: 4 | J7: =IF(B7>0,VLOOKUP(I7,Punkteschema!$A$2:$B$101,2,FALSE),"") -> 15
A8: Lenk, Rolf | B8: 28 | C8: 32 | D8: 60 | E8: FALSE | F8: 3 | G8: 4 | H8: 3 | I8: 4 | J8: =IF(B8>0,VLOOKUP(I8,Punkteschema!$A$2:$B$101,2,FALSE),"") -> 15
A9: Puschner, Michael | B9: 29 | C9: 35 | D9: 64 | E9: TRUE | F9: 5 | G9: 8 | H9: 5 | I9: 5 | J9: =IF(B9>0,VLOOKUP(I9,Punkteschema!$A$2:$B$101,2,FALSE),"") -> 15
A10: Scharpe, Sabine | B10: 30 | C10: 42 | D10: 72 | E10: TRUE | F10: 6 | G10: 16 | H10: 9 | I10: 6 | J10: =IF(B10>0,VLOOKUP(I10,Punkteschema!$A$2:$B$101,2,FALSE),"") -> 15
A11: Kunz, Martin | B11: 31 | C11: 37 | D11: 68 | E11: TRUE | F11: 7 | G11: 9 | H11: 7 | I11: 7 | J11: =IF(B11>0,VLOOKUP(I11,Punkteschema!$A$2:$B$101,2,FALSE),"") -> 10
A12: Schmidt, Barbara | B12: 32 | C12: 41 | D12: 73 | E12: TRUE | F12: 8 | G12: 13 | H12: 11 | I12: 8 | J12: =IF(B12>0,VLOOKUP(I12,Punkteschema!$A$2:$B$101,2,FALSE),"") -> 10
A13: Schmidtbauer, Günter | B13: 35 | C13: 37 | D13: 72 | E13: TRUE | F13: 9 | G13: 9 | H13: 9 | I13: 9 | J13: =IF(B13>0,VLOOKUP(I13,Punkteschema!$A$2:$B$101,2,FALSE),"") -> 10
A14: Börgmann, Brigitte | B14: 36 | C14: 37 | D14: 73 | E14: TRUE | F14: 11 | G14: 9 | H14: 11 | I14: 9 | J14: =IF(B14>0,VLOOKUP(I14,Punkteschema!$A$2:$B$101,2,FALSE),"") -> 10
A15: Jezierski, Marie-Luise | B15: 36 | C15: 40 | D15: 76 | E15: TRUE | F15: 11 | G15: 12 | H15: 13 | I15: 11 | J15: =IF(B15>0,VLOOKUP(I15,Punkteschema!$A$2:$B$101,2,FALSE),"") -> 5
A16: Ginschel, Rudolf | B16: 37 | C16: 34 | D16: 71 | E16: FALSE | F16: 13 | G16: 6 | H16: 8 | I16: 13 | J16: =IF(B16>0,VLOOKUP(I16,Punkteschema!$A$2:$B$101,2,FALSE),"") -> 5
A17: Börgmann, Ulrich | B17: 42 | C17: 41 | D17: 83 | E17: TRUE | F17: 15 | G17: 13 | H17: 14 | I17: 13 | J17: =IF(B17>0,VLOOKUP(I17,Punkteschema!$A$2:$B$101,2,FALSE),"") -> 5
A18: Kortmann, Uwe | B18: 46 | C18: 41 | D18: 87 | E18: TRUE | F18: 16 | G18: 13 | H18: 15 | I18: 13 | J18: =IF(B18>0,VLOOKUP(I18,Punkteschema!$A$2:$B$101,2,FALSE),"") -> 5
D19: =IF(B19>0,C19+B19,"") ->  | E19: TRUE | F19: =IF(B19>0,COUNTIF(B$3:B$55,"<"&B19)+1,"") ->  | G19: =IF(C19>0,COUNTIF(C$3:C$55,"<"&C19)+1,"") ->  | H19: =IF(AND(B19>0,C19>0),COUNTIF(D$3:D$55,"<"&D19)+1,"") ->  | I19: =IF(B19>0,IF(E19,MIN(F19:H19),MAX(F19:H19)),"") ->  | J19: =IF(B19>0,VLOOKUP(I19,Punkteschema!$A$2:$B$101,2,FALSE),"") -> 
E20: TRUE | J20: =IF(B20>0,VLOOKUP(I20,Punkteschema!$A$2:$B$101,2,FALSE),"") -> 
E21: TRUE | J21: =IF(B21>0,VLOOKUP(I21,Punkteschema!$A$2:$B$101,2,FALSE),"") -> 
E22: TRUE | J22: =IF(B22>0,VLOOKUP(I22,Punkteschema!$A$2:$B$101,2,FALSE),"") -> 
E23: TRUE | J23: =IF(B23>0,VLOOKUP(I23,Punkteschema!$A$2:$B$101,2,FALSE),"") -> 
D24: =IF(B24>0,C24+B24,"") ->  | E24: TRUE | F24: =IF(B24>0,COUNTIF(B$3:B$55,"<"&B24)+1,"") ->  | H24: =IF(AND(B24>0,C24>0),COUNTIF(D$3:D$55,"<"&D24)+1,"") ->  | I24: =IF(B24>0,IF(E24,MIN(F24:H24),MAX(F24:H24)),"") ->  | J24: =IF(B24>0,VLOOKUP(I24,Punkteschema!$A$2:$B$101,2,FALSE),"") -> 
E25: TRUE | J25: =IF(B25>0,VLOOKUP(I25,Punkteschema!$A$2:$B$101,2,FALSE),"") -> 
E26: TRUE | J26: =IF(B26>0,VLOOKUP(I26,Punkteschema!$A$2:$B$101,2,FALSE),"") -> 
E27: TRUE | J27: =IF(B27>0,VLOOKUP(I27,Punkteschema!$A$2:$B$101,2,FALSE),"") -> 
E28: TRUE | J28: =IF(B28>0,VLOOKUP(I28,Punkteschema!$A$2:$B$101,2,FALSE),"") -> 
E29: TRUE | J29: =IF(B29>0,VLOOKUP(I29,Punkteschema!$A$2:$B$101,2,FALSE),"") -> 
E30: TRUE | J30: =IF(B30>0,VLOOKUP(I30,Punkteschema!$A$2:$B$101,2,FALSE),"") -> 
E31: TRUE | J31: =IF(B31>0,VLOOKUP(I31,Punkteschema!$A$2:$B$101,2,FALSE),"") -> 
E32: TRUE | J32: =IF(B32>0,VLOOKUP(I32,Punkteschema!$A$2:$B$101,2,FALSE),"") -> 
E33: TRUE | J33: =IF(B33>0,VLOOKUP(I33,Punkteschema!$A$2:$B$101,2,FALSE),"") -> 
E34: TRUE | J34: =IF(B34>0,VLOOKUP(I34,Punkteschema!$A$2:$B$101,2,FALSE),"") -> 
E35: TRUE | J35: =IF(B35>0,VLOOKUP(I35,Punkteschema!$A$2:$B$101,2,FALSE),"") -> 
E36: TRUE | J36: =IF(B36>0,VLOOKUP(I36,Punkteschema!$A$2:$B$101,2,FALSE),"") -> 
E37: TRUE | J37: =IF(B37>0,VLOOKUP(I37,Punkteschema!$A$2:$B$101,2,FALSE),"") -> 
E38: TRUE | J38: =IF(B38>0,VLOOKUP(I38,Punkteschema!$A$2:$B$101,2,FALSE),"") -> 
E39: TRUE | J39: =IF(B39>0,VLOOKUP(I39,Punkteschema!$A$2:$B$101,2,FALSE),"") -> 
E40: TRUE | J40: =IF(B40>0,VLOOKUP(I40,Punkteschema!$A$2:$B$101,2,FALSE),"") -> 
E41: TRUE | J41: =IF(B41>0,VLOOKUP(I41,Punkteschema!$A$2:$B$101,2,FALSE),"") -> 
E42: TRUE | J42: =IF(B42>0,VLOOKUP(I42,Punkteschema!$A$2:$B$101,2,FALSE),"") -> 
E43: TRUE | J43: =IF(B43>0,VLOOKUP(I43,Punkteschema!$A$2:$B$101,2,FALSE),"") -> 
E44: TRUE | J44: =IF(B44>0,VLOOKUP(I44,Punkteschema!$A$2:$B$101,2,FALSE),"") -> 
E45: TRUE | J45: =IF(B45>0,VLOOKUP(I45,Punkteschema!$A$2:$B$101,2,FALSE),"") -> 
E46: TRUE | J46: =IF(B46>0,VLOOKUP(I46,Punkteschema!$A$2:$B$101,2,FALSE),"") -> 
E47: TRUE | J47: =IF(B47>0,VLOOKUP(I47,Punkteschema!$A$2:$B$101,2,FALSE),"") -> 
E48: TRUE | J48: =IF(B48>0,VLOOKUP(I48,Punkteschema!$A$2:$B$101,2,FALSE),"") -> 
E49: TRUE | J49: =IF(B49>0,VLOOKUP(I49,Punkteschema!$A$2:$B$101,2,FALSE),"") -> 
E50: TRUE | J50: =IF(B50>0,VLOOKUP(I50,Punkteschema!$A$2:$B$101,2,FALSE),"") -> 
E51: TRUE | J51: =IF(B51>0,VLOOKUP(I51,Punkteschema!$A$2:$B$101,2,FALSE),"") -> 
E52: TRUE | J52: =IF(B52>0,VLOOKUP(I52,Punkteschema!$A$2:$B$101,2,FALSE),"") -> 
E53: TRUE | F53: =IF(B53>0,COUNTIF(B$3:B$55,"<"&B53)+1,"") ->  | H53: =IF(AND(B53>0,C53>0),COUNTIF(D$3:D$55,"<"&D53)+1,"") ->  | I53: =IF(B53>0,IF(E53,MIN(F53:H53),MAX(F53:H53)),"") ->  | J53: =IF(B53>0,VLOOKUP(I53,Punkteschema!$A$2:$B$101,2,FALSE),"") -> 
E54: TRUE | H54: =IF(AND(B54>0,C54>0),COUNTIF(D$3:D$55,"<"&D54)+1,"") ->  | I54: =IF(B54>0,IF(E54,MIN(F54:H54),MAX(F54:H54)),"") ->  | J54: =IF(B54>0,VLOOKUP(I54,Punkteschema!$A$2:$B$101,2,FALSE),"") -> 
E55: TRUE | H55: =IF(AND(B55>0,C55>0),COUNTIF(D$3:D$55,"<"&D55)+1,"") ->  | I55: =IF(B55>0,IF(E55,MIN(F55:H55),MAX(F55:H55)),"") ->  | J55: =IF(B55>0,VLOOKUP(I55,Punkteschema!$A$2:$B$101,2,FALSE),"") -> 
A57: OS: Mühling, Dirk (HEV) | E57: Runde 1: | F57: E | G57: <- E/B
A58: S: Urban, Volker (ASW) | E58: Runde 2: | F58: B | G58: <- E/B
A59: S: Ginschel, Rudolf (BMC)
A61: Verloste Preise: | B61: Günter Schmidtbauer (1 Flasche Amaretto)
B62: Ulrich Börgmann (1 Großpackung Color-Rado)
B63: Brigitte Börgmann (1 Set Biergläser)

Sheet Einzelwertung5
A1: =CONCATENATE("5. Sommer-Cup - Freizeittreff Herbede - ",TEXT(Gesamtstand!$J$2,"TT.MM.JJ")) -> 5. Sommer-Cup - Freizeittreff Herbede - 29.05.19
A2: Spieler | B2: Runde 1 | C2: Runde 2 | D2: Gesamt | E2: bessere? | F2: Pl. R1 | G2: Pl. R2 | H2: Pl. Ges. | I2: gewertet | J2: Punkte
A3: Greiffendorf, Hellmut | B3: 26 | C3: 32 | D3: =IF(B3>0,C3+B3,"") -> 58 | E3: TRUE | F3: =IF(B3>0,COUNTIF(B$3:B$55,"<"&B3)+1,"") -> 1 | G3: =IF(C3>0,COUNTIF(C$3:C$55,"<"&C3)+1,"") -> 3 | H3: =IF(AND(B3>0,C3>0),COUNTIF(D$3:D$55,"<"&D3)+1,"") -> 1 | I3: =IF(B3>0,IF(E3,MIN(F3:H3),MAX(F3:H3)),"") -> 1 | J3: =IF(B3>0,VLOOKUP(I3,Punkteschema!$A$2:$B$101,2,FALSE),"") -> 25
A4: Kunz, Martin | B4: 31 | C4: 30 | D4: 61 | E4: TRUE | F4: 5 | G4: 1 | H4: 2 | I4: 1 | J4: =IF(B4>0,VLOOKUP(I4,Punkteschema!$A$2:$B$101,2,FALSE),"") -> 25
A5: Jezierski, Marie-Luise | B5: 29 | C5: 39 | D5: 68 | E5: TRUE | F5: 3 | G5: 17 | H5: 8 | I5: 3 | J5: =IF(B5>0,VLOOKUP(I5,Punkteschema!$A$2:$B$101,2,FALSE),"") -> 18
A6: Urban, Dominic | B6: 36 | C6: 33 | D6: 69 | E6: TRUE | F6: 12 | G6: 4 | H6: 9 | I6: 4 | J6: =IF(B6>0,VLOOKUP(I6,Punkteschema!$A$2:$B$101,2,FALSE),"") -> 15
A7: Tabor, Peter | B7: 40 | C7: 33 | D7: 73 | E7: TRUE | F7: 15 | G7: 4 | H7: 13 | I7: 4 | J7: =IF(B7>0,VLOOKUP(I7,Punkteschema!$A$2:$B$101,2,FALSE),"") -> 15
A8: Brunnenkant, Frank | B8: 31 | C8: 34 | D8: 65 | E8: TRUE | F8: 5 | G8: 6 | H8: 5 | I8: 5 | J8: =IF(B8>0,VLOOKUP(I8,Punkteschema!$A$2:$B$101,2,FALSE),"") -> 15
A9: Puschner, Michael | B9: 31 | C9: 35 | D9: 66 | E9: TRUE | F9: 5 | G9: 8 | H9: 6 | I9: 5 | J9: =IF(B9>0,VLOOKUP(I9,Punkteschema!$A$2:$B$101,2,FALSE),"") -> 15
A10: Lieber, Nicole | B10: 38 | C10: 34 | D10: 72 | E10: TRUE | F10: 13 | G10: 6 | H10: 11 | I10: 6 | J10: =IF(B10>0,VLOOKUP(I10,Punkteschema!$A$2:$B$101,2,FALSE),"") -> 15
A11: Urban, Volker | B11: 32 | C11: 30 | D11: 62 | E11: FALSE | F11: 8 | G11: 1 | H11: 3 | I11: 8 | J11: =IF(B11>0,VLOOKUP(I11,Punkteschema!$A$2:$B$101,2,FALSE),"") -> 10
A12: Lenk, Rolf | B12: 28 | C12: 36 | D12: 64 | E12: FALSE | F12: 2 | G12: 9 | H12: 4 | I12: 9 | J12: =IF(B12>0,VLOOKUP(I12,Punkteschema!$A$2:$B$101,2,FALSE),"") -> 10
A13: Dammann, Reinhold | B13: 33 | C13: 126 | D13: 159 | E13: TRUE | F13: 9 | G13: 20 | H13: 20 | I13: 9 | J13: =IF(B13>0,VLOOKUP(I13,Punkteschema!$A$2:$B$101,2,FALSE),"") -> 10
A14: Kortmann, Sabine | B14: 29 | C14: 37 | D14: 66 | E14: FALSE | F14: 3 | G14: 10 | H14: 6 | I14: 10 | J14: =IF(B14>0,VLOOKUP(I14,Punkteschema!$A$2:$B$101,2,FALSE),"") -> 10
A15: Kortmann, Uwe | B15: 34 | C15: 37 | D15: 71 | E15: TRUE | F15: 10 | G15: 10 | H15: 10 | I15: 10 | J15: =IF(B15>0,VLOOKUP(I15,Punkteschema!$A$2:$B$101,2,FALSE),"") -> 10
A16: Urban, Angela | B16: 34 | C16: 38 | D16: 72 | E16: TRUE | F16: 10 | G16: 13 | H16: 11 | I16: 10 | J16: =IF(B16>0,VLOOKUP(I16,Punkteschema!$A$2:$B$101,2,FALSE),"") -> 10
A17: Börgmann, Ulrich | B17: 40 | C17: 37 | D17: 77 | E17: TRUE | F17: 15 | G17: 10 | H17: 14 | I17: 10 | J17: =IF(B17>0,VLOOKUP(I17,Punkteschema!$A$2:$B$101,2,FALSE),"") -> 10
A18: Börgmann, Brigitte | B18: 39 | C18: 38 | D18: 77 | E18: TRUE | F18: 14 | G18: 13 | H18: 14 | I18: 13 | J18: =IF(B18>0,VLOOKUP(I18,Punkteschema!$A$2:$B$101,2,FALSE),"") -> 5
A19: Kersch, Uwe | B19: 40 | C19: 38 | D19: 78 | E19: TRUE | F19: 15 | G19: 13 | H19: 16 | I19: 13 | J19: =IF(B19>0,VLOOKUP(I19,Punkteschema!$A$2:$B$101,2,FALSE),"") -> 5
A20: Scharpe, Sabine | B20: 44 | C20: 38 | D20: 82 | E20: TRUE | F20: 19 | G20: 13 | H20: 17 | I20: 13 | J20: =IF(B20>0,VLOOKUP(I20,Punkteschema!$A$2:$B$101,2,FALSE),"") -> 5
A21: Schmidt, Barbara | B21: 44 | C21: 40 | D21: 84 | E21: TRUE | F21: 19 | G21: 18 | H21: 18 | I21: 18 | J21: =IF(B21>0,VLOOKUP(I21,Punkteschema!$A$2:$B$101,2,FALSE),"") -> 3
A22: Schmidtbauer, Günter | B22: 43 | C22: 44 | D22: 87 | E22: TRUE | F22: 18 | G22: 19 | H22: 19 | I22: 18 | J22: =IF(B22>0,VLOOKUP(I22,Punkteschema!$A$2:$B$101,2,FALSE),"") -> 3
D23: =IF(B23>0,C23+B23,"") ->  | E23: TRUE | I23: =IF(B23>0,IF(E23,MIN(F23:H23),MAX(F23:H23)),"") ->  | J23: =IF(B23>0,VLOOKUP(I23,Punkteschema!$A$2:$B$101,2,FALSE),"") -> 
E24: TRUE | J24: =IF(B24>0,VLOOKUP(I24,Punkteschema!$A$2:$B$101,2,FALSE),"") -> 
E25: FALSE | J25: =IF(B25>0,VLOOKUP(I25,Punkteschema!$A$2:$B$101,2,FALSE),"") -> 
E26: TRUE | J26: =IF(B26>0,VLOOKUP(I26,Punkteschema!$A$2:$B$101,2,FALSE),"") -> 
E27: TRUE | J27: =IF(B27>0,VLOOKUP(I27,Punkteschema!$A$2:$B$101,2,FALSE),"") -> 
E28: TRUE | J28: =IF(B28>0,VLOOKUP(I28,Punkteschema!$A$2:$B$101,2,FALSE),"") -> 
D29: =IF(B29>0,C29+B29,"") ->  | E29: TRUE | I29: =IF(B29>0,IF(E29,MIN(F29:H29),MAX(F29:H29)),"") ->  | J29: =IF(B29>0,VLOOKUP(I29,Punkteschema!$A$2:$B$101,2,FALSE),"") -> 
E30: TRUE | J30: =IF(B30>0,VLOOKUP(I30,Punkteschema!$A$2:$B$101,2,FALSE),"") -> 
E31: TRUE | J31: =IF(B31>0,VLOOKUP(I31,Punkteschema!$A$2:$B$101,2,FALSE),"") -> 
E32: TRUE | J32: =IF(B32>0,VLOOKUP(I32,Punkteschema!$A$2:$B$101,2,FALSE),"") -> 
E33: TRUE | J33: =IF(B33>0,VLOOKUP(I33,Punkteschema!$A$2:$B$101,2,FALSE),"") -> 
E34: TRUE | J34: =IF(B34>0,VLOOKUP(I34,Punkteschema!$A$2:$B$101,2,FALSE),"") -> 
E35: TRUE | F35: =IF(B35>0,COUNTIF(B$3:B$55,"<"&B35)+1,"") ->  | G35: =IF(C35>0,COUNTIF(C$3:C$55,"<"&C35)+1,"") ->  | H35: =IF(AND(B35>0,C35>0),COUNTIF(D$3:D$55,"<"&D35)+1,"") ->  | J35: =IF(B35>0,VLOOKUP(I35,Punkteschema!$A$2:$B$101,2,FALSE),"") -> 
E36: TRUE | J36: =IF(B36>0,VLOOKUP(I36,Punkteschema!$A$2:$B$101,2,FALSE),"") -> 
E37: TRUE | J37: =IF(B37>0,VLOOKUP(I37,Punkteschema!$A$2:$B$101,2,FALSE),"") -> 
E38: TRUE | J38: =IF(B38>0,VLOOKUP(I38,Punkteschema!$A$2:$B$101,2,FALSE),"") -> 
E39: TRUE | J39: =IF(B39>0,VLOOKUP(I39,Punkteschema!$A$2:$B$101,2,FALSE),"") -> 
E40: TRUE | J40: =IF(B40>0,VLOOKUP(I40,Punkteschema!$A$2:$B$101,2,FALSE),"") -> 
E41: TRUE | J41: =IF(B41>0,VLOOKUP(I41,Punkteschema!$A$2:$B$101,2,FALSE),"") -> 
E42: TRUE | J42: =IF(B42>0,VLOOKUP(I42,Punkteschema!$A$2:$B$101,2,FALSE),"") -> 
E43: TRUE | J43: =IF(B43>0,VLOOKUP(I43,Punkteschema!$A$2:$B$101,2,FALSE),"") -> 
E44: TRUE | J44: =IF(B44>0,VLOOKUP(I44,Punkteschema!$A$2:$B$101,2,FALSE),"") -> 
E45: TRUE | J45: =IF(B45>0,VLOOKUP(I45,Punkteschema!$A$2:$B$101,2,FALSE),"") -> 
E46: TRUE | J46: =IF(B46>0,VLOOKUP(I46,Punkteschema!$A$2:$B$101,2,FALSE),"") -> 
E47: TRUE | J47: =IF(B47>0,VLOOKUP(I47,Punkteschema!$A$2:$B$101,2,FALSE),"") -> 
E48: TRUE | J48: =IF(B48>0,VLOOKUP(I48,Punkteschema!$A$2:$B$101,2,FALSE),"") -> 
E49: TRUE | J49: =IF(B49>0,VLOOKUP(I49,Punkteschema!$A$2:$B$101,2,FALSE),"") -> 
E50: TRUE | J50: =IF(B50>0,VLOOKUP(I50,Punkteschema!$A$2:$B$101,2,FALSE),"") -> 
E51: TRUE | J51: =IF(B51>0,VLOOKUP(I51,Punkteschema!$A$2:$B$101,2,FALSE),"") -> 
E52: TRUE | J52: =IF(B52>0,VLOOKUP(I52,Punkteschema!$A$2:$B$101,2,FALSE),"") -> 
E53: TRUE | I53: =IF(B53>0,IF(E53,MIN(F53:H53),MAX(F53:H53)),"") ->  | J53: =IF(B53>0,VLOOKUP(I53,Punkteschema!$A$2:$B$101,2,FALSE),"") -> 
E54: TRUE | I54: =IF(B54>0,IF(E54,MIN(F54:H54),MAX(F54:H54)),"") ->  | J54: =IF(B54>0,VLOOKUP(I54,Punkteschema!$A$2:$B$101,2,FALSE),"") -> 
E55: TRUE | I55: =IF(B55>0,IF(E55,MIN(F55:H55),MAX(F55:H55)),"") ->  | J55: =IF(B55>0,VLOOKUP(I55,Punkteschema!$A$2:$B$101,2,FALSE),"") -> 
A57: OS: Greiffendorf, Hellmut (ASW) | E57: Runde 1: | F57: E | G57: <- E/B
A58: S: Urban, Volker (ASW) | E58: Runde 2: | F58: B | G58: <- E/B
A59: S: Puschner, Michael (HOB)
A61: Verloste Preise: | B61: Ulrich Börgmann (1 Messer-Set)
B62: Sabine Kortmann (1 Kühltasche)
B63: Marie-Luise Jezierski (1 Windlicht)
B64: - verschenkt an Marita Keuth -

Sheet Einzelwertung6
A1: =CONCATENATE("5. Sommer-Cup - Freizeittreff Herbede - ",TEXT(Gesamtstand!$K$2,"TT.MM.JJ")) -> 5. Sommer-Cup - Freizeittreff Herbede - 06.06.19
A2: Spieler | B2: Runde 1 | C2: Runde 2 | D2: Gesamt | E2: bessere? | F2: Pl. R1 | G2: Pl. R2 | H2: Pl. Ges. | I2: gewertet | J2: Punkte
A3: Buchholz, Ansgar | B3: 29 | C3: 30 | D3: =IF(B3>0,C3+B3,"") -> 59 | E3: TRUE | F3: =IF(B3>0,COUNTIF(B$3:B$55,"<"&B3)+1,"") -> 2 | G3: =IF(C3>0,COUNTIF(C$3:C$55,"<"&C3)+1,"") -> 2 | H3: =IF(AND(B3>0,C3>0),COUNTIF(D$3:D$55,"<"&D3)+1,"") -> 1 | I3: =IF(B3>0,IF(E3,MIN(F3:H3),MAX(F3:H3)),"") -> 1 | J3: =IF(B3>0,VLOOKUP(I3,Punkteschema!$A$2:$B$101,2,FALSE),"") -> 25
A4: Tabor, Peter | B4: 36 | C4: 29 | D4: 65 | E4: TRUE | F4: 7 | G4: 1 | H4: 5 | I4: 1 | J4: =IF(B4>0,VLOOKUP(I4,Punkteschema!$A$2:$B$101,2,FALSE),"") -> 25
A5: Lenk, Rolf | B5: 30 | C5: 30 | D5: 60 | E5: FALSE | F5: 4 | G5: 2 | H5: 2 | I5: 4 | J5: =IF(B5>0,VLOOKUP(I5,Punkteschema!$A$2:$B$101,2,FALSE),"") -> 15
A6: Urban, Volker | B6: 29 | C6: 34 | D6: 63 | E6: FALSE | F6: 2 | G6: 4 | H6: 3 | I6: 4 | J6: =IF(B6>0,VLOOKUP(I6,Punkteschema!$A$2:$B$101,2,FALSE),"") -> 15
A7: Urban, Dominic | B7: 36 | C7: 34 | D7: 70 | E7: TRUE | F7: 7 | G7: 4 | H7: 7 | I7: 4 | J7: =IF(B7>0,VLOOKUP(I7,Punkteschema!$A$2:$B$101,2,FALSE),"") -> 15
A8: Jezierski, Marie-Luise | B8: 32 | C8: 37 | D8: 69 | E8: TRUE | F8: 5 | G8: 10 | H8: 6 | I8: 5 | J8: =IF(B8>0,VLOOKUP(I8,Punkteschema!$A$2:$B$101,2,FALSE),"") -> 15
A9: Börgmann, Brigitte | B9: 34 | C9: 38 | D9: 72 | E9: TRUE | F9: 6 | G9: 13 | H9: 8 | I9: 6 | J9: =IF(B9>0,VLOOKUP(I9,Punkteschema!$A$2:$B$101,2,FALSE),"") -> 15
A10: Lieber, Nicole | B10: 37 | C10: 35 | D10: 72 | E10: TRUE | F10: 10 | G10: 6 | H10: 8 | I10: 6 | J10: =IF(B10>0,VLOOKUP(I10,Punkteschema!$A$2:$B$101,2,FALSE),"") -> 15
A11: Börgmann, Ulrich | B11: 43 | C11: 35 | D11: 78 | E11: TRUE | F11: 13 | G11: 6 | H11: 13 | I11: 6 | J11: =IF(B11>0,VLOOKUP(I11,Punkteschema!$A$2:$B$101,2,FALSE),"") -> 15
A12: Mühling, Dirk | B12: 36 | C12: 37 | D12: 73 | E12: TRUE | F12: 7 | G12: 10 | H12: 10 | I12: 7 | J12: =IF(B12>0,VLOOKUP(I12,Punkteschema!$A$2:$B$101,2,FALSE),"") -> 10
A13: Greiffendorf, Hellmut | B13: 38 | C13: 36 | D13: 74 | E13: TRUE | F13: 12 | G13: 8 | H13: 11 | I13: 8 | J13: =IF(B13>0,VLOOKUP(I13,Punkteschema!$A$2:$B$101,2,FALSE),"") -> 10
A14: Schmidtbauer, Günter | B14: 53 | C14: 36 | D14: 89 | E14: TRUE | F14: 15 | G14: 8 | H14: 15 | I14: 8 | J14: =IF(B14>0,VLOOKUP(I14,Punkteschema!$A$2:$B$101,2,FALSE),"") -> 10
A15: Puschner, Michael | B15: 26 | C15: 37 | D15: 63 | E15: FALSE | F15: 1 | G15: 10 | H15: 3 | I15: 10 | J15: =IF(B15>0,VLOOKUP(I15,Punkteschema!$A$2:$B$101,2,FALSE),"") -> 10
A16: Presser, Wolfgang | B16: 37 | C16: 39 | D16: 76 | E16: TRUE | F16: 10 | G16: 14 | H16: 12 | I16: 10 | J16: =IF(B16>0,VLOOKUP(I16,Punkteschema!$A$2:$B$101,2,FALSE),"") -> 10
A17: Schmidt, Barbara | B17: 45 | C17: 39 | D17: 84 | E17: TRUE | F17: 14 | G17: 14 | H17: 14 | I17: 14 | J17: =IF(B17>0,VLOOKUP(I17,Punkteschema!$A$2:$B$101,2,FALSE),"") -> 5
D18: =IF(B18>0,C18+B18,"") ->  | E18: TRUE | F18: =IF(B18>0,COUNTIF(B$3:B$55,"<"&B18)+1,"") ->  | H18: =IF(AND(B18>0,C18>0),COUNTIF(D$3:D$55,"<"&D18)+1,"") ->  | I18: =IF(B18>0,IF(E18,MIN(F18:H18),MAX(F18:H18)),"") ->  | J18: =IF(B18>0,VLOOKUP(I18,Punkteschema!$A$2:$B$101,2,FALSE),"") -> 
E19: TRUE | F19: =IF(B19>0,COUNTIF(B$3:B$55,"<"&B19)+1,"") ->  | J19: =IF(B19>0,VLOOKUP(I19,Punkteschema!$A$2:$B$101,2,FALSE),"") -> 
E20: TRUE | J20: =IF(B20>0,VLOOKUP(I20,Punkteschema!$A$2:$B$101,2,FALSE),"") -> 
E21: TRUE | J21: =IF(B21>0,VLOOKUP(I21,Punkteschema!$A$2:$B$101,2,FALSE),"") -> 
E22: TRUE | J22: =IF(B22>0,VLOOKUP(I22,Punkteschema!$A$2:$B$101,2,FALSE),"") -> 
E23: TRUE | J23: =IF(B23>0,VLOOKUP(I23,Punkteschema!$A$2:$B$101,2,FALSE),"") -> 
E24: TRUE | J24: =IF(B24>0,VLOOKUP(I24,Punkteschema!$A$2:$B$101,2,FALSE),"") -> 
E25: TRUE | J25: =IF(B25>0,VLOOKUP(I25,Punkteschema!$A$2:$B$101,2,FALSE),"") -> 
E26: TRUE | J26: =IF(B26>0,VLOOKUP(I26,Punkteschema!$A$2:$B$101,2,FALSE),"") -> 
E27: TRUE | J27: =IF(B27>0,VLOOKUP(I27,Punkteschema!$A$2:$B$101,2,FALSE),"") -> 
E28: TRUE | J28: =IF(B28>0,VLOOKUP(I28,Punkteschema!$A$2:$B$101,2,FALSE),"") -> 
E29: TRUE | J29: =IF(B29>0,VLOOKUP(I29,Punkteschema!$A$2:$B$101,2,FALSE),"") -> 
E30: TRUE | J30: =IF(B30>0,VLOOKUP(I30,Punkteschema!$A$2:$B$101,2,FALSE),"") -> 
E31: TRUE | J31: =IF(B31>0,VLOOKUP(I31,Punkteschema!$A$2:$B$101,2,FALSE),"") -> 
E32: TRUE | J32: =IF(B32>0,VLOOKUP(I32,Punkteschema!$A$2:$B$101,2,FALSE),"") -> 
E33: TRUE | J33: =IF(B33>0,VLOOKUP(I33,Punkteschema!$A$2:$B$101,2,FALSE),"") -> 
E34: TRUE | J34: =IF(B34>0,VLOOKUP(I34,Punkteschema!$A$2:$B$101,2,FALSE),"") -> 
E35: TRUE | J35: =IF(B35>0,VLOOKUP(I35,Punkteschema!$A$2:$B$101,2,FALSE),"") -> 
E36: TRUE | J36: =IF(B36>0,VLOOKUP(I36,Punkteschema!$A$2:$B$101,2,FALSE),"") -> 
E37: TRUE | J37: =IF(B37>0,VLOOKUP(I37,Punkteschema!$A$2:$B$101,2,FALSE),"") -> 
E38: TRUE | J38: =IF(B38>0,VLOOKUP(I38,Punkteschema!$A$2:$B$101,2,FALSE),"") -> 
E39: TRUE | J39: =IF(B39>0,VLOOKUP(I39,Punkteschema!$A$2:$B$101,2,FALSE),"") -> 
E40: TRUE | J40: =IF(B40>0,VLOOKUP(I40,Punkteschema!$A$2:$B$101,2,FALSE),"") -> 
E41: TRUE | J41: =IF(B41>0,VLOOKUP(I41,Punkteschema!$A$2:$B$101,2,FALSE),"") -> 
E42: TRUE | J42: =IF(B42>0,VLOOKUP(I42,Punkteschema!$A$2:$B$101,2,FALSE),"") -> 
E43: TRUE | J43: =IF(B43>0,VLOOKUP(I43,Punkteschema!$A$2:$B$101,2,FALSE),"") -> 
E44: TRUE | J44: =IF(B44>0,VLOOKUP(I44,Punkteschema!$A$2:$B$101,2,FALSE),"") -> 
E45: TRUE | J45: =IF(B45>0,VLOOKUP(I45,Punkteschema!$A$2:$B$101,2,FALSE),"") -> 
E46: TRUE | J46: =IF(B46>0,VLOOKUP(I46,Punkteschema!$A$2:$B$101,2,FALSE),"") -> 
E47: TRUE | J47: =IF(B47>0,VLOOKUP(I47,Punkteschema!$A$2:$B$101,2,FALSE),"") -> 
E48: TRUE | J48: =IF(B48>0,VLOOKUP(I48,Punkteschema!$A$2:$B$101,2,FALSE),"") -> 
E49: TRUE | J49: =IF(B49>0,VLOOKUP(I49,Punkteschema!$A$2:$B$101,2,FALSE),"") -> 
E50: TRUE | J50: =IF(B50>0,VLOOKUP(I50,Punkteschema!$A$2:$B$101,2,FALSE),"") -> 
E51: TRUE | J51: =IF(B51>0,VLOOKUP(I51,Punkteschema!$A$2:$B$101,2,FALSE),"") -> 
E52: TRUE | J52: =IF(B52>0,VLOOKUP(I52,Punkteschema!$A$2:$B$101,2,FALSE),"") -> 
E53: TRUE | F53: =IF(B53>0,COUNTIF(B$3:B$55,"<"&B53)+1,"") ->  | H53: =IF(AND(B53>0,C53>0),COUNTIF(D$3:D$55,"<"&D53)+1,"") ->  | I53: =IF(B53>0,IF(E53,MIN(F53:H53),MAX(F53:H53)),"") ->  | J53: =IF(B53>0,VLOOKUP(I53,Punkteschema!$A$2:$B$101,2,FALSE),"") -> 
E54: TRUE | H54: =IF(AND(B54>0,C54>0),COUNTIF(D$3:D$55,"<"&D54)+1,"") ->  | I54: =IF(B54>0,IF(E54,MIN(F54:H54),MAX(F54:H54)),"") ->  | J54: =IF(B54>0,VLOOKUP(I54,Punkteschema!$A$2:$B$101,2,FALSE),"") -> 
E55: TRUE | H55: =IF(AND(B55>0,C55>0),COUNTIF(D$3:D$55,"<"&D55)+1,"") ->  | I55: =IF(B55>0,IF(E55,MIN(F55:H55),MAX(F55:H55)),"") ->  | J55: =IF(B55>0,VLOOKUP(I55,Punkteschema!$A$2:$B$101,2,FALSE),"") -> 
A57: OS: Mühling, Dirk (HEV) | E57: Runde 1: | F57: E | G57: <- E/B
A58: S: Buchholz, Ansgar (ASW) | E58: Runde 2: | F58: B | G58: <- E/B
A59: S: Puschner, Michael (HOB)
A61: Verloste Preise: | B61: Ansgar Buchholz (1 Großpackung Color-Rado)
B62: Barbara Schmidt (Windlicht mit Kakteen)

Sheet Einzelwertung7
A1: =CONCATENATE("5. Sommer-Cup - Freizeittreff Herbede - ",TEXT(Gesamtstand!$L$2,"TT.MM.JJ")) -> 5. Sommer-Cup - Freizeittreff Herbede - 13.06.19
A2: Spieler | B2: Runde 1 | C2: Runde 2 | D2: Gesamt | E2: bessere? | F2: Pl. R1 | G2: Pl. R2 | H2: Pl. Ges. | I2: gewertet | J2: Punkte
A3: Tabor, Peter | B3: 26 | C3: 31 | D3: =IF(B3>0,C3+B3,"") -> 57 | E3: TRUE | F3: =IF(B3>0,COUNTIF(B$3:B$55,"<"&B3)+1,"") -> 1 | G3: =IF(C3>0,COUNTIF(C$3:C$55,"<"&C3)+1,"") -> 1 | H3: =IF(AND(B3>0,C3>0),COUNTIF(D$3:D$55,"<"&D3)+1,"") -> 1 | I3: =IF(B3>0,IF(E3,MIN(F3:H3),MAX(F3:H3)),"") -> 1 | J3: =IF(B3>0,VLOOKUP(I3,Punkteschema!$A$2:$B$101,2,FALSE),"") -> 25
A4: Greiffendorf, Hellmut | B4: 27 | C4: 34 | D4: 61 | E4: TRUE | F4: 2 | G4: 3 | H4: 2 | I4: 2 | J4: =IF(B4>0,VLOOKUP(I4,Punkteschema!$A$2:$B$101,2,FALSE),"") -> 21
A5: Mühling, Dirk | B5: 27 | C5: 37 | D5: 64 | E5: TRUE | F5: 2 | G5: 8 | H5: 4 | I5: 2 | J5: =IF(B5>0,VLOOKUP(I5,Punkteschema!$A$2:$B$101,2,FALSE),"") -> 21
A6: Buchholz, Ansgar | B6: 28 | C6: 34 | D6: 62 | E6: TRUE | F6: 4 | G6: 3 | H6: 3 | I6: 3 | J6: =IF(B6>0,VLOOKUP(I6,Punkteschema!$A$2:$B$101,2,FALSE),"") -> 18
A7: Börgmann, Ulrich | B7: 36 | C7: 35 | D7: 71 | E7: TRUE | F7: 11 | G7: 5 | H7: 7 | I7: 5 | J7: =IF(B7>0,VLOOKUP(I7,Punkteschema!$A$2:$B$101,2,FALSE),"") -> 15
A8: Dammann, Reinhold | B8: 30 | C8: 126 | D8: 156 | E8: TRUE | F8: 5 | G8: 17 | H8: 17 | I8: 5 | J8: =IF(B8>0,VLOOKUP(I8,Punkteschema!$A$2:$B$101,2,FALSE),"") -> 15
A9: Puschner, Michael | B9: 32 | C9: 32 | D9: 64 | E9: FALSE | F9: 6 | G9: 2 | H9: 4 | I9: 6 | J9: =IF(B9>0,VLOOKUP(I9,Punkteschema!$A$2:$B$101,2,FALSE),"") -> 15
A10: Urban, Volker | B10: 32 | C10: 36 | D10: 68 | E10: FALSE | F10: 6 | G10: 6 | H10: 6 | I10: 6 | J10: =IF(B10>0,VLOOKUP(I10,Punkteschema!$A$2:$B$101,2,FALSE),"") -> 15
A11: Kersch, Uwe | B11: 35 | C11: 36 | D11: 71 | E11: TRUE | F11: 10 | G11: 6 | H11: 7 | I11: 6 | J11: =IF(B11>0,VLOOKUP(I11,Punkteschema!$A$2:$B$101,2,FALSE),"") -> 15
A12: Jezierski, Marie-Luise | B12: 34 | C12: 45 | D12: 79 | E12: TRUE | F12: 8 | G12: 15 | H12: 12 | I12: 8 | J12: =IF(B12>0,VLOOKUP(I12,Punkteschema!$A$2:$B$101,2,FALSE),"") -> 10
A13: Schmidtbauer, Günter | B13: 44 | C13: 37 | D13: 81 | E13: TRUE | F13: 16 | G13: 8 | H13: 13 | I13: 8 | J13: =IF(B13>0,VLOOKUP(I13,Punkteschema!$A$2:$B$101,2,FALSE),"") -> 10
A14: Lieber, Nicole | B14: 36 | C14: 39 | D14: 75 | E14: TRUE | F14: 11 | G14: 10 | H14: 10 | I14: 10 | J14: =IF(B14>0,VLOOKUP(I14,Punkteschema!$A$2:$B$101,2,FALSE),"") -> 10
A15: Urban, Angela | B15: 39 | C15: 39 | D15: 78 | E15: TRUE | F15: 13 | G15: 10 | H15: 11 | I15: 10 | J15: =IF(B15>0,VLOOKUP(I15,Punkteschema!$A$2:$B$101,2,FALSE),"") -> 10
A16: Lenk, Rolf | B16: 34 | C16: 40 | D16: 74 | E16: FALSE | F16: 8 | G16: 12 | H16: 9 | I16: 12 | J16: =IF(B16>0,VLOOKUP(I16,Punkteschema!$A$2:$B$101,2,FALSE),"") -> 5
A17: Urban, Dominic | B17: 39 | C17: 43 | D17: 82 | E17: TRUE | F17: 13 | G17: 14 | H17: 14 | I17: 13 | J17: =IF(B17>0,VLOOKUP(I17,Punkteschema!$A$2:$B$101,2,FALSE),"") -> 5
A18: Börgmann, Brigitte | B18: 40 | C18: 42 | D18: 82 | E18: TRUE | F18: 15 | G18: 13 | H18: 14 | I18: 13 | J18: =IF(B18>0,VLOOKUP(I18,Punkteschema!$A$2:$B$101,2,FALSE),"") -> 5
A19: Schmidt, Barbara | B19: 45 | C19: 50 | D19: 95 | E19: TRUE | F19: 17 | G19: 16 | H19: 16 | I19: 16 | J19: =IF(B19>0,VLOOKUP(I19,Punkteschema!$A$2:$B$101,2,FALSE),"") -> 3
D20: =IF(B20>0,C20+B20,"") ->  | E20: TRUE | F20: =IF(B20>0,COUNTIF(B$3:B$55,"<"&B20)+1,"") ->  | H20: =IF(AND(B20>0,C20>0),COUNTIF(D$3:D$55,"<"&D20)+1,"") ->  | I20: =IF(B20>0,IF(E20,MIN(F20:H20),MAX(F20:H20)),"") ->  | J20: =IF(B20>0,VLOOKUP(I20,Punkteschema!$A$2:$B$101,2,FALSE),"") -> 
E21: TRUE | J21: =IF(B21>0,VLOOKUP(I21,Punkteschema!$A$2:$B$101,2,FALSE),"") -> 
E22: TRUE | J22: =IF(B22>0,VLOOKUP(I22,Punkteschema!$A$2:$B$101,2,FALSE),"") -> 
E23: TRUE | J23: =IF(B23>0,VLOOKUP(I23,Punkteschema!$A$2:$B$101,2,FALSE),"") -> 
E24: TRUE | J24: =IF(B24>0,VLOOKUP(I24,Punkteschema!$A$2:$B$101,2,FALSE),"") -> 
E25: TRUE | J25: =IF(B25>0,VLOOKUP(I25,Punkteschema!$A$2:$B$101,2,FALSE),"") -> 
E26: TRUE | J26: =IF(B26>0,VLOOKUP(I26,Punkteschema!$A$2:$B$101,2,FALSE),"") -> 
E27: TRUE | J27: =IF(B27>0,VLOOKUP(I27,Punkteschema!$A$2:$B$101,2,FALSE),"") -> 
E28: TRUE | J28: =IF(B28>0,VLOOKUP(I28,Punkteschema!$A$2:$B$101,2,FALSE),"") -> 
E29: TRUE | J29: =IF(B29>0,VLOOKUP(I29,Punkteschema!$A$2:$B$101,2,FALSE),"") -> 
E30: TRUE | J30: =IF(B30>0,VLOOKUP(I30,Punkteschema!$A$2:$B$101,2,FALSE),"") -> 
E31: TRUE | J31: =IF(B31>0,VLOOKUP(I31,Punkteschema!$A$2:$B$101,2,FALSE),"") -> 
E32: TRUE | J32: =IF(B32>0,VLOOKUP(I32,Punkteschema!$A$2:$B$101,2,FALSE),"") -> 
E33: TRUE | J33: =IF(B33>0,VLOOKUP(I33,Punkteschema!$A$2:$B$101,2,FALSE),"") -> 
E34: TRUE | J34: =IF(B34>0,VLOOKUP(I34,Punkteschema!$A$2:$B$101,2,FALSE),"") -> 
E35: TRUE | J35: =IF(B35>0,VLOOKUP(I35,Punkteschema!$A$2:$B$101,2,FALSE),"") -> 
E36: TRUE | J36: =IF(B36>0,VLOOKUP(I36,Punkteschema!$A$2:$B$101,2,FALSE),"") -> 
E37: TRUE | J37: =IF(B37>0,VLOOKUP(I37,Punkteschema!$A$2:$B$101,2,FALSE),"") -> 
E38: TRUE | J38: =IF(B38>0,VLOOKUP(I38,Punkteschema!$A$2:$B$101,2,FALSE),"") -> 
E39: TRUE | J39: =IF(B39>0,VLOOKUP(I39,Punkteschema!$A$2:$B$101,2,FALSE),"") -> 
E40: TRUE | J40: =IF(B40>0,VLOOKUP(I40,Punkteschema!$A$2:$B$101,2,FALSE),"") -> 
E41: TRUE | J41: =IF(B41>0,VLOOKUP(I41,Punkteschema!$A$2:$B$101,2,FALSE),"") -> 
E42: TRUE | J42: =IF(B42>0,VLOOKUP(I42,Punkteschema!$A$2:$B$101,2,FALSE),"") -> 
E43: TRUE | J43: =IF(B43>0,VLOOKUP(I43,Punkteschema!$A$2:$B$101,2,FALSE),"") -> 
E44: TRUE | J44: =IF(B44>0,VLOOKUP(I44,Punkteschema!$A$2:$B$101,2,FALSE),"") -> 
E45: TRUE | J45: =IF(B45>0,VLOOKUP(I45,Punkteschema!$A$2:$B$101,2,FALSE),"") -> 
E46: TRUE | J46: =IF(B46>0,VLOOKUP(I46,Punkteschema!$A$2:$B$101,2,FALSE),"") -> 
E47: TRUE | J47: =IF(B47>0,VLOOKUP(I47,Punkteschema!$A$2:$B$101,2,FALSE),"") -> 
E48: TRUE | J48: =IF(B48>0,VLOOKUP(I48,Punkteschema!$A$2:$B$101,2,FALSE),"") -> 
E49: TRUE | J49: =IF(B49>0,VLOOKUP(I49,Punkteschema!$A$2:$B$101,2,FALSE),"") -> 
E50: TRUE | J50: =IF(B50>0,VLOOKUP(I50,Punkteschema!$A$2:$B$101,2,FALSE),"") -> 
E51: TRUE | J51: =IF(B51>0,VLOOKUP(I51,Punkteschema!$A$2:$B$101,2,FALSE),"") -> 
E52: TRUE | J52: =IF(B52>0,VLOOKUP(I52,Punkteschema!$A$2:$B$101,2,FALSE),"") -> 
E53: TRUE | F53: =IF(B53>0,COUNTIF(B$3:B$55,"<"&B53)+1,"") ->  | H53: =IF(AND(B53>0,C53>0),COUNTIF(D$3:D$55,"<"&D53)+1,"") ->  | I53: =IF(B53>0,IF(E53,MIN(F53:H53),MAX(F53:H53)),"") ->  | J53: =IF(B53>0,VLOOKUP(I53,Punkteschema!$A$2:$B$101,2,FALSE),"") -> 
E54: TRUE | H54: =IF(AND(B54>0,C54>0),COUNTIF(D$3:D$55,"<"&D54)+1,"") ->  | I54: =IF(B54>0,IF(E54,MIN(F54:H54),MAX(F54:H54)),"") ->  | J54: =IF(B54>0,VLOOKUP(I54,Punkteschema!$A$2:$B$101,2,FALSE),"") -> 
E55: TRUE | H55: =IF(AND(B55>0,C55>0),COUNTIF(D$3:D$55,"<"&D55)+1,"") ->  | I55: =IF(B55>0,IF(E55,MIN(F55:H55),MAX(F55:H55)),"") ->  | J55: =IF(B55>0,VLOOKUP(I55,Punkteschema!$A$2:$B$101,2,FALSE),"") -> 
A57: OS: Mühling, Dirk (HEV) | E57: Runde 1: | F57: E | G57: <- E/B
A58: S: Buchholz, Ansgar (ASW) | E58: Runde 2: | F58: B | G58: <- E/B
A59: S: Puschner, Michael (HOB)
A61: Verloste Preise: | B61: Barbara Schmidt (1 LED-Windlicht)
B62: Hellmut Greiffendorf (1 Thermosbecher)
B63: Peter Tabor (1 Flasche Sekt)

Sheet Einzelwertung8
A1: =CONCATENATE("5. Sommer-Cup - Freizeittreff Herbede - ",TEXT(Gesamtstand!$M$2,"TT.MM.JJ")) -> 5. Sommer-Cup - Freizeittreff Herbede - 19.06.19
A2: Spieler | B2: Runde 1 | C2: Runde 2 | D2: Gesamt | E2: bessere? | F2: Pl. R1 | G2: Pl. R2 | H2: Pl. Ges. | I2: gewertet | J2: Punkte
A3: Buchholz, Ansgar | B3: 28 | C3: 26 | D3: =IF(B3>0,C3+B3,"") -> 54 | E3: TRUE | F3: =IF(B3>0,COUNTIF(B$3:B$55,"<"&B3)+1,"") -> 4 | G3: =IF(C3>0,COUNTIF(C$3:C$55,"<"&C3)+1,"") -> 1 | H3: =IF(AND(B3>0,C3>0),COUNTIF(D$3:D$55,"<"&D3)+1,"") -> 1 | I3: =IF(B3>0,IF(E3,MIN(F3:H3),MAX(F3:H3)),"") -> 1 | J3: =IF(B3>0,VLOOKUP(I3,Punkteschema!$A$2:$B$101,2,FALSE),"") -> 25
A4: Lenk, Rolf | B4: 26 | C4: 33 | D4: 59 | E4: TRUE | F4: 2 | G4: 3 | H4: 2 | I4: 2 | J4: =IF(B4>0,VLOOKUP(I4,Punkteschema!$A$2:$B$101,2,FALSE),"") -> 21
A5: Puschner, Michael | B5: 32 | C5: 32 | D5: 64 | E5: TRUE | F5: 7 | G5: 2 | H5: 7 | I5: 2 | J5: =IF(B5>0,VLOOKUP(I5,Punkteschema!$A$2:$B$101,2,FALSE),"") -> 21
A6: Ginschel, Rudolf | B6: 27 | C6: 36 | D6: 63 | E6: TRUE | F6: 3 | G6: 9 | H6: 5 | I6: 3 | J6: =IF(B6>0,VLOOKUP(I6,Punkteschema!$A$2:$B$101,2,FALSE),"") -> 18
A7: Urban, Volker | B7: 28 | C7: 33 | D7: 61 | E7: FALSE | F7: 4 | G7: 3 | H7: 3 | I7: 4 | J7: =IF(B7>0,VLOOKUP(I7,Punkteschema!$A$2:$B$101,2,FALSE),"") -> 15
A8: Mühling, Dirk | B8: 28 | C8: 34 | D8: 62 | E8: FALSE | F8: 4 | G8: 5 | H8: 4 | I8: 5 | J8: =IF(B8>0,VLOOKUP(I8,Punkteschema!$A$2:$B$101,2,FALSE),"") -> 15
A9: Börgmann, Brigitte | B9: 34 | C9: 34 | D9: 68 | E9: TRUE | F9: 10 | G9: 5 | H9: 8 | I9: 5 | J9: =IF(B9>0,VLOOKUP(I9,Punkteschema!$A$2:$B$101,2,FALSE),"") -> 15
A10: Börgmann, Ulrich | B10: 45 | C10: 34 | D10: 79 | E10: TRUE | F10: 15 | G10: 5 | H10: 13 | I10: 5 | J10: =IF(B10>0,VLOOKUP(I10,Punkteschema!$A$2:$B$101,2,FALSE),"") -> 15
A11: Kunz, Martin | B11: 32 | C11: 38 | D11: 70 | E11: TRUE | F11: 7 | G11: 10 | H11: 10 | I11: 7 | J11: =IF(B11>0,VLOOKUP(I11,Punkteschema!$A$2:$B$101,2,FALSE),"") -> 10
A12: Lieber, Nicole | B12: 33 | C12: 35 | D12: 68 | E12: TRUE | F12: 9 | G12: 8 | H12: 8 | I12: 8 | J12: =IF(B12>0,VLOOKUP(I12,Punkteschema!$A$2:$B$101,2,FALSE),"") -> 10
A13: Tabor, Peter | B13: 25 | C13: 38 | D13: 63 | E13: FALSE | F13: 1 | G13: 10 | H13: 5 | I13: 10 | J13: =IF(B13>0,VLOOKUP(I13,Punkteschema!$A$2:$B$101,2,FALSE),"") -> 10
A14: Schmidtbauer, Günter | B14: 36 | C14: 38 | D14: 74 | E14: TRUE | F14: 12 | G14: 10 | H14: 11 | I14: 10 | J14: =IF(B14>0,VLOOKUP(I14,Punkteschema!$A$2:$B$101,2,FALSE),"") -> 10
A15: Jezierski, Marie-Luise | B15: 35 | C15: 39 | D15: 74 | E15: TRUE | F15: 11 | G15: 13 | H15: 11 | I15: 11 | J15: =IF(B15>0,VLOOKUP(I15,Punkteschema!$A$2:$B$101,2,FALSE),"") -> 5
A16: Schmidt, Barbara | B16: 39 | C16: 43 | D16: 82 | E16: TRUE | F16: 13 | G16: 15 | H16: 14 | I16: 13 | J16: =IF(B16>0,VLOOKUP(I16,Punkteschema!$A$2:$B$101,2,FALSE),"") -> 5
A17: Scharpe, Sabine | B17: 40 | C17: 42 | D17: 82 | E17: TRUE | F17: 14 | G17: 14 | H17: 14 | I17: 14 | J17: =IF(B17>0,VLOOKUP(I17,Punkteschema!$A$2:$B$101,2,FALSE),"") -> 5
D18: =IF(B18>0,C18+B18,"") ->  | E18: TRUE | F18: =IF(B18>0,COUNTIF(B$3:B$55,"<"&B18)+1,"") ->  | G18: =IF(C18>0,COUNTIF(C$3:C$55,"<"&C18)+1,"") ->  | H18: =IF(AND(B18>0,C18>0),COUNTIF(D$3:D$55,"<"&D18)+1,"") ->  | I18: =IF(B18>0,IF(E18,MIN(F18:H18),MAX(F18:H18)),"") ->  | J18: =IF(B18>0,VLOOKUP(I18,Punkteschema!$A$2:$B$101,2,FALSE),"") -> 
E19: TRUE | J19: =IF(B19>0,VLOOKUP(I19,Punkteschema!$A$2:$B$101,2,FALSE),"") -> 
E20: TRUE | J20: =IF(B20>0,VLOOKUP(I20,Punkteschema!$A$2:$B$101,2,FALSE),"") -> 
E21: TRUE | J21: =IF(B21>0,VLOOKUP(I21,Punkteschema!$A$2:$B$101,2,FALSE),"") -> 
D22: =IF(B22>0,C22+B22,"") ->  | E22: TRUE | F22: =IF(B22>0,COUNTIF(B$3:B$55,"<"&B22)+1,"") ->  | H22: =IF(AND(B22>0,C22>0),COUNTIF(D$3:D$55,"<"&D22)+1,"") ->  | I22: =IF(B22>0,IF(E22,MIN(F22:H22),MAX(F22:H22)),"") ->  | J22: =IF(B22>0,VLOOKUP(I22,Punkteschema!$A$2:$B$101,2,FALSE),"") -> 
E23: TRUE | J23: =IF(B23>0,VLOOKUP(I23,Punkteschema!$A$2:$B$101,2,FALSE),"") -> 
E24: TRUE | J24: =IF(B24>0,VLOOKUP(I24,Punkteschema!$A$2:$B$101,2,FALSE),"") -> 
E25: TRUE | J25: =IF(B25>0,VLOOKUP(I25,Punkteschema!$A$2:$B$101,2,FALSE),"") -> 
E26: TRUE | J26: =IF(B26>0,VLOOKUP(I26,Punkteschema!$A$2:$B$101,2,FALSE),"") -> 
E27: TRUE | J27: =IF(B27>0,VLOOKUP(I27,Punkteschema!$A$2:$B$101,2,FALSE),"") -> 
E28: TRUE | J28: =IF(B28>0,VLOOKUP(I28,Punkteschema!$A$2:$B$101,2,FALSE),"") -> 
E29: TRUE | J29: =IF(B29>0,VLOOKUP(I29,Punkteschema!$A$2:$B$101,2,FALSE),"") -> 
E30: TRUE | J30: =IF(B30>0,VLOOKUP(I30,Punkteschema!$A$2:$B$101,2,FALSE),"") -> 
E31: TRUE | J31: =IF(B31>0,VLOOKUP(I31,Punkteschema!$A$2:$B$101,2,FALSE),"") -> 
E32: TRUE | J32: =IF(B32>0,VLOOKUP(I32,Punkteschema!$A$2:$B$101,2,FALSE),"") -> 
E33: TRUE | J33: =IF(B33>0,VLOOKUP(I33,Punkteschema!$A$2:$B$101,2,FALSE),"") -> 
E34: TRUE | J34: =IF(B34>0,VLOOKUP(I34,Punkteschema!$A$2:$B$101,2,FALSE),"") -> 
E35: TRUE | J35: =IF(B35>0,VLOOKUP(I35,Punkteschema!$A$2:$B$101,2,FALSE),"") -> 
E36: TRUE | J36: =IF(B36>0,VLOOKUP(I36,Punkteschema!$A$2:$B$101,2,FALSE),"") -> 
E37: TRUE | J37: =IF(B37>0,VLOOKUP(I37,Punkteschema!$A$2:$B$101,2,FALSE),"") -> 
E38: TRUE | J38: =IF(B38>0,VLOOKUP(I38,Punkteschema!$A$2:$B$101,2,FALSE),"") -> 
E39: TRUE | J39: =IF(B39>0,VLOOKUP(I39,Punkteschema!$A$2:$B$101,2,FALSE),"") -> 
E40: TRUE | J40: =IF(B40>0,VLOOKUP(I40,Punkteschema!$A$2:$B$101,2,FALSE),"") -> 
E41: TRUE | J41: =IF(B41>0,VLOOKUP(I41,Punkteschema!$A$2:$B$101,2,FALSE),"") -> 
E42: TRUE | J42: =IF(B42>0,VLOOKUP(I42,Punkteschema!$A$2:$B$101,2,FALSE),"") -> 
E43: TRUE | J43: =IF(B43>0,VLOOKUP(I43,Punkteschema!$A$2:$B$101,2,FALSE),"") -> 
E44: TRUE | J44: =IF(B44>0,VLOOKUP(I44,Punkteschema!$A$2:$B$101,2,FALSE),"") -> 
E45: TRUE | J45: =IF(B45>0,VLOOKUP(I45,Punkteschema!$A$2:$B$101,2,FALSE),"") -> 
E46: TRUE | J46: =IF(B46>0,VLOOKUP(I46,Punkteschema!$A$2:$B$101,2,FALSE),"") -> 
E47: TRUE | J47: =IF(B47>0,VLOOKUP(I47,Punkteschema!$A$2:$B$101,2,FALSE),"") -> 
E48: TRUE | J48: =IF(B48>0,VLOOKUP(I48,Punkteschema!$A$2:$B$101,2,FALSE),"") -> 
E49: TRUE | J49: =IF(B49>0,VLOOKUP(I49,Punkteschema!$A$2:$B$101,2,FALSE),"") -> 
E50: TRUE | J50: =IF(B50>0,VLOOKUP(I50,Punkteschema!$A$2:$B$101,2,FALSE),"") -> 
E51: TRUE | J51: =IF(B51>0,VLOOKUP(I51,Punkteschema!$A$2:$B$101,2,FALSE),"") -> 
E52: TRUE | J52: =IF(B52>0,VLOOKUP(I52,Punkteschema!$A$2:$B$101,2,FALSE),"") -> 
E53: TRUE | F53: =IF(B53>0,COUNTIF(B$3:B$55,"<"&B53)+1,"") ->  | H53: =IF(AND(B53>0,C53>0),COUNTIF(D$3:D$55,"<"&D53)+1,"") ->  | I53: =IF(B53>0,IF(E53,MIN(F53:H53),MAX(F53:H53)),"") ->  | J53: =IF(B53>0,VLOOKUP(I53,Punkteschema!$A$2:$B$101,2,FALSE),"") -> 
E54: TRUE | H54: =IF(AND(B54>0,C54>0),COUNTIF(D$3:D$55,"<"&D54)+1,"") ->  | I54: =IF(B54>0,IF(E54,MIN(F54:H54),MAX(F54:H54)),"") ->  | J54: =IF(B54>0,VLOOKUP(I54,Punkteschema!$A$2:$B$101,2,FALSE),"") -> 
E55: TRUE | H55: =IF(AND(B55>0,C55>0),COUNTIF(D$3:D$55,"<"&D55)+1,"") ->  | I55: =IF(B55>0,IF(E55,MIN(F55:H55),MAX(F55:H55)),"") ->  | J55: =IF(B55>0,VLOOKUP(I55,Punkteschema!$A$2:$B$101,2,FALSE),"") -> 
A57: OS: Mühling, Dirk (HEV) | E57: Runde 1: | F57: E | G57: <- E/B
A58: S: Buchholz, Ansgar (ASW) | E58: Runde 2: | F58: B | G58: <- E/B
A59: S: Ginschel, Rudolf (BMC)
A61: Verloste Preise: | B61: Nicole Lieber (1 Solarlampe)
B62: Michael Puschner (1 Pflanzgefäß aus Glas)
B63: Günter Schmidtbauer (1 Trinkglas mit Deckel)

Sheet Einzelwertung9
A1: =CONCATENATE("5. Sommer-Cup - Freizeittreff Herbede - ",TEXT(Gesamtstand!$N$2,"TT.MM.JJ")) -> 5. Sommer-Cup - Freizeittreff Herbede - 27.06.19
A2: Spieler | B2: Runde 1 | C2: Runde 2 | D2: Gesamt | E2: bessere? | F2: Pl. R1 | G2: Pl. R2 | H2: Pl. Ges. | I2: gewertet | J2: Punkte
A3: Wilhelms, Ralf | B3: 22 | C3: 33 | D3: =IF(B3>0,C3+B3,"") -> 55 | E3: TRUE | F3: =IF(B3>0,COUNTIF(B$3:B$55,"<"&B3)+1,"") -> 1 | G3: =IF(C3>0,COUNTIF(C$3:C$55,"<"&C3)+1,"") -> 4 | H3: =IF(AND(B3>0,C3>0),COUNTIF(D$3:D$55,"<"&D3)+1,"") -> 1 | I3: =IF(B3>0,IF(E3,MIN(F3:H3),MAX(F3:H3)),"") -> 1 | J3: =IF(B3>0,VLOOKUP(I3,Punkteschema!$A$2:$B$101,2,FALSE),"") -> 25
A4: Buchholz, Ansgar | B4: 26 | C4: 31 | D4: 57 | E4: TRUE | F4: 2 | G4: 3 | H4: 2 | I4: 2 | J4: =IF(B4>0,VLOOKUP(I4,Punkteschema!$A$2:$B$101,2,FALSE),"") -> 21
A5: Tabor, Peter | B5: 35 | C5: 30 | D5: 65 | E5: TRUE | F5: 13 | G5: 2 | H5: 5 | I5: 2 | J5: =IF(B5>0,VLOOKUP(I5,Punkteschema!$A$2:$B$101,2,FALSE),"") -> 21
A6: Lieber, Nicole | B6: 27 | C6: 35 | D6: 62 | E6: TRUE | F6: 3 | G6: 7 | H6: 4 | I6: 3 | J6: =IF(B6>0,VLOOKUP(I6,Punkteschema!$A$2:$B$101,2,FALSE),"") -> 18
A7: Kortmann, Sabine | B7: 28 | C7: 40 | D7: 68 | E7: TRUE | F7: 4 | G7: 15 | H7: 9 | I7: 4 | J7: =IF(B7>0,VLOOKUP(I7,Punkteschema!$A$2:$B$101,2,FALSE),"") -> 15
A8: Urban, Volker | B8: 29 | C8: 29 | D8: 58 | E8: FALSE | F8: 5 | G8: 1 | H8: 3 | I8: 5 | J8: =IF(B8>0,VLOOKUP(I8,Punkteschema!$A$2:$B$101,2,FALSE),"") -> 15
A9: Wickel-Paffrath, Melanie | B9: 29 | C9: 36 | D9: 65 | E9: TRUE | F9: 5 | G9: 10 | H9: 5 | I9: 5 | J9: =IF(B9>0,VLOOKUP(I9,Punkteschema!$A$2:$B$101,2,FALSE),"") -> 15
A10: Mühling, Dirk | B10: 33 | C10: 34 | D10: 67 | E10: TRUE | F10: 12 | G10: 6 | H10: 8 | I10: 6 | J10: =IF(B10>0,VLOOKUP(I10,Punkteschema!$A$2:$B$101,2,FALSE),"") -> 15
A11: Kortmann, Uwe | B11: 31 | C11: 39 | D11: 70 | E11: TRUE | F11: 7 | G11: 13 | H11: 10 | I11: 7 | J11: =IF(B11>0,VLOOKUP(I11,Punkteschema!$A$2:$B$101,2,FALSE),"") -> 10
A12: Börgmann, Ulrich | B12: 36 | C12: 35 | D12: 71 | E12: TRUE | F12: 14 | G12: 7 | H12: 12 | I12: 7 | J12: =IF(B12>0,VLOOKUP(I12,Punkteschema!$A$2:$B$101,2,FALSE),"") -> 10
A13: Kersch, Uwe | B13: 37 | C13: 35 | D13: 72 | E13: TRUE | F13: 15 | G13: 7 | H13: 14 | I13: 7 | J13: =IF(B13>0,VLOOKUP(I13,Punkteschema!$A$2:$B$101,2,FALSE),"") -> 10
A14: Lenk, Rolf | B14: 32 | C14: 33 | D14: 65 | E14: FALSE | F14: 8 | G14: 4 | H14: 5 | I14: 8 | J14: =IF(B14>0,VLOOKUP(I14,Punkteschema!$A$2:$B$101,2,FALSE),"") -> 10
A15: Urban, Angela | B15: 32 | C15: 39 | D15: 71 | E15: TRUE | F15: 8 | G15: 13 | H15: 12 | I15: 8 | J15: =IF(B15>0,VLOOKUP(I15,Punkteschema!$A$2:$B$101,2,FALSE),"") -> 10
A16: Jezierski, Marie-Luise | B16: 32 | C16: 40 | D16: 72 | E16: TRUE | F16: 8 | G16: 15 | H16: 14 | I16: 8 | J16: =IF(B16>0,VLOOKUP(I16,Punkteschema!$A$2:$B$101,2,FALSE),"") -> 10
A17: Urban, Dominic | B17: 43 | C17: 37 | D17: 80 | E17: TRUE | F17: 20 | G17: 11 | H17: 16 | I17: 11 | J17: =IF(B17>0,VLOOKUP(I17,Punkteschema!$A$2:$B$101,2,FALSE),"") -> 5
A18: Puschner, Michael | B18: 32 | C18: 38 | D18: 70 | E18: FALSE | F18: 8 | G18: 12 | H18: 10 | I18: 12 | J18: =IF(B18>0,VLOOKUP(I18,Punkteschema!$A$2:$B$101,2,FALSE),"") -> 5
A19: Schmidtbauer, Günter | B19: 40 | C19: 40 | D19: 80 | E19: TRUE | F19: 17 | G19: 15 | H19: 16 | I19: 15 | J19: =IF(B19>0,VLOOKUP(I19,Punkteschema!$A$2:$B$101,2,FALSE),"") -> 5
A20: Schmidt, Barbara | B20: 38 | C20: 45 | D20: 83 | E20: TRUE | F20: 16 | G20: 19 | H20: 18 | I20: 16 | J20: =IF(B20>0,VLOOKUP(I20,Punkteschema!$A$2:$B$101,2,FALSE),"") -> 3
A21: Börgmann, Brigitte | B21: 41 | C21: 43 | D21: 84 | E21: TRUE | F21: 18 | G21: 18 | H21: 19 | I21: 18 | J21: =IF(B21>0,VLOOKUP(I21,Punkteschema!$A$2:$B$101,2,FALSE),"") -> 3
A22: Dammann, Reinhold | B22: 41 | C22: 126 | D22: 167 | E22: TRUE | F22: 18 | G22: 20 | H22: 20 | I22: 18 | J22: =IF(B22>0,VLOOKUP(I22,Punkteschema!$A$2:$B$101,2,FALSE),"") -> 3
D23: =IF(B23>0,C23+B23,"") ->  | E23: TRUE | F23: =IF(B23>0,COUNTIF(B$3:B$55,"<"&B23)+1,"") ->  | G23: =IF(C23>0,COUNTIF(C$3:C$55,"<"&C23)+1,"") ->  | H23: =IF(AND(B23>0,C23>0),COUNTIF(D$3:D$55,"<"&D23)+1,"") ->  | I23: =IF(B23>0,IF(E23,MIN(F23:H23),MAX(F23:H23)),"") ->  | J23: =IF(B23>0,VLOOKUP(I23,Punkteschema!$A$2:$B$101,2,FALSE),"") -> 
D24: =IF(B24>0,C24+B24,"") ->  | E24: TRUE | F24: =IF(B24>0,COUNTIF(B$3:B$55,"<"&B24)+1,"") ->  | H24: =IF(AND(B24>0,C24>0),COUNTIF(D$3:D$55,"<"&D24)+1,"") ->  | I24: =IF(B24>0,IF(E24,MIN(F24:H24),MAX(F24:H24)),"") ->  | J24: =IF(B24>0,VLOOKUP(I24,Punkteschema!$A$2:$B$101,2,FALSE),"") -> 
E25: TRUE | J25: =IF(B25>0,VLOOKUP(I25,Punkteschema!$A$2:$B$101,2,FALSE),"") -> 
E26: TRUE | J26: =IF(B26>0,VLOOKUP(I26,Punkteschema!$A$2:$B$101,2,FALSE),"") -> 
E27: TRUE | J27: =IF(B27>0,VLOOKUP(I27,Punkteschema!$A$2:$B$101,2,FALSE),"") -> 
E28: TRUE | J28: =IF(B28>0,VLOOKUP(I28,Punkteschema!$A$2:$B$101,2,FALSE),"") -> 
E29: TRUE | J29: =IF(B29>0,VLOOKUP(I29,Punkteschema!$A$2:$B$101,2,FALSE),"") -> 
E30: TRUE | J30: =IF(B30>0,VLOOKUP(I30,Punkteschema!$A$2:$B$101,2,FALSE),"") -> 
E31: TRUE | J31: =IF(B31>0,VLOOKUP(I31,Punkteschema!$A$2:$B$101,2,FALSE),"") -> 
E32: TRUE | J32: =IF(B32>0,VLOOKUP(I32,Punkteschema!$A$2:$B$101,2,FALSE),"") -> 
E33: TRUE | J33: =IF(B33>0,VLOOKUP(I33,Punkteschema!$A$2:$B$101,2,FALSE),"") -> 
E34: TRUE | J34: =IF(B34>0,VLOOKUP(I34,Punkteschema!$A$2:$B$101,2,FALSE),"") -> 
E35: TRUE | J35: =IF(B35>0,VLOOKUP(I35,Punkteschema!$A$2:$B$101,2,FALSE),"") -> 
E36: TRUE | J36: =IF(B36>0,VLOOKUP(I36,Punkteschema!$A$2:$B$101,2,FALSE),"") -> 
E37: TRUE | J37: =IF(B37>0,VLOOKUP(I37,Punkteschema!$A$2:$B$101,2,FALSE),"") -> 
E38: TRUE | J38: =IF(B38>0,VLOOKUP(I38,Punkteschema!$A$2:$B$101,2,FALSE),"") -> 
E39: TRUE | J39: =IF(B39>0,VLOOKUP(I39,Punkteschema!$A$2:$B$101,2,FALSE),"") -> 
E40: TRUE | J40: =IF(B40>0,VLOOKUP(I40,Punkteschema!$A$2:$B$101,2,FALSE),"") -> 
E41: TRUE | J41: =IF(B41>0,VLOOKUP(I41,Punkteschema!$A$2:$B$101,2,FALSE),"") -> 
E42: TRUE | J42: =IF(B42>0,VLOOKUP(I42,Punkteschema!$A$2:$B$101,2,FALSE),"") -> 
E43: TRUE | J43: =IF(B43>0,VLOOKUP(I43,Punkteschema!$A$2:$B$101,2,FALSE),"") -> 
E44: TRUE | J44: =IF(B44>0,VLOOKUP(I44,Punkteschema!$A$2:$B$101,2,FALSE),"") -> 
E45: TRUE | J45: =IF(B45>0,VLOOKUP(I45,Punkteschema!$A$2:$B$101,2,FALSE),"") -> 
E46: TRUE | J46: =IF(B46>0,VLOOKUP(I46,Punkteschema!$A$2:$B$101,2,FALSE),"") -> 
E47: TRUE | J47: =IF(B47>0,VLOOKUP(I47,Punkteschema!$A$2:$B$101,2,FALSE),"") -> 
E48: TRUE | J48: =IF(B48>0,VLOOKUP(I48,Punkteschema!$A$2:$B$101,2,FALSE),"") -> 
E49: TRUE | J49: =IF(B49>0,VLOOKUP(I49,Punkteschema!$A$2:$B$101,2,FALSE),"") -> 
E50: TRUE | J50: =IF(B50>0,VLOOKUP(I50,Punkteschema!$A$2:$B$101,2,FALSE),"") -> 
E51: TRUE | J51: =IF(B51>0,VLOOKUP(I51,Punkteschema!$A$2:$B$101,2,FALSE),"") -> 
E52: TRUE | J52: =IF(B52>0,VLOOKUP(I52,Punkteschema!$A$2:$B$101,2,FALSE),"") -> 
E53: TRUE | F53: =IF(B53>0,COUNTIF(B$3:B$55,"<"&B53)+1,"") ->  | H53: =IF(AND(B53>0,C53>0),COUNTIF(D$3:D$55,"<"&D53)+1,"") ->  | I53: =IF(B53>0,IF(E53,MIN(F53:H53),MAX(F53:H53)),"") ->  | J53: =IF(B53>0,VLOOKUP(I53,Punkteschema!$A$2:$B$101,2,FALSE),"") -> 
E54: TRUE | H54: =IF(AND(B54>0,C54>0),COUNTIF(D$3:D$55,"<"&D54)+1,"") ->  | I54: =IF(B54>0,IF(E54,MIN(F54:H54),MAX(F54:H54)),"") ->  | J54: =IF(B54>0,VLOOKUP(I54,Punkteschema!$A$2:$B$101,2,FALSE),"") -> 
E55: TRUE | H55: =IF(AND(B55>0,C55>0),COUNTIF(D$3:D$55,"<"&D55)+1,"") ->  | I55: =IF(B55>0,IF(E55,MIN(F55:H55),MAX(F55:H55)),"") ->  | J55: =IF(B55>0,VLOOKUP(I55,Punkteschema!$A$2:$B$101,2,FALSE),"") -> 
A57: OS: Mühling, Dirk (HEV) | E57: Runde 1: | F57: E | G57: <- E/B
A58: S: Buchholz, Ansgar (ASW) | E58: Runde 2: | F58: B | G58: <- E/B
A59: S: Wickel-Paffrath, Melanie (HEV)
A61: Verloste Preise: | B61: Volker Urban (1 Flasche Wein mit Glas)
B62: Ansgar Buchholz (1 Verzehrgutschein)
B63: Ulrich Börgmann (1 Kühltasche)

Sheet Einzelwertung10
A1: =CONCATENATE("5. Sommer-Cup - Freizeittreff Herbede - ",TEXT(Gesamtstand!$O$2,"TT.MM.JJ")) -> 5. Sommer-Cup - Freizeittreff Herbede - 04.07.19
A2: Spieler | B2: Runde 1 | C2: Runde 2 | D2: Gesamt | E2: bessere? | F2: Pl. R1 | G2: Pl. R2 | H2: Pl. Ges. | I2: gewertet | J2: Punkte
D3: =IF(B3>0,C3+B3,"") ->  | E3: TRUE | F3: =IF(B3>0,COUNTIF(B$3:B$55,"<"&B3)+1,"") ->  | G3: =IF(C3>0,COUNTIF(C$3:C$55,"<"&C3)+1,"") ->  | H3: =IF(AND(B3>0,C3>0),COUNTIF(D$3:D$55,"<"&D3)+1,"") ->  | I3: =IF(B3>0,IF(E3,MIN(F3:H3),MAX(F3:H3)),"") ->  | J3: =IF(B3>0,VLOOKUP(I3,Punkteschema!$A$2:$B$101,2,FALSE),"") -> 
E4: TRUE | J4: =IF(B4>0,VLOOKUP(I4,Punkteschema!$A$2:$B$101,2,FALSE),"") -> 
E5: FALSE | J5: =IF(B5>0,VLOOKUP(I5,Punkteschema!$A$2:$B$101,2,FALSE),"") -> 
E6: TRUE | J6: =IF(B6>0,VLOOKUP(I6,Punkteschema!$A$2:$B$101,2,FALSE),"") -> 
E7: TRUE | J7: =IF(B7>0,VLOOKUP(I7,Punkteschema!$A$2:$B$101,2,FALSE),"") -> 
E8: FALSE | J8: =IF(B8>0,VLOOKUP(I8,Punkteschema!$A$2:$B$101,2,FALSE),"") -> 
E9: TRUE | J9: =IF(B9>0,VLOOKUP(I9,Punkteschema!$A$2:$B$101,2,FALSE),"") -> 
E10: TRUE | J10: =IF(B10>0,VLOOKUP(I10,Punkteschema!$A$2:$B$101,2,FALSE),"") -> 
E11: TRUE | J11: =IF(B11>0,VLOOKUP(I11,Punkteschema!$A$2:$B$101,2,FALSE),"") -> 
E12: TRUE | J12: =IF(B12>0,VLOOKUP(I12,Punkteschema!$A$2:$B$101,2,FALSE),"") -> 
E13: TRUE | J13: =IF(B13>0,VLOOKUP(I13,Punkteschema!$A$2:$B$101,2,FALSE),"") -> 
E14: FALSE | J14: =IF(B14>0,VLOOKUP(I14,Punkteschema!$A$2:$B$101,2,FALSE),"") -> 
E15: TRUE | J15: =IF(B15>0,VLOOKUP(I15,Punkteschema!$A$2:$B$101,2,FALSE),"") -> 
E16: TRUE | J16: =IF(B16>0,VLOOKUP(I16,Punkteschema!$A$2:$B$101,2,FALSE),"") -> 
E17: TRUE | J17: =IF(B17>0,VLOOKUP(I17,Punkteschema!$A$2:$B$101,2,FALSE),"") -> 
E18: TRUE | J18: =IF(B18>0,VLOOKUP(I18,Punkteschema!$A$2:$B$101,2,FALSE),"") -> 
E19: TRUE | J19: =IF(B19>0,VLOOKUP(I19,Punkteschema!$A$2:$B$101,2,FALSE),"") -> 
E20: TRUE | J20: =IF(B20>0,VLOOKUP(I20,Punkteschema!$A$2:$B$101,2,FALSE),"") -> 
E21: TRUE | J21: =IF(B21>0,VLOOKUP(I21,Punkteschema!$A$2:$B$101,2,FALSE),"") -> 
D22: =IF(B22>0,C22+B22,"") ->  | E22: TRUE | F22: =IF(B22>0,COUNTIF(B$3:B$55,"<"&B22)+1,"") ->  | G22: =IF(C22>0,COUNTIF(C$3:C$55,"<"&C22)+1,"") ->  | H22: =IF(AND(B22>0,C22>0),COUNTIF(D$3:D$55,"<"&D22)+1,"") ->  | I22: =IF(B22>0,IF(E22,MIN(F22:H22),MAX(F22:H22)),"") ->  | J22: =IF(B22>0,VLOOKUP(I22,Punkteschema!$A$2:$B$101,2,FALSE),"") -> 
E23: TRUE | J23: =IF(B23>0,VLOOKUP(I23,Punkteschema!$A$2:$B$101,2,FALSE),"") -> 
E24: TRUE | J24: =IF(B24>0,VLOOKUP(I24,Punkteschema!$A$2:$B$101,2,FALSE),"") -> 
E25: TRUE | J25: =IF(B25>0,VLOOKUP(I25,Punkteschema!$A$2:$B$101,2,FALSE),"") -> 
D26: =IF(B26>0,C26+B26,"") ->  | E26: TRUE | F26: =IF(B26>0,COUNTIF(B$3:B$55,"<"&B26)+1,"") ->  | H26: =IF(AND(B26>0,C26>0),COUNTIF(D$3:D$55,"<"&D26)+1,"") ->  | I26: =IF(B26>0,IF(E26,MIN(F26:H26),MAX(F26:H26)),"") ->  | J26: =IF(B26>0,VLOOKUP(I26,Punkteschema!$A$2:$B$101,2,FALSE),"") -> 
E27: TRUE | J27: =IF(B27>0,VLOOKUP(I27,Punkteschema!$A$2:$B$101,2,FALSE),"") -> 
E28: TRUE | J28: =IF(B28>0,VLOOKUP(I28,Punkteschema!$A$2:$B$101,2,FALSE),"") -> 
E29: TRUE | J29: =IF(B29>0,VLOOKUP(I29,Punkteschema!$A$2:$B$101,2,FALSE),"") -> 
E30: TRUE | J30: =IF(B30>0,VLOOKUP(I30,Punkteschema!$A$2:$B$101,2,FALSE),"") -> 
E31: TRUE | J31: =IF(B31>0,VLOOKUP(I31,Punkteschema!$A$2:$B$101,2,FALSE),"") -> 
E32: TRUE | J32: =IF(B32>0,VLOOKUP(I32,Punkteschema!$A$2:$B$101,2,FALSE),"") -> 
E33: TRUE | J33: =IF(B33>0,VLOOKUP(I33,Punkteschema!$A$2:$B$101,2,FALSE),"") -> 
E34: TRUE | J34: =IF(B34>0,VLOOKUP(I34,Punkteschema!$A$2:$B$101,2,FALSE),"") -> 
E35: TRUE | J35: =IF(B35>0,VLOOKUP(I35,Punkteschema!$A$2:$B$101,2,FALSE),"") -> 
E36: TRUE | J36: =IF(B36>0,VLOOKUP(I36,Punkteschema!$A$2:$B$101,2,FALSE),"") -> 
E37: TRUE | J37: =IF(B37>0,VLOOKUP(I37,Punkteschema!$A$2:$B$101,2,FALSE),"") -> 
E38: TRUE | J38: =IF(B38>0,VLOOKUP(I38,Punkteschema!$A$2:$B$101,2,FALSE),"") -> 
E39: TRUE | J39: =IF(B39>0,VLOOKUP(I39,Punkteschema!$A$2:$B$101,2,FALSE),"") -> 
E40: TRUE | J40: =IF(B40>0,VLOOKUP(I40,Punkteschema!$A$2:$B$101,2,FALSE),"") -> 
E41: TRUE | J41: =IF(B41>0,VLOOKUP(I41,Punkteschema!$A$2:$B$101,2,FALSE),"") -> 
E42: TRUE | J42: =IF(B42>0,VLOOKUP(I42,Punkteschema!$A$2:$B$101,2,FALSE),"") -> 
E43: TRUE | J43: =IF(B43>0,VLOOKUP(I43,Punkteschema!$A$2:$B$101,2,FALSE),"") -> 
E44: TRUE | J44: =IF(B44>0,VLOOKUP(I44,Punkteschema!$A$2:$B$101,2,FALSE),"") -> 
E45: TRUE | J45: =IF(B45>0,VLOOKUP(I45,Punkteschema!$A$2:$B$101,2,FALSE),"") -> 
E46: TRUE | J46: =IF(B46>0,VLOOKUP(I46,Punkteschema!$A$2:$B$101,2,FALSE),"") -> 
E47: TRUE | J47: =IF(B47>0,VLOOKUP(I47,Punkteschema!$A$2:$B$101,2,FALSE),"") -> 
E48: TRUE | J48: =IF(B48>0,VLOOKUP(I48,Punkteschema!$A$2:$B$101,2,FALSE),"") -> 
E49: TRUE | J49: =IF(B49>0,VLOOKUP(I49,Punkteschema!$A$2:$B$101,2,FALSE),"") -> 
E50: TRUE | J50: =IF(B50>0,VLOOKUP(I50,Punkteschema!$A$2:$B$101,2,FALSE),"") -> 
E51: TRUE | J51: =IF(B51>0,VLOOKUP(I51,Punkteschema!$A$2:$B$101,2,FALSE),"") -> 
E52: TRUE | J52: =IF(B52>0,VLOOKUP(I52,Punkteschema!$A$2:$B$101,2,FALSE),"") -> 
E53: TRUE | F53: =IF(B53>0,COUNTIF(B$3:B$55,"<"&B53)+1,"") ->  | H53: =IF(AND(B53>0,C53>0),COUNTIF(D$3:D$55,"<"&D53)+1,"") ->  | I53: =IF(B53>0,IF(E53,MIN(F53:H53),MAX(F53:H53)),"") ->  | J53: =IF(B53>0,VLOOKUP(I53,Punkteschema!$A$2:$B$101,2,FALSE),"") -> 
E54: TRUE | H54: =IF(AND(B54>0,C54>0),COUNTIF(D$3:D$55,"<"&D54)+1,"") ->  | I54: =IF(B54>0,IF(E54,MIN(F54:H54),MAX(F54:H54)),"") ->  | J54: =IF(B54>0,VLOOKUP(I54,Punkteschema!$A$2:$B$101,2,FALSE),"") -> 
E55: TRUE | H55: =IF(AND(B55>0,C55>0),COUNTIF(D$3:D$55,"<"&D55)+1,"") ->  | I55: =IF(B55>0,IF(E55,MIN(F55:H55),MAX(F55:H55)),"") ->  | J55: =IF(B55>0,VLOOKUP(I55,Punkteschema!$A$2:$B$101,2,FALSE),"") -> 
A57: OS: | E57: Runde 1: | F57: E | G57: <- E/B
A58: S: | E58: Runde 2: | F58: B | G58: <- E/B
A59: S:
A61: Verloste Preise:
A63: Spieltag wg. der DM ausgefallen !

Sheet Einzelwertung11
A1: =CONCATENATE("5. Sommer-Cup - Freizeittreff Herbede - ",TEXT(Gesamtstand!$P$2,"TT.MM.JJ")) -> 5. Sommer-Cup - Freizeittreff Herbede - 11.07.19
A2: Spieler | B2: Runde 1 | C2: Runde 2 | D2: Gesamt | E2: bessere? | F2: Pl. R1 | G2: Pl. R2 | H2: Pl. Ges. | I2: gewertet | J2: Punkte
A3: Buchholz, Ansgar | B3: 25 | C3: 31 | D3: =IF(B3>0,C3+B3,"") -> 56 | E3: TRUE | F3: =IF(B3>0,COUNTIF(B$3:B$55,"<"&B3)+1,"") -> 1 | G3: =IF(C3>0,COUNTIF(C$3:C$55,"<"&C3)+1,"") -> 3 | H3: =IF(AND(B3>0,C3>0),COUNTIF(D$3:D$55,"<"&D3)+1,"") -> 1 | I3: =IF(B3>0,IF(E3,MIN(F3:H3),MAX(F3:H3)),"") -> 1 | J3: =IF(B3>0,VLOOKUP(I3,Punkteschema!$A$2:$B$101,2,FALSE),"") -> 25
A4: Schmidtbauer, Günter | B4: 39 | C4: 29 | D4: 68 | E4: TRUE | F4: 17 | G4: 1 | H4: 9 | I4: 1 | J4: =IF(B4>0,VLOOKUP(I4,Punkteschema!$A$2:$B$101,2,FALSE),"") -> 25
A5: Urban, Volker | B5: 28 | C5: 30 | D5: 58 | E5: FALSE | F5: 2 | G5: 2 | H5: 2 | I5: 2 | J5: =IF(B5>0,VLOOKUP(I5,Punkteschema!$A$2:$B$101,2,FALSE),"") -> 21
A6: Puschner, Michael | B6: 32 | C6: 31 | D6: 63 | E6: TRUE | F6: 7 | G6: 3 | H6: 4 | I6: 3 | J6: =IF(B6>0,VLOOKUP(I6,Punkteschema!$A$2:$B$101,2,FALSE),"") -> 18
A7: Börgmann, Ulrich | B7: 30 | C7: 39 | D7: 69 | E7: TRUE | F7: 4 | G7: 15 | H7: 10 | I7: 4 | J7: =IF(B7>0,VLOOKUP(I7,Punkteschema!$A$2:$B$101,2,FALSE),"") -> 15
A8: Mühling, Dirk | B8: 29 | C8: 32 | D8: 61 | E8: FALSE | F8: 3 | G8: 5 | H8: 3 | I8: 5 | J8: =IF(B8>0,VLOOKUP(I8,Punkteschema!$A$2:$B$101,2,FALSE),"") -> 15
A9: Urban, Angela | B9: 31 | C9: 35 | D9: 66 | E9: TRUE | F9: 5 | G9: 11 | H9: 6 | I9: 5 | J9: =IF(B9>0,VLOOKUP(I9,Punkteschema!$A$2:$B$101,2,FALSE),"") -> 15
A10: Lieber, Nicole | B10: 38 | C10: 32 | D10: 70 | E10: TRUE | F10: 16 | G10: 5 | H10: 11 | I10: 5 | J10: =IF(B10>0,VLOOKUP(I10,Punkteschema!$A$2:$B$101,2,FALSE),"") -> 15
A11: Kortmann, Uwe | B11: 31 | C11: 43 | D11: 74 | E11: TRUE | F11: 5 | G11: 19 | H11: 16 | I11: 5 | J11: =IF(B11>0,VLOOKUP(I11,Punkteschema!$A$2:$B$101,2,FALSE),"") -> 15
A12: Greiffendorf, Hellmut | B12: 33 | C12: 34 | D12: 67 | E12: TRUE | F12: 8 | G12: 9 | H12: 7 | I12: 7 | J12: =IF(B12>0,VLOOKUP(I12,Punkteschema!$A$2:$B$101,2,FALSE),"") -> 10
A13: Urban, Dominic | B13: 33 | C13: 34 | D13: 67 | E13: TRUE | F13: 8 | G13: 9 | H13: 7 | I13: 7 | J13: =IF(B13>0,VLOOKUP(I13,Punkteschema!$A$2:$B$101,2,FALSE),"") -> 10
A14: Tabor, Peter | B14: 33 | C14: 32 | D14: 65 | E14: FALSE | F14: 8 | G14: 5 | H14: 5 | I14: 8 | J14: =IF(B14>0,VLOOKUP(I14,Punkteschema!$A$2:$B$101,2,FALSE),"") -> 10
A15: Kunz, Martin | B15: 39 | C15: 33 | D15: 72 | E15: TRUE | F15: 17 | G15: 8 | H15: 13 | I15: 8 | J15: =IF(B15>0,VLOOKUP(I15,Punkteschema!$A$2:$B$101,2,FALSE),"") -> 10
A16: Kortmann, Sabine | B16: 34 | C16: 39 | D16: 73 | E16: TRUE | F16: 11 | G16: 15 | H16: 15 | I16: 11 | J16: =IF(B16>0,VLOOKUP(I16,Punkteschema!$A$2:$B$101,2,FALSE),"") -> 5
A17: Börgmann, Brigitte | B17: 35 | C17: 36 | D17: 71 | E17: TRUE | F17: 12 | G17: 12 | H17: 12 | I17: 12 | J17: =IF(B17>0,VLOOKUP(I17,Punkteschema!$A$2:$B$101,2,FALSE),"") -> 5
A18: Lenk, Rolf | B18: 35 | C18: 37 | D18: 72 | E18: TRUE | F18: 12 | G18: 13 | H18: 13 | I18: 12 | J18: =IF(B18>0,VLOOKUP(I18,Punkteschema!$A$2:$B$101,2,FALSE),"") -> 5
A19: Jezierski, Marie-Luise | B19: 37 | C19: 38 | D19: 75 | E19: TRUE | F19: 14 | G19: 14 | H19: 17 | I19: 14 | J19: =IF(B19>0,VLOOKUP(I19,Punkteschema!$A$2:$B$101,2,FALSE),"") -> 5
A20: Kersch, Uwe | B20: 37 | C20: 39 | D20: 76 | E20: TRUE | F20: 14 | G20: 15 | H20: 18 | I20: 14 | J20: =IF(B20>0,VLOOKUP(I20,Punkteschema!$A$2:$B$101,2,FALSE),"") -> 5
A21: Schmidt, Barbara | B21: 42 | C21: 42 | D21: 84 | E21: TRUE | F21: 19 | G21: 18 | H21: 19 | I21: 18 | J21: =IF(B21>0,VLOOKUP(I21,Punkteschema!$A$2:$B$101,2,FALSE),"") -> 3
D22: =IF(B22>0,C22+B22,"") ->  | E22: FALSE | F22: =IF(B22>0,COUNTIF(B$3:B$55,"<"&B22)+1,"") ->  | G22: =IF(C22>0,COUNTIF(C$3:C$55,"<"&C22)+1,"") ->  | H22: =IF(AND(B22>0,C22>0),COUNTIF(D$3:D$55,"<"&D22)+1,"") ->  | I22: =IF(B22>0,IF(E22,MIN(F22:H22),MAX(F22:H22)),"") ->  | J22: =IF(B22>0,VLOOKUP(I22,Punkteschema!$A$2:$B$101,2,FALSE),"") -> 
D23: =IF(B23>0,C23+B23,"") ->  | E23: TRUE | F23: =IF(B23>0,COUNTIF(B$3:B$55,"<"&B23)+1,"") ->  | H23: =IF(AND(B23>0,C23>0),COUNTIF(D$3:D$55,"<"&D23)+1,"") ->  | I23: =IF(B23>0,IF(E23,MIN(F23:H23),MAX(F23:H23)),"") ->  | J23: =IF(B23>0,VLOOKUP(I23,Punkteschema!$A$2:$B$101,2,FALSE),"") -> 
E24: TRUE | J24: =IF(B24>0,VLOOKUP(I24,Punkteschema!$A$2:$B$101,2,FALSE),"") -> 
E25: TRUE | J25: =IF(B25>0,VLOOKUP(I25,Punkteschema!$A$2:$B$101,2,FALSE),"") -> 
E26: TRUE | J26: =IF(B26>0,VLOOKUP(I26,Punkteschema!$A$2:$B$101,2,FALSE),"") -> 
E27: TRUE | J27: =IF(B27>0,VLOOKUP(I27,Punkteschema!$A$2:$B$101,2,FALSE),"") -> 
E28: TRUE | J28: =IF(B28>0,VLOOKUP(I28,Punkteschema!$A$2:$B$101,2,FALSE),"") -> 
E29: TRUE | J29: =IF(B29>0,VLOOKUP(I29,Punkteschema!$A$2:$B$101,2,FALSE),"") -> 
E30: TRUE | J30: =IF(B30>0,VLOOKUP(I30,Punkteschema!$A$2:$B$101,2,FALSE),"") -> 
E31: TRUE | J31: =IF(B31>0,VLOOKUP(I31,Punkteschema!$A$2:$B$101,2,FALSE),"") -> 
E32: TRUE | J32: =IF(B32>0,VLOOKUP(I32,Punkteschema!$A$2:$B$101,2,FALSE),"") -> 
E33: TRUE | J33: =IF(B33>0,VLOOKUP(I33,Punkteschema!$A$2:$B$101,2,FALSE),"") -> 
E34: TRUE | J34: =IF(B34>0,VLOOKUP(I34,Punkteschema!$A$2:$B$101,2,FALSE),"") -> 
E35: TRUE | J35: =IF(B35>0,VLOOKUP(I35,Punkteschema!$A$2:$B$101,2,FALSE),"") -> 
E36: TRUE | J36: =IF(B36>0,VLOOKUP(I36,Punkteschema!$A$2:$B$101,2,FALSE),"") -> 
E37: TRUE | J37: =IF(B37>0,VLOOKUP(I37,Punkteschema!$A$2:$B$101,2,FALSE),"") -> 
E38: TRUE | J38: =IF(B38>0,VLOOKUP(I38,Punkteschema!$A$2:$B$101,2,FALSE),"") -> 
E39: TRUE | J39: =IF(B39>0,VLOOKUP(I39,Punkteschema!$A$2:$B$101,2,FALSE),"") -> 
E40: TRUE | J40: =IF(B40>0,VLOOKUP(I40,Punkteschema!$A$2:$B$101,2,FALSE),"") -> 
E41: TRUE | J41: =IF(B41>0,VLOOKUP(I41,Punkteschema!$A$2:$B$101,2,FALSE),"") -> 
E42: TRUE | J42: =IF(B42>0,VLOOKUP(I42,Punkteschema!$A$2:$B$101,2,FALSE),"") -> 
E43: TRUE | J43: =IF(B43>0,VLOOKUP(I43,Punkteschema!$A$2:$B$101,2,FALSE),"") -> 
E44: TRUE | J44: =IF(B44>0,VLOOKUP(I44,Punkteschema!$A$2:$B$101,2,FALSE),"") -> 
E45: TRUE | J45: =IF(B45>0,VLOOKUP(I45,Punkteschema!$A$2:$B$101,2,FALSE),"") -> 
E46: TRUE | J46: =IF(B46>0,VLOOKUP(I46,Punkteschema!$A$2:$B$101,2,FALSE),"") -> 
E47: TRUE | J47: =IF(B47>0,VLOOKUP(I47,Punkteschema!$A$2:$B$101,2,FALSE),"") -> 
E48: TRUE | J48: =IF(B48>0,VLOOKUP(I48,Punkteschema!$A$2:$B$101,2,FALSE),"") -> 
E49: TRUE | J49: =IF(B49>0,VLOOKUP(I49,Punkteschema!$A$2:$B$101,2,FALSE),"") -> 
E50: TRUE | J50: =IF(B50>0,VLOOKUP(I50,Punkteschema!$A$2:$B$101,2,FALSE),"") -> 
E51: TRUE | J51: =IF(B51>0,VLOOKUP(I51,Punkteschema!$A$2:$B$101,2,FALSE),"") -> 
E52: TRUE | J52: =IF(B52>0,VLOOKUP(I52,Punkteschema!$A$2:$B$101,2,FALSE),"") -> 
E53: TRUE | F53: =IF(B53>0,COUNTIF(B$3:B$55,"<"&B53)+1,"") ->  | H53: =IF(AND(B53>0,C53>0),COUNTIF(D$3:D$55,"<"&D53)+1,"") ->  | I53: =IF(B53>0,IF(E53,MIN(F53:H53),MAX(F53:H53)),"") ->  | J53: =IF(B53>0,VLOOKUP(I53,Punkteschema!$A$2:$B$101,2,FALSE),"") -> 
E54: TRUE | H54: =IF(AND(B54>0,C54>0),COUNTIF(D$3:D$55,"<"&D54)+1,"") ->  | I54: =IF(B54>0,IF(E54,MIN(F54:H54),MAX(F54:H54)),"") ->  | J54: =IF(B54>0,VLOOKUP(I54,Punkteschema!$A$2:$B$101,2,FALSE),"") -> 
E55: TRUE | H55: =IF(AND(B55>0,C55>0),COUNTIF(D$3:D$55,"<"&D55)+1,"") ->  | I55: =IF(B55>0,IF(E55,MIN(F55:H55),MAX(F55:H55)),"") ->  | J55: =IF(B55>0,VLOOKUP(I55,Punkteschema!$A$2:$B$101,2,FALSE),"") -> 
A57: OS: Mühling, Dirk (HEV) | E57: Runde 1: | F57: E | G57: <- E/B
A58: S: Buchholz, Ansgar (ASW) | E58: Runde 2: | F58: B | G58: <- E/B
A59: S: Puschner, Michael (HOB)
A61: Verloste Preise: | B61: Angela Urban (1 Flasche Grappa)
B62: Michael Puschner (1 Verzehrgutschein)
B63: Volker Urban (1 Glaskrug mit Zapfhahn)

Sheet Einzelwertung12
A1: =CONCATENATE("5. Sommer-Cup - Freizeittreff Herbede - ",TEXT(Gesamtstand!$Q$2,"TT.MM.JJ")) -> 5. Sommer-Cup - Freizeittreff Herbede - 18.07.19
A2: Spieler | B2: Runde 1 | C2: Runde 2 | D2: Gesamt | E2: bessere? | F2: Pl. R1 | G2: Pl. R2 | H2: Pl. Ges. | I2: gewertet | J2: Punkte
A3: Buchholz, Ansgar | B3: 24 | C3: 30 | D3: =IF(B3>0,C3+B3,"") -> 54 | E3: TRUE | F3: =IF(B3>0,COUNTIF(B$3:B$55,"<"&B3)+1,"") -> 2 | G3: =IF(C3>0,COUNTIF(C$3:C$55,"<"&C3)+1,"") -> 2 | H3: =IF(AND(B3>0,C3>0),COUNTIF(D$3:D$55,"<"&D3)+1,"") -> 1 | I3: =IF(B3>0,IF(E3,MIN(F3:H3),MAX(F3:H3)),"") -> 1 | J3: =IF(B3>0,VLOOKUP(I3,Punkteschema!$A$2:$B$101,2,FALSE),"") -> 25
A4: Greiffendorf, Hellmut | B4: 23 | C4: 32 | D4: 55 | E4: TRUE | F4: 1 | G4: 6 | H4: 2 | I4: 1 | J4: =IF(B4>0,VLOOKUP(I4,Punkteschema!$A$2:$B$101,2,FALSE),"") -> 25
A5: Urban, Volker | B5: 25 | C5: 30 | D5: 55 | E5: FALSE | F5: 3 | G5: 2 | H5: 2 | I5: 3 | J5: =IF(B5>0,VLOOKUP(I5,Punkteschema!$A$2:$B$101,2,FALSE),"") -> 18
A6: Battig, Wolfgang | B6: 25 | C6: 31 | D6: 56 | E6: TRUE | F6: 3 | G6: 4 | H6: 4 | I6: 3 | J6: =IF(B6>0,VLOOKUP(I6,Punkteschema!$A$2:$B$101,2,FALSE),"") -> 18
A7: Lehmann, Niclas | B7: 25 | C7: 33 | D7: 58 | E7: TRUE | F7: 3 | G7: 7 | H7: 6 | I7: 3 | J7: =IF(B7>0,VLOOKUP(I7,Punkteschema!$A$2:$B$101,2,FALSE),"") -> 18
A8: Kortmann, Uwe | B8: 26 | C8: 33 | D8: 59 | E8: TRUE | F8: 6 | G8: 7 | H8: 7 | I8: 6 | J8: =IF(B8>0,VLOOKUP(I8,Punkteschema!$A$2:$B$101,2,FALSE),"") -> 15
A9: Puschner, Michael | B9: 26 | C9: 38 | D9: 64 | E9: TRUE | F9: 6 | G9: 15 | H9: 8 | I9: 6 | J9: =IF(B9>0,VLOOKUP(I9,Punkteschema!$A$2:$B$101,2,FALSE),"") -> 15
A10: Kortmann, Sabine | B10: 39 | C10: 33 | D10: 72 | E10: TRUE | F10: 18 | G10: 7 | H10: 15 | I10: 7 | J10: =IF(B10>0,VLOOKUP(I10,Punkteschema!$A$2:$B$101,2,FALSE),"") -> 10
A11: Mühling, Dirk | B11: 29 | C11: 27 | D11: 56 | E11: FALSE | F11: 8 | G11: 1 | H11: 4 | I11: 8 | J11: =IF(B11>0,VLOOKUP(I11,Punkteschema!$A$2:$B$101,2,FALSE),"") -> 10
A12: Lieber, Nicole | B12: 31 | C12: 36 | D12: 67 | E12: TRUE | F12: 9 | G12: 11 | H12: 10 | I12: 9 | J12: =IF(B12>0,VLOOKUP(I12,Punkteschema!$A$2:$B$101,2,FALSE),"") -> 10
A13: Schmidtbauer, Günter | B13: 31 | C13: 38 | D13: 69 | E13: TRUE | F13: 9 | G13: 15 | H13: 12 | I13: 9 | J13: =IF(B13>0,VLOOKUP(I13,Punkteschema!$A$2:$B$101,2,FALSE),"") -> 10
A14: Börgmann, Ulrich | B14: 31 | C14: 40 | D14: 71 | E14: TRUE | F14: 9 | G14: 17 | H14: 14 | I14: 9 | J14: =IF(B14>0,VLOOKUP(I14,Punkteschema!$A$2:$B$101,2,FALSE),"") -> 10
A15: Dreischer, Burkhard | B15: 31 | C15: 47 | D15: 78 | E15: TRUE | F15: 9 | G15: 20 | H15: 18 | I15: 9 | J15: =IF(B15>0,VLOOKUP(I15,Punkteschema!$A$2:$B$101,2,FALSE),"") -> 10
A16: Schmidt, Barbara | B16: 32 | C16: 35 | D16: 67 | E16: TRUE | F16: 13 | G16: 10 | H16: 10 | I16: 10 | J16: =IF(B16>0,VLOOKUP(I16,Punkteschema!$A$2:$B$101,2,FALSE),"") -> 10
A17: Urban, Angela | B17: 37 | C17: 36 | D17: 73 | E17: TRUE | F17: 16 | G17: 11 | H17: 16 | I17: 11 | J17: =IF(B17>0,VLOOKUP(I17,Punkteschema!$A$2:$B$101,2,FALSE),"") -> 5
A18: Börgmann, Brigitte | B18: 41 | C18: 36 | D18: 77 | E18: TRUE | F18: 21 | G18: 11 | H18: 17 | I18: 11 | J18: =IF(B18>0,VLOOKUP(I18,Punkteschema!$A$2:$B$101,2,FALSE),"") -> 5
A19: Lenk, Rolf | B19: 32 | C19: 37 | D19: 69 | E19: TRUE | F19: 13 | G19: 14 | H19: 12 | I19: 12 | J19: =IF(B19>0,VLOOKUP(I19,Punkteschema!$A$2:$B$101,2,FALSE),"") -> 5
A20: Tabor, Peter | B20: 33 | C20: 31 | D20: 64 | E20: FALSE | F20: 15 | G20: 4 | H20: 8 | I20: 15 | J20: =IF(B20>0,VLOOKUP(I20,Punkteschema!$A$2:$B$101,2,FALSE),"") -> 5
A21: Dammann, Reinhold | B21: 38 | C21: 126 | D21: 164 | E21: TRUE | F21: 17 | G21: 21 | H21: 21 | I21: 17 | J21: =IF(B21>0,VLOOKUP(I21,Punkteschema!$A$2:$B$101,2,FALSE),"") -> 3
A22: Kersch, Uwe | B22: 40 | C22: 43 | D22: 83 | E22: TRUE | F22: 20 | G22: 18 | H22: 19 | I22: 18 | J22: =IF(B22>0,VLOOKUP(I22,Punkteschema!$A$2:$B$101,2,FALSE),"") -> 3
A23: Jezierski, Marie-Luise | B23: 39 | C23: 45 | D23: 84 | E23: TRUE | F23: 18 | G23: 19 | H23: 20 | I23: 18 | J23: =IF(B23>0,VLOOKUP(I23,Punkteschema!$A$2:$B$101,2,FALSE),"") -> 3
D24: =IF(B24>0,C24+B24,"") ->  | E24: TRUE | F24: =IF(B24>0,COUNTIF(B$3:B$55,"<"&B24)+1,"") ->  | G24: =IF(C24>0,COUNTIF(C$3:C$55,"<"&C24)+1,"") ->  | H24: =IF(AND(B24>0,C24>0),COUNTIF(D$3:D$55,"<"&D24)+1,"") ->  | I24: =IF(B24>0,IF(E24,MIN(F24:H24),MAX(F24:H24)),"") ->  | J24: =IF(B24>0,VLOOKUP(I24,Punkteschema!$A$2:$B$101,2,FALSE),"") -> 
E25: TRUE | J25: =IF(B25>0,VLOOKUP(I25,Punkteschema!$A$2:$B$101,2,FALSE),"") -> 
E26: TRUE | J26: =IF(B26>0,VLOOKUP(I26,Punkteschema!$A$2:$B$101,2,FALSE),"") -> 
E27: TRUE | J27: =IF(B27>0,VLOOKUP(I27,Punkteschema!$A$2:$B$101,2,FALSE),"") -> 
D28: =IF(B28>0,C28+B28,"") ->  | E28: TRUE | I28: =IF(B28>0,IF(E28,MIN(F28:H28),MAX(F28:H28)),"") ->  | J28: =IF(B28>0,VLOOKUP(I28,Punkteschema!$A$2:$B$101,2,FALSE),"") -> 
E29: TRUE | J29: =IF(B29>0,VLOOKUP(I29,Punkteschema!$A$2:$B$101,2,FALSE),"") -> 
E30: TRUE | J30: =IF(B30>0,VLOOKUP(I30,Punkteschema!$A$2:$B$101,2,FALSE),"") -> 
E31: TRUE | J31: =IF(B31>0,VLOOKUP(I31,Punkteschema!$A$2:$B$101,2,FALSE),"") -> 
E32: TRUE | J32: =IF(B32>0,VLOOKUP(I32,Punkteschema!$A$2:$B$101,2,FALSE),"") -> 
E33: TRUE | J33: =IF(B33>0,VLOOKUP(I33,Punkteschema!$A$2:$B$101,2,FALSE),"") -> 
E34: TRUE | J34: =IF(B34>0,VLOOKUP(I34,Punkteschema!$A$2:$B$101,2,FALSE),"") -> 
E35: TRUE | F35: =IF(B35>0,COUNTIF(B$3:B$55,"<"&B35)+1,"") ->  | G35: =IF(C35>0,COUNTIF(C$3:C$55,"<"&C35)+1,"") ->  | H35: =IF(AND(B35>0,C35>0),COUNTIF(D$3:D$55,"<"&D35)+1,"") ->  | J35: =IF(B35>0,VLOOKUP(I35,Punkteschema!$A$2:$B$101,2,FALSE),"") -> 
E36: TRUE | J36: =IF(B36>0,VLOOKUP(I36,Punkteschema!$A$2:$B$101,2,FALSE),"") -> 
E37: TRUE | J37: =IF(B37>0,VLOOKUP(I37,Punkteschema!$A$2:$B$101,2,FALSE),"") -> 
E38: TRUE | J38: =IF(B38>0,VLOOKUP(I38,Punkteschema!$A$2:$B$101,2,FALSE),"") -> 
E39: TRUE | J39: =IF(B39>0,VLOOKUP(I39,Punkteschema!$A$2:$B$101,2,FALSE),"") -> 
E40: TRUE | J40: =IF(B40>0,VLOOKUP(I40,Punkteschema!$A$2:$B$101,2,FALSE),"") -> 
E41: TRUE | J41: =IF(B41>0,VLOOKUP(I41,Punkteschema!$A$2:$B$101,2,FALSE),"") -> 
E42: TRUE | J42: =IF(B42>0,VLOOKUP(I42,Punkteschema!$A$2:$B$101,2,FALSE),"") -> 
E43: TRUE | J43: =IF(B43>0,VLOOKUP(I43,Punkteschema!$A$2:$B$101,2,FALSE),"") -> 
E44: TRUE | J44: =IF(B44>0,VLOOKUP(I44,Punkteschema!$A$2:$B$101,2,FALSE),"") -> 
E45: TRUE | J45: =IF(B45>0,VLOOKUP(I45,Punkteschema!$A$2:$B$101,2,FALSE),"") -> 
E46: TRUE | J46: =IF(B46>0,VLOOKUP(I46,Punkteschema!$A$2:$B$101,2,FALSE),"") -> 
E47: TRUE | J47: =IF(B47>0,VLOOKUP(I47,Punkteschema!$A$2:$B$101,2,FALSE),"") -> 
E48: TRUE | J48: =IF(B48>0,VLOOKUP(I48,Punkteschema!$A$2:$B$101,2,FALSE),"") -> 
E49: TRUE | J49: =IF(B49>0,VLOOKUP(I49,Punkteschema!$A$2:$B$101,2,FALSE),"") -> 
E50: TRUE | J50: =IF(B50>0,VLOOKUP(I50,Punkteschema!$A$2:$B$101,2,FALSE),"") -> 
E51: TRUE | J51: =IF(B51>0,VLOOKUP(I51,Punkteschema!$A$2:$B$101,2,FALSE),"") -> 
E52: TRUE | J52: =IF(B52>0,VLOOKUP(I52,Punkteschema!$A$2:$B$101,2,FALSE),"") -> 
E53: TRUE | I53: =IF(B53>0,IF(E53,MIN(F53:H53),MAX(F53:H53)),"") ->  | J53: =IF(B53>0,VLOOKUP(I53,Punkteschema!$A$2:$B$101,2,FALSE),"") -> 
E54: TRUE | I54: =IF(B54>0,IF(E54,MIN(F54:H54),MAX(F54:H54)),"") ->  | J54: =IF(B54>0,VLOOKUP(I54,Punkteschema!$A$2:$B$101,2,FALSE),"") -> 
E55: TRUE | I55: =IF(B55>0,IF(E55,MIN(F55:H55),MAX(F55:H55)),"") ->  | J55: =IF(B55>0,VLOOKUP(I55,Punkteschema!$A$2:$B$101,2,FALSE),"") -> 
A57: OS: Mühling, Dirk (HEV) | E57: Runde 1: | F57: E | G57: <- E/B
A58: S: Buchholz, Ansgar (ASW) | E58: Runde 2: | F58: B | G58: <- E/B
A59: S: Puschner, Michael (HOB)
A61: Verloste Preise: | B61: Ansgar Buchholz (1 Trinkflasche)
B62: Michael Puschner (1 Flasche Kräuterlikör)
B63: Brigitte Börgmann (1 Solarlaterne)

Sheet Einzelwertung13
A1: =CONCATENATE("5. Sommer-Cup - Freizeittreff Herbede - ",TEXT(Gesamtstand!$R$2,"TT.MM.JJ")) -> 5. Sommer-Cup - Freizeittreff Herbede - 25.07.19
A2: Spieler | B2: Runde 1 | C2: Runde 2 | D2: Gesamt | E2: bessere? | F2: Pl. R1 | G2: Pl. R2 | H2: Pl. Ges. | I2: gewertet | J2: Punkte
A3: Urban, Volker | B3: 26 | C3: 28 | D3: =IF(B3>0,C3+B3,"") -> 54 | E3: FALSE | F3: =IF(B3>0,COUNTIF(B$3:B$55,"<"&B3)+1,"") -> 1 | G3: =IF(C3>0,COUNTIF(C$3:C$55,"<"&C3)+1,"") -> 1 | H3: =IF(AND(B3>0,C3>0),COUNTIF(D$3:D$55,"<"&D3)+1,"") -> 1 | I3: =IF(B3>0,IF(E3,MIN(F3:H3),MAX(F3:H3)),"") -> 1 | J3: =IF(B3>0,VLOOKUP(I3,Punkteschema!$A$2:$B$101,2,FALSE),"") -> 25
A4: Mühling, Dirk | B4: 27 | C4: 32 | D4: 59 | E4: FALSE | F4: 2 | G4: 2 | H4: 2 | I4: 2 | J4: =IF(B4>0,VLOOKUP(I4,Punkteschema!$A$2:$B$101,2,FALSE),"") -> 21
A5: Greiffendorf, Hellmut | B5: 28 | C5: 32 | D5: 60 | E5: TRUE | F5: 3 | G5: 2 | H5: 3 | I5: 2 | J5: =IF(B5>0,VLOOKUP(I5,Punkteschema!$A$2:$B$101,2,FALSE),"") -> 21
A6: Tabor, Peter | B6: 126 | C6: 32 | D6: 158 | E6: TRUE | F6: 15 | G6: 2 | H6: 15 | I6: 2 | J6: =IF(B6>0,VLOOKUP(I6,Punkteschema!$A$2:$B$101,2,FALSE),"") -> 21
A7: Lenk, Rolf | B7: 28 | C7: 40 | D7: 68 | E7: TRUE | F7: 3 | G7: 14 | H7: 6 | I7: 3 | J7: =IF(B7>0,VLOOKUP(I7,Punkteschema!$A$2:$B$101,2,FALSE),"") -> 18
A8: Buchholz, Ansgar | B8: 29 | C8: 34 | D8: 63 | E8: TRUE | F8: 5 | G8: 5 | H8: 4 | I8: 4 | J8: =IF(B8>0,VLOOKUP(I8,Punkteschema!$A$2:$B$101,2,FALSE),"") -> 15
A9: Kortmann, Uwe | B9: 40 | C9: 34 | D9: 74 | E9: TRUE | F9: 12 | G9: 5 | H9: 8 | I9: 5 | J9: =IF(B9>0,VLOOKUP(I9,Punkteschema!$A$2:$B$101,2,FALSE),"") -> 15
A10: Puschner, Michael | B10: 31 | C10: 36 | D10: 67 | E10: FALSE | F10: 6 | G10: 7 | H10: 5 | I10: 7 | J10: =IF(B10>0,VLOOKUP(I10,Punkteschema!$A$2:$B$101,2,FALSE),"") -> 10
A11: Urban, Dominic | B11: 32 | C11: 37 | D11: 69 | E11: TRUE | F11: 7 | G11: 9 | H11: 7 | I11: 7 | J11: =IF(B11>0,VLOOKUP(I11,Punkteschema!$A$2:$B$101,2,FALSE),"") -> 10
A12: Börgmann, Brigitte | B12: 42 | C12: 36 | D12: 78 | E12: TRUE | F12: 13 | G12: 7 | H12: 12 | I12: 7 | J12: =IF(B12>0,VLOOKUP(I12,Punkteschema!$A$2:$B$101,2,FALSE),"") -> 10
A13: Börgmann, Ulrich | B13: 36 | C13: 38 | D13: 74 | E13: TRUE | F13: 9 | G13: 12 | H13: 8 | I13: 8 | J13: =IF(B13>0,VLOOKUP(I13,Punkteschema!$A$2:$B$101,2,FALSE),"") -> 10
A14: Urban, Angela | B14: 35 | C14: 40 | D14: 75 | E14: TRUE | F14: 8 | G14: 14 | H14: 10 | I14: 8 | J14: =IF(B14>0,VLOOKUP(I14,Punkteschema!$A$2:$B$101,2,FALSE),"") -> 10
A15: Kersch, Uwe | B15: 36 | C15: 39 | D15: 75 | E15: TRUE | F15: 9 | G15: 13 | H15: 10 | I15: 9 | J15: =IF(B15>0,VLOOKUP(I15,Punkteschema!$A$2:$B$101,2,FALSE),"") -> 10
A16: Jezierski, Marie-Luise | B16: 46 | C16: 37 | D16: 83 | E16: TRUE | F16: 14 | G16: 9 | H16: 14 | I16: 9 | J16: =IF(B16>0,VLOOKUP(I16,Punkteschema!$A$2:$B$101,2,FALSE),"") -> 10
A17: Lieber, Nicole | B17: 126 | C17: 37 | D17: 163 | E17: TRUE | F17: 15 | G17: 9 | H17: 16 | I17: 9 | J17: =IF(B17>0,VLOOKUP(I17,Punkteschema!$A$2:$B$101,2,FALSE),"") -> 10
A18: Kortmann, Sabine | B18: 37 | C18: 43 | D18: 80 | E18: TRUE | F18: 11 | G18: 17 | H18: 13 | I18: 11 | J18: =IF(B18>0,VLOOKUP(I18,Punkteschema!$A$2:$B$101,2,FALSE),"") -> 5
A19: Schmidt, Barbara | B19: 126 | C19: 40 | D19: 166 | E19: TRUE | F19: 15 | G19: 14 | H19: 17 | I19: 14 | J19: =IF(B19>0,VLOOKUP(I19,Punkteschema!$A$2:$B$101,2,FALSE),"") -> 5
D20: =IF(B20>0,C20+B20,"") ->  | E20: TRUE | F20: =IF(B20>0,COUNTIF(B$3:B$55,"<"&B20)+1,"") ->  | H20: =IF(AND(B20>0,C20>0),COUNTIF(D$3:D$55,"<"&D20)+1,"") ->  | I20: =IF(B20>0,IF(E20,MIN(F20:H20),MAX(F20:H20)),"") ->  | J20: =IF(B20>0,VLOOKUP(I20,Punkteschema!$A$2:$B$101,2,FALSE),"") -> 
E21: TRUE | J21: =IF(B21>0,VLOOKUP(I21,Punkteschema!$A$2:$B$101,2,FALSE),"") -> 
E22: TRUE | J22: =IF(B22>0,VLOOKUP(I22,Punkteschema!$A$2:$B$101,2,FALSE),"") -> 
E23: TRUE | J23: =IF(B23>0,VLOOKUP(I23,Punkteschema!$A$2:$B$101,2,FALSE),"") -> 
E24: TRUE | J24: =IF(B24>0,VLOOKUP(I24,Punkteschema!$A$2:$B$101,2,FALSE),"") -> 
E25: TRUE | J25: =IF(B25>0,VLOOKUP(I25,Punkteschema!$A$2:$B$101,2,FALSE),"") -> 
E26: TRUE | J26: =IF(B26>0,VLOOKUP(I26,Punkteschema!$A$2:$B$101,2,FALSE),"") -> 
E27: TRUE | J27: =IF(B27>0,VLOOKUP(I27,Punkteschema!$A$2:$B$101,2,FALSE),"") -> 
E28: TRUE | J28: =IF(B28>0,VLOOKUP(I28,Punkteschema!$A$2:$B$101,2,FALSE),"") -> 
E29: TRUE | J29: =IF(B29>0,VLOOKUP(I29,Punkteschema!$A$2:$B$101,2,FALSE),"") -> 
E30: TRUE | J30: =IF(B30>0,VLOOKUP(I30,Punkteschema!$A$2:$B$101,2,FALSE),"") -> 
E31: TRUE | J31: =IF(B31>0,VLOOKUP(I31,Punkteschema!$A$2:$B$101,2,FALSE),"") -> 
E32: TRUE | J32: =IF(B32>0,VLOOKUP(I32,Punkteschema!$A$2:$B$101,2,FALSE),"") -> 
E33: TRUE | J33: =IF(B33>0,VLOOKUP(I33,Punkteschema!$A$2:$B$101,2,FALSE),"") -> 
E34: TRUE | J34: =IF(B34>0,VLOOKUP(I34,Punkteschema!$A$2:$B$101,2,FALSE),"") -> 
E35: TRUE | J35: =IF(B35>0,VLOOKUP(I35,Punkteschema!$A$2:$B$101,2,FALSE),"") -> 
E36: TRUE | J36: =IF(B36>0,VLOOKUP(I36,Punkteschema!$A$2:$B$101,2,FALSE),"") -> 
E37: TRUE | J37: =IF(B37>0,VLOOKUP(I37,Punkteschema!$A$2:$B$101,2,FALSE),"") -> 
E38: TRUE | J38: =IF(B38>0,VLOOKUP(I38,Punkteschema!$A$2:$B$101,2,FALSE),"") -> 
E39: TRUE | J39: =IF(B39>0,VLOOKUP(I39,Punkteschema!$A$2:$B$101,2,FALSE),"") -> 
E40: TRUE | J40: =IF(B40>0,VLOOKUP(I40,Punkteschema!$A$2:$B$101,2,FALSE),"") -> 
E41: TRUE | J41: =IF(B41>0,VLOOKUP(I41,Punkteschema!$A$2:$B$101,2,FALSE),"") -> 
E42: TRUE | J42: =IF(B42>0,VLOOKUP(I42,Punkteschema!$A$2:$B$101,2,FALSE),"") -> 
E43: TRUE | J43: =IF(B43>0,VLOOKUP(I43,Punkteschema!$A$2:$B$101,2,FALSE),"") -> 
E44: TRUE | J44: =IF(B44>0,VLOOKUP(I44,Punkteschema!$A$2:$B$101,2,FALSE),"") -> 
E45: TRUE | J45: =IF(B45>0,VLOOKUP(I45,Punkteschema!$A$2:$B$101,2,FALSE),"") -> 
E46: TRUE | J46: =IF(B46>0,VLOOKUP(I46,Punkteschema!$A$2:$B$101,2,FALSE),"") -> 
E47: TRUE | J47: =IF(B47>0,VLOOKUP(I47,Punkteschema!$A$2:$B$101,2,FALSE),"") -> 
E48: TRUE | J48: =IF(B48>0,VLOOKUP(I48,Punkteschema!$A$2:$B$101,2,FALSE),"") -> 
E49: TRUE | J49: =IF(B49>0,VLOOKUP(I49,Punkteschema!$A$2:$B$101,2,FALSE),"") -> 
E50: TRUE | J50: =IF(B50>0,VLOOKUP(I50,Punkteschema!$A$2:$B$101,2,FALSE),"") -> 
E51: TRUE | J51: =IF(B51>0,VLOOKUP(I51,Punkteschema!$A$2:$B$101,2,FALSE),"") -> 
E52: TRUE | J52: =IF(B52>0,VLOOKUP(I52,Punkteschema!$A$2:$B$101,2,FALSE),"") -> 
E53: TRUE | F53: =IF(B53>0,COUNTIF(B$3:B$55,"<"&B53)+1,"") ->  | H53: =IF(AND(B53>0,C53>0),COUNTIF(D$3:D$55,"<"&D53)+1,"") ->  | I53: =IF(B53>0,IF(E53,MIN(F53:H53),MAX(F53:H53)),"") ->  | J53: =IF(B53>0,VLOOKUP(I53,Punkteschema!$A$2:$B$101,2,FALSE),"") -> 
E54: TRUE | H54: =IF(AND(B54>0,C54>0),COUNTIF(D$3:D$55,"<"&D54)+1,"") ->  | I54: =IF(B54>0,IF(E54,MIN(F54:H54),MAX(F54:H54)),"") ->  | J54: =IF(B54>0,VLOOKUP(I54,Punkteschema!$A$2:$B$101,2,FALSE),"") -> 
E55: TRUE | H55: =IF(AND(B55>0,C55>0),COUNTIF(D$3:D$55,"<"&D55)+1,"") ->  | I55: =IF(B55>0,IF(E55,MIN(F55:H55),MAX(F55:H55)),"") ->  | J55: =IF(B55>0,VLOOKUP(I55,Punkteschema!$A$2:$B$101,2,FALSE),"") -> 
A57: OS: Mühling, Dirk (HEV) | E57: Runde 1: | F57: E | G57: <- E/B
A58: S: Urban, Volker (ASW) | E58: Runde 2: | F58: B | G58: <- E/B
A59: S: Puschner, Michael (HOB)
A61: Verloste Preise: | B61: Dominic Urban (1 Winzervesper)
B62: Peter Tabor (1 Flasche Holunderwein)
B63: Dirk Mühling (1 Gasfeuerzeugset)

Sheet Einzelwertung14
A1: =CONCATENATE("5. Sommer-Cup - Freizeittreff Herbede - ",TEXT(Gesamtstand!$S$2,"TT.MM.JJ")) -> 5. Sommer-Cup - Freizeittreff Herbede - 01.08.19
A2: Spieler | B2: Runde 1 | C2: Runde 2 | D2: Gesamt | E2: bessere? | F2: Pl. R1 | G2: Pl. R2 | H2: Pl. Ges. | I2: gewertet | J2: Punkte
A3: Lieber, Nicole | B3: 31 | C3: 28 | D3: =IF(B3>0,C3+B3,"") -> 59 | E3: TRUE | F3: =IF(B3>0,COUNTIF(B$3:B$55,"<"&B3)+1,"") -> 6 | G3: =IF(C3>0,COUNTIF(C$3:C$55,"<"&C3)+1,"") -> 1 | H3: =IF(AND(B3>0,C3>0),COUNTIF(D$3:D$55,"<"&D3)+1,"") -> 1 | I3: =IF(B3>0,IF(E3,MIN(F3:H3),MAX(F3:H3)),"") -> 1 | J3: =IF(B3>0,VLOOKUP(I3,Punkteschema!$A$2:$B$101,2,FALSE),"") -> 25
A4: Battig, Wolfgang | B4: 25 | C4: 36 | D4: 61 | E4: TRUE | F4: 1 | G4: 11 | H4: 3 | I4: 1 | J4: =IF(B4>0,VLOOKUP(I4,Punkteschema!$A$2:$B$101,2,FALSE),"") -> 25
A5: Lenk, Rolf | B5: 28 | C5: 34 | D5: 62 | E5: TRUE | F5: 3 | G5: 4 | H5: 4 | I5: 3 | J5: =IF(B5>0,VLOOKUP(I5,Punkteschema!$A$2:$B$101,2,FALSE),"") -> 18
A6: Mühling, Dirk | B6: 26 | C6: 34 | D6: 60 | E6: FALSE | F6: 2 | G6: 4 | H6: 2 | I6: 4 | J6: =IF(B6>0,VLOOKUP(I6,Punkteschema!$A$2:$B$101,2,FALSE),"") -> 15
A7: Lehmann, Niclas | B7: 30 | C7: 35 | D7: 65 | E7: TRUE | F7: 4 | G7: 9 | H7: 5 | I7: 4 | J7: =IF(B7>0,VLOOKUP(I7,Punkteschema!$A$2:$B$101,2,FALSE),"") -> 15
A8: Kunz, Martin | B8: 30 | C8: 38 | D8: 68 | E8: TRUE | F8: 4 | G8: 13 | H8: 8 | I8: 4 | J8: =IF(B8>0,VLOOKUP(I8,Punkteschema!$A$2:$B$101,2,FALSE),"") -> 15
A9: Greiffendorf, Hellmut | B9: 34 | C9: 34 | D9: 68 | E9: TRUE | F9: 8 | G9: 4 | H9: 8 | I9: 4 | J9: =IF(B9>0,VLOOKUP(I9,Punkteschema!$A$2:$B$101,2,FALSE),"") -> 15
A10: Börgmann, Ulrich | B10: 34 | C10: 34 | D10: 68 | E10: TRUE | F10: 8 | G10: 4 | H10: 8 | I10: 4 | J10: =IF(B10>0,VLOOKUP(I10,Punkteschema!$A$2:$B$101,2,FALSE),"") -> 15
A11: Petersen, Robin | B11: 36 | C11: 34 | D11: 70 | E11: TRUE | F11: 16 | G11: 4 | H11: 11 | I11: 4 | J11: =IF(B11>0,VLOOKUP(I11,Punkteschema!$A$2:$B$101,2,FALSE),"") -> 15
A12: Wilke, Andreas | B12: 33 | C12: 44 | D12: 77 | E12: TRUE | F12: 7 | G12: 18 | H12: 14 | I12: 7 | J12: =IF(B12>0,VLOOKUP(I12,Punkteschema!$A$2:$B$101,2,FALSE),"") -> 10
A13: Kortmann, Uwe | B13: 34 | C13: 46 | D13: 80 | E13: TRUE | F13: 8 | G13: 19 | H13: 18 | I13: 8 | J13: =IF(B13>0,VLOOKUP(I13,Punkteschema!$A$2:$B$101,2,FALSE),"") -> 10
A14: Börgmann, Brigitte | B14: 43 | C14: 35 | D14: 78 | E14: TRUE | F14: 19 | G14: 9 | H14: 16 | I14: 9 | J14: =IF(B14>0,VLOOKUP(I14,Punkteschema!$A$2:$B$101,2,FALSE),"") -> 10
A15: Puschner, Michael | B15: 35 | C15: 32 | D15: 67 | E15: FALSE | F15: 11 | G15: 3 | H15: 6 | I15: 11 | J15: =IF(B15>0,VLOOKUP(I15,Punkteschema!$A$2:$B$101,2,FALSE),"") -> 5
A16: Jezierski, Marie-Luise | B16: 35 | C16: 37 | D16: 72 | E16: TRUE | F16: 11 | G16: 12 | H16: 12 | I16: 11 | J16: =IF(B16>0,VLOOKUP(I16,Punkteschema!$A$2:$B$101,2,FALSE),"") -> 5
A17: Kersch, Uwe | B17: 35 | C17: 39 | D17: 74 | E17: TRUE | F17: 11 | G17: 14 | H17: 13 | I17: 11 | J17: =IF(B17>0,VLOOKUP(I17,Punkteschema!$A$2:$B$101,2,FALSE),"") -> 5
A18: Kortmann, Sabine | B18: 35 | C18: 42 | D18: 77 | E18: TRUE | F18: 11 | G18: 17 | H18: 14 | I18: 11 | J18: =IF(B18>0,VLOOKUP(I18,Punkteschema!$A$2:$B$101,2,FALSE),"") -> 5
A19: Dammann, Reinhold | B19: 35 | C19: 126 | D19: 161 | E19: TRUE | F19: 11 | G19: 20 | H19: 20 | I19: 11 | J19: =IF(B19>0,VLOOKUP(I19,Punkteschema!$A$2:$B$101,2,FALSE),"") -> 5
A20: Petersmann, Chris | B20: 40 | C20: 39 | D20: 79 | E20: TRUE | F20: 18 | G20: 14 | H20: 17 | I20: 14 | J20: =IF(B20>0,VLOOKUP(I20,Punkteschema!$A$2:$B$101,2,FALSE),"") -> 5
A21: Schmidtbauer, Günter | B21: 47 | C21: 39 | D21: 86 | E21: TRUE | F21: 20 | G21: 14 | H21: 19 | I21: 14 | J21: =IF(B21>0,VLOOKUP(I21,Punkteschema!$A$2:$B$101,2,FALSE),"") -> 5
A22: Tabor, Peter | B22: 37 | C22: 30 | D22: 67 | E22: FALSE | F22: 17 | G22: 2 | H22: 6 | I22: 17 | J22: =IF(B22>0,VLOOKUP(I22,Punkteschema!$A$2:$B$101,2,FALSE),"") -> 3
D23: =IF(B23>0,C23+B23,"") ->  | E23: TRUE | F23: =IF(B23>0,COUNTIF(B$3:B$55,"<"&B23)+1,"") ->  | G23: =IF(C23>0,COUNTIF(C$3:C$55,"<"&C23)+1,"") ->  | H23: =IF(AND(B23>0,C23>0),COUNTIF(D$3:D$55,"<"&D23)+1,"") ->  | I23: =IF(B23>0,IF(E23,MIN(F23:H23),MAX(F23:H23)),"") ->  | J23: =IF(B23>0,VLOOKUP(I23,Punkteschema!$A$2:$B$101,2,FALSE),"") -> 
D24: =IF(B24>0,C24+B24,"") ->  | E24: TRUE | F24: =IF(B24>0,COUNTIF(B$3:B$55,"<"&B24)+1,"") ->  | H24: =IF(AND(B24>0,C24>0),COUNTIF(D$3:D$55,"<"&D24)+1,"") ->  | I24: =IF(B24>0,IF(E24,MIN(F24:H24),MAX(F24:H24)),"") ->  | J24: =IF(B24>0,VLOOKUP(I24,Punkteschema!$A$2:$B$101,2,FALSE),"") -> 
E25: TRUE | J25: =IF(B25>0,VLOOKUP(I25,Punkteschema!$A$2:$B$101,2,FALSE),"") -> 
E26: TRUE | J26: =IF(B26>0,VLOOKUP(I26,Punkteschema!$A$2:$B$101,2,FALSE),"") -> 
E27: TRUE | J27: =IF(B27>0,VLOOKUP(I27,Punkteschema!$A$2:$B$101,2,FALSE),"") -> 
E28: TRUE | J28: =IF(B28>0,VLOOKUP(I28,Punkteschema!$A$2:$B$101,2,FALSE),"") -> 
E29: TRUE | J29: =IF(B29>0,VLOOKUP(I29,Punkteschema!$A$2:$B$101,2,FALSE),"") -> 
E30: TRUE | J30: =IF(B30>0,VLOOKUP(I30,Punkteschema!$A$2:$B$101,2,FALSE),"") -> 
E31: TRUE | J31: =IF(B31>0,VLOOKUP(I31,Punkteschema!$A$2:$B$101,2,FALSE),"") -> 
E32: TRUE | J32: =IF(B32>0,VLOOKUP(I32,Punkteschema!$A$2:$B$101,2,FALSE),"") -> 
E33: TRUE | J33: =IF(B33>0,VLOOKUP(I33,Punkteschema!$A$2:$B$101,2,FALSE),"") -> 
E34: TRUE | J34: =IF(B34>0,VLOOKUP(I34,Punkteschema!$A$2:$B$101,2,FALSE),"") -> 
E35: TRUE | J35: =IF(B35>0,VLOOKUP(I35,Punkteschema!$A$2:$B$101,2,FALSE),"") -> 
E36: TRUE | J36: =IF(B36>0,VLOOKUP(I36,Punkteschema!$A$2:$B$101,2,FALSE),"") -> 
E37: TRUE | J37: =IF(B37>0,VLOOKUP(I37,Punkteschema!$A$2:$B$101,2,FALSE),"") -> 
E38: TRUE | J38: =IF(B38>0,VLOOKUP(I38,Punkteschema!$A$2:$B$101,2,FALSE),"") -> 
E39: TRUE | J39: =IF(B39>0,VLOOKUP(I39,Punkteschema!$A$2:$B$101,2,FALSE),"") -> 
E40: TRUE | J40: =IF(B40>0,VLOOKUP(I40,Punkteschema!$A$2:$B$101,2,FALSE),"") -> 
E41: TRUE | J41: =IF(B41>0,VLOOKUP(I41,Punkteschema!$A$2:$B$101,2,FALSE),"") -> 
E42: TRUE | J42: =IF(B42>0,VLOOKUP(I42,Punkteschema!$A$2:$B$101,2,FALSE),"") -> 
E43: TRUE | J43: =IF(B43>0,VLOOKUP(I43,Punkteschema!$A$2:$B$101,2,FALSE),"") -> 
E44: TRUE | J44: =IF(B44>0,VLOOKUP(I44,Punkteschema!$A$2:$B$101,2,FALSE),"") -> 
E45: TRUE | J45: =IF(B45>0,VLOOKUP(I45,Punkteschema!$A$2:$B$101,2,FALSE),"") -> 
E46: TRUE | J46: =IF(B46>0,VLOOKUP(I46,Punkteschema!$A$2:$B$101,2,FALSE),"") -> 
E47: TRUE | J47: =IF(B47>0,VLOOKUP(I47,Punkteschema!$A$2:$B$101,2,FALSE),"") -> 
E48: TRUE | J48: =IF(B48>0,VLOOKUP(I48,Punkteschema!$A$2:$B$101,2,FALSE),"") -> 
E49: TRUE | J49: =IF(B49>0,VLOOKUP(I49,Punkteschema!$A$2:$B$101,2,FALSE),"") -> 
E50: TRUE | J50: =IF(B50>0,VLOOKUP(I50,Punkteschema!$A$2:$B$101,2,FALSE),"") -> 
E51: TRUE | J51: =IF(B51>0,VLOOKUP(I51,Punkteschema!$A$2:$B$101,2,FALSE),"") -> 
E52: TRUE | J52: =IF(B52>0,VLOOKUP(I52,Punkteschema!$A$2:$B$101,2,FALSE),"") -> 
E53: TRUE | F53: =IF(B53>0,COUNTIF(B$3:B$55,"<"&B53)+1,"") ->  | H53: =IF(AND(B53>0,C53>0),COUNTIF(D$3:D$55,"<"&D53)+1,"") ->  | I53: =IF(B53>0,IF(E53,MIN(F53:H53),MAX(F53:H53)),"") ->  | J53: =IF(B53>0,VLOOKUP(I53,Punkteschema!$A$2:$B$101,2,FALSE),"") -> 
E54: TRUE | H54: =IF(AND(B54>0,C54>0),COUNTIF(D$3:D$55,"<"&D54)+1,"") ->  | I54: =IF(B54>0,IF(E54,MIN(F54:H54),MAX(F54:H54)),"") ->  | J54: =IF(B54>0,VLOOKUP(I54,Punkteschema!$A$2:$B$101,2,FALSE),"") -> 
E55: TRUE | H55: =IF(AND(B55>0,C55>0),COUNTIF(D$3:D$55,"<"&D55)+1,"") ->  | I55: =IF(B55>0,IF(E55,MIN(F55:H55),MAX(F55:H55)),"") ->  | J55: =IF(B55>0,VLOOKUP(I55,Punkteschema!$A$2:$B$101,2,FALSE),"") -> 
A57: OS: Mühling, Dirk (HEV) | E57: Runde 1: | F57: E | G57: <- E/B
A58: S: Tabor, Peter (ASW) | E58: Runde 2: | F58: B | G58: <- E/B
A59: S: Puschner, Michael (HOB)
A61: Verloste Preise: | B61: Ulrich Börgmann (1 Flasche Erdbeerlikör)
B62: Peter Tabor (1 grosse Dose Haribo)
B63: Brigitte Börgmann (1 Wanduhr)

Sheet Einzelwertung15
A1: =CONCATENATE("5. Sommer-Cup - Freizeittreff Herbede - ",TEXT(Gesamtstand!$T$2,"TT.MM.JJ")) -> 5. Sommer-Cup - Freizeittreff Herbede - 08.08.19
A2: Spieler | B2: Runde 1 | C2: Runde 2 | D2: Gesamt | E2: bessere? | F2: Pl. R1 | G2: Pl. R2 | H2: Pl. Ges. | I2: gewertet | J2: Punkte
A3: Battig, Wolfgang | B3: 24 | C3: 27 | D3: =IF(B3>0,C3+B3,"") -> 51 | E3: TRUE | F3: =IF(B3>0,COUNTIF(B$3:B$55,"<"&B3)+1,"") -> 2 | G3: =IF(C3>0,COUNTIF(C$3:C$55,"<"&C3)+1,"") -> 1 | H3: =IF(AND(B3>0,C3>0),COUNTIF(D$3:D$55,"<"&D3)+1,"") -> 1 | I3: =IF(B3>0,IF(E3,MIN(F3:H3),MAX(F3:H3)),"") -> 1 | J3: =IF(B3>0,VLOOKUP(I3,Punkteschema!$A$2:$B$101,2,FALSE),"") -> 25
A4: Buchholz, Ansgar | B4: 22 | C4: 29 | D4: 51 | E4: TRUE | F4: 1 | G4: 3 | H4: 1 | I4: 1 | J4: =IF(B4>0,VLOOKUP(I4,Punkteschema!$A$2:$B$101,2,FALSE),"") -> 25
A5: Lieber, Nicole | B5: 37 | C5: 28 | D5: 65 | E5: TRUE | F5: 16 | G5: 2 | H5: 8 | I5: 2 | J5: =IF(B5>0,VLOOKUP(I5,Punkteschema!$A$2:$B$101,2,FALSE),"") -> 21
A6: Rade, Marcus | B6: 27 | C6: 30 | D6: 57 | E6: TRUE | F6: 4 | G6: 4 | H6: 3 | I6: 3 | J6: =IF(B6>0,VLOOKUP(I6,Punkteschema!$A$2:$B$101,2,FALSE),"") -> 18
A7: Greiffendorf, Hellmut | B7: 27 | C7: 33 | D7: 60 | E7: TRUE | F7: 4 | G7: 6 | H7: 5 | I7: 4 | J7: =IF(B7>0,VLOOKUP(I7,Punkteschema!$A$2:$B$101,2,FALSE),"") -> 15
A8: Lenk, Rolf | B8: 30 | C8: 31 | D8: 61 | E8: TRUE | F8: 8 | G8: 5 | H8: 6 | I8: 5 | J8: =IF(B8>0,VLOOKUP(I8,Punkteschema!$A$2:$B$101,2,FALSE),"") -> 15
A9: Kortmann, Uwe | B9: 36 | C9: 33 | D9: 69 | E9: TRUE | F9: 15 | G9: 6 | H9: 11 | I9: 6 | J9: =IF(B9>0,VLOOKUP(I9,Punkteschema!$A$2:$B$101,2,FALSE),"") -> 15
A10: Mühling, Dirk | B10: 26 | C10: 33 | D10: 59 | E10: FALSE | F10: 3 | G10: 6 | H10: 4 | I10: 6 | J10: =IF(B10>0,VLOOKUP(I10,Punkteschema!$A$2:$B$101,2,FALSE),"") -> 15
A11: Schmitt, Jürgen | B11: 29 | C11: 36 | D11: 65 | E11: TRUE | F11: 7 | G11: 15 | H11: 8 | I11: 7 | J11: =IF(B11>0,VLOOKUP(I11,Punkteschema!$A$2:$B$101,2,FALSE),"") -> 10
A12: Dreischer, Burkhard | B12: 32 | C12: 42 | D12: 74 | E12: TRUE | F12: 9 | G12: 19 | H12: 16 | I12: 9 | J12: =IF(B12>0,VLOOKUP(I12,Punkteschema!$A$2:$B$101,2,FALSE),"") -> 10
A13: Jezierski, Marie-Luise | B13: 33 | C13: 34 | D13: 67 | E13: TRUE | F13: 10 | G13: 9 | H13: 10 | I13: 9 | J13: =IF(B13>0,VLOOKUP(I13,Punkteschema!$A$2:$B$101,2,FALSE),"") -> 10
A14: Börgmann, Brigitte | B14: 43 | C14: 35 | D14: 78 | E14: TRUE | F14: 20 | G14: 11 | H14: 18 | I14: 11 | J14: =IF(B14>0,VLOOKUP(I14,Punkteschema!$A$2:$B$101,2,FALSE),"") -> 5
A15: Börgmann, Ulrich | B15: 34 | C15: 35 | D15: 69 | E15: TRUE | F15: 11 | G15: 11 | H15: 11 | I15: 11 | J15: =IF(B15>0,VLOOKUP(I15,Punkteschema!$A$2:$B$101,2,FALSE),"") -> 5
A16: Kortmann, Sabine | B16: 34 | C16: 35 | D16: 69 | E16: TRUE | F16: 11 | G16: 11 | H16: 11 | I16: 11 | J16: =IF(B16>0,VLOOKUP(I16,Punkteschema!$A$2:$B$101,2,FALSE),"") -> 5
A17: Schmidtbauer, Günter | B17: 34 | C17: 37 | D17: 71 | E17: TRUE | F17: 11 | G17: 16 | H17: 15 | I17: 11 | J17: =IF(B17>0,VLOOKUP(I17,Punkteschema!$A$2:$B$101,2,FALSE),"") -> 5
A18: Urban, Volker | B18: 27 | C18: 35 | D18: 62 | E18: FALSE | F18: 4 | G18: 11 | H18: 7 | I18: 11 | J18: =IF(B18>0,VLOOKUP(I18,Punkteschema!$A$2:$B$101,2,FALSE),"") -> 5
A19: Tabor, Peter | B19: 35 | C19: 34 | D19: 69 | E19: FALSE | F19: 14 | G19: 9 | H19: 11 | I19: 14 | J19: =IF(B19>0,VLOOKUP(I19,Punkteschema!$A$2:$B$101,2,FALSE),"") -> 5
A20: Urban, Dominic | B20: 37 | C20: 37 | D20: 74 | E20: TRUE | F20: 16 | G20: 16 | H20: 16 | I20: 16 | J20: =IF(B20>0,VLOOKUP(I20,Punkteschema!$A$2:$B$101,2,FALSE),"") -> 3
A21: Kersch, Uwe | B21: 38 | C21: 40 | D21: 78 | E21: TRUE | F21: 18 | G21: 18 | H21: 18 | I21: 18 | J21: =IF(B21>0,VLOOKUP(I21,Punkteschema!$A$2:$B$101,2,FALSE),"") -> 3
A22: Urban, Angela | B22: 39 | C22: 49 | D22: 88 | E22: TRUE | F22: 19 | G22: 20 | H22: 20 | I22: 19 | J22: =IF(B22>0,VLOOKUP(I22,Punkteschema!$A$2:$B$101,2,FALSE),"") -> 3
D23: =IF(B23>0,C23+B23,"") ->  | E23: TRUE | F23: =IF(B23>0,COUNTIF(B$3:B$55,"<"&B23)+1,"") ->  | H23: =IF(AND(B23>0,C23>0),COUNTIF(D$3:D$55,"<"&D23)+1,"") ->  | I23: =IF(B23>0,IF(E23,MIN(F23:H23),MAX(F23:H23)),"") ->  | J23: =IF(B23>0,VLOOKUP(I23,Punkteschema!$A$2:$B$101,2,FALSE),"") -> 
E24: TRUE | J24: =IF(B24>0,VLOOKUP(I24,Punkteschema!$A$2:$B$101,2,FALSE),"") -> 
E25: TRUE | J25: =IF(B25>0,VLOOKUP(I25,Punkteschema!$A$2:$B$101,2,FALSE),"") -> 
E26: TRUE | J26: =IF(B26>0,VLOOKUP(I26,Punkteschema!$A$2:$B$101,2,FALSE),"") -> 
E27: TRUE | J27: =IF(B27>0,VLOOKUP(I27,Punkteschema!$A$2:$B$101,2,FALSE),"") -> 
E28: TRUE | J28: =IF(B28>0,VLOOKUP(I28,Punkteschema!$A$2:$B$101,2,FALSE),"") -> 
E29: TRUE | J29: =IF(B29>0,VLOOKUP(I29,Punkteschema!$A$2:$B$101,2,FALSE),"") -> 
E30: TRUE | J30: =IF(B30>0,VLOOKUP(I30,Punkteschema!$A$2:$B$101,2,FALSE),"") -> 
E31: TRUE | J31: =IF(B31>0,VLOOKUP(I31,Punkteschema!$A$2:$B$101,2,FALSE),"") -> 
E32: TRUE | J32: =IF(B32>0,VLOOKUP(I32,Punkteschema!$A$2:$B$101,2,FALSE),"") -> 
E33: TRUE | J33: =IF(B33>0,VLOOKUP(I33,Punkteschema!$A$2:$B$101,2,FALSE),"") -> 
E34: TRUE | J34: =IF(B34>0,VLOOKUP(I34,Punkteschema!$A$2:$B$101,2,FALSE),"") -> 
E35: TRUE | J35: =IF(B35>0,VLOOKUP(I35,Punkteschema!$A$2:$B$101,2,FALSE),"") -> 
E36: TRUE | J36: =IF(B36>0,VLOOKUP(I36,Punkteschema!$A$2:$B$101,2,FALSE),"") -> 
E37: TRUE | J37: =IF(B37>0,VLOOKUP(I37,Punkteschema!$A$2:$B$101,2,FALSE),"") -> 
E38: TRUE | J38: =IF(B38>0,VLOOKUP(I38,Punkteschema!$A$2:$B$101,2,FALSE),"") -> 
E39: TRUE | J39: =IF(B39>0,VLOOKUP(I39,Punkteschema!$A$2:$B$101,2,FALSE),"") -> 
E40: TRUE | J40: =IF(B40>0,VLOOKUP(I40,Punkteschema!$A$2:$B$101,2,FALSE),"") -> 
E41: TRUE | J41: =IF(B41>0,VLOOKUP(I41,Punkteschema!$A$2:$B$101,2,FALSE),"") -> 
E42: TRUE | J42: =IF(B42>0,VLOOKUP(I42,Punkteschema!$A$2:$B$101,2,FALSE),"") -> 
E43: TRUE | J43: =IF(B43>0,VLOOKUP(I43,Punkteschema!$A$2:$B$101,2,FALSE),"") -> 
E44: TRUE | J44: =IF(B44>0,VLOOKUP(I44,Punkteschema!$A$2:$B$101,2,FALSE),"") -> 
E45: TRUE | J45: =IF(B45>0,VLOOKUP(I45,Punkteschema!$A$2:$B$101,2,FALSE),"") -> 
E46: TRUE | J46: =IF(B46>0,VLOOKUP(I46,Punkteschema!$A$2:$B$101,2,FALSE),"") -> 
E47: TRUE | J47: =IF(B47>0,VLOOKUP(I47,Punkteschema!$A$2:$B$101,2,FALSE),"") -> 
E48: TRUE | J48: =IF(B48>0,VLOOKUP(I48,Punkteschema!$A$2:$B$101,2,FALSE),"") -> 
E49: TRUE | J49: =IF(B49>0,VLOOKUP(I49,Punkteschema!$A$2:$B$101,2,FALSE),"") -> 
E50: TRUE | J50: =IF(B50>0,VLOOKUP(I50,Punkteschema!$A$2:$B$101,2,FALSE),"") -> 
E51: TRUE | J51: =IF(B51>0,VLOOKUP(I51,Punkteschema!$A$2:$B$101,2,FALSE),"") -> 
E52: TRUE | J52: =IF(B52>0,VLOOKUP(I52,Punkteschema!$A$2:$B$101,2,FALSE),"") -> 
E53: TRUE | F53: =IF(B53>0,COUNTIF(B$3:B$55,"<"&B53)+1,"") ->  | H53: =IF(AND(B53>0,C53>0),COUNTIF(D$3:D$55,"<"&D53)+1,"") ->  | I53: =IF(B53>0,IF(E53,MIN(F53:H53),MAX(F53:H53)),"") ->  | J53: =IF(B53>0,VLOOKUP(I53,Punkteschema!$A$2:$B$101,2,FALSE),"") -> 
E54: TRUE | H54: =IF(AND(B54>0,C54>0),COUNTIF(D$3:D$55,"<"&D54)+1,"") ->  | I54: =IF(B54>0,IF(E54,MIN(F54:H54),MAX(F54:H54)),"") ->  | J54: =IF(B54>0,VLOOKUP(I54,Punkteschema!$A$2:$B$101,2,FALSE),"") -> 
E55: TRUE | H55: =IF(AND(B55>0,C55>0),COUNTIF(D$3:D$55,"<"&D55)+1,"") ->  | I55: =IF(B55>0,IF(E55,MIN(F55:H55),MAX(F55:H55)),"") ->  | J55: =IF(B55>0,VLOOKUP(I55,Punkteschema!$A$2:$B$101,2,FALSE),"") -> 
A57: OS: Mühling, Dirk (HEV) | E57: Runde 1: | F57: E | G57: <- E/B
A58: S: Urban, Volker (ASW) | E58: Runde 2: | F58: B | G58: <- E/B
A59: S: Battig, Wolfgang (LÜD)
A61: Verloste Preise: | B61: Volker Urban (1 Flasche Wein + 1 Glas)
B62: Ulrich Börgmann (1 Verzehrgutschein)
B63: Nicole Lieber (1 Bonbonglas mit Süßigkeiten)

Sheet Einzelwertung16
A1: =CONCATENATE("5. Sommer-Cup - Freizeittreff Herbede - ",TEXT(Gesamtstand!$U$2,"TT.MM.JJ")) -> 5. Sommer-Cup - Freizeittreff Herbede - 15.08.19
A2: Spieler | B2: Runde 1 | C2: Runde 2 | D2: Gesamt | E2: bessere? | F2: Pl. R1 | G2: Pl. R2 | H2: Pl. Ges. | I2: gewertet | J2: Punkte
A3: Buchholz, Ansgar | B3: 23 | D3: =IF(B3>0,C3+B3,"") -> 23 | E3: FALSE | F3: =IF(B3>0,COUNTIF(B$3:B$55,"<"&B3)+1,"") -> 1 | G3: =IF(C3>0,COUNTIF(C$3:C$55,"<"&C3)+1,"") ->  | H3: =IF(AND(B3>0,C3>0),COUNTIF(D$3:D$55,"<"&D3)+1,"") ->  | I3: =IF(B3>0,IF(E3,MIN(F3:H3),MAX(F3:H3)),"") -> 1 | J3: =IF(B3>0,VLOOKUP(I3,Punkteschema!$A$2:$B$101,2,FALSE),"") -> 25
A4: Schmitt, Jürgen | B4: 24 | D4: 24 | E4: TRUE | F4: 2 | I4: 2 | J4: =IF(B4>0,VLOOKUP(I4,Punkteschema!$A$2:$B$101,2,FALSE),"") -> 21
A5: Urban, Volker | B5: 27 | D5: 27 | E5: FALSE | F5: 3 | I5: 3 | J5: =IF(B5>0,VLOOKUP(I5,Punkteschema!$A$2:$B$101,2,FALSE),"") -> 18
A6: Tabor, Peter | B6: 27 | D6: 27 | E6: TRUE | F6: 3 | I6: 3 | J6: =IF(B6>0,VLOOKUP(I6,Punkteschema!$A$2:$B$101,2,FALSE),"") -> 18
A7: Hein, Hans-Jörg | B7: 29 | D7: 29 | E7: TRUE | F7: 5 | I7: 5 | J7: =IF(B7>0,VLOOKUP(I7,Punkteschema!$A$2:$B$101,2,FALSE),"") -> 15
A8: Dreischer, Burkhard | B8: 29 | D8: 29 | E8: TRUE | F8: 5 | I8: 5 | J8: =IF(B8>0,VLOOKUP(I8,Punkteschema!$A$2:$B$101,2,FALSE),"") -> 15
A9: Greiffendorf, Hellmut | B9: 30 | D9: 30 | E9: TRUE | F9: 7 | I9: 7 | J9: =IF(B9>0,VLOOKUP(I9,Punkteschema!$A$2:$B$101,2,FALSE),"") -> 10
A10: Lenk, Rolf | B10: 30 | D10: 30 | E10: TRUE | F10: 7 | I10: 7 | J10: =IF(B10>0,VLOOKUP(I10,Punkteschema!$A$2:$B$101,2,FALSE),"") -> 10
A11: Mühling, Dirk | B11: 32 | D11: 32 | E11: FALSE | F11: 9 | I11: 9 | J11: =IF(B11>0,VLOOKUP(I11,Punkteschema!$A$2:$B$101,2,FALSE),"") -> 10
A12: Börgmann, Ulrich | B12: 33 | D12: 33 | E12: TRUE | F12: 10 | I12: 10 | J12: =IF(B12>0,VLOOKUP(I12,Punkteschema!$A$2:$B$101,2,FALSE),"") -> 10
A13: Kunz, Martin | B13: 34 | D13: 34 | E13: TRUE | F13: 11 | I13: 11 | J13: =IF(B13>0,VLOOKUP(I13,Punkteschema!$A$2:$B$101,2,FALSE),"") -> 5
A14: Kortmann, Sabine | B14: 35 | D14: 35 | E14: TRUE | F14: 12 | I14: 12 | J14: =IF(B14>0,VLOOKUP(I14,Punkteschema!$A$2:$B$101,2,FALSE),"") -> 5
A15: Lieber, Nicole | B15: 37 | D15: 37 | E15: TRUE | F15: 13 | I15: 13 | J15: =IF(B15>0,VLOOKUP(I15,Punkteschema!$A$2:$B$101,2,FALSE),"") -> 5
A16: Schmidt, Barbara | B16: 40 | D16: 40 | E16: TRUE | F16: 14 | I16: 14 | J16: =IF(B16>0,VLOOKUP(I16,Punkteschema!$A$2:$B$101,2,FALSE),"") -> 5
A17: Urban, Angela | B17: 40 | D17: 40 | E17: TRUE | F17: 14 | I17: 14 | J17: =IF(B17>0,VLOOKUP(I17,Punkteschema!$A$2:$B$101,2,FALSE),"") -> 5
A18: Schmidtbauer, Günter | B18: 40 | D18: 40 | E18: TRUE | F18: 14 | I18: 14 | J18: =IF(B18>0,VLOOKUP(I18,Punkteschema!$A$2:$B$101,2,FALSE),"") -> 5
A19: Kortmann, Uwe | B19: 41 | D19: 41 | E19: TRUE | F19: 17 | I19: 17 | J19: =IF(B19>0,VLOOKUP(I19,Punkteschema!$A$2:$B$101,2,FALSE),"") -> 3
A20: Urban, Dominic | B20: 42 | D20: 42 | E20: TRUE | F20: 18 | I20: 18 | J20: =IF(B20>0,VLOOKUP(I20,Punkteschema!$A$2:$B$101,2,FALSE),"") -> 3
A21: Jezierski, Marie-Luise | B21: 43 | D21: 43 | E21: TRUE | F21: 19 | I21: 19 | J21: =IF(B21>0,VLOOKUP(I21,Punkteschema!$A$2:$B$101,2,FALSE),"") -> 3
A22: Kersch, Uwe | B22: 44 | D22: 44 | E22: TRUE | F22: 20 | I22: 20 | J22: =IF(B22>0,VLOOKUP(I22,Punkteschema!$A$2:$B$101,2,FALSE),"") -> 3
A23: Börgmann, Brigitte | B23: 47 | D23: 47 | E23: TRUE | F23: 21 | I23: 21 | J23: =IF(B23>0,VLOOKUP(I23,Punkteschema!$A$2:$B$101,2,FALSE),"") -> 1
D24: =IF(B24>0,C24+B24,"") ->  | E24: TRUE | F24: =IF(B24>0,COUNTIF(B$3:B$55,"<"&B24)+1,"") ->  | G24: =IF(C24>0,COUNTIF(C$3:C$55,"<"&C24)+1,"") ->  | H24: =IF(AND(B24>0,C24>0),COUNTIF(D$3:D$55,"<"&D24)+1,"") ->  | I24: =IF(B24>0,IF(E24,MIN(F24:H24),MAX(F24:H24)),"") ->  | J24: =IF(B24>0,VLOOKUP(I24,Punkteschema!$A$2:$B$101,2,FALSE),"") -> 
D25: =IF(B25>0,C25+B25,"") ->  | E25: TRUE | F25: =IF(B25>0,COUNTIF(B$3:B$55,"<"&B25)+1,"") ->  | H25: =IF(AND(B25>0,C25>0),COUNTIF(D$3:D$55,"<"&D25)+1,"") ->  | I25: =IF(B25>0,IF(E25,MIN(F25:H25),MAX(F25:H25)),"") ->  | J25: =IF(B25>0,VLOOKUP(I25,Punkteschema!$A$2:$B$101,2,FALSE),"") -> 
E26: TRUE | J26: =IF(B26>0,VLOOKUP(I26,Punkteschema!$A$2:$B$101,2,FALSE),"") -> 
E27: TRUE | J27: =IF(B27>0,VLOOKUP(I27,Punkteschema!$A$2:$B$101,2,FALSE),"") -> 
E28: TRUE | J28: =IF(B28>0,VLOOKUP(I28,Punkteschema!$A$2:$B$101,2,FALSE),"") -> 
E29: TRUE | J29: =IF(B29>0,VLOOKUP(I29,Punkteschema!$A$2:$B$101,2,FALSE),"") -> 
E30: TRUE | J30: =IF(B30>0,VLOOKUP(I30,Punkteschema!$A$2:$B$101,2,FALSE),"") -> 
E31: TRUE | J31: =IF(B31>0,VLOOKUP(I31,Punkteschema!$A$2:$B$101,2,FALSE),"") -> 
E32: TRUE | J32: =IF(B32>0,VLOOKUP(I32,Punkteschema!$A$2:$B$101,2,FALSE),"") -> 
E33: TRUE | J33: =IF(B33>0,VLOOKUP(I33,Punkteschema!$A$2:$B$101,2,FALSE),"") -> 
E34: TRUE | J34: =IF(B34>0,VLOOKUP(I34,Punkteschema!$A$2:$B$101,2,FALSE),"") -> 
E35: TRUE | J35: =IF(B35>0,VLOOKUP(I35,Punkteschema!$A$2:$B$101,2,FALSE),"") -> 
E36: TRUE | J36: =IF(B36>0,VLOOKUP(I36,Punkteschema!$A$2:$B$101,2,FALSE),"") -> 
E37: TRUE | J37: =IF(B37>0,VLOOKUP(I37,Punkteschema!$A$2:$B$101,2,FALSE),"") -> 
E38: TRUE | J38: =IF(B38>0,VLOOKUP(I38,Punkteschema!$A$2:$B$101,2,FALSE),"") -> 
E39: TRUE | J39: =IF(B39>0,VLOOKUP(I39,Punkteschema!$A$2:$B$101,2,FALSE),"") -> 
E40: TRUE | J40: =IF(B40>0,VLOOKUP(I40,Punkteschema!$A$2:$B$101,2,FALSE),"") -> 
E41: TRUE | J41: =IF(B41>0,VLOOKUP(I41,Punkteschema!$A$2:$B$101,2,FALSE),"") -> 
E42: TRUE | J42: =IF(B42>0,VLOOKUP(I42,Punkteschema!$A$2:$B$101,2,FALSE),"") -> 
E43: TRUE | J43: =IF(B43>0,VLOOKUP(I43,Punkteschema!$A$2:$B$101,2,FALSE),"") -> 
E44: TRUE | J44: =IF(B44>0,VLOOKUP(I44,Punkteschema!$A$2:$B$101,2,FALSE),"") -> 
E45: TRUE | J45: =IF(B45>0,VLOOKUP(I45,Punkteschema!$A$2:$B$101,2,FALSE),"") -> 
E46: TRUE | J46: =IF(B46>0,VLOOKUP(I46,Punkteschema!$A$2:$B$101,2,FALSE),"") -> 
E47: TRUE | J47: =IF(B47>0,VLOOKUP(I47,Punkteschema!$A$2:$B$101,2,FALSE),"") -> 
E48: TRUE | J48: =IF(B48>0,VLOOKUP(I48,Punkteschema!$A$2:$B$101,2,FALSE),"") -> 
E49: TRUE | J49: =IF(B49>0,VLOOKUP(I49,Punkteschema!$A$2:$B$101,2,FALSE),"") -> 
E50: TRUE | J50: =IF(B50>0,VLOOKUP(I50,Punkteschema!$A$2:$B$101,2,FALSE),"") -> 
E51: TRUE | J51: =IF(B51>0,VLOOKUP(I51,Punkteschema!$A$2:$B$101,2,FALSE),"") -> 
E52: TRUE | J52: =IF(B52>0,VLOOKUP(I52,Punkteschema!$A$2:$B$101,2,FALSE),"") -> 
E53: TRUE | F53: =IF(B53>0,COUNTIF(B$3:B$55,"<"&B53)+1,"") ->  | H53: =IF(AND(B53>0,C53>0),COUNTIF(D$3:D$55,"<"&D53)+1,"") ->  | I53: =IF(B53>0,IF(E53,MIN(F53:H53),MAX(F53:H53)),"") ->  | J53: =IF(B53>0,VLOOKUP(I53,Punkteschema!$A$2:$B$101,2,FALSE),"") -> 
E54: TRUE | H54: =IF(AND(B54>0,C54>0),COUNTIF(D$3:D$55,"<"&D54)+1,"") ->  | I54: =IF(B54>0,IF(E54,MIN(F54:H54),MAX(F54:H54)),"") ->  | J54: =IF(B54>0,VLOOKUP(I54,Punkteschema!$A$2:$B$101,2,FALSE),"") -> 
E55: TRUE | H55: =IF(AND(B55>0,C55>0),COUNTIF(D$3:D$55,"<"&D55)+1,"") ->  | I55: =IF(B55>0,IF(E55,MIN(F55:H55),MAX(F55:H55)),"") ->  | J55: =IF(B55>0,VLOOKUP(I55,Punkteschema!$A$2:$B$101,2,FALSE),"") -> 
A57: OS: Mühling, Dirk (HEV) | E57: Runde 1: | F57: E | G57: <- E/B
A58: S: Urban, Volker (ASW) | E58: Runde 2: | F58: B | G58: <- E/B
A59: S: Tabor, Peter (ASW)
A61: Verloste Preise: | B61: Günter Schmidtbauer (Rucksack)
B62: Brigitte Börgmann (1 Flasche Martini)
B63: Nicole Lieber (1 Deko-Glas)
A65: Wegen Regens wurde in der zweiten Runde abgebrochen.
A66: Daher wird nur das Ergebnis der 1. Runde gewertet.

Sheet Einzelwertung17
A1: =CONCATENATE("5. Sommer-Cup - Freizeittreff Herbede - ",TEXT(Gesamtstand!$V$2,"TT.MM.JJ")) -> 5. Sommer-Cup - Freizeittreff Herbede - 22.08.19
A2: Spieler | B2: Runde 1 | C2: Runde 2 | D2: Gesamt | E2: bessere? | F2: Pl. R1 | G2: Pl. R2 | H2: Pl. Ges. | I2: gewertet | J2: Punkte
A3: Lieber, Nicole | B3: 36 | C3: 30 | D3: =IF(B3>0,C3+B3,"") -> 66 | E3: TRUE | F3: =IF(B3>0,COUNTIF(B$3:B$55,"<"&B3)+1,"") -> 14 | G3: =IF(C3>0,COUNTIF(C$3:C$55,"<"&C3)+1,"") -> 1 | H3: =IF(AND(B3>0,C3>0),COUNTIF(D$3:D$55,"<"&D3)+1,"") -> 5 | I3: =IF(B3>0,IF(E3,MIN(F3:H3),MAX(F3:H3)),"") -> 1 | J3: =IF(B3>0,VLOOKUP(I3,Punkteschema!$A$2:$B$101,2,FALSE),"") -> 25
A4: Puschner, Michael | B4: 30 | C4: 31 | D4: 61 | E4: TRUE | F4: 4 | G4: 2 | H4: 3 | I4: 2 | J4: =IF(B4>0,VLOOKUP(I4,Punkteschema!$A$2:$B$101,2,FALSE),"") -> 21
A5: Schmidtbauer, Günter | B5: 42 | C5: 31 | D5: 73 | E5: TRUE | F5: 19 | G5: 2 | H5: 15 | I5: 2 | J5: =IF(B5>0,VLOOKUP(I5,Punkteschema!$A$2:$B$101,2,FALSE),"") -> 21
A6: Hein, Hans-Jörg | B6: 28 | C6: 40 | D6: 68 | E6: TRUE | F6: 3 | G6: 18 | H6: 10 | I6: 3 | J6: =IF(B6>0,VLOOKUP(I6,Punkteschema!$A$2:$B$101,2,FALSE),"") -> 18
A7: Urban, Volker | B7: 27 | C7: 32 | D7: 59 | E7: FALSE | F7: 2 | G7: 4 | H7: 2 | I7: 4 | J7: =IF(B7>0,VLOOKUP(I7,Punkteschema!$A$2:$B$101,2,FALSE),"") -> 15
A8: Dreischer, Burkhard | B8: 30 | C8: 45 | D8: 75 | E8: TRUE | F8: 4 | G8: 20 | H8: 17 | I8: 4 | J8: =IF(B8>0,VLOOKUP(I8,Punkteschema!$A$2:$B$101,2,FALSE),"") -> 15
A9: Lenk, Rolf | B9: 31 | C9: 33 | D9: 64 | E9: TRUE | F9: 6 | G9: 7 | H9: 4 | I9: 4 | J9: =IF(B9>0,VLOOKUP(I9,Punkteschema!$A$2:$B$101,2,FALSE),"") -> 15
A10: Urban, Angela | B10: 39 | C10: 32 | D10: 71 | E10: TRUE | F10: 17 | G10: 4 | H10: 13 | I10: 4 | J10: =IF(B10>0,VLOOKUP(I10,Punkteschema!$A$2:$B$101,2,FALSE),"") -> 15
A11: Börgmann, Ulrich | B11: 31 | C11: 35 | D11: 66 | E11: TRUE | F11: 6 | G11: 9 | H11: 5 | I11: 5 | J11: =IF(B11>0,VLOOKUP(I11,Punkteschema!$A$2:$B$101,2,FALSE),"") -> 15
A12: Tabor, Peter | B12: 31 | C12: 35 | D12: 66 | E12: TRUE | F12: 6 | G12: 9 | H12: 5 | I12: 5 | J12: =IF(B12>0,VLOOKUP(I12,Punkteschema!$A$2:$B$101,2,FALSE),"") -> 15
A13: Kortmann, Sabine | B13: 31 | C13: 36 | D13: 67 | E13: TRUE | F13: 6 | G13: 15 | H13: 9 | I13: 6 | J13: =IF(B13>0,VLOOKUP(I13,Punkteschema!$A$2:$B$101,2,FALSE),"") -> 15
A14: Buchholz, Ansgar | B14: 24 | C14: 33 | D14: 57 | E14: FALSE | F14: 1 | G14: 7 | H14: 1 | I14: 7 | J14: =IF(B14>0,VLOOKUP(I14,Punkteschema!$A$2:$B$101,2,FALSE),"") -> 10
A15: Kersch, Uwe | B15: 33 | C15: 35 | D15: 68 | E15: TRUE | F15: 10 | G15: 9 | H15: 10 | I15: 9 | J15: =IF(B15>0,VLOOKUP(I15,Punkteschema!$A$2:$B$101,2,FALSE),"") -> 10
A16: Kunz, Martin | B16: 34 | C16: 35 | D16: 69 | E16: TRUE | F16: 11 | G16: 9 | H16: 12 | I16: 9 | J16: =IF(B16>0,VLOOKUP(I16,Punkteschema!$A$2:$B$101,2,FALSE),"") -> 10
A17: Urban, Dominic | B17: 36 | C17: 35 | D17: 71 | E17: TRUE | F17: 14 | G17: 9 | H17: 13 | I17: 9 | J17: =IF(B17>0,VLOOKUP(I17,Punkteschema!$A$2:$B$101,2,FALSE),"") -> 10
A18: Börgmann, Brigitte | B18: 43 | C18: 35 | D18: 78 | E18: TRUE | F18: 20 | G18: 9 | H18: 19 | I18: 9 | J18: =IF(B18>0,VLOOKUP(I18,Punkteschema!$A$2:$B$101,2,FALSE),"") -> 10
A19: Greiffendorf, Hellmut | B19: 34 | C19: 32 | D19: 66 | E19: FALSE | F19: 11 | G19: 4 | H19: 5 | I19: 11 | J19: =IF(B19>0,VLOOKUP(I19,Punkteschema!$A$2:$B$101,2,FALSE),"") -> 5
A20: Jezierski, Marie-Luise | B20: 34 | C20: 43 | D20: 77 | E20: TRUE | F20: 11 | G20: 19 | H20: 18 | I20: 11 | J20: =IF(B20>0,VLOOKUP(I20,Punkteschema!$A$2:$B$101,2,FALSE),"") -> 5
A21: Kortmann, Uwe | B21: 38 | C21: 36 | D21: 74 | E21: TRUE | F21: 16 | G21: 15 | H21: 16 | I21: 15 | J21: =IF(B21>0,VLOOKUP(I21,Punkteschema!$A$2:$B$101,2,FALSE),"") -> 5
A22: Schmidt, Barbara | B22: 40 | C22: 38 | D22: 78 | E22: TRUE | F22: 18 | G22: 17 | H22: 19 | I22: 17 | J22: =IF(B22>0,VLOOKUP(I22,Punkteschema!$A$2:$B$101,2,FALSE),"") -> 3
A23: Hoffmann, Thomas | B23: 53 | C23: 52 | D23: 105 | E23: TRUE | F23: 21 | G23: 21 | H23: 21 | I23: 21 | J23: =IF(B23>0,VLOOKUP(I23,Punkteschema!$A$2:$B$101,2,FALSE),"") -> 1
D24: =IF(B24>0,C24+B24,"") ->  | E24: TRUE | F24: =IF(B24>0,COUNTIF(B$3:B$55,"<"&B24)+1,"") ->  | G24: =IF(C24>0,COUNTIF(C$3:C$55,"<"&C24)+1,"") ->  | H24: =IF(AND(B24>0,C24>0),COUNTIF(D$3:D$55,"<"&D24)+1,"") ->  | I24: =IF(B24>0,IF(E24,MIN(F24:H24),MAX(F24:H24)),"") ->  | J24: =IF(B24>0,VLOOKUP(I24,Punkteschema!$A$2:$B$101,2,FALSE),"") -> 
D25: =IF(B25>0,C25+B25,"") ->  | E25: TRUE | F25: =IF(B25>0,COUNTIF(B$3:B$55,"<"&B25)+1,"") ->  | H25: =IF(AND(B25>0,C25>0),COUNTIF(D$3:D$55,"<"&D25)+1,"") ->  | I25: =IF(B25>0,IF(E25,MIN(F25:H25),MAX(F25:H25)),"") ->  | J25: =IF(B25>0,VLOOKUP(I25,Punkteschema!$A$2:$B$101,2,FALSE),"") -> 
E26: TRUE | J26: =IF(B26>0,VLOOKUP(I26,Punkteschema!$A$2:$B$101,2,FALSE),"") -> 
E27: TRUE | J27: =IF(B27>0,VLOOKUP(I27,Punkteschema!$A$2:$B$101,2,FALSE),"") -> 
E28: TRUE | J28: =IF(B28>0,VLOOKUP(I28,Punkteschema!$A$2:$B$101,2,FALSE),"") -> 
E29: TRUE | J29: =IF(B29>0,VLOOKUP(I29,Punkteschema!$A$2:$B$101,2,FALSE),"") -> 
E30: TRUE | J30: =IF(B30>0,VLOOKUP(I30,Punkteschema!$A$2:$B$101,2,FALSE),"") -> 
E31: TRUE | J31: =IF(B31>0,VLOOKUP(I31,Punkteschema!$A$2:$B$101,2,FALSE),"") -> 
E32: TRUE | J32: =IF(B32>0,VLOOKUP(I32,Punkteschema!$A$2:$B$101,2,FALSE),"") -> 
E33: TRUE | J33: =IF(B33>0,VLOOKUP(I33,Punkteschema!$A$2:$B$101,2,FALSE),"") -> 
E34: TRUE | J34: =IF(B34>0,VLOOKUP(I34,Punkteschema!$A$2:$B$101,2,FALSE),"") -> 
E35: TRUE | J35: =IF(B35>0,VLOOKUP(I35,Punkteschema!$A$2:$B$101,2,FALSE),"") -> 
E36: TRUE | J36: =IF(B36>0,VLOOKUP(I36,Punkteschema!$A$2:$B$101,2,FALSE),"") -> 
E37: TRUE | J37: =IF(B37>0,VLOOKUP(I37,Punkteschema!$A$2:$B$101,2,FALSE),"") -> 
E38: TRUE | J38: =IF(B38>0,VLOOKUP(I38,Punkteschema!$A$2:$B$101,2,FALSE),"") -> 
E39: TRUE | J39: =IF(B39>0,VLOOKUP(I39,Punkteschema!$A$2:$B$101,2,FALSE),"") -> 
E40: TRUE | J40: =IF(B40>0,VLOOKUP(I40,Punkteschema!$A$2:$B$101,2,FALSE),"") -> 
E41: TRUE | J41: =IF(B41>0,VLOOKUP(I41,Punkteschema!$A$2:$B$101,2,FALSE),"") -> 
E42: TRUE | J42: =IF(B42>0,VLOOKUP(I42,Punkteschema!$A$2:$B$101,2,FALSE),"") -> 
E43: TRUE | J43: =IF(B43>0,VLOOKUP(I43,Punkteschema!$A$2:$B$101,2,FALSE),"") -> 
E44: TRUE | J44: =IF(B44>0,VLOOKUP(I44,Punkteschema!$A$2:$B$101,2,FALSE),"") -> 
E45: TRUE | J45: =IF(B45>0,VLOOKUP(I45,Punkteschema!$A$2:$B$101,2,FALSE),"") -> 
E46: TRUE | J46: =IF(B46>0,VLOOKUP(I46,Punkteschema!$A$2:$B$101,2,FALSE),"") -> 
E47: TRUE | J47: =IF(B47>0,VLOOKUP(I47,Punkteschema!$A$2:$B$101,2,FALSE),"") -> 
E48: TRUE | J48: =IF(B48>0,VLOOKUP(I48,Punkteschema!$A$2:$B$101,2,FALSE),"") -> 
E49: TRUE | J49: =IF(B49>0,VLOOKUP(I49,Punkteschema!$A$2:$B$101,2,FALSE),"") -> 
E50: TRUE | J50: =IF(B50>0,VLOOKUP(I50,Punkteschema!$A$2:$B$101,2,FALSE),"") -> 
E51: TRUE | J51: =IF(B51>0,VLOOKUP(I51,Punkteschema!$A$2:$B$101,2,FALSE),"") -> 
E52: TRUE | J52: =IF(B52>0,VLOOKUP(I52,Punkteschema!$A$2:$B$101,2,FALSE),"") -> 
E53: TRUE | F53: =IF(B53>0,COUNTIF(B$3:B$55,"<"&B53)+1,"") ->  | H53: =IF(AND(B53>0,C53>0),COUNTIF(D$3:D$55,"<"&D53)+1,"") ->  | I53: =IF(B53>0,IF(E53,MIN(F53:H53),MAX(F53:H53)),"") ->  | J53: =IF(B53>0,VLOOKUP(I53,Punkteschema!$A$2:$B$101,2,FALSE),"") -> 
E54: TRUE | H54: =IF(AND(B54>0,C54>0),COUNTIF(D$3:D$55,"<"&D54)+1,"") ->  | I54: =IF(B54>0,IF(E54,MIN(F54:H54),MAX(F54:H54)),"") ->  | J54: =IF(B54>0,VLOOKUP(I54,Punkteschema!$A$2:$B$101,2,FALSE),"") -> 
E55: TRUE | H55: =IF(AND(B55>0,C55>0),COUNTIF(D$3:D$55,"<"&D55)+1,"") ->  | I55: =IF(B55>0,IF(E55,MIN(F55:H55),MAX(F55:H55)),"") ->  | J55: =IF(B55>0,VLOOKUP(I55,Punkteschema!$A$2:$B$101,2,FALSE),"") -> 
A57: OS: Buchholz, Ansgar (ASW) | E57: Runde 1: | F57: E | G57: <- E/B
A58: S: Puschner, Michael (HOB) | E58: Runde 2: | F58: B | G58: <- E/B
A59: S: Urban, Volker (ASW)
A61: Verloste Preise: | B61: Volker Urban (1 Flasche Erdbeerlikör)
B62: Peter Tabor (1 Bonbonglas mit Inhalt)
B63: Sabine Kortmann (1 Pflanzglas mit Inhalt)

Sheet Einzelwertung18
A1: =CONCATENATE("5. Sommer-Cup - Freizeittreff Herbede - ",TEXT(Gesamtstand!$W$2,"TT.MM.JJ")) -> 5. Sommer-Cup - Freizeittreff Herbede - 29.08.19
A2: Spieler | B2: Runde 1 | C2: Runde 2 | D2: Gesamt | E2: bessere? | F2: Pl. R1 | G2: Pl. R2 | H2: Pl. Ges. | I2: gewertet | J2: Punkte
A3: Buchholz, Ansgar | B3: 25 | C3: 29 | D3: =IF(B3>0,C3+B3,"") -> 54 | E3: FALSE | F3: =IF(B3>0,COUNTIF(B$3:B$55,"<"&B3)+1,"") -> 1 | G3: =IF(C3>0,COUNTIF(C$3:C$55,"<"&C3)+1,"") -> 1 | H3: =IF(AND(B3>0,C3>0),COUNTIF(D$3:D$55,"<"&D3)+1,"") -> 1 | I3: =IF(B3>0,IF(E3,MIN(F3:H3),MAX(F3:H3)),"") -> 1 | J3: =IF(B3>0,VLOOKUP(I3,Punkteschema!$A$2:$B$101,2,FALSE),"") -> 25
A4: Schmitt, Jürgen | B4: 27 | C4: 33 | D4: 60 | E4: TRUE | F4: 2 | G4: 4 | H4: 3 | I4: 2 | J4: =IF(B4>0,VLOOKUP(I4,Punkteschema!$A$2:$B$101,2,FALSE),"") -> 21
A5: Mühling, Dirk | B5: 28 | C5: 34 | D5: 62 | E5: TRUE | F5: 3 | G5: 8 | H5: 4 | I5: 3 | J5: =IF(B5>0,VLOOKUP(I5,Punkteschema!$A$2:$B$101,2,FALSE),"") -> 18
A6: Puschner, Michael | B6: 33 | C6: 32 | D6: 65 | E6: TRUE | F6: 10 | G6: 3 | H6: 7 | I6: 3 | J6: =IF(B6>0,VLOOKUP(I6,Punkteschema!$A$2:$B$101,2,FALSE),"") -> 18
A7: Urban, Volker | B7: 29 | C7: 30 | D7: 59 | E7: FALSE | F7: 4 | G7: 2 | H7: 2 | I7: 4 | J7: =IF(B7>0,VLOOKUP(I7,Punkteschema!$A$2:$B$101,2,FALSE),"") -> 15
A8: Greiffendorf, Hellmut | B8: 30 | C8: 33 | D8: 63 | E8: TRUE | F8: 6 | G8: 4 | H8: 5 | I8: 4 | J8: =IF(B8>0,VLOOKUP(I8,Punkteschema!$A$2:$B$101,2,FALSE),"") -> 15
A9: Kortmann, Sabine | B9: 29 | C9: 35 | D9: 64 | E9: TRUE | F9: 4 | G9: 9 | H9: 6 | I9: 4 | J9: =IF(B9>0,VLOOKUP(I9,Punkteschema!$A$2:$B$101,2,FALSE),"") -> 15
A10: Lieber, Nicole | B10: 34 | C10: 33 | D10: 67 | E10: TRUE | F10: 12 | G10: 4 | H10: 8 | I10: 4 | J10: =IF(B10>0,VLOOKUP(I10,Punkteschema!$A$2:$B$101,2,FALSE),"") -> 15
A11: Kersch, Uwe | B11: 41 | C11: 33 | D11: 74 | E11: TRUE | F11: 18 | G11: 4 | H11: 15 | I11: 4 | J11: =IF(B11>0,VLOOKUP(I11,Punkteschema!$A$2:$B$101,2,FALSE),"") -> 15
A12: Lenk, Rolf | B12: 30 | C12: 40 | D12: 70 | E12: TRUE | F12: 6 | G12: 15 | H12: 12 | I12: 6 | J12: =IF(B12>0,VLOOKUP(I12,Punkteschema!$A$2:$B$101,2,FALSE),"") -> 15
A13: Kunz, Martin | B13: 31 | C13: 37 | D13: 68 | E13: TRUE | F13: 8 | G13: 13 | H13: 10 | I13: 8 | J13: =IF(B13>0,VLOOKUP(I13,Punkteschema!$A$2:$B$101,2,FALSE),"") -> 10
A14: Tabor, Peter | B14: 31 | C14: 36 | D14: 67 | E14: FALSE | F14: 8 | G14: 10 | H14: 8 | I14: 10 | J14: =IF(B14>0,VLOOKUP(I14,Punkteschema!$A$2:$B$101,2,FALSE),"") -> 10
A15: Urban, Dominic | B15: 33 | C15: 36 | D15: 69 | E15: TRUE | F15: 10 | G15: 10 | H15: 11 | I15: 10 | J15: =IF(B15>0,VLOOKUP(I15,Punkteschema!$A$2:$B$101,2,FALSE),"") -> 10
A16: Börgmann, Brigitte | B16: 37 | C16: 36 | D16: 73 | E16: TRUE | F16: 17 | G16: 10 | H16: 14 | I16: 10 | J16: =IF(B16>0,VLOOKUP(I16,Punkteschema!$A$2:$B$101,2,FALSE),"") -> 10
A17: Jezierski, Marie-Luise | B17: 34 | C17: 38 | D17: 72 | E17: TRUE | F17: 12 | G17: 14 | H17: 13 | I17: 12 | J17: =IF(B17>0,VLOOKUP(I17,Punkteschema!$A$2:$B$101,2,FALSE),"") -> 5
A18: Kortmann, Uwe | B18: 34 | C18: 41 | D18: 75 | E18: TRUE | F18: 12 | G18: 16 | H18: 16 | I18: 12 | J18: =IF(B18>0,VLOOKUP(I18,Punkteschema!$A$2:$B$101,2,FALSE),"") -> 5
A19: Börgmann, Ulrich | B19: 35 | C19: 41 | D19: 76 | E19: TRUE | F19: 15 | G19: 16 | H19: 17 | I19: 15 | J19: =IF(B19>0,VLOOKUP(I19,Punkteschema!$A$2:$B$101,2,FALSE),"") -> 5
A20: Dreischer, Burkhard | B20: 36 | C20: 41 | D20: 77 | E20: TRUE | F20: 16 | G20: 16 | H20: 18 | I20: 16 | J20: =IF(B20>0,VLOOKUP(I20,Punkteschema!$A$2:$B$101,2,FALSE),"") -> 3
A21: Wortmann, Torben | B21: 42 | C21: 46 | D21: 88 | E21: TRUE | F21: 19 | G21: 20 | H21: 19 | I21: 19 | J21: =IF(B21>0,VLOOKUP(I21,Punkteschema!$A$2:$B$101,2,FALSE),"") -> 3
A22: Schmidt, Barbara | B22: 48 | C22: 42 | D22: 90 | E22: TRUE | F22: 20 | G22: 19 | H22: 20 | I22: 19 | J22: =IF(B22>0,VLOOKUP(I22,Punkteschema!$A$2:$B$101,2,FALSE),"") -> 3
D23: =IF(B23>0,C23+B23,"") ->  | E23: TRUE | F23: =IF(B23>0,COUNTIF(B$3:B$55,"<"&B23)+1,"") ->  | G23: =IF(C23>0,COUNTIF(C$3:C$55,"<"&C23)+1,"") ->  | H23: =IF(AND(B23>0,C23>0),COUNTIF(D$3:D$55,"<"&D23)+1,"") ->  | I23: =IF(B23>0,IF(E23,MIN(F23:H23),MAX(F23:H23)),"") ->  | J23: =IF(B23>0,VLOOKUP(I23,Punkteschema!$A$2:$B$101,2,FALSE),"") -> 
E24: TRUE | J24: =IF(B24>0,VLOOKUP(I24,Punkteschema!$A$2:$B$101,2,FALSE),"") -> 
E25: TRUE | J25: =IF(B25>0,VLOOKUP(I25,Punkteschema!$A$2:$B$101,2,FALSE),"") -> 
E26: TRUE | J26: =IF(B26>0,VLOOKUP(I26,Punkteschema!$A$2:$B$101,2,FALSE),"") -> 
E27: TRUE | J27: =IF(B27>0,VLOOKUP(I27,Punkteschema!$A$2:$B$101,2,FALSE),"") -> 
E28: TRUE | J28: =IF(B28>0,VLOOKUP(I28,Punkteschema!$A$2:$B$101,2,FALSE),"") -> 
E29: TRUE | J29: =IF(B29>0,VLOOKUP(I29,Punkteschema!$A$2:$B$101,2,FALSE),"") -> 
E30: TRUE | J30: =IF(B30>0,VLOOKUP(I30,Punkteschema!$A$2:$B$101,2,FALSE),"") -> 
E31: TRUE | J31: =IF(B31>0,VLOOKUP(I31,Punkteschema!$A$2:$B$101,2,FALSE),"") -> 
E32: TRUE | J32: =IF(B32>0,VLOOKUP(I32,Punkteschema!$A$2:$B$101,2,FALSE),"") -> 
E33: TRUE | J33: =IF(B33>0,VLOOKUP(I33,Punkteschema!$A$2:$B$101,2,FALSE),"") -> 
E34: TRUE | J34: =IF(B34>0,VLOOKUP(I34,Punkteschema!$A$2:$B$101,2,FALSE),"") -> 
E35: TRUE | J35: =IF(B35>0,VLOOKUP(I35,Punkteschema!$A$2:$B$101,2,FALSE),"") -> 
E36: TRUE | J36: =IF(B36>0,VLOOKUP(I36,Punkteschema!$A$2:$B$101,2,FALSE),"") -> 
E37: TRUE | J37: =IF(B37>0,VLOOKUP(I37,Punkteschema!$A$2:$B$101,2,FALSE),"") -> 
E38: TRUE | J38: =IF(B38>0,VLOOKUP(I38,Punkteschema!$A$2:$B$101,2,FALSE),"") -> 
E39: TRUE | J39: =IF(B39>0,VLOOKUP(I39,Punkteschema!$A$2:$B$101,2,FALSE),"") -> 
E40: TRUE | J40: =IF(B40>0,VLOOKUP(I40,Punkteschema!$A$2:$B$101,2,FALSE),"") -> 
E41: TRUE | J41: =IF(B41>0,VLOOKUP(I41,Punkteschema!$A$2:$B$101,2,FALSE),"") -> 
E42: TRUE | J42: =IF(B42>0,VLOOKUP(I42,Punkteschema!$A$2:$B$101,2,FALSE),"") -> 
E43: TRUE | J43: =IF(B43>0,VLOOKUP(I43,Punkteschema!$A$2:$B$101,2,FALSE),"") -> 
E44: TRUE | J44: =IF(B44>0,VLOOKUP(I44,Punkteschema!$A$2:$B$101,2,FALSE),"") -> 
E45: TRUE | J45: =IF(B45>0,VLOOKUP(I45,Punkteschema!$A$2:$B$101,2,FALSE),"") -> 
E46: TRUE | J46: =IF(B46>0,VLOOKUP(I46,Punkteschema!$A$2:$B$101,2,FALSE),"") -> 
E47: TRUE | J47: =IF(B47>0,VLOOKUP(I47,Punkteschema!$A$2:$B$101,2,FALSE),"") -> 
E48: TRUE | J48: =IF(B48>0,VLOOKUP(I48,Punkteschema!$A$2:$B$101,2,FALSE),"") -> 
E49: TRUE | J49: =IF(B49>0,VLOOKUP(I49,Punkteschema!$A$2:$B$101,2,FALSE),"") -> 
E50: TRUE | J50: =IF(B50>0,VLOOKUP(I50,Punkteschema!$A$2:$B$101,2,FALSE),"") -> 
E51: TRUE | J51: =IF(B51>0,VLOOKUP(I51,Punkteschema!$A$2:$B$101,2,FALSE),"") -> 
E52: TRUE | J52: =IF(B52>0,VLOOKUP(I52,Punkteschema!$A$2:$B$101,2,FALSE),"") -> 
E53: TRUE | F53: =IF(B53>0,COUNTIF(B$3:B$55,"<"&B53)+1,"") ->  | H53: =IF(AND(B53>0,C53>0),COUNTIF(D$3:D$55,"<"&D53)+1,"") ->  | I53: =IF(B53>0,IF(E53,MIN(F53:H53),MAX(F53:H53)),"") ->  | J53: =IF(B53>0,VLOOKUP(I53,Punkteschema!$A$2:$B$101,2,FALSE),"") -> 
E54: TRUE | H54: =IF(AND(B54>0,C54>0),COUNTIF(D$3:D$55,"<"&D54)+1,"") ->  | I54: =IF(B54>0,IF(E54,MIN(F54:H54),MAX(F54:H54)),"") ->  | J54: =IF(B54>0,VLOOKUP(I54,Punkteschema!$A$2:$B$101,2,FALSE),"") -> 
E55: TRUE | H55: =IF(AND(B55>0,C55>0),COUNTIF(D$3:D$55,"<"&D55)+1,"") ->  | I55: =IF(B55>0,IF(E55,MIN(F55:H55),MAX(F55:H55)),"") ->  | J55: =IF(B55>0,VLOOKUP(I55,Punkteschema!$A$2:$B$101,2,FALSE),"") -> 
A57: OS: Mühling, Dirk (HEV) | E57: Runde 1: | F57: E | G57: <- E/B
A58: S: Buchholz, Ansgar (ASW) | E58: Runde 2: | F58: B | G58: <- E/B
A59: S: Puschner, Michael (HOB)
A61: Verloste Preise: | B61: Martin Kunz (1 Pflanzkorb, bepflanzt)
B62: Brigitte Börgmann (1 Flasche Sekt)
B63: Jürgen Schmitt (1 Schachtel Pralinen)

Sheet Statistik
A1: Buchholz, Ansgar | H1: Urban, Volker
E3: Eternit | F3: Beton | L3: Eternit | M3: Beton
B4: Runden | E4: =COUNTIF(E8:E25,">0") -> 11 | F4: =COUNTIF(F8:F25,">0") -> 10 | I4: Runden | L4: =COUNTIF(L8:L25,">0") -> 15 | M4: =COUNTIF(M8:M25,">0") -> 14
B5: Schnitt | E5: =IF(E4>0,SUM(E8:E25)/E4,"") -> 25.72727273 | F5: =IF(E4>0,SUM(F8:F25)/F4,"") -> 30.7 | I5: Schnitt | L5: =IF(L4>0,SUM(L8:L25)/L4,"") -> 28.2 | M5: =IF(L4>0,SUM(M8:M25)/M4,"") -> 31.35714286
A7: Spieltag | B7: Datum | C7: R1 | D7: R2 | E7: Eternit | F7: Beton | H7: Spieltag | I7: Datum | J7: R1 | K7: R2 | L7: Eternit | M7: Beton
A8: 1 | B8: 2018-05-03 | C8: =Einzelwertung1!F57 -> B | D8: =Einzelwertung1!F58 -> E | E8: =SUMIF(Einzelwertung1!$A$3:$A$99,$A$1,IF($C8="E",Einzelwertung1!$B$3:$B$99,Einzelwertung1!$C$3:$C$99)) -> 0 | F8: =SUMIF(Einzelwertung1!$A$3:$A$99,$A$1,IF($C8="B",Einzelwertung1!$B$3:$B$99,Einzelwertung1!$C$3:$C$99)) -> 0 | H8: 1 | I8: 2018-05-03 | J8: =Einzelwertung1!F57 -> B | K8: =Einzelwertung1!F58 -> E | L8: =SUMIF(Einzelwertung1!$A$3:$A$99,$H$1,IF($J8="E",Einzelwertung1!$B$3:$B$99,Einzelwertung1!$C$3:$C$99)) -> 0 | M8: =SUMIF(Einzelwertung1!$A$3:$A$99,$H$1,IF($J8="B",Einzelwertung1!$B$3:$B$99,Einzelwertung1!$C$3:$C$99)) -> 0
A9: =+A8+1 -> 2 | B9: =B8+6 -> 2018-05-09 | C9: =Einzelwertung2!F57 -> B | D9: =Einzelwertung2!F58 -> B | E9: =SUMIF(Einzelwertung2!$A$3:$A$99,$A$1,IF($C9="E",Einzelwertung2!$B$3:$B$99,Einzelwertung2!$C$3:$C$99)) -> 0 | F9: =SUMIF(Einzelwertung2!$A$3:$A$99,$A$1,IF($C9="B",Einzelwertung2!$B$3:$B$99,Einzelwertung2!$C$3:$C$99)) -> 0 | H9: =+H8+1 -> 2 | I9: =I8+6 -> 2018-05-09 | J9: =Einzelwertung2!F57 -> B | K9: =Einzelwertung2!F58 -> B | L9: =SUMIF(Einzelwertung2!$A$3:$A$99,$H$1,IF($J9="E",Einzelwertung2!$B$3:$B$99,Einzelwertung2!$C$3:$C$99)) -> 33 | M9: =SUMIF(Einzelwertung2!$A$3:$A$99,$H$1,IF($J9="B",Einzelwertung2!$B$3:$B$99,Einzelwertung2!$C$3:$C$99)) -> 28
A10: =+A9+1 -> 3 | B10: =B9+8 -> 2018-05-17 | C10: =Einzelwertung3!F57 -> E | D10: =Einzelwertung3!F58 -> B | E10: =SUMIF(Einzelwertung3!$A$3:$A$99,$A$1,IF($C10="E",Einzelwertung3!$B$3:$B$99,Einzelwertung3!$C$3:$C$99)) -> 0 | F10: =SUMIF(Einzelwertung3!$A$3:$A$99,$A$1,IF($C10="B",Einzelwertung3!$B$3:$B$99,Einzelwertung3!$C$3:$C$99)) -> 0 | H10: 3 | I10: =I9+8 -> 2018-05-17 | J10: =Einzelwertung3!F57 -> E | K10: =Einzelwertung3!F58 -> B | L10: =SUMIF(Einzelwertung3!$A$3:$A$99,$H$1,IF($J10="E",Einzelwertung3!$B$3:$B$99,Einzelwertung3!$C$3:$C$99)) -> 25 | M10: =SUMIF(Einzelwertung3!$A$3:$A$99,$H$1,IF($J10="B",Einzelwertung3!$B$3:$B$99,Einzelwertung3!$C$3:$C$99)) -> 32
A11: 4 | B11: =B10+7 -> 2018-05-24 | C11: =Einzelwertung4!F57 -> E | D11: =Einzelwertung4!F58 -> B | E11: =SUMIF(Einzelwertung4!$A$3:$A$99,$A$1,IF($C11="E",Einzelwertung4!$B$3:$B$99,Einzelwertung4!$C$3:$C$99)) -> 0 | F11: =SUMIF(Einzelwertung4!$A$3:$A$99,$A$1,IF($C11="B",Einzelwertung4!$B$3:$B$99,Einzelwertung4!$C$3:$C$99)) -> 0 | H11: 4 | I11: =I10+7 -> 2018-05-24 | J11: =Einzelwertung4!F57 -> E | K11: =Einzelwertung4!F58 -> B | L11: =SUMIF(Einzelwertung4!$A$3:$A$99,$H$1,IF($J11="E",Einzelwertung4!$B$3:$B$99,Einzelwertung4!$C$3:$C$99)) -> 26 | M11: =SUMIF(Einzelwertung4!$A$3:$A$99,$H$1,IF($J11="B",Einzelwertung4!$B$3:$B$99,Einzelwertung4!$C$3:$C$99)) -> 32
A12: 5 | B12: =B11+6 -> 2018-05-30 | C12: =Einzelwertung5!F57 -> E | D12: =Einzelwertung5!F58 -> B | E12: =SUMIF(Einzelwertung5!$A$3:$A$99,$A$1,IF($C12="E",Einzelwertung5!$B$3:$B$99,Einzelwertung5!$C$3:$C$99)) -> 0 | F12: =SUMIF(Einzelwertung5!$A$3:$A$99,$A$1,IF($C12="B",Einzelwertung5!$B$3:$B$99,Einzelwertung5!$C$3:$C$99)) -> 0 | H12: 5 | I12: =I11+6 -> 2018-05-30 | J12: =Einzelwertung5!F57 -> E | K12: =Einzelwertung5!F58 -> B | L12: =SUMIF(Einzelwertung5!$A$3:$A$99,$H$1,IF($J12="E",Einzelwertung5!$B$3:$B$99,Einzelwertung5!$C$3:$C$99)) -> 32 | M12: =SUMIF(Einzelwertung5!$A$3:$A$99,$H$1,IF($J12="B",Einzelwertung5!$B$3:$B$99,Einzelwertung5!$C$3:$C$99)) -> 30
A13: 6 | B13: =B12+8 -> 2018-06-07 | C13: =Einzelwertung6!F57 -> E | D13: =Einzelwertung6!F58 -> B | E13: =SUMIF(Einzelwertung6!$A$3:$A$99,$A$1,IF($C13="E",Einzelwertung6!$B$3:$B$99,Einzelwertung6!$C$3:$C$99)) -> 29 | F13: =SUMIF(Einzelwertung6!$A$3:$A$99,$A$1,IF($C13="B",Einzelwertung6!$B$3:$B$99,Einzelwertung6!$C$3:$C$99)) -> 30 | H13: 6 | I13: =I12+8 -> 2018-06-07 | J13: =Einzelwertung6!F57 -> E | K13: =Einzelwertung6!F58 -> B | L13: =SUMIF(Einzelwertung6!$A$3:$A$99,$H$1,IF($J13="E",Einzelwertung6!$B$3:$B$99,Einzelwertung6!$C$3:$C$99)) -> 29 | M13: =SUMIF(Einzelwertung6!$A$3:$A$99,$H$1,IF($J13="B",Einzelwertung6!$B$3:$B$99,Einzelwertung6!$C$3:$C$99)) -> 34
A14: 7 | B14: =B13+7 -> 2018-06-14 | C14: =Einzelwertung7!F57 -> E | D14: =Einzelwertung7!F58 -> B | E14: =SUMIF(Einzelwertung7!$A$3:$A$99,$A$1,IF($C14="E",Einzelwertung7!$B$3:$B$99,Einzelwertung7!$C$3:$C$99)) -> 28 | F14: =SUMIF(Einzelwertung7!$A$3:$A$99,$A$1,IF($C14="B",Einzelwertung7!$B$3:$B$99,Einzelwertung7!$C$3:$C$99)) -> 34 | H14: 7 | I14: =I13+7 -> 2018-06-14 | J14: =Einzelwertung7!F57 -> E | K14: =Einzelwertung7!F58 -> B | L14: =SUMIF(Einzelwertung7!$A$3:$A$99,$H$1,IF($J14="E",Einzelwertung7!$B$3:$B$99,Einzelwertung7!$C$3:$C$99)) -> 32 | M14: =SUMIF(Einzelwertung7!$A$3:$A$99,$H$1,IF($J14="B",Einzelwertung7!$B$3:$B$99,Einzelwertung7!$C$3:$C$99)) -> 36
A15: 8 | B15: 2018-06-21 | C15: =Einzelwertung8!F57 -> E | D15: =Einzelwertung8!F58 -> B | E15: =SUMIF(Einzelwertung8!$A$3:$A$99,$A$1,IF($C15="E",Einzelwertung8!$B$3:$B$99,Einzelwertung8!$C$3:$C$99)) -> 28 | F15: =SUMIF(Einzelwertung8!$A$3:$A$99,$A$1,IF($C15="B",Einzelwertung8!$B$3:$B$99,Einzelwertung8!$C$3:$C$99)) -> 26 | H15: 8 | I15: 2018-06-21 | J15: =Einzelwertung8!F57 -> E | K15: =Einzelwertung8!F58 -> B | L15: =SUMIF(Einzelwertung8!$A$3:$A$99,$H$1,IF($J15="E",Einzelwertung8!$B$3:$B$99,Einzelwertung8!$C$3:$C$99)) -> 28 | M15: =SUMIF(Einzelwertung8!$A$3:$A$99,$H$1,IF($J15="B",Einzelwertung8!$B$3:$B$99,Einzelwertung8!$C$3:$C$99)) -> 33
A16: 9 | B16: 2018-06-28 | C16: =Einzelwertung9!F57 -> E | D16: =Einzelwertung9!F58 -> B | E16: =SUMIF(Einzelwertung9!$A$3:$A$99,$A$1,IF($C16="E",Einzelwertung9!$B$3:$B$99,Einzelwertung9!$C$3:$C$99)) -> 26 | F16: =SUMIF(Einzelwertung9!$A$3:$A$99,$A$1,IF($C16="B",Einzelwertung9!$B$3:$B$99,Einzelwertung9!$C$3:$C$99)) -> 31 | H16: 9 | I16: 2018-06-28 | J16: =Einzelwertung9!F57 -> E | K16: =Einzelwertung9!F58 -> B | L16: =SUMIF(Einzelwertung9!$A$3:$A$99,$H$1,IF($J16="E",Einzelwertung9!$B$3:$B$99,Einzelwertung9!$C$3:$C$99)) -> 29 | M16: =SUMIF(Einzelwertung9!$A$3:$A$99,$H$1,IF($J16="B",Einzelwertung9!$B$3:$B$99,Einzelwertung9!$C$3:$C$99)) -> 29
A17: 10 | B17: 2018-07-05 | C17: =Einzelwertung10!F57 -> E | D17: =Einzelwertung10!F58 -> B | E17: =SUMIF(Einzelwertung10!$A$3:$A$99,$A$1,IF($C17="E",Einzelwertung10!$B$3:$B$99,Einzelwertung10!$C$3:$C$99)) -> 0 | F17: =SUMIF(Einzelwertung10!$A$3:$A$99,$A$1,IF($C17="B",Einzelwertung10!$B$3:$B$99,Einzelwertung10!$C$3:$C$99)) -> 0 | H17: 10 | I17: 2018-07-05 | J17: =Einzelwertung10!F57 -> E | K17: =Einzelwertung10!F58 -> B | L17: =SUMIF(Einzelwertung10!$A$3:$A$99,$H$1,IF($J17="E",Einzelwertung10!$B$3:$B$99,Einzelwertung10!$C$3:$C$99)) -> 0 | M17: =SUMIF(Einzelwertung10!$A$3:$A$99,$H$1,IF($J17="B",Einzelwertung10!$B$3:$B$99,Einzelwertung10!$C$3:$C$99)) -> 0
A18: 11 | B18: 2018-07-12 | C18: =Einzelwertung11!F57 -> E | D18: =Einzelwertung11!F58 -> B | E18: =SUMIF(Einzelwertung11!$A$3:$A$99,$A$1,IF($C18="E",Einzelwertung11!$B$3:$B$99,Einzelwertung11!$C$3:$C$99)) -> 25 | F18: =SUMIF(Einzelwertung11!$A$3:$A$99,$A$1,IF($C18="B",Einzelwertung11!$B$3:$B$99,Einzelwertung11!$C$3:$C$99)) -> 31 | H18: 11 | I18: 2018-07-12 | J18: =Einzelwertung11!F57 -> E | K18: =Einzelwertung11!F58 -> B | L18: =SUMIF(Einzelwertung11!$A$3:$A$99,$H$1,IF($J18="E",Einzelwertung11!$B$3:$B$99,Einzelwertung11!$C$3:$C$99)) -> 28 | M18: =SUMIF(Einzelwertung11!$A$3:$A$99,$H$1,IF($J18="B",Einzelwertung11!$B$3:$B$99,Einzelwertung11!$C$3:$C$99)) -> 30
A19: 12 | B19: 2018-07-19 | C19: =Einzelwertung12!F57 -> E | D19: =Einzelwertung12!F58 -> B | E19: =SUMIF(Einzelwertung12!$A$3:$A$99,$A$1,IF($C19="E",Einzelwertung12!$B$3:$B$99,Einzelwertung12!$C$3:$C$99)) -> 24 | F19: =SUMIF(Einzelwertung12!$A$3:$A$99,$A$1,IF($C19="B",Einzelwertung12!$B$3:$B$99,Einzelwertung12!$C$3:$C$99)) -> 30 | H19: 12 | I19: 2018-07-19 | J19: =Einzelwertung12!F57 -> E | K19: =Einzelwertung12!F58 -> B | L19: =SUMIF(Einzelwertung12!$A$3:$A$99,$H$1,IF($J19="E",Einzelwertung12!$B$3:$B$99,Einzelwertung12!$C$3:$C$99)) -> 25 | M19: =SUMIF(Einzelwertung12!$A$3:$A$99,$H$1,IF($J19="B",Einzelwertung12!$B$3:$B$99,Einzelwertung12!$C$3:$C$99)) -> 30
A20: 13 | B20: 2018-07-26 | C20: =Einzelwertung13!F57 -> E | D20: =Einzelwertung13!F58 -> B | E20: =SUMIF(Einzelwertung13!$A$3:$A$99,$A$1,IF($C20="E",Einzelwertung13!$B$3:$B$99,Einzelwertung13!$C$3:$C$99)) -> 29 | F20: =SUMIF(Einzelwertung13!$A$3:$A$99,$A$1,IF($C20="B",Einzelwertung13!$B$3:$B$99,Einzelwertung13!$C$3:$C$99)) -> 34 | H20: 13 | I20: 2018-07-26 | J20: =Einzelwertung13!F57 -> E | K20: =Einzelwertung13!F58 -> B | L20: =SUMIF(Einzelwertung13!$A$3:$A$99,$H$1,IF($J20="E",Einzelwertung13!$B$3:$B$99,Einzelwertung13!$C$3:$C$99)) -> 26 | M20: =SUMIF(Einzelwertung13!$A$3:$A$99,$H$1,IF($J20="B",Einzelwertung13!$B$3:$B$99,Einzelwertung13!$C$3:$C$99)) -> 28
A21: 14 | B21: 2018-08-02 | C21: =Einzelwertung14!F57 -> E | D21: =Einzelwertung14!F58 -> B | E21: =SUMIF(Einzelwertung14!$A$3:$A$99,$A$1,IF($C21="E",Einzelwertung14!$B$3:$B$99,Einzelwertung14!$C$3:$C$99)) -> 0 | F21: =SUMIF(Einzelwertung14!$A$3:$A$99,$A$1,IF($C21="B",Einzelwertung14!$B$3:$B$99,Einzelwertung14!$C$3:$C$99)) -> 0 | H21: 14 | I21: 2018-08-02 | J21: =Einzelwertung14!F57 -> E | K21: =Einzelwertung14!F58 -> B | L21: =SUMIF(Einzelwertung14!$A$3:$A$99,$H$1,IF($J21="E",Einzelwertung14!$B$3:$B$99,Einzelwertung14!$C$3:$C$99)) -> 0 | M21: =SUMIF(Einzelwertung14!$A$3:$A$99,$H$1,IF($J21="B",Einzelwertung14!$B$3:$B$99,Einzelwertung14!$C$3:$C$99)) -> 0
A22: 15 | B22: 2018-08-09 | C22: =Einzelwertung15!F57 -> E | D22: =Einzelwertung15!F58 -> B | E22: =SUMIF(Einzelwertung15!$A$3:$A$99,$A$1,IF($C22="E",Einzelwertung15!$B$3:$B$99,Einzelwertung15!$C$3:$C$99)) -> 22 | F22: =SUMIF(Einzelwertung15!$A$3:$A$99,$A$1,IF($C22="B",Einzelwertung15!$B$3:$B$99,Einzelwertung15!$C$3:$C$99)) -> 29 | H22: 15 | I22: 2018-08-09 | J22: =Einzelwertung15!F57 -> E | K22: =Einzelwertung15!F58 -> B | L22: =SUMIF(Einzelwertung15!$A$3:$A$99,$H$1,IF($J22="E",Einzelwertung15!$B$3:$B$99,Einzelwertung15!$C$3:$C$99)) -> 27 | M22: =SUMIF(Einzelwertung15!$A$3:$A$99,$H$1,IF($J22="B",Einzelwertung15!$B$3:$B$99,Einzelwertung15!$C$3:$C$99)) -> 35
A23: 16 | B23: 2018-08-16 | C23: =Einzelwertung16!F57 -> E | D23: =Einzelwertung16!F58 -> B | E23: =SUMIF(Einzelwertung16!$A$3:$A$99,$A$1,IF($C23="E",Einzelwertung16!$B$3:$B$99,Einzelwertung16!$C$3:$C$99)) -> 23 | F23: =SUMIF(Einzelwertung16!$A$3:$A$99,$A$1,IF($C23="B",Einzelwertung16!$B$3:$B$99,Einzelwertung16!$C$3:$C$99)) -> 0 | H23: 16 | I23: 2018-08-16 | J23: =Einzelwertung16!F57 -> E | K23: =Einzelwertung16!F58 -> B | L23: =SUMIF(Einzelwertung16!$A$3:$A$99,$H$1,IF($J23="E",Einzelwertung16!$B$3:$B$99,Einzelwertung16!$C$3:$C$99)) -> 27 | M23: =SUMIF(Einzelwertung16!$A$3:$A$99,$H$1,IF($J23="B",Einzelwertung16!$B$3:$B$99,Einzelwertung16!$C$3:$C$99)) -> 0
A24: 17 | B24: 2018-08-23 | C24: =Einzelwertung17!F57 -> E | D24: =Einzelwertung17!F58 -> B | E24: =SUMIF(Einzelwertung17!$A$3:$A$99,$A$1,IF($C24="E",Einzelwertung17!$B$3:$B$99,Einzelwertung17!$C$3:$C$99)) -> 24 | F24: =SUMIF(Einzelwertung17!$A$3:$A$99,$A$1,IF($C24="B",Einzelwertung17!$B$3:$B$99,Einzelwertung17!$C$3:$C$99)) -> 33 | H24: 17 | I24: 2018-08-23 | J24: =Einzelwertung17!F57 -> E | K24: =Einzelwertung17!F58 -> B | L24: =SUMIF(Einzelwertung17!$A$3:$A$99,$H$1,IF($J24="E",Einzelwertung17!$B$3:$B$99,Einzelwertung17!$C$3:$C$99)) -> 27 | M24: =SUMIF(Einzelwertung17!$A$3:$A$99,$H$1,IF($J24="B",Einzelwertung17!$B$3:$B$99,Einzelwertung17!$C$3:$C$99)) -> 32
A25: 18 | B25: 2018-08-30 | C25: =Einzelwertung18!F57 -> E | D25: =Einzelwertung18!F58 -> B | E25: =SUMIF(Einzelwertung18!$A$3:$A$99,$A$1,IF($C25="E",Einzelwertung18!$B$3:$B$99,Einzelwertung18!$C$3:$C$99)) -> 25 | F25: =SUMIF(Einzelwertung18!$A$3:$A$99,$A$1,IF($C25="B",Einzelwertung18!$B$3:$B$99,Einzelwertung18!$C$3:$C$99)) -> 29 | H25: 18 | I25: 2018-08-30 | J25: =Einzelwertung18!F57 -> E | K25: =Einzelwertung18!F58 -> B | L25: =SUMIF(Einzelwertung18!$A$3:$A$99,$H$1,IF($J25="E",Einzelwertung18!$B$3:$B$99,Einzelwertung18!$C$3:$C$99)) -> 29 | M25: =SUMIF(Einzelwertung18!$A$3:$A$99,$H$1,IF($J25="B",Einzelwertung18!$B$3:$B$99,Einzelwertung18!$C$3:$C$99)) -> 30

Sheet bangolf_players (hidden)
A1: Kat | B1: PassNr | C1: Vorname | D1: Nachname | E1: VereinName | F1: Kennung | G1: Kat
A2: hv | B2: 25891 | C2: Lothar | D2: Abele | E2: 1. MGC Metzingen e.V. | F2: =CONCATENATE(G2,": ",D2,", ",C2) -> SM2: Abele, Lothar | G2: =VLOOKUP(A2,bangolf_kategorien!$A$2:$B$11,2,FALSE) -> SM2
A3: dv | B3: 869 | C3: Birgit | D3: Abeling-Betzien | E3: BGC Diepholz e.V. | F3: =CONCATENATE(G3,": ",D3,", ",C3) -> SW2: Abeling-Betzien, Birgit | G3: =VLOOKUP(A3,bangolf_kategorien!$A$2:$B$11,2,FALSE) -> SW2
A4: hv | B4: 33312 | C4: Edgar | D4: Abelmann | E4: 1. BGC Hannover e.V. | F4: SM2: Abelmann, Edgar | G4: =VLOOKUP(A4,bangolf_kategorien!$A$2:$B$11,2,FALSE) -> SM2
A5: ob | B5: 27712 | C5: Thomas | D5: Abendroth | E5: Reinickendorfer MGC e.V. | F5: SM1: Abendroth, Thomas | G5: =VLOOKUP(A5,bangolf_kategorien!$A$2:$B$11,2,FALSE) -> SM1
A6: hs | B6: 43272 | C6: Hendrik | D6: Ackermann | E6: 1. MGC Ludwigshafen e.V. | F6: H: Ackermann, Hendrik | G6: =VLOOKUP(A6,bangolf_kategorien!$A$2:$B$11,2,FALSE) -> H
A7: dv | B7: 36901 | C7: Gabriele | D7: Adam | E7: MGC Felderbachtal 1964 e.V. | F7: SW2: Adam, Gabriele | G7: =VLOOKUP(A7,bangolf_kategorien!$A$2:$B$11,2,FALSE) -> SW2
A8: hv | B8: 36366 | C8: Herbert | D8: Adam | E8: MGC Felderbachtal 1964 e.V. | F8: SM2: Adam, Herbert | G8: =VLOOKUP(A8,bangolf_kategorien!$A$2:$B$11,2,FALSE) -> SM2
A9: hs | B9: 34631 | C9: Jan Sebastian | D9: Adam | E9: VfL Lüneburg Abt. Bahnengolf | F9: H: Adam, Jan Sebastian | G9: =VLOOKUP(A9,bangolf_kategorien!$A$2:$B$11,2,FALSE) -> H
A10: ds | B10: 67154 | C10: Jessica | D10: Adam | E10: VfL Lüneburg Abt. Bahnengolf | F10: D: Adam, Jessica | G10: =VLOOKUP(A10,bangolf_kategorien!$A$2:$B$11,2,FALSE) -> D
A11: dv | B11: 37108 | C11: Astrid | D11: Adamczyk | E11: MGC Bad Homburg vdH e.V. | F11: SW2: Adamczyk, Astrid | G11: =VLOOKUP(A11,bangolf_kategorien!$A$2:$B$11,2,FALSE) -> SW2
A12: ds | B12: 35408 | C12: Jasmin | D12: Adamczyk | E12: MGC Bad Homburg vdH e.V. | F12: D: Adamczyk, Jasmin | G12: =VLOOKUP(A12,bangolf_kategorien!$A$2:$B$11,2,FALSE) -> D
A13: hv | B13: 35377 | C13: Michael | D13: Adamczyk | E13: MGC Bad Homburg vdH e.V. | F13: SM2: Adamczyk, Michael | G13: =VLOOKUP(A13,bangolf_kategorien!$A$2:$B$11,2,FALSE) -> SM2
A14: hs | B14: 37193 | C14: Tim | D14: Adamczyk | E14: SG Arheilgen Abt. Bahnengolf | F14: H: Adamczyk, Tim | G14: =VLOOKUP(A14,bangolf_kategorien!$A$2:$B$11,2,FALSE) -> H
A15: hv | B15: 35715 | C15: Bernd | D15: Adamski | E15: MGC Rot-Weiß Wanne-Eickel e.V. | F15: SM2: Adamski, Bernd | G15: =VLOOKUP(A15,bangolf_kategorien!$A$2:$B$11,2,FALSE) -> SM2
A16: ob | B16: 46986 | C16: Jürgen | D16: Adenau | E16: 1.KGC Mönchengladbach e.V. | F16: SM1: Adenau, Jürgen | G16: =VLOOKUP(A16,bangolf_kategorien!$A$2:$B$11,2,FALSE) -> SM1
A17: hs | B17: 29794 | C17: Markus | D17: Affeld | E17: MSC Herscheid 1963 e.V. | F17: H: Affeld, Markus | G17: =VLOOKUP(A17,bangolf_kategorien!$A$2:$B$11,2,FALSE) -> H
A18: hs | B18: 24649 | C18: Alan | D18: Ahmed | E18: MGC Bad Oldesloe e.V. | F18: H: Ahmed, Alan | G18: =VLOOKUP(A18,bangolf_kategorien!$A$2:$B$11,2,FALSE) -> H
A19: hs | B19: 36151 | C19: Pasi | D19: Aho | E19: BGC Neutraubling e.V. | F19: H: Aho, Pasi | G19: =VLOOKUP(A19,bangolf_kategorien!$A$2:$B$11,2,FALSE) -> H
A20: hs | B20: 66361 | C20: Marcel | D20: Ahrens | E20: 1. MGC Peine von 1965 e.V. | F20: H: Ahrens, Marcel | G20: =VLOOKUP(A20,bangolf_kategorien!$A$2:$B$11,2,FALSE) -> H
A21: og | B21: 37046 | C21: Mabel | D21: Ahrentropp | E21: HMC Büttgen e.V. | F21: SW1: Ahrentropp, Mabel | G21: =VLOOKUP(A21,bangolf_kategorien!$A$2:$B$11,2,FALSE) -> SW1
A22: dj | B22: 66842 | C22: Catharina | D22: Aichele | E22: MGC Monrepos e.V. | F22: JW: Aichele, Catharina | G22: =VLOOKUP(A22,bangolf_kategorien!$A$2:$B$11,2,FALSE) -> JW
A23: hs | B23: 27728 | C23: Sascha | D23: Albrecht | E23: 1. MGC 1970 Göttingen e.V. | F23: H: Albrecht, Sascha | G23: =VLOOKUP(A23,bangolf_kategorien!$A$2:$B$11,2,FALSE) -> H
A24: ds | B24: 66650 | C24: Nassim | D24: Alizadeh | E24: Miniaturgolf Sportclub Schriesheim e.V | F24: D: Alizadeh, Nassim | G24: =VLOOKUP(A24,bangolf_kategorien!$A$2:$B$11,2,FALSE) -> D
A25: ob | B25: 67317 | C25: Jürgen | D25: Allmacher | E25: MGC Traben-Trarbach | F25: SM1: Allmacher, Jürgen | G25: =VLOOKUP(A25,bangolf_kategorien!$A$2:$B$11,2,FALSE) -> SM1
A26: pa | B26: 67318 | C26: Leon | D26: Allmacher | E26: MGC Traben-Trarbach | F26: SCHM: Allmacher, Leon | G26: =VLOOKUP(A26,bangolf_kategorien!$A$2:$B$11,2,FALSE) -> SCHM
A27: ds | B27: 33902 | C27: Bianca | D27: Allmüller | E27: BGV Backumer Tal Herten e.V. | F27: D: Allmüller, Bianca | G27: =VLOOKUP(A27,bangolf_kategorien!$A$2:$B$11,2,FALSE) -> D
A28: ob | B28: 33903 | C28: Markus | D28: Allmüller | E28: BGV Backumer Tal Herten e.V. | F28: SM1: Allmüller, Markus | G28: =VLOOKUP(A28,bangolf_kategorien!$A$2:$B$11,2,FALSE) -> SM1
A29: ob | B29: 29237 | C29: Peter | D29: Amberger | E29: BGC Neutraubling e.V. | F29: SM1: Amberger, Peter | G29: =VLOOKUP(A29,bangolf_kategorien!$A$2:$B$11,2,FALSE) -> SM1
A30: ob | B30: 67242 | C30: Tobias | D30: Amely | E30: MSC Bad Godesberg e.V. | F30: SM1: Amely, Tobias | G30: =VLOOKUP(A30,bangolf_kategorien!$A$2:$B$11,2,FALSE) -> SM1
A31: hv | B31: 5720 | C31: Wolfgang | D31: Ament | E31: SV 1890 e.V. Dreieichenhain, Abt. Bahnengolf | F31: SM2: Ament, Wolfgang | G31: =VLOOKUP(A31,bangolf_kategorien!$A$2:$B$11,2,FALSE) -> SM2
A32: hv | B32: 3216558 | C32: Johannes | D32: Amting | E32: Hobby | F32: SM2: Amting, Johannes | G32: =VLOOKUP(A32,bangolf_kategorien!$A$2:$B$11,2,FALSE) -> SM2
A33: ob | B33: 44990 | C33: Alexander | D33: Anders | E33: BGSV Castrop e.V. 1961 | F33: SM1: Anders, Alexander | G33: =VLOOKUP(A33,bangolf_kategorien!$A$2:$B$11,2,FALSE) -> SM1
A34: hs | B34: 50612 | C34: Oliver | D34: Anders | E34: MGC Dortmund Syburg e.V. | F34: H: Anders, Oliver | G34: =VLOOKUP(A34,bangolf_kategorien!$A$2:$B$11,2,FALSE) -> H
A35: ob | B35: 66492 | C35: Uwe | D35: Andrejewski | E35: 1. MGC Gelsenkirchen e.V. | F35: SM1: Andrejewski, Uwe | G35: =VLOOKUP(A35,bangolf_kategorien!$A$2:$B$11,2,FALSE) -> SM1
A36: ob | B36: 66109 | C36: Andre | D36: Andresen | E36: BGC Kiel West e.V. | F36: SM1: Andresen, Andre | G36: =VLOOKUP(A36,bangolf_kategorien!$A$2:$B$11,2,FALSE) -> SM1
A37: hv | B37: 37496 | C37: Klaus-Dieter | D37: Andresen | E37: MGC Harrislee-Wassersleben | F37: SM2: Andresen, Klaus-Dieter | G37: =VLOOKUP(A37,bangolf_kategorien!$A$2:$B$11,2,FALSE) -> SM2
A38: hv | B38: 66201 | C38: Bernd | D38: Andrzejak | E38: MGC Rot-Weiß Wanne-Eickel e.V. | F38: SM2: Andrzejak, Bernd | G38: =VLOOKUP(A38,bangolf_kategorien!$A$2:$B$11,2,FALSE) -> SM2
A39: hv | B39: 67210 | C39: Karl-Heinz | D39: Angabreit | E39: BGC Uerdingen e.V. | F39: SM2: Angabreit, Karl-Heinz | G39: =VLOOKUP(A39,bangolf_kategorien!$A$2:$B$11,2,FALSE) -> SM2
A40: hs | B40: 66678 | C40: Florian | D40: Angermaier | E40: MGC Bad Feilnbach e.V. | F40: H: Angermaier, Florian | G40: =VLOOKUP(A40,bangolf_kategorien!$A$2:$B$11,2,FALSE) -> H
A41: hv | B41: 4969 | C41: Manfred | D41: Anlauff | E41: 1. MC Weinheim e.V. | F41: SM2: Anlauff, Manfred | G41: =VLOOKUP(A41,bangolf_kategorien!$A$2:$B$11,2,FALSE) -> SM2
A42: pa | B42: 67183 | C42: Robin | D42: Antholz | E42: MSG Kempten e.V. | F42: SCHM: Antholz, Robin | G42: =VLOOKUP(A42,bangolf_kategorien!$A$2:$B$11,2,FALSE) -> SCHM
A43: pa | B43: 66879 | C43: Sean | D43: Anton | E43: 1. BGC Rodalben 1977 e.V. | F43: SCHM: Anton, Sean | G43: =VLOOKUP(A43,bangolf_kategorien!$A$2:$B$11,2,FALSE) -> SCHM
A44: ds | B44: 66920 | C44: Stephanie | D44: Anton | E44: 1. BGC Rodalben 1977 e.V. | F44: D: Anton, Stephanie | G44: =VLOOKUP(A44,bangolf_kategorien!$A$2:$B$11,2,FALSE) -> D
A45: dv | B45: 3202728 | C45: Renate | D45: Apel | E45: Hobby | F45: SW2: Apel, Renate | G45: =VLOOKUP(A45,bangolf_kategorien!$A$2:$B$11,2,FALSE) -> SW2
A46: ob | B46: 27278 | C46: Udo | D46: Apelmeier | E46: BV Sennestadt | F46: SM1: Apelmeier, Udo | G46: =VLOOKUP(A46,bangolf_kategorien!$A$2:$B$11,2,FALSE) -> SM1
A47: ob | B47: 45054 | C47: Willi | D47: Appel | E47: Miniaturgolf Sportclub Schriesheim e.V | F47: SM1: Appel, Willi | G47: =VLOOKUP(A47,bangolf_kategorien!$A$2:$B$11,2,FALSE) -> SM1
A48: hv | B48: 32949 | C48: Dieter | D48: Appelhans | E48: BV Sennestadt | F48: SM2: Appelhans, Dieter | G48: =VLOOKUP(A48,bangolf_kategorien!$A$2:$B$11,2,FALSE) -> SM2
A49: hs | B49: 29034 | C49: André | D49: Appelmann | E49: VfM Bottrop e.V. | F49: H: Appelmann, André | G49: =VLOOKUP(A49,bangolf_kategorien!$A$2:$B$11,2,FALSE) -> H
A50: ds | B50: 36479 | C50: Laura | D50: Appelmann | E50: VfM Bottrop e.V. | F50: D: Appelmann, Laura | G50: =VLOOKUP(A50,bangolf_kategorien!$A$2:$B$11,2,FALSE) -> D
A51: og | B51: 67250 | C51: Angelina | D51: Arendt | E51: BGSV Castrop e.V. 1961 | F51: SW1: Arendt, Angelina | G51: =VLOOKUP(A51,bangolf_kategorien!$A$2:$B$11,2,FALSE) -> SW1
A52: hs | B52: 47183 | C52: Sascha | D52: Arendt | E52: BGSV Castrop e.V. 1961 | F52: H: Arendt, Sascha | G52: =VLOOKUP(A52,bangolf_kategorien!$A$2:$B$11,2,FALSE) -> H
A53: ob | B53: 27450 | C53: Ingo | D53: Arens | E53: BSC Ennepetal e.V. | F53: SM1: Arens, Ingo | G53: =VLOOKUP(A53,bangolf_kategorien!$A$2:$B$11,2,FALSE) -> SM1
A54: hs | B54: 26327 | C54: Christoph | D54: Arenz | E54: MSC Bad Godesberg e.V. | F54: H: Arenz, Christoph | G54: =VLOOKUP(A54,bangolf_kategorien!$A$2:$B$11,2,FALSE) -> H
A55: hv | B55: 4769 | C55: Heinz Josef | D55: Arenz | E55: MSC Bad Godesberg e.V. | F55: SM2: Arenz, Heinz Josef | G55: =VLOOKUP(A55,bangolf_kategorien!$A$2:$B$11,2,FALSE) -> SM2
A56: hv | B56: 37811 | C56: Helmut | D56: Arlt | E56: SV Glückauf 1901 Gebhardshagen e.V. | F56: SM2: Arlt, Helmut | G56: =VLOOKUP(A56,bangolf_kategorien!$A$2:$B$11,2,FALSE) -> SM2
A57: hv | B57: 60227 | C57: Gerhard | D57: Arndt | E57: VfL Lohbrügge Abt. Bahnengolf | F57: SM2: Arndt, Gerhard | G57: =VLOOKUP(A57,bangolf_kategorien!$A$2:$B$11,2,FALSE) -> SM2
A58: dv | B58: 35778 | C58: Franziska | D58: Arnold | E58: BGSV Aßlar 1987 e.V. | F58: SW2: Arnold, Franziska | G58: =VLOOKUP(A58,bangolf_kategorien!$A$2:$B$11,2,FALSE) -> SW2
A59: hv | B59: 35779 | C59: Günter | D59: Arnold | E59: BGSV Aßlar 1987 e.V. | F59: SM2: Arnold, Günter | G59: =VLOOKUP(A59,bangolf_kategorien!$A$2:$B$11,2,FALSE) -> SM2
A60: hv | B60: 18435 | C60: Klaus | D60: Arnold | E60: HMC Büttgen e.V. | F60: SM2: Arnold, Klaus | G60: =VLOOKUP(A60,bangolf_kategorien!$A$2:$B$11,2,FALSE) -> SM2
A61: hv | B61: 60125 | C61: Kurt | D61: Arnold | E61: MGC Murnau am Staffelsee e.V. | F61: SM2: Arnold, Kurt | G61: =VLOOKUP(A61,bangolf_kategorien!$A$2:$B$11,2,FALSE) -> SM2
A62: hs | B62: 35780 | C62: Mark | D62: Arnold | E62: SG Arheilgen Abt. Bahnengolf | F62: H: Arnold, Mark | G62: =VLOOKUP(A62,bangolf_kategorien!$A$2:$B$11,2,FALSE) -> H
A63: ob | B63: 36179 | C63: Marco | D63: Arnsberg | E63: MV Lankwitzer Dragons e.V. | F63: SM1: Arnsberg, Marco | G63: =VLOOKUP(A63,bangolf_kategorien!$A$2:$B$11,2,FALSE) -> SM1
A64: hv | B64: 66447 | C64: Stefan | D64: Arweiler | E64: Freizeit Club Bliesen e.V. | F64: SM2: Arweiler, Stefan | G64: =VLOOKUP(A64,bangolf_kategorien!$A$2:$B$11,2,FALSE) -> SM2
A65: ob | B65: 33616 | C65: Jörg | D65: Asmuß | E65: MGC Brunsbüttel e.V. | F65: SM1: Asmuß, Jörg | G65: =VLOOKUP(A65,bangolf_kategorien!$A$2:$B$11,2,FALSE) -> SM1
A66: ob | B66: 23975 | C66: Bernd | D66: Aßmuth | E66: Bochumer Minigolf-Club 1960 e.V. | F66: SM1: Aßmuth, Bernd | G66: =VLOOKUP(A66,bangolf_kategorien!$A$2:$B$11,2,FALSE) -> SM1
A67: hv | B67: 32897 | C67: Manfred | D67: Außerwinkler | E67: 1. BGC Hannover e.V. | F67: =CONCATENATE(G67,": ",D67,", ",C67) -> SM2: Außerwinkler, Manfred | G67: =VLOOKUP(A67,bangolf_kategorien!$A$2:$B$11,2,FALSE) -> SM2
A68: ob | B68: 29208 | C68: Thomas | D68: Aussieker | E68: BGSV Castrop e.V. 1961 | F68: SM1: Aussieker, Thomas | G68: =VLOOKUP(A68,bangolf_kategorien!$A$2:$B$11,2,FALSE) -> SM1
A69: ob | B69: 67205 | C69: Jürgen | D69: Aust | E69: VfM Bottrop e.V. | F69: SM1: Aust, Jürgen | G69: =VLOOKUP(A69,bangolf_kategorien!$A$2:$B$11,2,FALSE) -> SM1
A70: og | B70: 66405 | C70: Manuela | D70: Aust | E70: BSC Ennepetal e.V. | F70: SW1: Aust, Manuela | G70: =VLOOKUP(A70,bangolf_kategorien!$A$2:$B$11,2,FALSE) -> SW1
A71: dv | B71: 67206 | C71: Petra | D71: Aust | E71: VfM Bottrop e.V. | F71: SW2: Aust, Petra | G71: =VLOOKUP(A71,bangolf_kategorien!$A$2:$B$11,2,FALSE) -> SW2
A72: ds | B72: 66749 | C72: Anna | D72: Averbakh | E72: 1. BGC Hannover e.V. | F72: D: Averbakh, Anna | G72: =VLOOKUP(A72,bangolf_kategorien!$A$2:$B$11,2,FALSE) -> D
A73: dv | B73: 49267 | C73: Claudia | D73: Axer | E73: Kölner Miniatur Golf Club e.V. | F73: SW2: Axer, Claudia | G73: =VLOOKUP(A73,bangolf_kategorien!$A$2:$B$11,2,FALSE) -> SW2
A74: hv | B74: 49266 | C74: Reiner | D74: Axer | E74: Kölner Miniatur Golf Club e.V. | F74: SM2: Axer, Reiner | G74: =VLOOKUP(A74,bangolf_kategorien!$A$2:$B$11,2,FALSE) -> SM2
A75: hs | B75: 15754 | C75: Sascha | D75: Axer | E75: Kölner Miniatur Golf Club e.V. | F75: H: Axer, Sascha | G75: =VLOOKUP(A75,bangolf_kategorien!$A$2:$B$11,2,FALSE) -> H
A76: ob | B76: 29229 | C76: Manfred | D76: Axtner | E76: CGC Illertal Kellmünz | F76: SM1: Axtner, Manfred | G76: =VLOOKUP(A76,bangolf_kategorien!$A$2:$B$11,2,FALSE) -> SM1
A77: hv | B77: 19768 | C77: Stjepan | D77: Babic | E77: BIG ASPERG e.V. | F77: SM2: Babic, Stjepan | G77: =VLOOKUP(A77,bangolf_kategorien!$A$2:$B$11,2,FALSE) -> SM2
A78: hv | B78: 4444 | C78: Peter | D78: Bach | E78: MGC Oberkochen e.V. | F78: SM2: Bach, Peter | G78: =VLOOKUP(A78,bangolf_kategorien!$A$2:$B$11,2,FALSE) -> SM2
A79: ob | B79: 29939 | C79: Peter | D79: Bachmann | E79: 1. MGC 1970 Göttingen e.V. | F79: SM1: Bachmann, Peter | G79: =VLOOKUP(A79,bangolf_kategorien!$A$2:$B$11,2,FALSE) -> SM1
A80: og | B80: 43674 | C80: Sabine | D80: Bachmann | E80: 1. MGC 1970 Göttingen e.V. | F80: SW1: Bachmann, Sabine | G80: =VLOOKUP(A80,bangolf_kategorien!$A$2:$B$11,2,FALSE) -> SW1
A81: dv | B81: 35587 | C81: Elfriede | D81: Bader | E81: MGC Murnau am Staffelsee e.V. | F81: SW2: Bader, Elfriede | G81: =VLOOKUP(A81,bangolf_kategorien!$A$2:$B$11,2,FALSE) -> SW2
A82: hv | B82: 35588 | C82: Robert | D82: Bader | E82: MGC Murnau am Staffelsee e.V. | F82: SM2: Bader, Robert | G82: =VLOOKUP(A82,bangolf_kategorien!$A$2:$B$11,2,FALSE) -> SM2
A83: hv | B83: 43414 | C83: Gerhard | D83: Badtke | E83: BGC Bad Nenndorf e.V. | F83: SM2: Badtke, Gerhard | G83: =VLOOKUP(A83,bangolf_kategorien!$A$2:$B$11,2,FALSE) -> SM2
A84: dv | B84: 46800 | C84: Monika | D84: Badtke | E84: BGC Bad Nenndorf e.V. | F84: SW2: Badtke, Monika | G84: =VLOOKUP(A84,bangolf_kategorien!$A$2:$B$11,2,FALSE) -> SW2
A85: ob | B85: 37761 | C85: Torsten | D85: Badziong | E85: MGC Freizeitzentrum Biebertal | F85: SM1: Badziong, Torsten | G85: =VLOOKUP(A85,bangolf_kategorien!$A$2:$B$11,2,FALSE) -> SM1
A86: hv | B86: 37355 | C86: Uwe | D86: Baer | E86: 1. BGC Wesseling 1975 e.V. | F86: SM2: Baer, Uwe | G86: =VLOOKUP(A86,bangolf_kategorien!$A$2:$B$11,2,FALSE) -> SM2
A87: ob | B87: 44139 | C87: Thomas | D87: Bahr | E87: BGSV Castrop e.V. 1961 | F87: SM1: Bahr, Thomas | G87: =VLOOKUP(A87,bangolf_kategorien!$A$2:$B$11,2,FALSE) -> SM1
A88: hs | B88: 46033 | C88: Sascha | D88: Bähr | E88: Niendorfer MC v. 1963 e.V. | F88: H: Bähr, Sascha | G88: =VLOOKUP(A88,bangolf_kategorien!$A$2:$B$11,2,FALSE) -> H
A89: hv | B89: 29699 | C89: Hans | D89: Baier | E89: MGC Oberkochen e.V. | F89: SM2: Baier, Hans | G89: =VLOOKUP(A89,bangolf_kategorien!$A$2:$B$11,2,FALSE) -> SM2
A90: og | B90: 37653 | C90: Andrea | D90: Baierl | E90: MGC Ingolstadt e.V. | F90: SW1: Baierl, Andrea | G90: =VLOOKUP(A90,bangolf_kategorien!$A$2:$B$11,2,FALSE) -> SW1
A91: ob | B91: 37654 | C91: Dieter | D91: Baierl | E91: MGC Ingolstadt e.V. | F91: SM1: Baierl, Dieter | G91: =VLOOKUP(A91,bangolf_kategorien!$A$2:$B$11,2,FALSE) -> SM1
A92: ob | B92: 48505 | C92: Varyam-Mirza | D92: Baig | E92: MGC Wetzlar e.V. | F92: SM1: Baig, Varyam-Mirza | G92: =VLOOKUP(A92,bangolf_kategorien!$A$2:$B$11,2,FALSE) -> SM1
A93: hv | B93: 4489 | C93: Karl-Heinz | D93: Bailer | E93: MGC 85 Bönnigheim | F93: SM2: Bailer, Karl-Heinz | G93: =VLOOKUP(A93,bangolf_kategorien!$A$2:$B$11,2,FALSE) -> SM2
A94: hv | B94: 33109 | C94: Heinz | D94: Balbach | E94: MGC Unterschneidheim e.V. | F94: SM2: Balbach, Heinz | G94: =VLOOKUP(A94,bangolf_kategorien!$A$2:$B$11,2,FALSE) -> SM2
A95: hv | B95: 67268 | C95: Thomas | D95: Baldauf | E95: BSG Pneumant Fürstenwalde e.V., Abt. Minigolf | F95: SM2: Baldauf, Thomas | G95: =VLOOKUP(A95,bangolf_kategorien!$A$2:$B$11,2,FALSE) -> SM2
A96: og | B96: 3106833 | C96: Susanne | D96: Balewski | E96: Hobby | F96: SW1: Balewski, Susanne | G96: =VLOOKUP(A96,bangolf_kategorien!$A$2:$B$11,2,FALSE) -> SW1
A97: ob | B97: 66669 | C97: Thomas | D97: Balf | E97: BGC Uerdingen e.V. | F97: SM1: Balf, Thomas | G97: =VLOOKUP(A97,bangolf_kategorien!$A$2:$B$11,2,FALSE) -> SM1
A98: hj | B98: 67281 | C98: Kreon | D98: Balis | E98: 1. Münchener MGC e.V. | F98: JM: Balis, Kreon | G98: =VLOOKUP(A98,bangolf_kategorien!$A$2:$B$11,2,FALSE) -> JM
A99: hs | B99: 33514 | C99: Christian | D99: Balleininger | E99: 1. MGC Bamberg e.V. | F99: H: Balleininger, Christian | G99: =VLOOKUP(A99,bangolf_kategorien!$A$2:$B$11,2,FALSE) -> H
A100: hv | B100: 5910 | C100: Lyo | D100: Balleininger | E100: 1. MGC Bamberg e.V. | F100: SM2: Balleininger, Lyo | G100: =VLOOKUP(A100,bangolf_kategorien!$A$2:$B$11,2,FALSE) -> SM2
A101: ds | B101: 40906 | C101: Yvonne | D101: Baltes | E101: MSC Bad Godesberg e.V. | F101: D: Baltes, Yvonne | G101: =VLOOKUP(A101,bangolf_kategorien!$A$2:$B$11,2,FALSE) -> D
A102: hv | B102: 3194199 | C102: Andreas | D102: Baltruschat | E102: Hobby | F102: SM2: Baltruschat, Andreas | G102: =VLOOKUP(A102,bangolf_kategorien!$A$2:$B$11,2,FALSE) -> SM2
A103: hv | B103: 3354 | C103: Hans | D103: Balzer | E103: 1. Porzer MGC Grün-Weiß 1969 e.V. | F103: SM2: Balzer, Hans | G103: =VLOOKUP(A103,bangolf_kategorien!$A$2:$B$11,2,FALSE) -> SM2
A104: og | B104: 46565 | C104: Iris | D104: Balzer | E104: 1. Porzer MGC Grün-Weiß 1969 e.V. | F104: SW1: Balzer, Iris | G104: =VLOOKUP(A104,bangolf_kategorien!$A$2:$B$11,2,FALSE) -> SW1
A105: hv | B105: 5073 | C105: Max | D105: Balzereit | E105: BSC Ennepetal e.V. | F105: SM2: Balzereit, Max | G105: =VLOOKUP(A105,bangolf_kategorien!$A$2:$B$11,2,FALSE) -> SM2
A106: hs | B106: 38190 | C106: Dennis | D106: Bamberg | E106: 1. MGC Saar 68 St. Ingbert e.V. | F106: H: Bamberg, Dennis | G106: =VLOOKUP(A106,bangolf_kategorien!$A$2:$B$11,2,FALSE) -> H
A107: og | B107: 25993 | C107: Gabriele | D107: Bamberg | E107: 1. MGC Mainz e.V. | F107: SW1: Bamberg, Gabriele | G107: =VLOOKUP(A107,bangolf_kategorien!$A$2:$B$11,2,FALSE) -> SW1
A108: ob | B108: 42482 | C108: Michael | D108: Bamberg | E108: 1. MGC Mainz e.V. | F108: SM1: Bamberg, Michael | G108: =VLOOKUP(A108,bangolf_kategorien!$A$2:$B$11,2,FALSE) -> SM1
A109: hs | B109: 48318 | C109: Tobias | D109: Bär | E109: MGC Bad Hersfeld | F109: H: Bär, Tobias | G109: =VLOOKUP(A109,bangolf_kategorien!$A$2:$B$11,2,FALSE) -> H
A110: og | B110: 38333 | C110: Claudia | D110: Barber | E110: MSV Würzburg-Löwenbrücke e.V. | F110: SW1: Barber, Claudia | G110: =VLOOKUP(A110,bangolf_kategorien!$A$2:$B$11,2,FALSE) -> SW1
A111: ob | B111: 43841 | C111: Jens | D111: Bardenhagen | E111: MGC Brunsbüttel e.V. | F111: SM1: Bardenhagen, Jens | G111: =VLOOKUP(A111,bangolf_kategorien!$A$2:$B$11,2,FALSE) -> SM1
A112: hv | B112: 25214 | C112: Stefan | D112: Bärenz | E112: SV 1890 e.V. Dreieichenhain, Abt. Bahnengolf | F112: SM2: Bärenz, Stefan | G112: =VLOOKUP(A112,bangolf_kategorien!$A$2:$B$11,2,FALSE) -> SM2
A113: hv | B113: 37576 | C113: Bernd | D113: Bargenda | E113: MGC Harrislee-Wassersleben | F113: SM2: Bargenda, Bernd | G113: =VLOOKUP(A113,bangolf_kategorien!$A$2:$B$11,2,FALSE) -> SM2
A114: ob | B114: 67241 | C114: Heinz | D114: Bark | E114: MGC Dortmund Syburg e.V. | F114: SM1: Bark, Heinz | G114: =VLOOKUP(A114,bangolf_kategorien!$A$2:$B$11,2,FALSE) -> SM1
A115: ob | B115: 38123 | C115: Mario | D115: Barke | E115: 1. Essener CGC "Blau-Gold" e.V. | F115: SM1: Barke, Mario | G115: =VLOOKUP(A115,bangolf_kategorien!$A$2:$B$11,2,FALSE) -> SM1
A116: ob | B116: 36967 | C116: Thomas | D116: Barke | E116: 1. Essener CGC "Blau-Gold" e.V. | F116: SM1: Barke, Thomas | G116: =VLOOKUP(A116,bangolf_kategorien!$A$2:$B$11,2,FALSE) -> SM1
A117: hs | B117: 29656 | C117: René | D117: Barlog | E117: Bochumer Minigolf-Club 1960 e.V. | F117: H: Barlog, René | G117: =VLOOKUP(A117,bangolf_kategorien!$A$2:$B$11,2,FALSE) -> H
A118: hv | B118: 66068 | C118: Hermann | D118: Barnstorf | E118: VfL Lüneburg Abt. Bahnengolf | F118: SM2: Barnstorf, Hermann | G118: =VLOOKUP(A118,bangolf_kategorien!$A$2:$B$11,2,FALSE) -> SM2
A119: hs | B119: 38086 | C119: Daniel | D119: Bärsch | E119: 1. BGC Leipzig e.V. | F119: H: Bärsch, Daniel | G119: =VLOOKUP(A119,bangolf_kategorien!$A$2:$B$11,2,FALSE) -> H
A120: hv | B120: 67323 | C120: Michael | D120: Bartel | E120: Osnabrücker M.-C. von 1963 e.V. | F120: SM2: Bartel, Michael | G120: =VLOOKUP(A120,bangolf_kategorien!$A$2:$B$11,2,FALSE) -> SM2
A121: ob | B121: 36395 | C121: Harald | D121: Barth | E121: 1. BGC Wesseling 1975 e.V. | F121: SM1: Barth, Harald | G121: =VLOOKUP(A121,bangolf_kategorien!$A$2:$B$11,2,FALSE) -> SM1
A122: og | B122: 50563 | C122: Susanne | D122: Barth | E122: MSC Bad Godesberg e.V. | F122: SW1: Barth, Susanne | G122: =VLOOKUP(A122,bangolf_kategorien!$A$2:$B$11,2,FALSE) -> SW1
A123: hs | B123: 66777 | C123: Patrick | D123: Bartholomä | E123: 1. MGC Kassel 1964 e.V. | F123: H: Bartholomä, Patrick | G123: =VLOOKUP(A123,bangolf_kategorien!$A$2:$B$11,2,FALSE) -> H
A124: hs | B124: 66896 | C124: Pierre | D124: Bartholomä | E124: 1. MGC Kassel 1964 e.V. | F124: H: Bartholomä, Pierre | G124: =VLOOKUP(A124,bangolf_kategorien!$A$2:$B$11,2,FALSE) -> H
A125: ob | B125: 41145 | C125: Volker | D125: Bartmann | E125: BGSV Bad Homburg | F125: SM1: Bartmann, Volker | G125: =VLOOKUP(A125,bangolf_kategorien!$A$2:$B$11,2,FALSE) -> SM1
A126: hv | B126: 67404 | C126: Paul | D126: Bartsch | E126: BV Sennestadt | F126: SM2: Bartsch, Paul | G126: =VLOOKUP(A126,bangolf_kategorien!$A$2:$B$11,2,FALSE) -> SM2
A127: hv | B127: 46055 | C127: Andreas | D127: Barz | E127: MGC Olympia Kiel e.V. | F127: SM2: Barz, Andreas | G127: =VLOOKUP(A127,bangolf_kategorien!$A$2:$B$11,2,FALSE) -> SM2
A128: og | B128: 38102 | C128: Birgit | D128: Barz | E128: VfM e.V. Berlin | F128: SW1: Barz, Birgit | G128: =VLOOKUP(A128,bangolf_kategorien!$A$2:$B$11,2,FALSE) -> SW1
A129: hs | B129: 38103 | C129: Patrick | D129: Barz | E129: 1. MGC 1970 Göttingen e.V. | F129: H: Barz, Patrick | G129: =VLOOKUP(A129,bangolf_kategorien!$A$2:$B$11,2,FALSE) -> H
A130: ob | B130: 38104 | C130: Ralf | D130: Barz | E130: VfM e.V. Berlin | F130: SM1: Barz, Ralf | G130: =VLOOKUP(A130,bangolf_kategorien!$A$2:$B$11,2,FALSE) -> SM1
A131: ds | B131: 37582 | C131: Ann-Kathrin | D131: Bastian | E131: BGC Bildstock e.V. | F131: =CONCATENATE(G131,": ",D131,", ",C131) -> D: Bastian, Ann-Kathrin | G131: =VLOOKUP(A131,bangolf_kategorien!$A$2:$B$11,2,FALSE) -> D
A132: og | B132: 37583 | C132: Claudia | D132: Bastian | E132: BGC Bildstock e.V. | F132: SW1: Bastian, Claudia | G132: =VLOOKUP(A132,bangolf_kategorien!$A$2:$B$11,2,FALSE) -> SW1
A133: hv | B133: 46910 | C133: Richard | D133: Bätge | E133: SV Glückauf 1901 Gebhardshagen e.V. | F133: SM2: Bätge, Richard | G133: =VLOOKUP(A133,bangolf_kategorien!$A$2:$B$11,2,FALSE) -> SM2
A134: hj | B134: 65848 | C134: Adrian | D134: Batschkus | E134: 1. Münchener MGC e.V. | F134: JM: Batschkus, Adrian | G134: =VLOOKUP(A134,bangolf_kategorien!$A$2:$B$11,2,FALSE) -> JM
A135: pa | B135: 66273 | C135: Quirin | D135: Batschkus | E135: 1. Münchener MGC e.V. | F135: SCHM: Batschkus, Quirin | G135: =VLOOKUP(A135,bangolf_kategorien!$A$2:$B$11,2,FALSE) -> SCHM
A136: ob | B136: 23741 | C136: Wolfgang | D136: Battig | E136: MC 62 Lüdenscheid e.V. | F136: SM1: Battig, Wolfgang | G136: =VLOOKUP(A136,bangolf_kategorien!$A$2:$B$11,2,FALSE) -> SM1
A137: hs | B137: 37799 | C137: Jan Hendrik | D137: Battling | E137: MGC "AS" Witten 1963 e.V. | F137: H: Battling, Jan Hendrik | G137: =VLOOKUP(A137,bangolf_kategorien!$A$2:$B$11,2,FALSE) -> H
A138: ob | B138: 34490 | C138: Thomas | D138: Bätz | E138: MSC Bad Godesberg e.V. | F138: SM1: Bätz, Thomas | G138: =VLOOKUP(A138,bangolf_kategorien!$A$2:$B$11,2,FALSE) -> SM1
A139: ds | B139: 67282 | C139: Daniela | D139: Bauer | E139: MSK Olching e.V. | F139: D: Bauer, Daniela | G139: =VLOOKUP(A139,bangolf_kategorien!$A$2:$B$11,2,FALSE) -> D
A140: ob | B140: 40471 | C140: Helmut | D140: Bauer | E140: 1. MGC München-Feldmoching e.V. | F140: SM1: Bauer, Helmut | G140: =VLOOKUP(A140,bangolf_kategorien!$A$2:$B$11,2,FALSE) -> SM1
A141: ob | B141: 40864 | C141: Martin | D141: Bauer | E141: BGC Bildstock e.V. | F141: SM1: Bauer, Martin | G141: =VLOOKUP(A141,bangolf_kategorien!$A$2:$B$11,2,FALSE) -> SM1
A142: hv | B142: 3216770 | C142: Roman | D142: Bauer | E142: Hobby | F142: SM2: Bauer, Roman | G142: =VLOOKUP(A142,bangolf_kategorien!$A$2:$B$11,2,FALSE) -> SM2
A143: fa | B143: 67283 | C143: Selina | D143: Bauer | E143: MSK Olching e.V. | F143: SCHW: Bauer, Selina | G143: =VLOOKUP(A143,bangolf_kategorien!$A$2:$B$11,2,FALSE) -> SCHW
A144: ob | B144: 46532 | C144: Siegfried | D144: Bauer | E144: BGC Bad Berneck e.V. | F144: SM1: Bauer, Siegfried | G144: =VLOOKUP(A144,bangolf_kategorien!$A$2:$B$11,2,FALSE) -> SM1
A145: hs | B145: 67284 | C145: Thorsten | D145: Bauer | E145: MSK Olching e.V. | F145: H: Bauer, Thorsten | G145: =VLOOKUP(A145,bangolf_kategorien!$A$2:$B$11,2,FALSE) -> H
A146: hv | B146: 5751 | C146: Helmut | D146: Bauerfeld | E146: Freizeit Club Bliesen e.V. | F146: SM2: Bauerfeld, Helmut | G146: =VLOOKUP(A146,bangolf_kategorien!$A$2:$B$11,2,FALSE) -> SM2
A147: og | B147: 36137 | C147: Barbara | D147: Bauermeister | E147: MGC Murnau am Staffelsee e.V. | F147: SW1: Bauermeister, Barbara | G147: =VLOOKUP(A147,bangolf_kategorien!$A$2:$B$11,2,FALSE) -> SW1
A148: ob | B148: 28605 | C148: Stephan | D148: Bauermeister | E148: MGC Murnau am Staffelsee e.V. | F148: SM1: Bauermeister, Stephan | G148: =VLOOKUP(A148,bangolf_kategorien!$A$2:$B$11,2,FALSE) -> SM1
A149: hs | B149: 46616 | C149: Marcus | D149: Bauhofer | E149: BGC Heilbronn e.V. | F149: H: Bauhofer, Marcus | G149: =VLOOKUP(A149,bangolf_kategorien!$A$2:$B$11,2,FALSE) -> H
A150: hs | B150: 36563 | C150: Oliver | D150: Baum | E150: SV Glückauf 1901 Gebhardshagen e.V. | F150: H: Baum, Oliver | G150: =VLOOKUP(A150,bangolf_kategorien!$A$2:$B$11,2,FALSE) -> H
A151: hs | B151: 3108930 | C151: Andre | D151: Baumann | E151: Hobby | F151: H: Baumann, Andre | G151: =VLOOKUP(A151,bangolf_kategorien!$A$2:$B$11,2,FALSE) -> H
A152: ob | B152: 65195 | C152: Harald | D152: Baumann | E152: MGF Waldshut 74 e.V. | F152: SM1: Baumann, Harald | G152: =VLOOKUP(A152,bangolf_kategorien!$A$2:$B$11,2,FALSE) -> SM1
A153: hv | B153: 37803 | C153: Wolfgang | D153: Baumbach | E153: 1. MGC Saar 68 St. Ingbert e.V. | F153: SM2: Baumbach, Wolfgang | G153: =VLOOKUP(A153,bangolf_kategorien!$A$2:$B$11,2,FALSE) -> SM2
A154: hs | B154: 26398 | C154: Daniel | D154: Baumer | E154: 1. MGC München-Feldmoching e.V. | F154: H: Baumer, Daniel | G154: =VLOOKUP(A154,bangolf_kategorien!$A$2:$B$11,2,FALSE) -> H
A155: hv | B155: 3998 | C155: Klaus | D155: Baumer | E155: BGC Illertissen e.V. | F155: SM2: Baumer, Klaus | G155: =VLOOKUP(A155,bangolf_kategorien!$A$2:$B$11,2,FALSE) -> SM2
A156: dv | B156: 47033 | C156: Ruth | D156: Baumer | E156: BGC Illertissen e.V. | F156: SW2: Baumer, Ruth | G156: =VLOOKUP(A156,bangolf_kategorien!$A$2:$B$11,2,FALSE) -> SW2
A157: ob | B157: 29220 | C157: Dirk | D157: Baumgart | E157: MSK Neheim-Hüsten e.V. | F157: SM1: Baumgart, Dirk | G157: =VLOOKUP(A157,bangolf_kategorien!$A$2:$B$11,2,FALSE) -> SM1
A158: hs | B158: 37760 | C158: Thorben | D158: Baumgart | E158: MSK Neheim-Hüsten e.V. | F158: H: Baumgart, Thorben | G158: =VLOOKUP(A158,bangolf_kategorien!$A$2:$B$11,2,FALSE) -> H
A159: hs | B159: 38226 | C159: Wolfgang | D159: Bäurle | E159: ASV Pegnitz, Abt. Minigolf | F159: H: Bäurle, Wolfgang | G159: =VLOOKUP(A159,bangolf_kategorien!$A$2:$B$11,2,FALSE) -> H
A160: hj | B160: 38639 | C160: Fabian | D160: Bayer | E160: MGF Ottobrunn e.V. | F160: JM: Bayer, Fabian | G160: =VLOOKUP(A160,bangolf_kategorien!$A$2:$B$11,2,FALSE) -> JM
A161: hv | B161: 5942 | C161: Hubert | D161: Bayer | E161: 1. BGC Landshut e.V. | F161: SM2: Bayer, Hubert | G161: =VLOOKUP(A161,bangolf_kategorien!$A$2:$B$11,2,FALSE) -> SM2
A162: ob | B162: 38632 | C162: Jimmy | D162: Bayer | E162: MGC Murnau am Staffelsee e.V. | F162: SM1: Bayer, Jimmy | G162: =VLOOKUP(A162,bangolf_kategorien!$A$2:$B$11,2,FALSE) -> SM1
A163: pa | B163: 67374 | C163: Tobias | D163: Bayer | E163: BIG ASPERG e.V. | F163: SCHM: Bayer, Tobias | G163: =VLOOKUP(A163,bangolf_kategorien!$A$2:$B$11,2,FALSE) -> SCHM
A164: hv | B164: 67061 | C164: Willi | D164: Bayer | E164: BIG ASPERG e.V. | F164: SM2: Bayer, Willi | G164: =VLOOKUP(A164,bangolf_kategorien!$A$2:$B$11,2,FALSE) -> SM2
A165: ob | B165: 66645 | C165: Wolfgang | D165: Bayer | E165: MGC Murnau am Staffelsee e.V. | F165: SM1: Bayer, Wolfgang | G165: =VLOOKUP(A165,bangolf_kategorien!$A$2:$B$11,2,FALSE) -> SM1
A166: hv | B166: 66112 | C166: Erich | D166: Beausencourt | E166: Minigolf-Club Diessen | F166: SM2: Beausencourt, Erich | G166: =VLOOKUP(A166,bangolf_kategorien!$A$2:$B$11,2,FALSE) -> SM2
A167: hj | B167: 66712 | C167: Deniz-Benett | D167: Beceriklier | E167: MGC Lippe-Detmold e.V. | F167: JM: Beceriklier, Deniz-Benett | G167: =VLOOKUP(A167,bangolf_kategorien!$A$2:$B$11,2,FALSE) -> JM
A168: og | B168: 66500 | C168: Andrea | D168: Becher | E168: MSK Olching e.V. | F168: SW1: Becher, Andrea | G168: =VLOOKUP(A168,bangolf_kategorien!$A$2:$B$11,2,FALSE) -> SW1
A169: hv | B169: 46021 | C169: Bernhard | D169: Beck | E169: 1. KC Homburg-Saar 1967 e.V. | F169: SM2: Beck, Bernhard | G169: =VLOOKUP(A169,bangolf_kategorien!$A$2:$B$11,2,FALSE) -> SM2
A170: hs | B170: 66892 | C170: Christian | D170: Beck | E170: 1. BGC Landshut e.V. | F170: H: Beck, Christian | G170: =VLOOKUP(A170,bangolf_kategorien!$A$2:$B$11,2,FALSE) -> H
A171: ob | B171: 40688 | C171: Oliver | D171: Beck | E171: MSV Bad Kreuznach | F171: SM1: Beck, Oliver | G171: =VLOOKUP(A171,bangolf_kategorien!$A$2:$B$11,2,FALSE) -> SM1
A172: hj | B172: 67204 | C172: Simon | D172: Beck | E172: 1. BGC Leipzig e.V. | F172: JM: Beck, Simon | G172: =VLOOKUP(A172,bangolf_kategorien!$A$2:$B$11,2,FALSE) -> JM
A173: ds | B173: 38593 | C173: Anna Lisa | D173: Becker | E173: 1. MGC Saar 68 St. Ingbert e.V. | F173: D: Becker, Anna Lisa | G173: =VLOOKUP(A173,bangolf_kategorien!$A$2:$B$11,2,FALSE) -> D
A174: ds | B174: 67092 | C174: Cecina | D174: Becker | E174: SG Weiterstadt 1886 e.V. | F174: D: Becker, Cecina | G174: =VLOOKUP(A174,bangolf_kategorien!$A$2:$B$11,2,FALSE) -> D
A175: ds | B175: 35103 | C175: Daniela | D175: Becker | E175: MGC Heven e.V. | F175: D: Becker, Daniela | G175: =VLOOKUP(A175,bangolf_kategorien!$A$2:$B$11,2,FALSE) -> D
A176: dv | B176: 4101 | C176: Erika | D176: Becker | E176: MGC Dortmund Syburg e.V. | F176: SW2: Becker, Erika | G176: =VLOOKUP(A176,bangolf_kategorien!$A$2:$B$11,2,FALSE) -> SW2
A177: hs | B177: 37559 | C177: Florian | D177: Becker | E177: MSK Neheim-Hüsten e.V. | F177: H: Becker, Florian | G177: =VLOOKUP(A177,bangolf_kategorien!$A$2:$B$11,2,FALSE) -> H
A178: ob | B178: 26506 | C178: Gerd | D178: Becker | E178: MGC Dortmund Syburg e.V. | F178: SM1: Becker, Gerd | G178: =VLOOKUP(A178,bangolf_kategorien!$A$2:$B$11,2,FALSE) -> SM1
A179: hv | B179: 12781 | C179: Hans-Dieter | D179: Becker | E179: MSK Neheim-Hüsten e.V. | F179: SM2: Becker, Hans-Dieter | G179: =VLOOKUP(A179,bangolf_kategorien!$A$2:$B$11,2,FALSE) -> SM2
A180: hv | B180: 66583 | C180: Heinz | D180: Becker | E180: MGC Bad Soden-Salmünster | F180: SM2: Becker, Heinz | G180: =VLOOKUP(A180,bangolf_kategorien!$A$2:$B$11,2,FALSE) -> SM2
A181: hs | B181: 38570 | C181: Jan | D181: Becker | E181: SG Arheilgen Abt. Bahnengolf | F181: H: Becker, Jan | G181: =VLOOKUP(A181,bangolf_kategorien!$A$2:$B$11,2,FALSE) -> H
A182: ob | B182: 3137196 | C182: Jochen | D182: Becker | E182: Hobby | F182: SM1: Becker, Jochen | G182: =VLOOKUP(A182,bangolf_kategorien!$A$2:$B$11,2,FALSE) -> SM1
A183: og | B183: 44303 | C183: Karin | D183: Becker | E183: SG Arheilgen Abt. Bahnengolf | F183: SW1: Becker, Karin | G183: =VLOOKUP(A183,bangolf_kategorien!$A$2:$B$11,2,FALSE) -> SW1
A184: hs | B184: 66162 | C184: Lars | D184: Becker | E184: SG Arheilgen Abt. Bahnengolf | F184: H: Becker, Lars | G184: =VLOOKUP(A184,bangolf_kategorien!$A$2:$B$11,2,FALSE) -> H
A185: ob | B185: 33442 | C185: Martin | D185: Becker | E185: Reinickendorfer MGC e.V. | F185: SM1: Becker, Martin | G185: =VLOOKUP(A185,bangolf_kategorien!$A$2:$B$11,2,FALSE) -> SM1
A186: ob | B186: 37225 | C186: Michael | D186: Becker | E186: SG Weiterstadt 1886 e.V. | F186: SM1: Becker, Michael | G186: =VLOOKUP(A186,bangolf_kategorien!$A$2:$B$11,2,FALSE) -> SM1
A187: hv | B187: 40005 | C187: Michael | D187: Becker | E187: SGC Hagen e.V. | F187: SM2: Becker, Michael | G187: =VLOOKUP(A187,bangolf_kategorien!$A$2:$B$11,2,FALSE) -> SM2
A188: ob | B188: 44304 | C188: Norbert | D188: Becker | E188: SG Arheilgen Abt. Bahnengolf | F188: SM1: Becker, Norbert | G188: =VLOOKUP(A188,bangolf_kategorien!$A$2:$B$11,2,FALSE) -> SM1
A189: dv | B189: 66584 | C189: Renate | D189: Becker | E189: MGC Bad Soden-Salmünster | F189: SW2: Becker, Renate | G189: =VLOOKUP(A189,bangolf_kategorien!$A$2:$B$11,2,FALSE) -> SW2
A190: hv | B190: 3194221 | C190: Rolf | D190: Becker | E190: Hobby | F190: SM2: Becker, Rolf | G190: =VLOOKUP(A190,bangolf_kategorien!$A$2:$B$11,2,FALSE) -> SM2
A191: hs | B191: 35385 | C191: Timo | D191: Becker | E191: MGC Schwaikheim e.V. | F191: H: Becker, Timo | G191: =VLOOKUP(A191,bangolf_kategorien!$A$2:$B$11,2,FALSE) -> H
A192: og | B192: 25999 | C192: Ursula | D192: Becker | E192: 1. MGC Mannheim 1968 e.V. | F192: SW1: Becker, Ursula | G192: =VLOOKUP(A192,bangolf_kategorien!$A$2:$B$11,2,FALSE) -> SW1
A193: hv | B193: 35612 | C193: Walter | D193: Becker | E193: 1. MGC Ludwigshafen e.V. | F193: SM2: Becker, Walter | G193: =VLOOKUP(A193,bangolf_kategorien!$A$2:$B$11,2,FALSE) -> SM2
A194: hv | B194: 3591 | C194: Werner | D194: Becker | E194: BSV Inzlingen 1979 e.V. | F194: SM2: Becker, Werner | G194: =VLOOKUP(A194,bangolf_kategorien!$A$2:$B$11,2,FALSE) -> SM2
A195: ob | B195: 65404 | C195: Martin | D195: Beckert | E195: MSV 05 Bad Münder / Springe e.V. | F195: =CONCATENATE(G195,": ",D195,", ",C195) -> SM1: Beckert, Martin | G195: =VLOOKUP(A195,bangolf_kategorien!$A$2:$B$11,2,FALSE) -> SM1
A196: ob | B196: 26620 | C196: Thomas | D196: Beckmann | E196: MSK Neheim-Hüsten e.V. | F196: SM1: Beckmann, Thomas | G196: =VLOOKUP(A196,bangolf_kategorien!$A$2:$B$11,2,FALSE) -> SM1
A197: ob | B197: 37899 | C197: Joachim | D197: Bednar | E197: 1. MGC Mannheim 1968 e.V. | F197: SM1: Bednar, Joachim | G197: =VLOOKUP(A197,bangolf_kategorien!$A$2:$B$11,2,FALSE) -> SM1
A198: og | B198: 3202284 | C198: Friederike | D198: Behnen | E198: Hobby | F198: SW1: Behnen, Friederike | G198: =VLOOKUP(A198,bangolf_kategorien!$A$2:$B$11,2,FALSE) -> SW1
A199: dv | B199: 65677 | C199: Christiane | D199: Behrens | E199: BGC Goslar e.V. | F199: SW2: Behrens, Christiane | G199: =VLOOKUP(A199,bangolf_kategorien!$A$2:$B$11,2,FALSE) -> SW2
A200: hv | B200: 65678 | C200: Friedhelm | D200: Behrens | E200: BGC Goslar e.V. | F200: SM2: Behrens, Friedhelm | G200: =VLOOKUP(A200,bangolf_kategorien!$A$2:$B$11,2,FALSE) -> SM2
... 4031 more rows

Sheet Teilnehmer (hidden)
A1: Sommer-Cup im Freizeittreff Herbede - Teilnehmerliste | H1: aus players.data:
A2: Spieler | B2: Verein | C2: Passnr. | D2: Kat. | E2: fehlt? | G2: Kat. | H2: Verein | I2: Kat. Ok
A3: Arens, Ingo | B3: =VLOOKUP(H3,Vereine!$A$2:$B$26,2,FALSE) -> Ennep. | C3: 27450 | D3: SM1 | E3: =COUNTIF(Gesamtstand!$B$3:$B$104,$A3)=0 -> TRUE | G3: =VLOOKUP($C3,bangolf_players!$B$2:$G$4863,6,FALSE) -> SM1 | H3: =VLOOKUP($C3,bangolf_players!$B$2:$G$4863,4,FALSE) -> BSC Ennepetal e.V. | I3: =G3=D3 -> TRUE
A4: Battling, Hendrik | B4: =VLOOKUP(H4,Vereine!$A$2:$B$26,2,FALSE) -> ASW | C4: 37799 | D4: H | E4: =COUNTIF(Gesamtstand!$B$3:$B$104,$A4)=0 -> TRUE | G4: =VLOOKUP($C4,bangolf_players!$B$2:$G$4863,6,FALSE) -> H | H4: =VLOOKUP($C4,bangolf_players!$B$2:$G$4863,4,FALSE) -> MGC "AS" Witten 1963 e.V. | I4: =G4=D4 -> TRUE
A5: Battig, Wolfgang | B5: =VLOOKUP(H5,Vereine!$A$2:$B$26,2,FALSE) -> Lüd. | C5: 23741 | D5: SM1 | E5: =COUNTIF(Gesamtstand!$B$3:$B$104,$A5)=0 -> FALSE | G5: =VLOOKUP($C5,bangolf_players!$B$2:$G$4863,6,FALSE) -> SM1 | H5: =VLOOKUP($C5,bangolf_players!$B$2:$G$4863,4,FALSE) -> MC 62 Lüdenscheid e.V. | I5: =G5=D5 -> TRUE
A6: Baumgart, Thorben | B6: =VLOOKUP(H6,Vereine!$A$2:$B$26,2,FALSE) -> NEH | C6: 37760 | D6: H | E6: =COUNTIF(Gesamtstand!$B$3:$B$104,$A6)=0 -> TRUE | G6: =VLOOKUP($C6,bangolf_players!$B$2:$G$4863,6,FALSE) -> H | H6: =VLOOKUP($C6,bangolf_players!$B$2:$G$4863,4,FALSE) -> MSK Neheim-Hüsten e.V. | I6: TRUE
A7: Behrens, Stephan | B7: =VLOOKUP(H7,Vereine!$A$2:$B$26,2,FALSE) -> NIE | C7: 34186 | D7: H | E7: =COUNTIF(Gesamtstand!$B$3:$B$104,$A7)=0 -> TRUE | G7: =VLOOKUP($C7,bangolf_players!$B$2:$G$4863,6,FALSE) -> H | H7: =VLOOKUP($C7,bangolf_players!$B$2:$G$4863,4,FALSE) -> Niendorfer MC v. 1963 e.V. | I7: TRUE
A8: Blasek, Nicole | B8: =VLOOKUP(H8,Vereine!$A$2:$B$26,2,FALSE) -> KÖL | C8: 35663 | D8: SW1 | E8: =COUNTIF(Gesamtstand!$B$3:$B$104,$A8)=0 -> TRUE | G8: =VLOOKUP($C8,bangolf_players!$B$2:$G$4863,6,FALSE) -> SW1 | H8: =VLOOKUP($C8,bangolf_players!$B$2:$G$4863,4,FALSE) -> 1. MGC Köln 1961 e.V. | I8: TRUE
A9: Blümer, Severin | B9: =VLOOKUP(H9,Vereine!$A$2:$B$26,2,FALSE) -> Wesel | C9: 66049 | D9: H | E9: =COUNTIF(Gesamtstand!$B$3:$B$104,$A9)=0 -> TRUE | G9: =VLOOKUP($C9,bangolf_players!$B$2:$G$4863,6,FALSE) -> H | H9: =VLOOKUP($C9,bangolf_players!$B$2:$G$4863,4,FALSE) -> 1. MSC Wesel 6.6.1966 e.V. | I9: TRUE
A10: Börgmann, Brigitte | B10: =VLOOKUP(H10,Vereine!$A$2:$B$26,2,FALSE) -> Hobby | C10: Hobby6 | D10: SW1 | E10: =COUNTIF(Gesamtstand!$B$3:$B$104,$A10)=0 -> FALSE | G10: =VLOOKUP($C10,bangolf_players!$B$2:$G$4863,6,FALSE) -> SW1 | H10: =VLOOKUP($C10,bangolf_players!$B$2:$G$4863,4,FALSE) -> Hobby | I10: TRUE
A11: Börgmann, Ulrich | B11: =VLOOKUP(H11,Vereine!$A$2:$B$26,2,FALSE) -> Hobby | C11: Hobby15 | D11: SM1 | E11: =COUNTIF(Gesamtstand!$B$3:$B$104,$A11)=0 -> FALSE | G11: =VLOOKUP($C11,bangolf_players!$B$2:$G$4863,6,FALSE) -> SM1 | H11: =VLOOKUP($C11,bangolf_players!$B$2:$G$4863,4,FALSE) -> Hobby | I11: TRUE
A12: Breitbarth, Frank | B12: =VLOOKUP(H12,Vereine!$A$2:$B$26,2,FALSE) -> Oly | C12: 67219 | D12: SM1 | E12: =COUNTIF(Gesamtstand!$B$3:$B$104,$A12)=0 -> TRUE | G12: =VLOOKUP($C12,bangolf_players!$B$2:$G$4863,6,FALSE) -> SM1 | H12: =VLOOKUP($C12,bangolf_players!$B$2:$G$4863,4,FALSE) -> SC Olympia Dortmund e.V. | I12: TRUE
A13: Buchholz, Ansgar | B13: =VLOOKUP(H13,Vereine!$A$2:$B$26,2,FALSE) -> ASW | C13: 31513 | D13: SM1 | E13: =COUNTIF(Gesamtstand!$B$3:$B$104,$A13)=0 -> FALSE | G13: =VLOOKUP($C13,bangolf_players!$B$2:$G$4863,6,FALSE) -> SM1 | H13: =VLOOKUP($C13,bangolf_players!$B$2:$G$4863,4,FALSE) -> MGC "AS" Witten 1963 e.V. | I13: TRUE
A14: Brunnenkant, Frank | B14: =VLOOKUP(H14,Vereine!$A$2:$B$26,2,FALSE) -> Hobby | C14: Hobby38 | D14: SM1 | E14: =COUNTIF(Gesamtstand!$B$3:$B$104,$A14)=0 -> FALSE | G14: =VLOOKUP($C14,bangolf_players!$B$2:$G$4863,6,FALSE) -> SM1 | H14: =VLOOKUP($C14,bangolf_players!$B$2:$G$4863,4,FALSE) -> Hobby | I14: TRUE
A15: Dammann, Reinhold | B15: =VLOOKUP(H15,Vereine!$A$2:$B$26,2,FALSE) -> ASW | C15: 25732 | D15: SM2 | E15: =COUNTIF(Gesamtstand!$B$3:$B$104,$A15)=0 -> FALSE | G15: =VLOOKUP($C15,bangolf_players!$B$2:$G$4863,6,FALSE) -> SM2 | H15: =VLOOKUP($C15,bangolf_players!$B$2:$G$4863,4,FALSE) -> MGC "AS" Witten 1963 e.V. | I15: TRUE
A16: Dietzel, Gerhard | B16: =VLOOKUP(H16,Vereine!$A$2:$B$26,2,FALSE) -> FEL | C16: 5745 | D16: SM2 | E16: =COUNTIF(Gesamtstand!$B$3:$B$104,$A16)=0 -> TRUE | G16: =VLOOKUP($C16,bangolf_players!$B$2:$G$4863,6,FALSE) -> SM2 | H16: =VLOOKUP($C16,bangolf_players!$B$2:$G$4863,4,FALSE) -> MGC Felderbachtal 1964 e.V. | I16: TRUE
A17: Dreischer, Burkhard | B17: =VLOOKUP(H17,Vereine!$A$2:$B$26,2,FALSE) -> Oly | C17: 23778 | D17: SM2 | E17: =COUNTIF(Gesamtstand!$B$3:$B$104,$A17)=0 -> FALSE | G17: =VLOOKUP($C17,bangolf_players!$B$2:$G$4863,6,FALSE) -> SM2 | H17: =VLOOKUP($C17,bangolf_players!$B$2:$G$4863,4,FALSE) -> SC Olympia Dortmund e.V. | I17: TRUE
A18: Fritzenkötter, Dietmar | B18: =VLOOKUP(H18,Vereine!$A$2:$B$26,2,FALSE) -> CAS | C18: 37088 | D18: SM2 | E18: =COUNTIF(Gesamtstand!$B$3:$B$104,$A18)=0 -> TRUE | G18: =VLOOKUP($C18,bangolf_players!$B$2:$G$4863,6,FALSE) -> SM2 | H18: =VLOOKUP($C18,bangolf_players!$B$2:$G$4863,4,FALSE) -> BGSV Castrop e.V. 1961 | I18: =G18=D18 -> TRUE
A19: Fritzenkötter, Margot | B19: =VLOOKUP(H19,Vereine!$A$2:$B$26,2,FALSE) -> CAS | C19: 37089 | D19: SW2 | E19: =COUNTIF(Gesamtstand!$B$3:$B$104,$A19)=0 -> TRUE | G19: =VLOOKUP($C19,bangolf_players!$B$2:$G$4863,6,FALSE) -> SW2 | H19: =VLOOKUP($C19,bangolf_players!$B$2:$G$4863,4,FALSE) -> BGSV Castrop e.V. 1961 | I19: TRUE
A20: Frost, Uwe | B20: =VLOOKUP(H20,Vereine!$A$2:$B$26,2,FALSE) -> Hobby | C20: Hobby28 | D20: SM2 | E20: =COUNTIF(Gesamtstand!$B$3:$B$104,$A20)=0 -> TRUE | G20: =VLOOKUP($C20,bangolf_players!$B$2:$G$4863,6,FALSE) -> SM2 | H20: =VLOOKUP($C20,bangolf_players!$B$2:$G$4863,4,FALSE) -> Hobby | I20: TRUE
A21: Gattner, Karsten | B21: =VLOOKUP(H21,Vereine!$A$2:$B$26,2,FALSE) -> Hobby | C21: Hobby16 | D21: SM1 | E21: =COUNTIF(Gesamtstand!$B$3:$B$104,$A21)=0 -> TRUE | G21: =VLOOKUP($C21,bangolf_players!$B$2:$G$4863,6,FALSE) -> SM1 | H21: =VLOOKUP($C21,bangolf_players!$B$2:$G$4863,4,FALSE) -> Hobby | I21: TRUE
A22: Ginschel, Rudolf | B22: =VLOOKUP(H22,Vereine!$A$2:$B$26,2,FALSE) -> BMC | C22: 66864 | D22: SM2 | E22: =COUNTIF(Gesamtstand!$B$3:$B$104,$A22)=0 -> FALSE | G22: =VLOOKUP($C22,bangolf_players!$B$2:$G$4863,6,FALSE) -> SM2 | H22: =VLOOKUP($C22,bangolf_players!$B$2:$G$4863,4,FALSE) -> Bochumer Minigolf-Club 1960 e.V. | I22: TRUE
A23: Goldau, Thorsten | B23: =VLOOKUP(H23,Vereine!$A$2:$B$26,2,FALSE) -> Hobby | C23: Hobby5 | D23: H | E23: =COUNTIF(Gesamtstand!$B$3:$B$104,$A23)=0 -> TRUE | G23: =VLOOKUP($C23,bangolf_players!$B$2:$G$4863,6,FALSE) -> H | H23: =VLOOKUP($C23,bangolf_players!$B$2:$G$4863,4,FALSE) -> Hobby | I23: =G23=D23 -> TRUE
A24: Greiffendorf, Hellmut | B24: =VLOOKUP(H24,Vereine!$A$2:$B$26,2,FALSE) -> ASW | C24: 3800 | D24: SM2 | E24: =COUNTIF(Gesamtstand!$B$3:$B$104,$A24)=0 -> FALSE | G24: =VLOOKUP($C24,bangolf_players!$B$2:$G$4863,6,FALSE) -> SM2 | H24: =VLOOKUP($C24,bangolf_players!$B$2:$G$4863,4,FALSE) -> MGC "AS" Witten 1963 e.V. | I24: TRUE
A25: Grügelsberg, Jürgen | B25: =VLOOKUP(H25,Vereine!$A$2:$B$26,2,FALSE) -> ASW | C25: 3802 | D25: SM2 | E25: =COUNTIF(Gesamtstand!$B$3:$B$104,$A25)=0 -> TRUE | G25: =VLOOKUP($C25,bangolf_players!$B$2:$G$4863,6,FALSE) -> SM2 | H25: =VLOOKUP($C25,bangolf_players!$B$2:$G$4863,4,FALSE) -> MGC "AS" Witten 1963 e.V. | I25: =G25=D25 -> TRUE
A26: Grügelsberg, Marianne | B26: =VLOOKUP(H26,Vereine!$A$2:$B$26,2,FALSE) -> ASW | C26: 3126 | D26: SW2 | E26: =COUNTIF(Gesamtstand!$B$3:$B$104,$A26)=0 -> TRUE | G26: =VLOOKUP($C26,bangolf_players!$B$2:$G$4863,6,FALSE) -> SW2 | H26: =VLOOKUP($C26,bangolf_players!$B$2:$G$4863,4,FALSE) -> MGC "AS" Witten 1963 e.V. | I26: TRUE
A27: Gust, Klaus | B27: =VLOOKUP(H27,Vereine!$A$2:$B$26,2,FALSE) -> FEL | C27: 6740 | D27: SM2 | E27: =COUNTIF(Gesamtstand!$B$3:$B$104,$A27)=0 -> TRUE | G27: =VLOOKUP($C27,bangolf_players!$B$2:$G$4863,6,FALSE) -> SM2 | H27: =VLOOKUP($C27,bangolf_players!$B$2:$G$4863,4,FALSE) -> MGC Felderbachtal 1964 e.V. | I27: TRUE
A28: Hein, Hans-Jörg | B28: =VLOOKUP(H28,Vereine!$A$2:$B$26,2,FALSE) -> ASW | C28: 27863 | D28: SM1 | E28: =COUNTIF(Gesamtstand!$B$3:$B$104,$A28)=0 -> FALSE | G28: =VLOOKUP($C28,bangolf_players!$B$2:$G$4863,6,FALSE) -> SM1 | H28: =VLOOKUP($C28,bangolf_players!$B$2:$G$4863,4,FALSE) -> MGC "AS" Witten 1963 e.V. | I28: TRUE
A29: Hensel, Tobias | B29: =VLOOKUP(H29,Vereine!$A$2:$B$26,2,FALSE) -> Ennep. | C29: 37011 | D29: H | E29: =COUNTIF(Gesamtstand!$B$3:$B$104,$A29)=0 -> TRUE | G29: =VLOOKUP($C29,bangolf_players!$B$2:$G$4863,6,FALSE) -> H | H29: =VLOOKUP($C29,bangolf_players!$B$2:$G$4863,4,FALSE) -> BSC Ennepetal e.V. | I29: TRUE
A30: Henseler, Rainer | B30: =VLOOKUP(H30,Vereine!$A$2:$B$26,2,FALSE) -> Paderb. | C30: 65852 | D30: SM2 | E30: =COUNTIF(Gesamtstand!$B$3:$B$104,$A30)=0 -> TRUE | G30: =VLOOKUP($C30,bangolf_players!$B$2:$G$4863,6,FALSE) -> SM2 | H30: =VLOOKUP($C30,bangolf_players!$B$2:$G$4863,4,FALSE) -> 1. MGC Paderborn e.V. | I30: TRUE
A31: Hesse, Peter | B31: =VLOOKUP(H31,Vereine!$A$2:$B$26,2,FALSE) -> Hobby | C31: Hobby1 | D31: SM2 | E31: =COUNTIF(Gesamtstand!$B$3:$B$104,$A31)=0 -> TRUE | G31: =VLOOKUP($C31,bangolf_players!$B$2:$G$4863,6,FALSE) -> SM2 | H31: =VLOOKUP($C31,bangolf_players!$B$2:$G$4863,4,FALSE) -> Hobby | I31: TRUE
A32: Hettrich, Willi | B32: =VLOOKUP(H32,Vereine!$A$2:$B$26,2,FALSE) -> CAS | C32: 35236 | D32: SM2 | E32: =COUNTIF(Gesamtstand!$B$3:$B$104,$A32)=0 -> TRUE | G32: =VLOOKUP($C32,bangolf_players!$B$2:$G$4863,6,FALSE) -> SM2 | H32: =VLOOKUP($C32,bangolf_players!$B$2:$G$4863,4,FALSE) -> BGSV Castrop e.V. 1961 | I32: TRUE
A33: Hoffmann, Thomas | B33: =VLOOKUP(H33,Vereine!$A$2:$B$26,2,FALSE) -> Hobby | C33: Hobby29 | D33: SM2 | E33: =COUNTIF(Gesamtstand!$B$3:$B$104,$A33)=0 -> FALSE | G33: =VLOOKUP($C33,bangolf_players!$B$2:$G$4863,6,FALSE) -> SM2 | H33: =VLOOKUP($C33,bangolf_players!$B$2:$G$4863,4,FALSE) -> Hobby | I33: TRUE
A34: Hünnebeck, Petra | B34: =VLOOKUP(H34,Vereine!$A$2:$B$26,2,FALSE) -> Hobby | C34: Hobby25 | D34: D | E34: =COUNTIF(Gesamtstand!$B$3:$B$104,$A34)=0 -> TRUE | G34: =VLOOKUP($C34,bangolf_players!$B$2:$G$4863,6,FALSE) -> D | H34: =VLOOKUP($C34,bangolf_players!$B$2:$G$4863,4,FALSE) -> Hobby | I34: TRUE
A35: Janz, Angela | B35: =VLOOKUP(H35,Vereine!$A$2:$B$26,2,FALSE) -> Hobby | C35: Hobby26 | D35: SW2 | E35: =COUNTIF(Gesamtstand!$B$3:$B$104,$A35)=0 -> TRUE | G35: =VLOOKUP($C35,bangolf_players!$B$2:$G$4863,6,FALSE) -> SW2 | H35: =VLOOKUP($C35,bangolf_players!$B$2:$G$4863,4,FALSE) -> Hobby | I35: TRUE
A36: Jezierski, Marie-Luise | B36: =VLOOKUP(H36,Vereine!$A$2:$B$26,2,FALSE) -> ASW | C36: 61958 | D36: SW2 | E36: =COUNTIF(Gesamtstand!$B$3:$B$104,$A36)=0 -> FALSE | G36: =VLOOKUP($C36,bangolf_players!$B$2:$G$4863,6,FALSE) -> SW2 | H36: =VLOOKUP($C36,bangolf_players!$B$2:$G$4863,4,FALSE) -> MGC "AS" Witten 1963 e.V. | I36: TRUE
A37: Keller, Markus | B37: =VLOOKUP(H37,Vereine!$A$2:$B$26,2,FALSE) -> BMC | C37: 67050 | D37: SM1 | E37: =COUNTIF(Gesamtstand!$B$3:$B$104,$A37)=0 -> TRUE | G37: =VLOOKUP($C37,bangolf_players!$B$2:$G$4863,6,FALSE) -> SM1 | H37: =VLOOKUP($C37,bangolf_players!$B$2:$G$4863,4,FALSE) -> Bochumer Minigolf-Club 1960 e.V. | I37: =G37=D37 -> TRUE
A38: Kersch, Uwe | B38: =VLOOKUP(H38,Vereine!$A$2:$B$26,2,FALSE) -> HEV | C38: 67352 | D38: SM2 | E38: =COUNTIF(Gesamtstand!$B$3:$B$104,$A38)=0 -> FALSE | G38: =VLOOKUP($C38,bangolf_players!$B$2:$G$4863,6,FALSE) -> SM2 | H38: =VLOOKUP($C38,bangolf_players!$B$2:$G$4863,4,FALSE) -> MGC Heven e.V. | I38: =G38=D38 -> TRUE
A39: Keruth, Ellen | B39: =VLOOKUP(H39,Vereine!$A$2:$B$26,2,FALSE) -> Hobby | C39: Hobby17 | D39: SW2 | E39: =COUNTIF(Gesamtstand!$B$3:$B$104,$A39)=0 -> TRUE | G39: =VLOOKUP($C39,bangolf_players!$B$2:$G$4863,6,FALSE) -> SW2 | H39: =VLOOKUP($C39,bangolf_players!$B$2:$G$4863,4,FALSE) -> Hobby | I39: TRUE
A40: Keuth, Marita | B40: =VLOOKUP(H40,Vereine!$A$2:$B$26,2,FALSE) -> HEV | C40: 67351 | D40: SW1 | E40: =COUNTIF(Gesamtstand!$B$3:$B$104,$A40)=0 -> TRUE | G40: =VLOOKUP($C40,bangolf_players!$B$2:$G$4863,6,FALSE) -> SW1 | H40: =VLOOKUP($C40,bangolf_players!$B$2:$G$4863,4,FALSE) -> MGC Heven e.V. | I40: =G40=D40 -> TRUE
A41: Klein, Sabine | B41: =VLOOKUP(H41,Vereine!$A$2:$B$26,2,FALSE) -> BÜT | C41: 36474 | D41: SW1 | E41: =COUNTIF(Gesamtstand!$B$3:$B$104,$A41)=0 -> TRUE | G41: =VLOOKUP($C41,bangolf_players!$B$2:$G$4863,6,FALSE) -> SW1 | H41: =VLOOKUP($C41,bangolf_players!$B$2:$G$4863,4,FALSE) -> HMC Büttgen e.V. | I41: TRUE
A42: Klein, Theo | B42: =VLOOKUP(H42,Vereine!$A$2:$B$26,2,FALSE) -> Halver | C42: 40219 | D42: SM1 | E42: =COUNTIF(Gesamtstand!$B$3:$B$104,$A42)=0 -> TRUE | G42: =VLOOKUP($C42,bangolf_players!$B$2:$G$4863,6,FALSE) -> SM1 | H42: =VLOOKUP($C42,bangolf_players!$B$2:$G$4863,4,FALSE) -> SSC Halver e.V. | I42: TRUE
A43: Koch, Ursula | B43: =VLOOKUP(H43,Vereine!$A$2:$B$26,2,FALSE) -> Hobby | C43: Hobby18 | D43: SW2 | E43: =COUNTIF(Gesamtstand!$B$3:$B$104,$A43)=0 -> TRUE | G43: =VLOOKUP($C43,bangolf_players!$B$2:$G$4863,6,FALSE) -> SW2 | H43: =VLOOKUP($C43,bangolf_players!$B$2:$G$4863,4,FALSE) -> Hobby | I43: TRUE
A44: Kortmann, Sabine | B44: =VLOOKUP(H44,Vereine!$A$2:$B$26,2,FALSE) -> Hobby | C44: Hobby31 | D44: SW1 | E44: =COUNTIF(Gesamtstand!$B$3:$B$104,$A44)=0 -> FALSE | G44: =VLOOKUP($C44,bangolf_players!$B$2:$G$4863,6,FALSE) -> SW1 | H44: =VLOOKUP($C44,bangolf_players!$B$2:$G$4863,4,FALSE) -> Hobby | I44: =G44=D44 -> TRUE
A45: Kortmann, Uwe | B45: =VLOOKUP(H45,Vereine!$A$2:$B$26,2,FALSE) -> Hobby | C45: Hobby32 | D45: SM1 | E45: =COUNTIF(Gesamtstand!$B$3:$B$104,$A45)=0 -> FALSE | G45: =VLOOKUP($C45,bangolf_players!$B$2:$G$4863,6,FALSE) -> SM1 | H45: =VLOOKUP($C45,bangolf_players!$B$2:$G$4863,4,FALSE) -> Hobby | I45: TRUE
A46: Kottek, Sabine | B46: =VLOOKUP(H46,Vereine!$A$2:$B$26,2,FALSE) -> HEV | C46: 67152 | D46: D | E46: =COUNTIF(Gesamtstand!$B$3:$B$104,$A46)=0 -> TRUE | G46: =VLOOKUP($C46,bangolf_players!$B$2:$G$4863,6,FALSE) -> D | H46: =VLOOKUP($C46,bangolf_players!$B$2:$G$4863,4,FALSE) -> MGC Heven e.V. | I46: TRUE
A47: Kube, Sebastian | B47: =VLOOKUP(H47,Vereine!$A$2:$B$26,2,FALSE) -> Do-Bre | C47: 35655 | D47: H | E47: =COUNTIF(Gesamtstand!$B$3:$B$104,$A47)=0 -> TRUE | G47: =VLOOKUP($C47,bangolf_players!$B$2:$G$4863,6,FALSE) -> H | H47: =VLOOKUP($C47,bangolf_players!$B$2:$G$4863,4,FALSE) -> MGC Dormagen-Brechten e.V. | I47: TRUE
A48: Kunz, Martin | B48: =VLOOKUP(H48,Vereine!$A$2:$B$26,2,FALSE) -> Hobby | C48: Hobby40 | D48: SM1 | E48: =COUNTIF(Gesamtstand!$B$3:$B$104,$A48)=0 -> FALSE | G48: =VLOOKUP($C48,bangolf_players!$B$2:$G$4863,6,FALSE) -> SM1 | H48: =VLOOKUP($C48,bangolf_players!$B$2:$G$4863,4,FALSE) -> Hobby | I48: =G48=D48 -> TRUE
A49: Kuschel, Raphael | B49: =VLOOKUP(H49,Vereine!$A$2:$B$26,2,FALSE) -> Do-Bre | C49: 66103 | D49: H | E49: =COUNTIF(Gesamtstand!$B$3:$B$104,$A49)=0 -> TRUE | G49: =VLOOKUP($C49,bangolf_players!$B$2:$G$4863,6,FALSE) -> H | H49: =VLOOKUP($C49,bangolf_players!$B$2:$G$4863,4,FALSE) -> MGC Dormagen-Brechten e.V. | I49: =G49=D49 -> TRUE
A50: Lange, Phillipp | B50: =VLOOKUP(H50,Vereine!$A$2:$B$26,2,FALSE) -> CAS | C50: 37204 | D50: H | E50: =COUNTIF(Gesamtstand!$B$3:$B$104,$A50)=0 -> TRUE | G50: =VLOOKUP($C50,bangolf_players!$B$2:$G$4863,6,FALSE) -> H | H50: =VLOOKUP($C50,bangolf_players!$B$2:$G$4863,4,FALSE) -> BGSV Castrop e.V. 1961 | I50: TRUE
A51: Lange, Wilfried | B51: =VLOOKUP(H51,Vereine!$A$2:$B$26,2,FALSE) -> CAS | C51: 66415 | D51: SM2 | E51: =COUNTIF(Gesamtstand!$B$3:$B$104,$A51)=0 -> TRUE | G51: =VLOOKUP($C51,bangolf_players!$B$2:$G$4863,6,FALSE) -> SM2 | H51: =VLOOKUP($C51,bangolf_players!$B$2:$G$4863,4,FALSE) -> BGSV Castrop e.V. 1961 | I51: TRUE
A52: Lehmann, Niclas | B52: =VLOOKUP(H52,Vereine!$A$2:$B$26,2,FALSE) -> Oly | C52: 67372 | D52: H | E52: =COUNTIF(Gesamtstand!$B$3:$B$104,$A52)=0 -> FALSE | G52: =VLOOKUP($C52,bangolf_players!$B$2:$G$4863,6,FALSE) -> H | H52: =VLOOKUP($C52,bangolf_players!$B$2:$G$4863,4,FALSE) -> SC Olympia Dortmund e.V. | I52: TRUE
A53: Leibrandt, Saddrik | B53: =VLOOKUP(H53,Vereine!$A$2:$B$26,2,FALSE) -> Hobby | C53: Hobby27 | D53: H | E53: =COUNTIF(Gesamtstand!$B$3:$B$104,$A53)=0 -> TRUE | G53: =VLOOKUP($C53,bangolf_players!$B$2:$G$4863,6,FALSE) -> H | H53: =VLOOKUP($C53,bangolf_players!$B$2:$G$4863,4,FALSE) -> Hobby | I53: TRUE
A54: Lenk, Rolf | B54: =VLOOKUP(H54,Vereine!$A$2:$B$26,2,FALSE) -> ASW | C54: 61716 | D54: SM2 | E54: =COUNTIF(Gesamtstand!$B$3:$B$104,$A54)=0 -> FALSE | G54: =VLOOKUP($C54,bangolf_players!$B$2:$G$4863,6,FALSE) -> SM2 | H54: =VLOOKUP($C54,bangolf_players!$B$2:$G$4863,4,FALSE) -> MGC "AS" Witten 1963 e.V. | I54: =G54=D54 -> TRUE
A55: Lieber, Nicole | B55: =VLOOKUP(H55,Vereine!$A$2:$B$26,2,FALSE) -> Hobby | C55: Hobby7 | D55: D | E55: =COUNTIF(Gesamtstand!$B$3:$B$104,$A55)=0 -> FALSE | G55: =VLOOKUP($C55,bangolf_players!$B$2:$G$4863,6,FALSE) -> D | H55: =VLOOKUP($C55,bangolf_players!$B$2:$G$4863,4,FALSE) -> Hobby | I55: TRUE
A56: Lütje, Ursula | B56: =VLOOKUP(H56,Vereine!$A$2:$B$26,2,FALSE) -> Hobby | C56: Hobby14 | D56: SW2 | E56: =COUNTIF(Gesamtstand!$B$3:$B$104,$A56)=0 -> TRUE | G56: =VLOOKUP($C56,bangolf_players!$B$2:$G$4863,6,FALSE) -> SW2 | H56: =VLOOKUP($C56,bangolf_players!$B$2:$G$4863,4,FALSE) -> Hobby | I56: TRUE
A57: Lütje, Walter | B57: =VLOOKUP(H57,Vereine!$A$2:$B$26,2,FALSE) -> Hobby | C57: Hobby13 | D57: SM2 | E57: =COUNTIF(Gesamtstand!$B$3:$B$104,$A57)=0 -> TRUE | G57: =VLOOKUP($C57,bangolf_players!$B$2:$G$4863,6,FALSE) -> SM2 | H57: =VLOOKUP($C57,bangolf_players!$B$2:$G$4863,4,FALSE) -> Hobby | I57: TRUE
A58: Lüttenberg, Winfried | B58: =VLOOKUP(H58,Vereine!$A$2:$B$26,2,FALSE) -> 1. CGC | C58: 21946 | D58: SM2 | E58: =COUNTIF(Gesamtstand!$B$3:$B$104,$A58)=0 -> TRUE | G58: =VLOOKUP($C58,bangolf_players!$B$2:$G$4863,6,FALSE) -> SM2 | H58: =VLOOKUP($C58,bangolf_players!$B$2:$G$4863,4,FALSE) -> 1. Essener CGC "Blau-Gold" e.V. | I58: TRUE
A59: Matthies, Angelika | B59: =VLOOKUP(H59,Vereine!$A$2:$B$26,2,FALSE) -> ASW | C59: 65803 | D59: SW2 | E59: =COUNTIF(Gesamtstand!$B$3:$B$104,$A59)=0 -> TRUE | G59: =VLOOKUP($C59,bangolf_players!$B$2:$G$4863,6,FALSE) -> SW2 | H59: =VLOOKUP($C59,bangolf_players!$B$2:$G$4863,4,FALSE) -> MGC "AS" Witten 1963 e.V. | I59: TRUE
A60: Matthies, Bernd | B60: =VLOOKUP(H60,Vereine!$A$2:$B$26,2,FALSE) -> ASW | C60: 65804 | D60: SM2 | E60: =COUNTIF(Gesamtstand!$B$3:$B$104,$A60)=0 -> TRUE | G60: =VLOOKUP($C60,bangolf_players!$B$2:$G$4863,6,FALSE) -> SM2 | H60: =VLOOKUP($C60,bangolf_players!$B$2:$G$4863,4,FALSE) -> MGC "AS" Witten 1963 e.V. | I60: TRUE
A61: Mühling, Dirk | B61: =VLOOKUP(H61,Vereine!$A$2:$B$26,2,FALSE) -> HEV | C61: 49369 | D61: SM1 | E61: =COUNTIF(Gesamtstand!$B$3:$B$104,$A61)=0 -> FALSE | G61: =VLOOKUP($C61,bangolf_players!$B$2:$G$4863,6,FALSE) -> SM1 | H61: =VLOOKUP($C61,bangolf_players!$B$2:$G$4863,4,FALSE) -> MGC Heven e.V. | I61: TRUE
A62: Neufeld, Marvin | B62: =VLOOKUP(H62,Vereine!$A$2:$B$26,2,FALSE) -> Hardenb. | C62: 37047 | D62: H | E62: =COUNTIF(Gesamtstand!$B$3:$B$104,$A62)=0 -> TRUE | G62: =VLOOKUP($C62,bangolf_players!$B$2:$G$4863,6,FALSE) -> H | H62: =VLOOKUP($C62,bangolf_players!$B$2:$G$4863,4,FALSE) -> BGS Hardenberg-Pötter e.V. | I62: TRUE
A63: Niederdräing, Dieter | B63: =VLOOKUP(H63,Vereine!$A$2:$B$26,2,FALSE) -> FEL | C63: 11191 | D63: SM2 | E63: =COUNTIF(Gesamtstand!$B$3:$B$104,$A63)=0 -> TRUE | G63: =VLOOKUP($C63,bangolf_players!$B$2:$G$4863,6,FALSE) -> SM2 | H63: =VLOOKUP($C63,bangolf_players!$B$2:$G$4863,4,FALSE) -> MGC Felderbachtal 1964 e.V. | I63: TRUE
A64: Nopens, Christian | B64: =VLOOKUP(H64,Vereine!$A$2:$B$26,2,FALSE) -> Hobby | C64: Hobby22 | D64: SM1 | E64: =COUNTIF(Gesamtstand!$B$3:$B$104,$A64)=0 -> TRUE | G64: =VLOOKUP($C64,bangolf_players!$B$2:$G$4863,6,FALSE) -> SM1 | H64: =VLOOKUP($C64,bangolf_players!$B$2:$G$4863,4,FALSE) -> Hobby | I64: TRUE
A65: Nopens, Ute | B65: =VLOOKUP(H65,Vereine!$A$2:$B$26,2,FALSE) -> Hobby | C65: Hobby23 | D65: SW1 | E65: =COUNTIF(Gesamtstand!$B$3:$B$104,$A65)=0 -> TRUE | G65: =VLOOKUP($C65,bangolf_players!$B$2:$G$4863,6,FALSE) -> SW1 | H65: =VLOOKUP($C65,bangolf_players!$B$2:$G$4863,4,FALSE) -> Hobby | I65: =G65=D65 -> TRUE
A66: Paffrath, Ben | B66: =VLOOKUP(H66,Vereine!$A$2:$B$26,2,FALSE) -> HEV | C66: 66565 | D66: JM | E66: =COUNTIF(Gesamtstand!$B$3:$B$104,$A66)=0 -> TRUE | G66: =VLOOKUP($C66,bangolf_players!$B$2:$G$4863,6,FALSE) -> JM | H66: =VLOOKUP($C66,bangolf_players!$B$2:$G$4863,4,FALSE) -> MGC Heven e.V. | I66: =G66=D66 -> TRUE
A67: Paffrath, Siegfried | B67: =VLOOKUP(H67,Vereine!$A$2:$B$26,2,FALSE) -> HEV | C67: 33511 | D67: SM2 | E67: =COUNTIF(Gesamtstand!$B$3:$B$104,$A67)=0 -> TRUE | G67: =VLOOKUP($C67,bangolf_players!$B$2:$G$4863,6,FALSE) -> SM2 | H67: =VLOOKUP($C67,bangolf_players!$B$2:$G$4863,4,FALSE) -> MGC Heven e.V. | I67: TRUE
A68: Petersen, Robin | B68: =VLOOKUP(H68,Vereine!$A$2:$B$26,2,FALSE) -> Oly | C68: 67371 | D68: H | E68: =COUNTIF(Gesamtstand!$B$3:$B$104,$A68)=0 -> FALSE | G68: =VLOOKUP($C68,bangolf_players!$B$2:$G$4863,6,FALSE) -> H | H68: =VLOOKUP($C68,bangolf_players!$B$2:$G$4863,4,FALSE) -> SC Olympia Dortmund e.V. | I68: TRUE
A69: Petersmann, Chris | C69: Hobby41 | D69: H | E69: =COUNTIF(Gesamtstand!$B$3:$B$104,$A69)=0 -> FALSE | G69: =VLOOKUP($C69,bangolf_players!$B$2:$G$4863,6,FALSE) -> H | H69: =VLOOKUP($C69,bangolf_players!$B$2:$G$4863,4,FALSE) -> Hobby | I69: TRUE
A70: Preißinger, Bernd | B70: =VLOOKUP(H70,Vereine!$A$2:$B$26,2,FALSE) -> Hobby | C70: Hobby3 | D70: SM2 | E70: =COUNTIF(Gesamtstand!$B$3:$B$104,$A70)=0 -> TRUE | G70: =VLOOKUP($C70,bangolf_players!$B$2:$G$4863,6,FALSE) -> SM2 | H70: =VLOOKUP($C70,bangolf_players!$B$2:$G$4863,4,FALSE) -> Hobby | I70: TRUE
A71: Presser, Wolfgang | B71: =VLOOKUP(H71,Vereine!$A$2:$B$26,2,FALSE) -> HEV | C71: 67151 | D71: SM1 | E71: =COUNTIF(Gesamtstand!$B$3:$B$104,$A71)=0 -> FALSE | G71: =VLOOKUP($C71,bangolf_players!$B$2:$G$4863,6,FALSE) -> SM1 | H71: =VLOOKUP($C71,bangolf_players!$B$2:$G$4863,4,FALSE) -> MGC Heven e.V. | I71: TRUE
A72: Puschner, Endres | B72: =VLOOKUP(H72,Vereine!$A$2:$B$26,2,FALSE) -> Hobby | C72: Hobby20 | D72: H | E72: =COUNTIF(Gesamtstand!$B$3:$B$104,$A72)=0 -> TRUE | G72: =VLOOKUP($C72,bangolf_players!$B$2:$G$4863,6,FALSE) -> H | H72: =VLOOKUP($C72,bangolf_players!$B$2:$G$4863,4,FALSE) -> Hobby | I72: =G72=D72 -> TRUE
A73: Puschner, Michael | B73: =VLOOKUP(H73,Vereine!$A$2:$B$26,2,FALSE) -> Hobby | C73: Hobby11 | D73: SM2 | E73: =COUNTIF(Gesamtstand!$B$3:$B$104,$A73)=0 -> FALSE | G73: =VLOOKUP($C73,bangolf_players!$B$2:$G$4863,6,FALSE) -> SM2 | H73: =VLOOKUP($C73,bangolf_players!$B$2:$G$4863,4,FALSE) -> Hobby | I73: TRUE
A74: Puschner, Silke | B74: =VLOOKUP(H74,Vereine!$A$2:$B$26,2,FALSE) -> Hobby | C74: Hobby21 | D74: SW2 | E74: =COUNTIF(Gesamtstand!$B$3:$B$104,$A74)=0 -> TRUE | G74: =VLOOKUP($C74,bangolf_players!$B$2:$G$4863,6,FALSE) -> SW2 | H74: =VLOOKUP($C74,bangolf_players!$B$2:$G$4863,4,FALSE) -> Hobby | I74: TRUE
A75: Rade, Marcus | B75: =VLOOKUP(H75,Vereine!$A$2:$B$26,2,FALSE) -> ASW | C75: 38625 | D75: H | E75: =COUNTIF(Gesamtstand!$B$3:$B$104,$A75)=0 -> FALSE | G75: =VLOOKUP($C75,bangolf_players!$B$2:$G$4863,6,FALSE) -> H | H75: =VLOOKUP($C75,bangolf_players!$B$2:$G$4863,4,FALSE) -> MGC "AS" Witten 1963 e.V. | I75: TRUE
A76: Reese, Andreas | B76: =VLOOKUP(H76,Vereine!$A$2:$B$26,2,FALSE) -> NEH | C76: 50224 | D76: SM1 | E76: =COUNTIF(Gesamtstand!$B$3:$B$104,$A76)=0 -> TRUE | G76: =VLOOKUP($C76,bangolf_players!$B$2:$G$4863,6,FALSE) -> SM1 | H76: =VLOOKUP($C76,bangolf_players!$B$2:$G$4863,4,FALSE) -> MSK Neheim-Hüsten e.V. | I76: TRUE
A77: Richter, Mike | B77: =VLOOKUP(H77,Vereine!$A$2:$B$26,2,FALSE) -> Eiben. | C77: 34904 | D77: H | E77: =COUNTIF(Gesamtstand!$B$3:$B$104,$A77)=0 -> TRUE | G77: =VLOOKUP($C77,bangolf_players!$B$2:$G$4863,6,FALSE) -> H | H77: =VLOOKUP($C77,bangolf_players!$B$2:$G$4863,4,FALSE) -> MGV Eibenstock | I77: TRUE
A78: Scharpe, Sabine | B78: =VLOOKUP(H78,Vereine!$A$2:$B$26,2,FALSE) -> BMC | C78: 67147 | D78: SW1 | E78: =COUNTIF(Gesamtstand!$B$3:$B$104,$A78)=0 -> FALSE | G78: =VLOOKUP($C78,bangolf_players!$B$2:$G$4863,6,FALSE) -> SW1 | H78: =VLOOKUP($C78,bangolf_players!$B$2:$G$4863,4,FALSE) -> Bochumer Minigolf-Club 1960 e.V. | I78: TRUE
A79: Schmidt, Barbara | B79: =VLOOKUP(H79,Vereine!$A$2:$B$26,2,FALSE) -> Hobby | C79: 3202768 | D79: SW2 | E79: =COUNTIF(Gesamtstand!$B$3:$B$104,$A79)=0 -> FALSE | G79: =VLOOKUP($C79,bangolf_players!$B$2:$G$4863,6,FALSE) -> SW2 | H79: =VLOOKUP($C79,bangolf_players!$B$2:$G$4863,4,FALSE) -> Hobby | I79: =G79=D79 -> TRUE
A80: Schmidtbauer, Günter | B80: =VLOOKUP(H80,Vereine!$A$2:$B$26,2,FALSE) -> Hobby | C80: Hobby4 | D80: SM2 | E80: =COUNTIF(Gesamtstand!$B$3:$B$104,$A80)=0 -> FALSE | G80: =VLOOKUP($C80,bangolf_players!$B$2:$G$4863,6,FALSE) -> SM2 | H80: =VLOOKUP($C80,bangolf_players!$B$2:$G$4863,4,FALSE) -> Hobby | I80: TRUE
A81: Schmitt, Jürgen | B81: =VLOOKUP(H81,Vereine!$A$2:$B$26,2,FALSE) -> ASW | C81: 44955 | D81: SM1 | E81: =COUNTIF(Gesamtstand!$B$3:$B$104,$A81)=0 -> FALSE | G81: =VLOOKUP($C81,bangolf_players!$B$2:$G$4863,6,FALSE) -> SM1 | H81: =VLOOKUP($C81,bangolf_players!$B$2:$G$4863,4,FALSE) -> MGC "AS" Witten 1963 e.V. | I81: TRUE
A82: Schmitz, Ingeborg | B82: =VLOOKUP(H82,Vereine!$A$2:$B$26,2,FALSE) -> ASS | C82: 37171 | D82: SW2 | E82: =COUNTIF(Gesamtstand!$B$3:$B$104,$A82)=0 -> FALSE | G82: =VLOOKUP($C82,bangolf_players!$B$2:$G$4863,6,FALSE) -> SW2 | H82: =VLOOKUP($C82,bangolf_players!$B$2:$G$4863,4,FALSE) -> BGC Assindia Essen e.V. | I82: =G82=D82 -> TRUE
A83: Seifert, Noah | B83: =VLOOKUP(H83,Vereine!$A$2:$B$26,2,FALSE) -> Wesel | C83: 66364 | D83: JM | E83: =COUNTIF(Gesamtstand!$B$3:$B$104,$A83)=0 -> TRUE | G83: =VLOOKUP($C83,bangolf_players!$B$2:$G$4863,6,FALSE) -> JM | H83: =VLOOKUP($C83,bangolf_players!$B$2:$G$4863,4,FALSE) -> 1. MSC Wesel 6.6.1966 e.V. | I83: TRUE
A84: Seifert, Stefan | B84: =VLOOKUP(H84,Vereine!$A$2:$B$26,2,FALSE) -> Wesel | C84: 66472 | D84: SM1 | E84: =COUNTIF(Gesamtstand!$B$3:$B$104,$A84)=0 -> TRUE | G84: =VLOOKUP($C84,bangolf_players!$B$2:$G$4863,6,FALSE) -> SM1 | H84: =VLOOKUP($C84,bangolf_players!$B$2:$G$4863,4,FALSE) -> 1. MSC Wesel 6.6.1966 e.V. | I84: TRUE
A85: Skischalli, Frank | B85: =VLOOKUP(H85,Vereine!$A$2:$B$26,2,FALSE) -> Hobby | C85: Hobby10 | D85: H | E85: =COUNTIF(Gesamtstand!$B$3:$B$104,$A85)=0 -> TRUE | G85: =VLOOKUP($C85,bangolf_players!$B$2:$G$4863,6,FALSE) -> H | H85: =VLOOKUP($C85,bangolf_players!$B$2:$G$4863,4,FALSE) -> Hobby | I85: TRUE
A86: Springob, René | B86: =VLOOKUP(H86,Vereine!$A$2:$B$26,2,FALSE) -> NEH | C86: 38477 | D86: H | E86: =COUNTIF(Gesamtstand!$B$3:$B$104,$A86)=0 -> TRUE | G86: =VLOOKUP($C86,bangolf_players!$B$2:$G$4863,6,FALSE) -> H | H86: =VLOOKUP($C86,bangolf_players!$B$2:$G$4863,4,FALSE) -> MSK Neheim-Hüsten e.V. | I86: TRUE
A87: Tabor, Peter | B87: =VLOOKUP(H87,Vereine!$A$2:$B$26,2,FALSE) -> ASW | C87: 65804 | D87: SM2 | E87: =COUNTIF(Gesamtstand!$B$3:$B$104,$A87)=0 -> FALSE | G87: =VLOOKUP($C87,bangolf_players!$B$2:$G$4863,6,FALSE) -> SM2 | H87: =VLOOKUP($C87,bangolf_players!$B$2:$G$4863,4,FALSE) -> MGC "AS" Witten 1963 e.V. | I87: TRUE
A88: Tannheuser, Marcel | B88: =VLOOKUP(H88,Vereine!$A$2:$B$26,2,FALSE) -> BMC | C88: 38509 | D88: H | E88: =COUNTIF(Gesamtstand!$B$3:$B$104,$A88)=0 -> TRUE | G88: =VLOOKUP($C88,bangolf_players!$B$2:$G$4863,6,FALSE) -> H | H88: =VLOOKUP($C88,bangolf_players!$B$2:$G$4863,4,FALSE) -> Bochumer Minigolf-Club 1960 e.V. | I88: TRUE
A89: Tockner, Franz | B89: =VLOOKUP(H89,Vereine!$A$2:$B$26,2,FALSE) -> ASW | C89: 5438 | D89: SM2 | E89: =COUNTIF(Gesamtstand!$B$3:$B$104,$A89)=0 -> TRUE | G89: =VLOOKUP($C89,bangolf_players!$B$2:$G$4863,6,FALSE) -> SM2 | H89: =VLOOKUP($C89,bangolf_players!$B$2:$G$4863,4,FALSE) -> MGC "AS" Witten 1963 e.V. | I89: TRUE
A90: Urban, Angela | B90: =VLOOKUP(H90,Vereine!$A$2:$B$26,2,FALSE) -> ASW | C90: 35605 | D90: SW1 | E90: =COUNTIF(Gesamtstand!$B$3:$B$104,$A90)=0 -> FALSE | G90: =VLOOKUP($C90,bangolf_players!$B$2:$G$4863,6,FALSE) -> SW1 | H90: =VLOOKUP($C90,bangolf_players!$B$2:$G$4863,4,FALSE) -> MGC "AS" Witten 1963 e.V. | I90: TRUE
A91: Urban, Dominic | B91: =VLOOKUP(H91,Vereine!$A$2:$B$26,2,FALSE) -> ASW | C91: 66186 | D91: JM | E91: =COUNTIF(Gesamtstand!$B$3:$B$104,$A91)=0 -> FALSE | G91: =VLOOKUP($C91,bangolf_players!$B$2:$G$4863,6,FALSE) -> JM | H91: =VLOOKUP($C91,bangolf_players!$B$2:$G$4863,4,FALSE) -> MGC "AS" Witten 1963 e.V. | I91: TRUE
A92: Urban, Volker | B92: =VLOOKUP(H92,Vereine!$A$2:$B$26,2,FALSE) -> ASW | C92: 35604 | D92: SM1 | E92: =COUNTIF(Gesamtstand!$B$3:$B$104,$A92)=0 -> FALSE | G92: =VLOOKUP($C92,bangolf_players!$B$2:$G$4863,6,FALSE) -> SM1 | H92: =VLOOKUP($C92,bangolf_players!$B$2:$G$4863,4,FALSE) -> MGC "AS" Witten 1963 e.V. | I92: TRUE
A93: Wickel-Paffrath, Melanie | B93: =VLOOKUP(H93,Vereine!$A$2:$B$26,2,FALSE) -> HEV | C93: 33510 | D93: D | E93: =COUNTIF(Gesamtstand!$B$3:$B$104,$A93)=0 -> FALSE | G93: =VLOOKUP($C93,bangolf_players!$B$2:$G$4863,6,FALSE) -> D | H93: =VLOOKUP($C93,bangolf_players!$B$2:$G$4863,4,FALSE) -> MGC Heven e.V. | I93: =G93=D93 -> TRUE
A94: Wilhelms, Ralf | B94: =VLOOKUP(H94,Vereine!$A$2:$B$26,2,FALSE) -> Ennep. | C94: 44805 | D94: SM1 | E94: =COUNTIF(Gesamtstand!$B$3:$B$104,$A94)=0 -> FALSE | G94: =VLOOKUP($C94,bangolf_players!$B$2:$G$4863,6,FALSE) -> SM1 | H94: =VLOOKUP($C94,bangolf_players!$B$2:$G$4863,4,FALSE) -> BSC Ennepetal e.V. | I94: TRUE
A95: Wilke, Andreas | B95: =VLOOKUP(H95,Vereine!$A$2:$B$26,2,FALSE) -> Hobby | C95: Hobby39 | D95: SM1 | E95: =COUNTIF(Gesamtstand!$B$3:$B$104,$A95)=0 -> FALSE | G95: =VLOOKUP($C95,bangolf_players!$B$2:$G$4863,6,FALSE) -> SM1 | H95: =VLOOKUP($C95,bangolf_players!$B$2:$G$4863,4,FALSE) -> Hobby | I95: TRUE
A96: Wortmann, Torben | B96: =VLOOKUP(H96,Vereine!$A$2:$B$26,2,FALSE) -> Hobby | C96: Hobby42 | D96: H | E96: =COUNTIF(Gesamtstand!$B$3:$B$104,$A96)=0 -> FALSE | G96: =VLOOKUP($C96,bangolf_players!$B$2:$G$4863,6,FALSE) -> H | H96: =VLOOKUP($C96,bangolf_players!$B$2:$G$4863,4,FALSE) -> Hobby | I96: TRUE

Sheet bangolf_kategorien (hidden)
A1: Bangolf | B1: Kategorie
A2: dv | B2: SW2
A3: og | B3: SW1
A4: ds | B4: D
A5: hv | B5: SM2
A6: ob | B6: SM1
A7: hs | B7: H
A8: dj | B8: JW
A9: hj | B9: JM
A10: fa | B10: SCHW
A11: pa | B11: SCHM

Sheet Punkteschema (hidden)
A1: Platz | B1: Punkte
A2: 0 | B2: 0
A3: 1 | B3: 25
A4: 2 | B4: 21
A5: 3 | B5: 18
A6: 4 | B6: 15
A7: 5 | B7: 15
A8: 6 | B8: 15
A9: 7 | B9: 10
A10: 8 | B10: 10
A11: 9 | B11: 10
A12: 10 | B12: 10
A13: 11 | B13: 5
A14: 12 | B14: 5
A15: 13 | B15: 5
A16: 14 | B16: 5
A17: 15 | B17: 5
A18: 16 | B18: 3
A19: 17 | B19: 3
A20: 18 | B20: 3
A21: 19 | B21: 3
A22: 20 | B22: 3
A23: 21 | B23: 1
A24: 22 | B24: 1
A25: 23 | B25: 1
A26: 24 | B26: 1
A27: 25 | B27: 1
A28: 26 | B28: 1
A29: 27 | B29: 1
A30: 28 | B30: 1
A31: 29 | B31: 1
A32: 30 | B32: 1
A33: 31 | B33: 1
A34: 32 | B34: 1
A35: 33 | B35: 1
A36: 34 | B36: 1
A37: 35 | B37: 1
A38: 36 | B38: 1
A39: 37 | B39: 1
A40: 38 | B40: 1
A41: 39 | B41: 1
A42: 40 | B42: 1
A43: 41 | B43: 1
A44: 42 | B44: 1
A45: 43 | B45: 1
A46: 44 | B46: 1
A47: 45 | B47: 1
A48: 46 | B48: 1
A49: 47 | B49: 1
A50: 48 | B50: 1
A51: 49 | B51: 1
A52: 50 | B52: 1
A53: 51 | B53: 1
A54: 52 | B54: 1
A55: 53 | B55: 1
A56: 54 | B56: 1
A57: 55 | B57: 1
A58: 56 | B58: 1
A59: 57 | B59: 1
A60: 58 | B60: 1
A61: 59 | B61: 1
A62: 60 | B62: 1
A63: 61 | B63: 1
A64: 62 | B64: 1
A65: 63 | B65: 1
A66: 64 | B66: 1
A67: 65 | B67: 1
A68: 66 | B68: 1
A69: 67 | B69: 1
A70: 68 | B70: 1
A71: 69 | B71: 1
A72: 70 | B72: 1
A73: 71 | B73: 1
A74: 72 | B74: 1
A75: 73 | B75: 1
A76: 74 | B76: 1
A77: 75 | B77: 1
A78: 76 | B78: 1
A79: 77 | B79: 1
A80: 78 | B80: 1
A81: 79 | B81: 1
A82: 80 | B82: 1
A83: 81 | B83: 1
A84: 82 | B84: 1
A85: 83 | B85: 1
A86: 84 | B86: 1
A87: 85 | B87: 1
A88: 86 | B88: 1
A89: 87 | B89: 1
A90: 88 | B90: 1
A91: 89 | B91: 1
A92: 90 | B92: 1
A93: 91 | B93: 1
A94: 92 | B94: 1
A95: 93 | B95: 1
A96: 94 | B96: 1
A97: 95 | B97: 1
A98: 96 | B98: 1
A99: 97 | B99: 1
A100: 98 | B100: 1
A101: 99 | B101: 1

Sheet Hilfe (hidden)
A1: 10 | B1: <- die besten … Punktzahlen werden gewertet
B2: (11 von 18, also die besten ca. 61% der Spieltage)
B3: Quali für Preise: mindestens 13 von 18 Spieltagen,
B4: also etwa an mindestens 72% der Spieltage
C8: Standard | D8: aktuell | E8: gerundet
B9: gesamt | C9: 17 | D9: 16 | E9: =ROUND(D9,0) -> 16
B10: gewertet | C10: 11 | D10: =D9/$C$9*$C10 -> 10.35294118 | E10: =ROUND(D10,0) -> 10
B11: Mindestteilnahme | C11: 12 | D11: =D9/$C$9*$C11 -> 11.29411765 | E11: =ROUND(D11,0) -> 11
B13: % gewertet | C13: =C10/C9 -> 0.6470588235 | D13: =D10/D9 -> 0.6470588235 | E13: =E10/E9 -> 0.625
B14: % Mindestteilnahme | C14: =C11/C9 -> 0.7058823529 | D14: =D11/D9 -> 0.7058823529 | E14: =E11/E9 -> 0.6875

Sheet Vereine (hidden)
A1: Vereinsname | B1: Kürzel
A2: MGC "AS" Witten 1963 e.V. | B2: ASW
A3: MSK Neheim-Hüsten e.V. | B3: NEH
A4: Niendorfer MC v. 1963 e.V. | B4: NIE
A5: 1. MGC Köln 1961 e.V. | B5: KÖL
A6: HMC Büttgen e.V. | B6: BÜT
A7: BGC Assindia Essen e.V. | B7: ASS
A8: BGSC Bochum 1978 e.V. | B8: BGSC
A9: BGS Hardenberg-Pötter e.V. | B9: Hardenb.
A10: Hobby | B10: Hobby
A11: MGC Felderbachtal 1964 e.V. | B11: FEL
A12: 1. MGC Gelsenkirchen e.V. | B12: Gels.
A13: BGV Bergisch Land 1962 / 63 e.V. | B13: B.-Land
A14: BSC Ennepetal e.V. | B14: Ennep.
A15: Bochumer Minigolf-Club 1960 e.V. | B15: BMC
A16: BGSV Castrop e.V. 1961 | B16: CAS
A17: 1. Essener CGC "Blau-Gold" e.V. | B17: 1. CGC
A18: 1. MGC Paderborn e.V. | B18: Paderb.
A19: SSC Halver e.V. | B19: Halver
A20: MSC Herscheid 1963 e.V. | B20: Hersch.
A21: SC Olympia Dortmund e.V. | B21: Oly
A22: MGC Dormagen-Brechten e.V. | B22: Do-Bre
A23: MGC Heven e.V. | B23: HEV
A24: MGV Eibenstock | B24: Eiben.
A25: MC 62 Lüdenscheid e.V. | B25: Lüd.
A26: 1. MSC Wesel 6.6.1966 e.V. | B26: Wesel

Sheet Preise (hidden)
A1: 20 | B1: Teilnehmer
A2: 17 | B2: Starts
A3: =A2*A1 -> 340 | B3: TN*Starts
A4: =1123.5/389 -> 2.888174807 | B4: Mittel bis Tag18
A5: 3 | B5: Startgeld
A6: =A5*A3 -> 1020 | B6: Einnahmen
A7: =Gesamtstand!Z42 -> 867 | B7: Einnahmen echt
B9: Ausschreibung | C9: % Einnahmen | D9: analog | E9: % analog
A10: 1 | B10: 145 | C10: =B10/A$6 -> 0.1421568627 | D10: =ROUND(C10*A$7,-1) -> 120 | E10: =IF(A$7=0,0,D10/A$7) -> 0.1384083045
A11: 2 | B11: 110 | C11: =B11/A$6 -> 0.1078431373 | D11: 90 | E11: =IF(A$7=0,0,D11/A$7) -> 0.1038062284
A12: 3 | B12: 85 | C12: 0.08333333333 | D12: 70 | E12: 0.08073817762
A13: 4 | B13: 70 | C13: 0.06862745098 | D13: 60 | E13: 0.06920415225
A14: 5 | B14: 55 | C14: 0.05392156863 | D14: 50 | E14: 0.05767012687
A15: 6 | B15: 45 | C15: 0.04411764706 | D15: 40 | E15: 0.0461361015
A16: Summe | B16: =SUM(B10:B15) -> 510 | C16: 0.5 | D16: =SUM(D10:D15) -> 430 | E16: 0.4959630911
